Workbook

Sheet Summary
A1: Worksheet Description:
A2: I2 Class - Input tab for Domestic vs. Export split (this would apply to all worksheets of the model) no need to update for the purpose of the study
A3: I3 TB Data - Input tab for Rate Base and Revenue Requirement (no reclassification is required for the purpose of this study)
A4: I8 Demand Data - This is the IESO data for the following two reports:
B5: HourlyImportExportSchedules_2002-2020
B6: HourlyDemands_2018-2020
A7: E2 Allocators - Derived Allocators based on inputs in I8 (Demand Allocators). The allocators that are being used include CP12 (and modified CP12), GA, DOM, INT, INT_XI and TXR
A8: O1 Revenue to cost|RR - The is where the actual ETS rate is derived ($/MWh). Total Revenue Requirement (Allocated to Export) / Total Export MWh
A9: O4 Summary by Class & Accounts - Each account that was previously entered in the I3 TB Data is broken into Domestic and Export based on an allocator that is assigned in E4 TB Allocation Details
A10: O6 Source Data for E2 - Links to O4 Summary by Class & Accounts
A11: E4 TB Allocation Details - Each account that was previously entered in the I3 TB Data is assigned an allocator
A12: E5 Reconciliation - Reconciliation

Sheet I2 Class
C5: Sheet I2 Class Selection | D5: =C17 -> 
C14: Please input the date on which this Run of the model was prepared or submitted
C16: Please provide summary identification of this Run
D19: Utility's Class Definition | E19: Current
B20: 1 | C20: Domestic | E20: YES | Q20: yes
B21: 2 | C21: Export | E21: YES | Q21: yes
B22: 3 | C22: Rate Class 1 | E22: NO | Q22: yes
B23: 4 | C23: Rate class 2 | E23: NO | Q23: yes
B24: 5 | C24: Rate class 3 | E24: NO | Q24: yes
B25: 6 | C25: Rate class 4 | E25: NO | Q25: yes
B26: 7 | C26: Rate class 5 | E26: NO | Q26: yes
B27: 8 | C27: Rate class 6 | E27: NO | Q27: yes
B28: 9 | C28: Rate class 7 | E28: NO | Q28: yes
B29: 10 | C29: Rate class 8 | E29: NO | Q29: yes
B30: 11 | C30: Rate class 9 | E30: NO | Q30: yes
B31: 12 | C31: Rate class 1 | E31: NO | Q31: yes
B32: 13 | C32: Rate class 2 | E32: NO | Q32: yes
B33: 14 | C33: Rate class 3 | E33: NO | Q33: yes
B34: 15 | C34: Rate class 4 | E34: NO | Q34: yes
B35: 16 | C35: Rate class 5 | E35: NO | Q35: yes
B36: 17 | C36: Rate class 6 | E36: NO | Q36: yes
B37: 18 | C37: Rate class 7 | E37: NO | Q37: yes
B38: 19 | C38: Rate class 8 | E38: NO | Q38: yes
B39: 20 | C39: Rate class 9 | E39: NO | Q39: yes

Sheet I3 TB Data
B3: =#REF! -> 
B8: ='I2 Class'!C4 -> 
B9: ="Sheet I3 Trial Balance Data " -> Sheet I3 Trial Balance Data
D13: Service Revenue Requirement | F13: 1823201837 | G13: From this Sheet | H13: Differences?
D14: Revenue Requirement to be Used in this model ($) | F14: =ROUND(F13,0) -> 1823201837 | G14: =ROUND(SUM(G121:G408),0) -> 1823201837 | H14: =IF(ROUND(F14-G14,-1)=0,"Rev Req Matches", "Rev Req does not match") -> Rev Req Matches | J14: =F14-G14 -> 0
D15: Rate Base ($) | F15: 1.45927412e+10
D16: Rate Base to be Used in this model ($) | F16: =ROUND(F15,0) -> 14592741199 | G16: =ROUND(SUM(G19:G45),0) -> 14592741199 | H16: =IF(ROUND(F16-G16,-1)=0,"Rate Base Matches","Rate Base does not match") -> Rate Base Matches | J16: =F16-G16 -> 0 | K16: =J16*(100/15) -> 0
B18: Accounts | D18: Forecast Financial Statement | E18: Model Adjustments | F18: Reclassify accounts | G18: Reclassified Balance
B19: Rate Base - Network - Dedicated to Domestic | D19: 0 | G19: =+D19+E19+F19 -> 0 | H19: =LEFT(B19,FIND("-",B19)-2) -> Rate Base
B20: Rate Base - Network - Dedicated to Interconnect | D20: 94126151.22 | G20: 94126151.22 | H20: Rate Base
B21: Rate Base - Network - Shared | D21: 7068194662 | G21: 7068194662 | H21: Rate Base
B22: Rate Base - Line Connection - Dedicated to Domestic | D22: 1321516185 | G22: 1321516185 | H22: Rate Base
B23: Rate Base - Line Connection - Dedicated to Interconnect | D23: 0 | G23: 0 | H23: Rate Base
B24: Rate Base - Line Connection - Shared | D24: 0 | G24: 0 | H24: Rate Base
B25: Rate Base - Transformer Connection - Dedicated to Domestic | D25: 3951462957 | G25: 3951462957 | H25: Rate Base
B26: Rate Base - Transformer Connection - Dedicated to Interconnect | D26: 0 | G26: 0 | H26: Rate Base
B27: Rate Base - Transformer Connection - Shared | D27: 0 | G27: 0 | H27: Rate Base
B28: Rate Base - Wholesale Revenue Meter - Dedicated to Domestic | D28: 0 | G28: 0 | H28: Rate Base
B29: Rate Base - Wholesale Revenue Meter - Dedicated to Interconnect | D29: 0 | G29: 0 | H29: Rate Base
B30: Rate Base - Wholesale Revenue Meter - Shared | D30: 0 | G30: 0 | H30: Rate Base
B31: Rate Base - Network Dual Function Line - Dedicated to Domestic | D31: 0 | G31: 0 | H31: Rate Base
B32: Rate Base - Network Dual Function Line - Dedicated to Interconnect | D32: 0 | G32: 0 | H32: Rate Base
B33: Rate Base - Network Dual Function Line - Shared | D33: 1486764007 | G33: 1486764007 | H33: Rate Base
B34: Rate Base - Line Connection Dual Function Line - Dedicated to Domestic | D34: 252538131.2 | G34: 252538131.2 | H34: Rate Base
B35: Rate Base - Line Connection Dual Function Line - Dedicated to Interconnect | D35: 0 | G35: 0 | H35: Rate Base
B36: Rate Base - Line Connection Dual Function Line - Shared | D36: 0 | G36: 0 | H36: Rate Base
B37: Rate Base - Generation Line Connection - Dedicated to Domestic | D37: 0 | G37: 0 | H37: Rate Base
B38: Rate Base - Generation Line Connection - Dedicated to Interconnect | D38: 0 | G38: 0 | H38: Rate Base
B39: Rate Base - Generation Line Connection - Shared | D39: 356072951.8 | G39: 356072951.8 | H39: Rate Base
B40: Rate Base - Generation Transformation Connection - Dedicated to Domestic | D40: 0 | G40: 0 | H40: Rate Base
B41: Rate Base - Generation Transformation Connection - Dedicated to Interconnect | D41: 0 | G41: 0 | H41: Rate Base
B42: Rate Base - Generation Transformation Connection - Shared | D42: 62066154.24 | G42: 62066154.24 | H42: Rate Base
B43: Contributions and Grants - Credit | D43: 0 | G43: 0 | H43: Contributions and Grants
B44: Accum. Amortization of Electric Utility Plant - Property, Plant, & Equipment | D44: 0 | G44: 0 | H44: Accum. Amortization of Electric Utility Plant
B45: Accumulated Amortization of Electric Utility Plant - Intangibles | D45: 0 | G45: 0 | H45: Accumulated Amortization of Electric Utility Plant
B46: External Revenues - Network - Dedicated to Domestic | D46: -19588023.72 | F46: =-D46 -> 19588023.72 | G46: =+D46+E46+F46 -> 0 | H46: =LEFT(B46,FIND("-",B46)-2) -> External Revenues
B47: External Revenues - Network - Dedicated to Interconnect | D47: 0 | G47: 0 | H47: External Revenues
B48: External Revenues - Network - Shared | D48: 0 | F48: =-F46 -> -19588023.72 | G48: =+D48+E48+F48 -> -19588023.72 | H48: External Revenues
B49: External Revenues - Line Connection - Dedicated to Domestic | D49: -3518751.36 | G49: -3518751.36 | H49: External Revenues
B50: External Revenues - Line Connection - Dedicated to Interconnect | D50: 0 | G50: 0 | H50: External Revenues
B51: External Revenues - Line Connection - Shared | D51: 0 | G51: 0 | H51: External Revenues
B52: External Revenues - Transformer Connection - Dedicated to Domestic | D52: -11569843.69 | G52: -11569843.69 | H52: External Revenues
B53: External Revenues - Transformer Connection - Dedicated to Interconnect | D53: 0 | G53: 0 | H53: External Revenues
B54: External Revenues - Transformer Connection - Shared | D54: 0 | G54: 0 | H54: External Revenues
B55: External Revenues - Wholesale Revenue Meter - Dedicated to Domestic | D55: 0 | G55: 0 | H55: External Revenues
B56: External Revenues - Wholesale Revenue Meter - Dedicated to Interconnect | D56: 0 | G56: 0 | H56: External Revenues
B57: External Revenues - Wholesale Revenue Meter - Shared | D57: 0 | G57: 0 | H57: External Revenues
B58: External Revenues - Network Dual Function Line - Dedicated to Domestic | D58: -3728031.311 | G58: -3728031.311 | H58: External Revenues
B59: External Revenues - Network Dual Function Line - Dedicated to Interconnect | D59: 0 | G59: 0 | H59: External Revenues
B60: External Revenues - Network Dual Function Line - Shared | D60: 0 | G60: 0 | H60: External Revenues
B61: External Revenues - Line Connection Dual Function Line - Dedicated to Domestic | D61: -636787.3583 | G61: -636787.3583 | H61: External Revenues
B62: External Revenues - Line Connection Dual Function Line - Dedicated to Interconnect | D62: 0 | G62: 0 | H62: External Revenues
B63: External Revenues - Line Connection Dual Function Line - Shared | D63: 0 | G63: 0 | H63: External Revenues
B64: External Revenues - Generation Line Connection - Dedicated to Domestic | D64: -891290.2521 | G64: -891290.2521 | H64: External Revenues
B65: External Revenues - Generation Line Connection - Dedicated to Interconnect | D65: 0 | G65: 0 | H65: External Revenues
B66: External Revenues - Generation Line Connection - Shared | D66: 0 | G66: 0 | H66: External Revenues
B67: External Revenues - Generation Transformation Connection - Dedicated to Domestic | D67: -204794.8931 | G67: -204794.8931 | H67: External Revenues
B68: External Revenues - Generation Transformation Connection - Dedicated to Interconnect | D68: 0 | G68: 0 | H68: External Revenues
B69: External Revenues - Generation Transformation Connection - Shared | D69: 0 | G69: 0 | H69: External Revenues
B70: Export Revenue Credit - Network - Dedicated to Domestic | G70: 0 | H70: Export Revenue Credit
B71: Export Revenue Credit - Network - Dedicated to Interconnect | G71: 0 | H71: Export Revenue Credit
B72: Export Revenue Credit - Network - Shared | G72: 0 | H72: Export Revenue Credit
B73: Export Revenue Credit - Line Connection - Dedicated to Domestic | G73: 0 | H73: Export Revenue Credit
B74: Export Revenue Credit - Line Connection - Dedicated to Interconnect | G74: 0 | H74: Export Revenue Credit
B75: Export Revenue Credit - Line Connection - Shared | G75: 0 | H75: Export Revenue Credit
B76: Export Revenue Credit - Transformer Connection - Dedicated to Domestic | G76: 0 | H76: Export Revenue Credit
B77: Export Revenue Credit - Transformer Connection - Dedicated to Interconnect | G77: 0 | H77: Export Revenue Credit
B78: Export Revenue Credit - Transformer Connection - Shared | G78: 0 | H78: Export Revenue Credit
B79: Export Revenue Credit - Wholesale Revenue Meter - Dedicated to Domestic | G79: 0 | H79: Export Revenue Credit
B80: Export Revenue Credit - Wholesale Revenue Meter - Dedicated to Interconnect | G80: 0 | H80: Export Revenue Credit
B81: Export Revenue Credit - Wholesale Revenue Meter - Shared | G81: 0 | H81: Export Revenue Credit
B82: Export Revenue Credit - Network Dual Function Line - Dedicated to Domestic | G82: 0 | H82: Export Revenue Credit
B83: Export Revenue Credit - Network Dual Function Line - Dedicated to Interconnect | G83: 0 | H83: Export Revenue Credit
B84: Export Revenue Credit - Network Dual Function Line - Shared | G84: 0 | H84: Export Revenue Credit
B85: Export Revenue Credit - Line Connection Dual Function Line - Dedicated to Domestic | G85: 0 | H85: Export Revenue Credit
B86: Export Revenue Credit - Line Connection Dual Function Line - Dedicated to Interconnect | G86: 0 | H86: Export Revenue Credit
B87: Export Revenue Credit - Line Connection Dual Function Line - Shared | G87: 0 | H87: Export Revenue Credit
B88: Export Revenue Credit - Generation Line Connection - Dedicated to Domestic | G88: 0 | H88: Export Revenue Credit
B89: Export Revenue Credit - Generation Line Connection - Dedicated to Interconnect | G89: 0 | H89: Export Revenue Credit
B90: Export Revenue Credit - Generation Line Connection - Shared | G90: 0 | H90: Export Revenue Credit
B91: Export Revenue Credit - Generation Transformation Connection - Dedicated to Domestic | G91: 0 | H91: Export Revenue Credit
B92: Export Revenue Credit - Generation Transformation Connection - Dedicated to Interconnect | G92: 0 | H92: Export Revenue Credit
B93: Export Revenue Credit - Generation Transformation Connection - Shared | G93: 0 | H93: Export Revenue Credit
B94: Meter Services Provider Revenues - Dedicated to Domestic | D94: -31600 | G94: -31600 | H94: Meter Services Provider Revenue
B95: Meter Services Provider Revenues - Dedicated to Interconnect | D95: 0 | G95: 0 | H95: Meter Services Provider Revenue
B96: Meter Services Provider Revenues - Shared | D96: 0 | G96: 0 | H96: Meter Services Provider Revenue
B97: LVSG Credit - Network - Dedicated to Domestic | D97: 0 | G97: 0 | H97: LVSG Credit
B98: LVSG Credit - Network - Dedicated to Interconnect | D98: 0 | G98: 0 | H98: LVSG Credit
B99: LVSG Credit - Network - Shared | D99: 0 | G99: 0 | H99: LVSG Credit
B100: LVSG Credit - Line Connection - Dedicated to Domestic | D100: 0 | G100: 0 | H100: LVSG Credit
B101: LVSG Credit - Line Connection - Dedicated to Interconnect | D101: 0 | G101: 0 | H101: LVSG Credit
B102: LVSG Credit - Line Connection - Shared | D102: 0 | G102: 0 | H102: LVSG Credit
B103: LVSG Credit - Transformer Connection - Dedicated to Domestic | D103: 16464707.52 | G103: 16464707.52 | H103: LVSG Credit
B104: LVSG Credit - Transformer Connection - Dedicated to Interconnect | D104: 0 | G104: 0 | H104: LVSG Credit
B105: LVSG Credit - Transformer Connection - Shared | D105: 0 | G105: 0 | H105: LVSG Credit
B106: LVSG Credit - Wholesale Revenue Meter - Dedicated to Domestic | D106: 0 | G106: 0 | H106: LVSG Credit
B107: LVSG Credit - Wholesale Revenue Meter - Dedicated to Interconnect | D107: 0 | G107: 0 | H107: LVSG Credit
B108: LVSG Credit - Wholesale Revenue Meter - Shared | D108: 0 | G108: 0 | H108: LVSG Credit
B109: LVSG Credit - Network Dual Function Line - Dedicated to Domestic | D109: 0 | G109: 0 | H109: LVSG Credit
B110: LVSG Credit - Network Dual Function Line - Dedicated to Interconnect | D110: 0 | G110: 0 | H110: LVSG Credit
B111: LVSG Credit - Network Dual Function Line - Shared | D111: 0 | G111: 0 | H111: LVSG Credit
B112: LVSG Credit - Line Connection Dual Function Line - Dedicated to Domestic | D112: 0 | G112: 0 | H112: LVSG Credit
B113: LVSG Credit - Line Connection Dual Function Line - Dedicated to Interconnect | D113: 0 | G113: =+D113+E113+F113 -> 0 | H113: =LEFT(B113,FIND("-",B113)-2) -> LVSG Credit
B114: LVSG Credit - Line Connection Dual Function Line - Shared | D114: 0 | G114: 0 | H114: LVSG Credit
B115: LVSG Credit - Generation Line Connection - Dedicated to Domestic | D115: 0 | G115: 0 | H115: LVSG Credit
B116: LVSG Credit - Generation Line Connection - Dedicated to Interconnect | D116: 0 | G116: 0 | H116: LVSG Credit
B117: LVSG Credit - Generation Line Connection - Shared | D117: 0 | G117: 0 | H117: LVSG Credit
B118: LVSG Credit - Generation Transformation Connection - Dedicated to Domestic | D118: 0 | G118: 0 | H118: LVSG Credit
B119: LVSG Credit - Generation Transformation Connection - Dedicated to Interconnect | D119: 0 | G119: 0 | H119: LVSG Credit
B120: LVSG Credit - Generation Transformation Connection - Shared | D120: 0 | G120: 0 | H120: LVSG Credit
B121: OM&A - Network - Dedicated to Domestic | D121: 0 | G121: =+D121+E121+F121 -> 0 | H121: =LEFT(B121,FIND("-",B121)-2) -> OM&A
B122: OM&A - Network - Dedicated to Interconnect | D122: 2208731.708 | G122: 2208731.708 | H122: OM&A
B123: OM&A - Network - Shared | D123: 165859811.2 | G123: 165859811.2 | H123: OM&A
B124: OM&A - Line Connection - Dedicated to Domestic | D124: 34766928 | G124: 34766928 | H124: OM&A
B125: OM&A - Line Connection - Dedicated to Interconnect | D125: 0 | G125: 0 | H125: OM&A
B126: OM&A - Line Connection - Shared | D126: 0 | G126: 0 | H126: OM&A
B127: OM&A - Transformer Connection - Dedicated to Domestic | D127: 105654773.5 | G127: 105654773.5 | H127: OM&A
B128: OM&A - Transformer Connection - Dedicated to Interconnect | D128: 0 | G128: 0 | H128: OM&A
B129: OM&A - Transformer Connection - Shared | D129: 0 | G129: 0 | H129: OM&A
B130: OM&A - Wholesale Revenue Meter - Dedicated to Domestic | D130: 0 | G130: 0 | H130: OM&A
B131: OM&A - Wholesale Revenue Meter - Dedicated to Interconnect | D131: 0 | G131: 0 | H131: OM&A
B132: OM&A - Wholesale Revenue Meter - Shared | D132: 0 | G132: 0 | H132: OM&A
B133: OM&A - Network Dual Function Line - Dedicated to Domestic | D133: 0 | G133: 0 | H133: OM&A
B134: OM&A - Network Dual Function Line - Dedicated to Interconnect | D134: 0 | G134: 0 | H134: OM&A
B135: OM&A - Network Dual Function Line - Shared | D135: 33730453.82 | G135: 33730453.82 | H135: OM&A
B136: OM&A - Line Connection Dual Function Line - Dedicated to Domestic | D136: 5829745.5 | G136: 5829745.5 | H136: OM&A
B137: OM&A - Line Connection Dual Function Line - Dedicated to Interconnect | D137: 0 | G137: 0 | H137: OM&A
B138: OM&A - Line Connection Dual Function Line - Shared | D138: 0 | G138: 0 | H138: OM&A
B139: OM&A - Generation Line Connection - Dedicated to Domestic | D139: 0 | G139: 0 | H139: OM&A
B140: OM&A - Generation Line Connection - Dedicated to Interconnect | D140: 0 | G140: 0 | H140: OM&A
B141: OM&A - Generation Line Connection - Shared | D141: 6073432.785 | G141: 6073432.785 | H141: OM&A
B142: OM&A - Generation Transformation Connection - Dedicated to Domestic | D142: 0 | G142: 0 | H142: OM&A
B143: OM&A - Generation Transformation Connection - Dedicated to Interconnect | D143: 0 | G143: 0 | H143: OM&A
B144: OM&A - Generation Transformation Connection - Shared | D144: 2655157.05 | G144: 2655157.05 | H144: OM&A
B145: Other Taxes (Grants in Lieu) - Network - Dedicated to Domestic | D145: 0 | G145: 0 | H145: Other Taxes (Grants in Lieu)
B146: Property Taxes (was Grants in Lieu) - Network - Dedicated to Interconnect | D146: 460318.6741 | G146: 460318.6741 | H146: Property Taxes (was Grants in Lieu)
B147: Property Taxes (was Grants in Lieu) - Network - Shared | D147: 34566610.38 | G147: 34566610.38 | H147: Property Taxes (was Grants in Lieu)
B148: Property Taxes (was Grants in Lieu) - Line Connection - Dedicated to Domestic | D148: 6461154.41 | G148: 6461154.41 | H148: Property Taxes (was Grants in Lieu)
B149: Other Taxes (Grants in Lieu) - Line Connection - Dedicated to Interconnect | D149: 0 | G149: 0 | H149: Other Taxes (Grants in Lieu)
B150: Other Taxes (Grants in Lieu) - Line Connection - Shared | D150: 0 | G150: 0 | H150: Other Taxes (Grants in Lieu)
B151: Property Taxes (was Grants in Lieu) - Transformer Connection - Dedicated to Domestic | D151: 19320417.57 | G151: 19320417.57 | H151: Property Taxes (was Grants in Lieu)
B152: Other Taxes (Grants in Lieu) - Transformer Connection - Dedicated to Interconnect | D152: 0 | G152: 0 | H152: Other Taxes (Grants in Lieu)
B153: Other Taxes (Grants in Lieu) - Transformer Connection - Shared | D153: 0 | G153: 0 | H153: Other Taxes (Grants in Lieu)
B154: Property Taxes (was Grants in Lieu) - Wholesale Revenue Meter - Dedicated to Domestic | D154: 0 | G154: 0 | H154: Property Taxes (was Grants in Lieu)
B155: Other Taxes (Grants in Lieu) - Wholesale Revenue Meter - Dedicated to Interconnect | D155: 0 | G155: 0 | H155: Other Taxes (Grants in Lieu)
B156: Other Taxes (Grants in Lieu) - Wholesale Revenue Meter - Shared | D156: 0 | G156: 0 | H156: Other Taxes (Grants in Lieu)
B157: Other Taxes (Grants in Lieu) - Network Dual Function Line - Dedicated to Domestic | D157: 0 | G157: 0 | H157: Other Taxes (Grants in Lieu)
B158: Other Taxes (Grants in Lieu) - Network Dual Function Line - Dedicated to Interconnect | D158: 0 | G158: 0 | H158: Other Taxes (Grants in Lieu)
B159: Property Taxes (was Grants in Lieu) - Network Dual Function Line - Shared | D159: 7271781.263 | G159: 7271781.263 | H159: Property Taxes (was Grants in Lieu)
B160: Property Taxes (was Grants in Lieu) - Line Connection Dual Function Line - Dedicated to Domestic | D160: 1235137.618 | G160: 1235137.618 | H160: Property Taxes (was Grants in Lieu)
B161: Other Taxes (Grants in Lieu) - Line Connection Dual Function Line - Dedicated to Interconnect | D161: 0 | G161: 0 | H161: Other Taxes (Grants in Lieu)
B162: Other Taxes (Grants in Lieu) - Line Connection Dual Function Line - Shared | D162: 0 | G162: 0 | H162: Other Taxes (Grants in Lieu)
B163: Other Taxes (Grants in Lieu) - Generation Line Connection - Dedicated to Domestic | D163: 0 | G163: 0 | H163: Other Taxes (Grants in Lieu)
B164: Other Taxes (Grants in Lieu) - Generation Line Connection - Dedicated to Interconnect | D164: 0 | G164: 0 | H164: Other Taxes (Grants in Lieu)
B165: Property Taxes (was Grants in Lieu) - Generation Line Connection - Shared | D165: 1741974.041 | G165: 1741974.041 | H165: Property Taxes (was Grants in Lieu)
B166: Other Taxes (Grants in Lieu) - Generation Transformation Connection - Dedicated to Domestic | D166: 0 | G166: 0 | H166: Other Taxes (Grants in Lieu)
B167: Other Taxes (Grants in Lieu) - Generation Transformation Connection - Dedicated to Interconnect | D167: 0 | G167: 0 | H167: Other Taxes (Grants in Lieu)
B168: Property Taxes (was Grants in Lieu) - Generation Transformation Connection - Shared | D168: 303161.0954 | G168: 303161.0954 | H168: Property Taxes (was Grants in Lieu)
B169: Depreciation on fixed assets - Network - Dedicated to Domestic | D169: 0 | G169: 0 | H169: Depreciation on fixed assets
B170: Depreciation on fixed assets - Network - Dedicated to Interconnect | D170: 3133748.9 | G170: 3133748.9 | H170: Depreciation on fixed assets
B171: Depreciation on fixed assets - Network - Shared | D171: 235321926.6 | G171: 235321926.6 | H171: Depreciation on fixed assets
B172: Depreciation on fixed assets - Line Connection - Dedicated to Domestic | D172: 36010901.77 | G172: 36010901.77 | H172: Depreciation on fixed assets
B173: Depreciation on fixed assets - Line Connection - Dedicated to Interconnect | D173: 0 | G173: 0 | H173: Depreciation on fixed assets
B174: Depreciation on fixed assets - Line Connection - Shared | D174: 0 | G174: 0 | H174: Depreciation on fixed assets
B175: Depreciation on fixed assets - Transformer Connection - Dedicated to Domestic | D175: 152901397.4 | G175: 152901397.4 | H175: Depreciation on fixed assets
B176: Depreciation on fixed assets - Transformer Connection - Dedicated to Interconnect | D176: 0 | G176: 0 | H176: Depreciation on fixed assets
B177: Depreciation on fixed assets - Transformer Connection - Shared | D177: 0 | G177: 0 | H177: Depreciation on fixed assets
B178: Depreciation on fixed assets - Wholesale Revenue Meter - Dedicated to Domestic | D178: 0 | G178: 0 | H178: Depreciation on fixed assets
B179: Depreciation on fixed assets - Wholesale Revenue Meter - Dedicated to Interconnect | D179: 0 | G179: 0 | H179: Depreciation on fixed assets
B180: Depreciation on fixed assets - Wholesale Revenue Meter - Shared | D180: 0 | G180: 0 | H180: Depreciation on fixed assets
B181: Depreciation on fixed assets - Network Dual Function Line - Dedicated to Domestic | D181: 0 | G181: 0 | H181: Depreciation on fixed assets
B182: Depreciation on fixed assets - Network Dual Function Line - Dedicated to Interconnect | D182: 0 | G182: 0 | H182: Depreciation on fixed assets
B183: Depreciation on fixed assets - Network Dual Function Line - Shared | D183: 35468950.58 | G183: 35468950.58 | H183: Depreciation on fixed assets
B184: Depreciation on fixed assets - Line Connection Dual Function Line - Dedicated to Domestic | D184: 6082763.135 | G184: 6082763.135 | H184: Depreciation on fixed assets
B185: Depreciation on fixed assets - Line Connection Dual Function Line - Dedicated to Interconnect | D185: 0 | G185: =+D185+E185+F185 -> 0 | H185: =LEFT(B185,FIND("-",B185)-2) -> Depreciation on fixed assets
B186: Depreciation on fixed assets - Line Connection Dual Function Line - Shared | D186: 0 | G186: 0 | H186: Depreciation on fixed assets
B187: Depreciation on fixed assets - Generation Line Connection - Dedicated to Domestic | D187: 0 | G187: 0 | H187: Depreciation on fixed assets
B188: Depreciation on fixed assets - Generation Line Connection - Dedicated to Interconnect | D188: 0 | G188: 0 | H188: Depreciation on fixed assets
B189: Depreciation on fixed assets - Generation Line Connection - Shared | D189: 10416226.09 | G189: 10416226.09 | H189: Depreciation on fixed assets
B190: Depreciation on fixed assets - Generation Transformation Connection - Dedicated to Domestic | D190: 0 | G190: 0 | H190: Depreciation on fixed assets
B191: Depreciation on fixed assets - Generation Transformation Connection - Dedicated to Interconnect | D191: 0 | G191: 0 | H191: Depreciation on fixed assets
B192: Depreciation on fixed assets - Generation Transformation Connection - Shared | D192: 2451267.396 | G192: 2451267.396 | H192: Depreciation on fixed assets
B193: Capitalized Depreciation - Network - Dedicated to Domestic | D193: 0 | G193: 0 | H193: Capitalized Depreciation
B194: Capitalized Depreciation - Network - Dedicated to Interconnect | D194: -95236.95214 | G194: -95236.95214 | H194: Capitalized Depreciation
B195: Capitalized Depreciation - Network - Shared | D195: -7151607.795 | G195: -7151607.795 | H195: Capitalized Depreciation
B196: Capitalized Depreciation - Line Connection - Dedicated to Domestic | D196: -1304253.757 | G196: -1304253.757 | H196: Capitalized Depreciation
B197: Capitalized Depreciation - Line Connection - Dedicated to Interconnect | D197: 0 | G197: 0 | H197: Capitalized Depreciation
B198: Capitalized Depreciation - Line Connection - Shared | D198: 0 | G198: 0 | H198: Capitalized Depreciation
B199: Capitalized Depreciation - Transformer Connection - Dedicated to Domestic | D199: -4122576.269 | G199: -4122576.269 | H199: Capitalized Depreciation
B200: Capitalized Depreciation - Transformer Connection - Dedicated to Interconnect | D200: 0 | G200: 0 | H200: Capitalized Depreciation
B201: Capitalized Depreciation - Transformer Connection - Shared | D201: 0 | G201: 0 | H201: Capitalized Depreciation
B202: Capitalized Depreciation - Wholesale Revenue Meter - Dedicated to Domestic | D202: 0 | G202: 0 | H202: Capitalized Depreciation
B203: Capitalized Depreciation - Wholesale Revenue Meter - Dedicated to Interconnect | D203: 0 | G203: 0 | H203: Capitalized Depreciation
B204: Capitalized Depreciation - Wholesale Revenue Meter - Shared | D204: 0 | G204: 0 | H204: Capitalized Depreciation
B205: Capitalized Depreciation - Network Dual Function Line - Dedicated to Domestic | D205: 0 | G205: 0 | H205: Capitalized Depreciation
B206: Capitalized Depreciation - Network Dual Function Line - Dedicated to Interconnect | D206: 0 | G206: 0 | H206: Capitalized Depreciation
B207: Capitalized Depreciation - Network Dual Function Line - Shared | D207: -1450120.359 | G207: -1450120.359 | H207: Capitalized Depreciation
B208: Capitalized Depreciation - Line Connection Dual Function Line - Dedicated to Domestic | D208: -247254.9115 | G208: -247254.9115 | H208: Capitalized Depreciation
B209: Capitalized Depreciation - Line Connection Dual Function Line - Dedicated to Interconnect | D209: 0 | G209: 0 | H209: Capitalized Depreciation
B210: Capitalized Depreciation - Line Connection Dual Function Line - Shared | D210: 0 | G210: 0 | H210: Capitalized Depreciation
... 237 more rows

Sheet I8 Demand Data
A4: ='I2 Class'!C4 -> 
A5: ="Sheet I8 Demand Data Worksheet - "& 'I2 Class'!$C$17 -> Sheet I8 Demand Data Worksheet -
A14: CP TEST RESULTS
A15: NCP TEST RESULTS
A17: Co-incident Peak | C17: Indicator
A18: 1 CP | C18: CP 1
A19: 4 CP | C19: CP 4
A20: 12 CP | C20: CP 12
A22: 4 NCP | C22: NCP 4
A23: 12 NCP | C23: NCP 12
A24: Non-co-incident Peak | C24: Indicator
A25: 1 NCP | C25: NCP 1
A26: 4 NCP | C26: NCP 4
A27: 12 NCP | C27: NCP 12
D30: 1 | E30: 2 | F30: 3 | G30: 4 | H30: 5 | I30: 6 | J30: 7 | K30: 8 | L30: 9 | M30: 10 | N30: 11 | O30: 12 | P30: 13 | Q30: 14 | R30: 15 | S30: 16 | T30: 17 | U30: 18 | V30: 19 | W30: 20
A31: Customer Classes | C31: Total | D31: =IF('I2 Class'!$D$20="",'I2 Class'!$C$20,'I2 Class'!$D$20) -> Domestic | E31: =IF('I2 Class'!$D$21="",'I2 Class'!$C$21,'I2 Class'!$D$21) -> Export | F31: =IF('I2 Class'!$D$22="",'I2 Class'!$C$22,'I2 Class'!$D$22) -> Rate Class 1 | G31: =IF('I2 Class'!$D$23="",'I2 Class'!$C$23,'I2 Class'!$D$23) -> Rate class 2 | H31: =IF('I2 Class'!$D$24="",'I2 Class'!$C$24,'I2 Class'!$D$24) -> Rate class 3 | I31: =IF('I2 Class'!$D$25="",'I2 Class'!$C$25,'I2 Class'!$D$25) -> Rate class 4 | J31: =IF('I2 Class'!$D$26="",'I2 Class'!$C$26,'I2 Class'!$D$26) -> Rate class 5 | K31: =IF('I2 Class'!$D$27="",'I2 Class'!$C$27,'I2 Class'!$D$27) -> Rate class 6 | L31: =IF('I2 Class'!$D$28="",'I2 Class'!$C$28,'I2 Class'!$D$28) -> Rate class 7 | M31: =IF('I2 Class'!$D$29="",'I2 Class'!$C$29,'I2 Class'!$D$29) -> Rate class 8 | N31: =IF('I2 Class'!$D$30="",'I2 Class'!$C$30,'I2 Class'!$D$30) -> Rate class 9 | O31: =IF('I2 Class'!$D$31="",'I2 Class'!$C$31,'I2 Class'!$D$31) -> Rate class 1 | P31: =IF('I2 Class'!$D$32="",'I2 Class'!$C$32,'I2 Class'!$D$32) -> Rate class 2 | Q31: =IF('I2 Class'!$D$33="",'I2 Class'!$C$33,'I2 Class'!$D$33) -> Rate class 3 | R31: =IF('I2 Class'!$D$34="",'I2 Class'!$C$34,'I2 Class'!$D$34) -> Rate class 4 | S31: =IF('I2 Class'!$D$35="",'I2 Class'!$C$35,'I2 Class'!$D$35) -> Rate class 5 | T31: =IF('I2 Class'!$D$36="",'I2 Class'!$C$36,'I2 Class'!$D$36) -> Rate class 6 | U31: =IF('I2 Class'!$D$37="",'I2 Class'!$C$37,'I2 Class'!$D$37) -> Rate class 7 | V31: =IF('I2 Class'!$D$38="",'I2 Class'!$C$38,'I2 Class'!$D$38) -> Rate class 8 | W31: =IF('I2 Class'!$D$39="",'I2 Class'!$C$39,'I2 Class'!$D$39) -> Rate class 9
A33: Volume
A35: MWh | B35: MWh | C35: =SUM(D35:W35) -> 152602831 | D35: 132225424 | E35: 20377407
A37: Peak MWh | B37: PMWh | C37: =SUM(D37:W37) -> 81171617 | D37: 71797081.67 | E37: 9374535.333
A40: 20% Disc. MWh | B40: MWh20 | C40: =SUM(D40:W40) -> 148527349.6 | D40: =D35 -> 132225424 | E40: =E35*(1-0.2) -> 16301925.6
A42: 30% Disc. MWh | B42: MWh30 | C42: =SUM(D42:W42) -> 146489608.9 | D42: =D35 -> 132225424 | E42: =E35*(1-0.3) -> 14264184.9
A44: 50% Disc. MWh | B44: MWh50 | C44: =SUM(D44:W44) -> 142414127.5 | D44: =D35 -> 132225424 | E44: =E35*(1-0.5) -> 10188703.5
A46: (Temp) MWh Discount = | B46: 0.33 | C46: =SUM(D46:W46) -> 145878286.7 | D46: =D35 -> 132225424 | E46: =E35*(1-B46) -> 13652862.69
A53: CO-INCIDENT PEAK
A55: 1 CP | B55: CP1 | C55: =SUM(D55:W55) -> 26258 | D55: 23675 | E55: 2583
A57: 4 CP | B57: CP4 | C57: =SUM(D57:W57) -> 97915 | D57: 89528 | E57: 8387
A59: 12 CP | B59: CP12 | C59: =SUM(D59:W59) -> 266034 | D59: 237606 | E59: 28428
A61: High 5 | B61: High5 | C61: =SUM(D61:W61) -> 157551.3333 | D61: 143723 | E61: 13828.33333
A63: 20% Disc. 12 CP | B63: 12CP20 | C63: =SUM(D63:W63) -> 260348.4 | D63: =D59 -> 237606 | E63: =E59*(1-0.2) -> 22742.4
A65: 30% Disc. 12 CP | B65: 12CP30 | C65: =SUM(D65:W65) -> 257505.6 | D65: =D59 -> 237606 | E65: =E59*(1-0.3) -> 19899.6
A67: 50% Disc. 12 CP | B67: 12CP50 | C67: =SUM(D67:W67) -> 251820 | D67: =D59 -> 237606 | E67: =E59*(1-0.5) -> 14214
A69: (Temp) CP Discount = | B69: 0.33 | C69: =SUM(D69:W69) -> 256652.76 | D69: =D59 -> 237606 | E69: =E59*(1-B69) -> 19046.76
A72: Export/Import CO-INCIDENT PEAK
A74: 1 CP | B74: CP1 | C74: =SUM(D74:W74) -> 5644 | D74: 2159 | E74: 3485
A76: 12 CP | B76: CP12 | C76: =SUM(D76:W76) -> 54547 | D76: 15430 | E76: 39117
E86: Values are not used
E87: Values Used

Sheet E2 Allocators
A4: ='I2 Class'!C4 -> 
A5: ="Sheet E2 Allocator Worksheet - "& 'I2 Class'!$C$17 -> Sheet E2 Allocator Worksheet -
D14: 1 | E14: 2 | F14: 3 | G14: 4 | H14: 5 | I14: 6 | J14: 7 | K14: 8 | L14: 9 | M14: 10 | N14: 11 | O14: 12 | P14: 13 | Q14: 14 | R14: 15 | S14: 16 | T14: 17 | U14: 18 | V14: 19 | W14: 20
A15: Explanation | B15: ID and Factors | C15: Total | D15: =IF('I2 Class'!$D$20="",'I2 Class'!$C$20,'I2 Class'!$D$20) -> Domestic | E15: =IF('I2 Class'!$D$21="",'I2 Class'!$C$21,'I2 Class'!$D$21) -> Export | F15: =IF('I2 Class'!$D$22="",'I2 Class'!$C$22,'I2 Class'!$D$22) -> Rate Class 1 | G15: =IF('I2 Class'!$D$23="",'I2 Class'!$C$23,'I2 Class'!$D$23) -> Rate class 2 | H15: =IF('I2 Class'!$D$24="",'I2 Class'!$C$24,'I2 Class'!$D$24) -> Rate class 3 | I15: =IF('I2 Class'!$D$25="",'I2 Class'!$C$25,'I2 Class'!$D$25) -> Rate class 4 | J15: =IF('I2 Class'!$D$26="",'I2 Class'!$C$26,'I2 Class'!$D$26) -> Rate class 5 | K15: =IF('I2 Class'!$D$27="",'I2 Class'!$C$27,'I2 Class'!$D$27) -> Rate class 6 | L15: =IF('I2 Class'!$D$28="",'I2 Class'!$C$28,'I2 Class'!$D$28) -> Rate class 7 | M15: =IF('I2 Class'!$D$29="",'I2 Class'!$C$29,'I2 Class'!$D$29) -> Rate class 8 | N15: =IF('I2 Class'!$D$30="",'I2 Class'!$C$30,'I2 Class'!$D$30) -> Rate class 9 | O15: =IF('I2 Class'!$D$31="",'I2 Class'!$C$31,'I2 Class'!$D$31) -> Rate class 1 | P15: =IF('I2 Class'!$D$32="",'I2 Class'!$C$32,'I2 Class'!$D$32) -> Rate class 2 | Q15: =IF('I2 Class'!$D$33="",'I2 Class'!$C$33,'I2 Class'!$D$33) -> Rate class 3 | R15: =IF('I2 Class'!$D$34="",'I2 Class'!$C$34,'I2 Class'!$D$34) -> Rate class 4 | S15: =IF('I2 Class'!$D$35="",'I2 Class'!$C$35,'I2 Class'!$D$35) -> Rate class 5 | T15: =IF('I2 Class'!$D$36="",'I2 Class'!$C$36,'I2 Class'!$D$36) -> Rate class 6 | U15: =IF('I2 Class'!$D$37="",'I2 Class'!$C$37,'I2 Class'!$D$37) -> Rate class 7 | V15: =IF('I2 Class'!$D$38="",'I2 Class'!$C$38,'I2 Class'!$D$38) -> Rate class 8 | W15: =IF('I2 Class'!$D$39="",'I2 Class'!$C$39,'I2 Class'!$D$39) -> Rate class 9
A17: Demand Allocators
A19: 1 cp | B19: CP1 | C19: =IF(+SUM(D19:W19)=0,"-",+SUM(D19:W19)) -> 1 | D19: =IF(ISERROR('I8 Demand Data'!D55/'I8 Demand Data'!$C55),"0",('I8 Demand Data'!D55/'I8 Demand Data'!$C55)) -> 0.9016299794 | E19: =IF(ISERROR('I8 Demand Data'!E55/'I8 Demand Data'!$C55),"0",('I8 Demand Data'!E55/'I8 Demand Data'!$C55)) -> 0.09837002057
A21: 4 cp | B21: CP4 | C21: =IF(+SUM(D21:W21)=0,"-",+SUM(D21:W21)) -> 1 | D21: =IF(ISERROR('I8 Demand Data'!D57/'I8 Demand Data'!$C57),"0",('I8 Demand Data'!D57/'I8 Demand Data'!$C57)) -> 0.9143440739 | E21: =IF(ISERROR('I8 Demand Data'!E57/'I8 Demand Data'!$C57),"0",('I8 Demand Data'!E57/'I8 Demand Data'!$C57)) -> 0.08565592606
A23: 12 cp | B23: CP12 | C23: =IF(+SUM(D23:W23)=0,"-",+SUM(D23:W23)) -> 1 | D23: =IF(ISERROR('I8 Demand Data'!D59/'I8 Demand Data'!$C59),"0",('I8 Demand Data'!D59/'I8 Demand Data'!$C59)) -> 0.8931414782 | E23: =IF(ISERROR('I8 Demand Data'!E59/'I8 Demand Data'!$C59),"0",('I8 Demand Data'!E59/'I8 Demand Data'!$C59)) -> 0.1068585218
A25: High 5 | B25: High5 | C25: =IF(+SUM(D25:W25)=0,"-",+SUM(D25:W25)) -> 1 | D25: =IF(ISERROR('I8 Demand Data'!D61/'I8 Demand Data'!$C61),"0",('I8 Demand Data'!D61/'I8 Demand Data'!$C61)) -> 0.9122296648 | E25: =IF(ISERROR('I8 Demand Data'!E61/'I8 Demand Data'!$C61),"0",('I8 Demand Data'!E61/'I8 Demand Data'!$C61)) -> 0.08777033517
A27: MWh | B27: MWh | C27: =IF(+SUM(D27:W27)=0,"-",+SUM(D27:W27)) -> 1 | D27: =IF(ISERROR('I8 Demand Data'!D35/'I8 Demand Data'!$C35),"0",('I8 Demand Data'!D35/'I8 Demand Data'!$C35)) -> 0.8664677001 | E27: =IF(ISERROR('I8 Demand Data'!E35/'I8 Demand Data'!$C35),"0",('I8 Demand Data'!E35/'I8 Demand Data'!$C35)) -> 0.1335322999
A29: 12 CP 20% Curtailment | B29: 12CP20 | C29: =IF(+SUM(D29:W29)=0,"-",+SUM(D29:W29)) -> 1 | D29: =IF(ISERROR('I8 Demand Data'!D63/'I8 Demand Data'!$C63),"0",('I8 Demand Data'!D63/'I8 Demand Data'!$C63)) -> 0.9126462847 | E29: =IF(ISERROR('I8 Demand Data'!E63/'I8 Demand Data'!$C63),"0",('I8 Demand Data'!E63/'I8 Demand Data'!$C63)) -> 0.08735371525
A31: 12 CP 30% Curtailment | B31: 12CP30 | C31: =IF(+SUM(D31:W31)=0,"-",+SUM(D31:W31)) -> 1 | D31: =IF(ISERROR('I8 Demand Data'!D65/'I8 Demand Data'!$C65),"0",('I8 Demand Data'!D65/'I8 Demand Data'!$C65)) -> 0.9227216806 | E31: =IF(ISERROR('I8 Demand Data'!E65/'I8 Demand Data'!$C65),"0",('I8 Demand Data'!E65/'I8 Demand Data'!$C65)) -> 0.07727831938
A33: 12 CP 50% Curtailment | B33: 12CP50 | C33: =IF(+SUM(D33:W33)=0,"-",+SUM(D33:W33)) -> 1 | D33: =IF(ISERROR('I8 Demand Data'!D67/'I8 Demand Data'!$C67),"0",('I8 Demand Data'!D67/'I8 Demand Data'!$C67)) -> 0.9435549202 | E33: =IF(ISERROR('I8 Demand Data'!E67/'I8 Demand Data'!$C67),"0",('I8 Demand Data'!E67/'I8 Demand Data'!$C67)) -> 0.05644507982
A35: MWh 20% Curtailment | B35: MWh20 | C35: =IF(+SUM(D35:W35)=0,"-",+SUM(D35:W35)) -> 1 | D35: =IF(ISERROR('I8 Demand Data'!D40/'I8 Demand Data'!$C40),"0",('I8 Demand Data'!D40/'I8 Demand Data'!$C40)) -> 0.8902429375 | E35: =IF(ISERROR('I8 Demand Data'!E40/'I8 Demand Data'!$C40),"0",('I8 Demand Data'!E40/'I8 Demand Data'!$C40)) -> 0.1097570625
A37: MWh 30% Curtailment | B37: MWh30 | C37: =IF(+SUM(D37:W37)=0,"-",+SUM(D37:W37)) -> 1 | D37: =IF(ISERROR('I8 Demand Data'!D42/'I8 Demand Data'!$C42),"0",('I8 Demand Data'!D42/'I8 Demand Data'!$C42)) -> 0.9026266436 | E37: =IF(ISERROR('I8 Demand Data'!E42/'I8 Demand Data'!$C42),"0",('I8 Demand Data'!E42/'I8 Demand Data'!$C42)) -> 0.09737335643
A39: MWh 50% Curtailment | B39: MWh50 | C39: =IF(+SUM(D39:W39)=0,"-",+SUM(D39:W39)) -> 1 | D39: =IF(ISERROR('I8 Demand Data'!D44/'I8 Demand Data'!$C44),"0",('I8 Demand Data'!D44/'I8 Demand Data'!$C44)) -> 0.9284572136 | E39: =IF(ISERROR('I8 Demand Data'!E44/'I8 Demand Data'!$C44),"0",('I8 Demand Data'!E44/'I8 Demand Data'!$C44)) -> 0.07154278637
A41: Composite Allocators
A42: Net Fixed Assets | B42: NFA | C42: =IF(+SUM(D42:W42)=0,"-",+SUM(D42:W42)) -> 1 | D42: ='O6 Source Data for E2'!D44/'O6 Source Data for E2'!$C44 -> 0.9435549202 | E42: ='O6 Source Data for E2'!E44/'O6 Source Data for E2'!$C44 -> 0.05644507982
A44: Dedicated to Domestic | B44: DOM | C44: 1 | D44: 1 | E44: 0
A46: Dedicated to Interconnect | B46: INT | C46: 1 | D46: 0 | E46: 1
A48: Dedicated to Interconnect | B48: INT_XI | C48: 1 | D48: ='I8 Demand Data'!D76/'I8 Demand Data'!C76 -> 0.2828753185 | E48: ='I8 Demand Data'!E76/'I8 Demand Data'!C76 -> 0.7171246815
A50: Dedicated Interconnect Assets | B50: DI | C50: =IF(+SUM(D50:W50)=0,"-",+SUM(D50:W50)) -> 1 | D50: ='O6 Source Data for E2'!D79/'O6 Source Data for E2'!$C79 -> 1 | E50: ='O6 Source Data for E2'!E79/'O6 Source Data for E2'!$C79 -> 0
A52: Rev. Req. before Riders | B52: TXR | C52: =IF(+SUM(D52:W52)=0,"-",+SUM(D52:W52)) -> 1 | D52: ='O1 Revenue to cost|RR'!D34/'O1 Revenue to cost|RR'!C34 -> 0.9614321176 | E52: ='O1 Revenue to cost|RR'!E34/'O1 Revenue to cost|RR'!C34 -> 0.03856788236

Sheet O1 Revenue to cost|RR
A4: ='I2 Class'!C4 -> 
A5: ="Sheet O1 Revenue to Cost Summary Worksheet - "& 'I2 Class'!$C$17 -> Sheet O1 Revenue to Cost Summary Worksheet -
D11: 1 | E11: 2 | F11: 3 | G11: 4 | H11: 5 | I11: 6 | J11: 7 | K11: 8 | L11: 9 | M11: 10 | N11: 11 | O11: 12 | P11: 13 | Q11: 14 | R11: 15 | S11: 16 | T11: 17 | U11: 18 | V11: 19 | W11: 20
A12: Rate Base Assets | C12: Total | D12: =IF('I2 Class'!$D$20="",'I2 Class'!$C$20,'I2 Class'!$D$20) -> Domestic | E12: =IF('I2 Class'!$D$21="",'I2 Class'!$C$21,'I2 Class'!$D$21) -> Export | F12: =IF('I2 Class'!$D$22="",'I2 Class'!$C$22,'I2 Class'!$D$22) -> Rate Class 1 | G12: =IF('I2 Class'!$D$23="",'I2 Class'!$C$23,'I2 Class'!$D$23) -> Rate class 2 | H12: =IF('I2 Class'!$D$24="",'I2 Class'!$C$24,'I2 Class'!$D$24) -> Rate class 3 | I12: =IF('I2 Class'!$D$25="",'I2 Class'!$C$25,'I2 Class'!$D$25) -> Rate class 4 | J12: =IF('I2 Class'!$D$26="",'I2 Class'!$C$26,'I2 Class'!$D$26) -> Rate class 5 | K12: =IF('I2 Class'!$D$27="",'I2 Class'!$C$27,'I2 Class'!$D$27) -> Rate class 6 | L12: =IF('I2 Class'!$D$28="",'I2 Class'!$C$28,'I2 Class'!$D$28) -> Rate class 7 | M12: =IF('I2 Class'!$D$29="",'I2 Class'!$C$29,'I2 Class'!$D$29) -> Rate class 8 | N12: =IF('I2 Class'!$D$30="",'I2 Class'!$C$30,'I2 Class'!$D$30) -> Rate class 9 | O12: =IF('I2 Class'!$D$31="",'I2 Class'!$C$31,'I2 Class'!$D$31) -> Rate class 1 | P12: =IF('I2 Class'!$D$32="",'I2 Class'!$C$32,'I2 Class'!$D$32) -> Rate class 2 | Q12: =IF('I2 Class'!$D$33="",'I2 Class'!$C$33,'I2 Class'!$D$33) -> Rate class 3 | R12: =IF('I2 Class'!$D$34="",'I2 Class'!$C$34,'I2 Class'!$D$34) -> Rate class 4 | S12: =IF('I2 Class'!$D$35="",'I2 Class'!$C$35,'I2 Class'!$D$35) -> Rate class 5 | T12: =IF('I2 Class'!$D$36="",'I2 Class'!$C$36,'I2 Class'!$D$36) -> Rate class 6 | U12: =IF('I2 Class'!$D$37="",'I2 Class'!$C$37,'I2 Class'!$D$37) -> Rate class 7 | V12: =IF('I2 Class'!$D$38="",'I2 Class'!$C$38,'I2 Class'!$D$38) -> Rate class 8 | W12: =IF('I2 Class'!$D$39="",'I2 Class'!$C$39,'I2 Class'!$D$39) -> Rate class 9
B14: Rate Base
A15: rb | B15: Total Rate Base | C15: =SUM(D15:W15) -> 1.45927412e+10 | D15: =SUMIF('O4 Summary by Class & Accounts'!$C$13:$C$402, 'O1 Revenue to cost|RR'!$A15,'O4 Summary by Class & Accounts'!E$13:E$402) -> 1.401875379e+10 | E15: =SUMIF('O4 Summary by Class & Accounts'!$C$13:$C$402, 'O1 Revenue to cost|RR'!$A15,'O4 Summary by Class & Accounts'!F$13:F$402) -> 573987406.3
C16: =IF(ROUND('I3 TB Data'!G16-C15,-1)=0,"Rate Base Input equals Output","Rate Base Input Does Not Equal Output") -> Rate Base Input equals Output
B18: Expenses
A19: OM&A | B19: OM&A | C19: =SUM(D19:W19) -> 356779033.5 | D19: =SUMIF('O4 Summary by Class & Accounts'!$C$13:$C$402, 'O1 Revenue to cost|RR'!$A19,'O4 Summary by Class & Accounts'!E$13:E$402) -> 343436523.1 | E19: =SUMIF('O4 Summary by Class & Accounts'!$C$13:$C$402, 'O1 Revenue to cost|RR'!$A19,'O4 Summary by Class & Accounts'!F$13:F$402) -> 13342510.41 | F19: =SUMIF('O4 Summary by Class & Accounts'!$C$13:$C$402, 'O1 Revenue to cost|RR'!$A19,'O4 Summary by Class & Accounts'!G$13:G$402) -> 0 | G19: =SUMIF('O4 Summary by Class & Accounts'!$C$13:$C$402, 'O1 Revenue to cost|RR'!$A19,'O4 Summary by Class & Accounts'!H$13:H$402) -> 0 | H19: =SUMIF('O4 Summary by Class & Accounts'!$C$13:$C$402, 'O1 Revenue to cost|RR'!$A19,'O4 Summary by Class & Accounts'!I$13:I$402) -> 0 | I19: =SUMIF('O4 Summary by Class & Accounts'!$C$13:$C$402, 'O1 Revenue to cost|RR'!$A19,'O4 Summary by Class & Accounts'!J$13:J$402) -> 0 | J19: =SUMIF('O4 Summary by Class & Accounts'!$C$13:$C$402, 'O1 Revenue to cost|RR'!$A19,'O4 Summary by Class & Accounts'!K$13:K$402) -> 0 | K19: =SUMIF('O4 Summary by Class & Accounts'!$C$13:$C$402, 'O1 Revenue to cost|RR'!$A19,'O4 Summary by Class & Accounts'!L$13:L$402) -> 0 | L19: =SUMIF('O4 Summary by Class & Accounts'!$C$13:$C$402, 'O1 Revenue to cost|RR'!$A19,'O4 Summary by Class & Accounts'!M$13:M$402) -> 0 | M19: =SUMIF('O4 Summary by Class & Accounts'!$C$13:$C$402, 'O1 Revenue to cost|RR'!$A19,'O4 Summary by Class & Accounts'!N$13:N$402) -> 0 | N19: =SUMIF('O4 Summary by Class & Accounts'!$C$13:$C$402, 'O1 Revenue to cost|RR'!$A19,'O4 Summary by Class & Accounts'!O$13:O$402) -> 0 | O19: =SUMIF('O4 Summary by Class & Accounts'!$C$13:$C$402, 'O1 Revenue to cost|RR'!$A19,'O4 Summary by Class & Accounts'!P$13:P$402) -> 0 | P19: =SUMIF('O4 Summary by Class & Accounts'!$C$13:$C$402, 'O1 Revenue to cost|RR'!$A19,'O4 Summary by Class & Accounts'!Q$13:Q$402) -> 0 | Q19: =SUMIF('O4 Summary by Class & Accounts'!$C$13:$C$402, 'O1 Revenue to cost|RR'!$A19,'O4 Summary by Class & Accounts'!R$13:R$402) -> 0 | R19: =SUMIF('O4 Summary by Class & Accounts'!$C$13:$C$402, 'O1 Revenue to cost|RR'!$A19,'O4 Summary by Class & Accounts'!S$13:S$402) -> 0 | S19: =SUMIF('O4 Summary by Class & Accounts'!$C$13:$C$402, 'O1 Revenue to cost|RR'!$A19,'O4 Summary by Class & Accounts'!T$13:T$402) -> 0 | T19: =SUMIF('O4 Summary by Class & Accounts'!$C$13:$C$402, 'O1 Revenue to cost|RR'!$A19,'O4 Summary by Class & Accounts'!U$13:U$402) -> 0 | U19: =SUMIF('O4 Summary by Class & Accounts'!$C$13:$C$402, 'O1 Revenue to cost|RR'!$A19,'O4 Summary by Class & Accounts'!V$13:V$402) -> 0 | V19: =SUMIF('O4 Summary by Class & Accounts'!$C$13:$C$402, 'O1 Revenue to cost|RR'!$A19,'O4 Summary by Class & Accounts'!W$13:W$402) -> 0 | W19: =SUMIF('O4 Summary by Class & Accounts'!$C$13:$C$402, 'O1 Revenue to cost|RR'!$A19,'O4 Summary by Class & Accounts'!X$13:X$402) -> 0
A20: OT | B20: Other Taxes (Grants in Lieu) | C20: =SUM(D20:W20) -> 71360555.05 | D20: =SUMIF('O4 Summary by Class & Accounts'!$C$13:$C$402, 'O1 Revenue to cost|RR'!$A20,'O4 Summary by Class & Accounts'!E$13:E$402) -> 68553440 | E20: =SUMIF('O4 Summary by Class & Accounts'!$C$13:$C$402, 'O1 Revenue to cost|RR'!$A20,'O4 Summary by Class & Accounts'!F$13:F$402) -> 2807115.054 | F20: =SUMIF('O4 Summary by Class & Accounts'!$C$13:$C$402, 'O1 Revenue to cost|RR'!$A20,'O4 Summary by Class & Accounts'!G$13:G$402) -> 0 | G20: =SUMIF('O4 Summary by Class & Accounts'!$C$13:$C$402, 'O1 Revenue to cost|RR'!$A20,'O4 Summary by Class & Accounts'!H$13:H$402) -> 0 | H20: =SUMIF('O4 Summary by Class & Accounts'!$C$13:$C$402, 'O1 Revenue to cost|RR'!$A20,'O4 Summary by Class & Accounts'!I$13:I$402) -> 0 | I20: =SUMIF('O4 Summary by Class & Accounts'!$C$13:$C$402, 'O1 Revenue to cost|RR'!$A20,'O4 Summary by Class & Accounts'!J$13:J$402) -> 0 | J20: =SUMIF('O4 Summary by Class & Accounts'!$C$13:$C$402, 'O1 Revenue to cost|RR'!$A20,'O4 Summary by Class & Accounts'!K$13:K$402) -> 0 | K20: =SUMIF('O4 Summary by Class & Accounts'!$C$13:$C$402, 'O1 Revenue to cost|RR'!$A20,'O4 Summary by Class & Accounts'!L$13:L$402) -> 0 | L20: =SUMIF('O4 Summary by Class & Accounts'!$C$13:$C$402, 'O1 Revenue to cost|RR'!$A20,'O4 Summary by Class & Accounts'!M$13:M$402) -> 0 | M20: =SUMIF('O4 Summary by Class & Accounts'!$C$13:$C$402, 'O1 Revenue to cost|RR'!$A20,'O4 Summary by Class & Accounts'!N$13:N$402) -> 0 | N20: =SUMIF('O4 Summary by Class & Accounts'!$C$13:$C$402, 'O1 Revenue to cost|RR'!$A20,'O4 Summary by Class & Accounts'!O$13:O$402) -> 0 | O20: =SUMIF('O4 Summary by Class & Accounts'!$C$13:$C$402, 'O1 Revenue to cost|RR'!$A20,'O4 Summary by Class & Accounts'!P$13:P$402) -> 0 | P20: =SUMIF('O4 Summary by Class & Accounts'!$C$13:$C$402, 'O1 Revenue to cost|RR'!$A20,'O4 Summary by Class & Accounts'!Q$13:Q$402) -> 0 | Q20: =SUMIF('O4 Summary by Class & Accounts'!$C$13:$C$402, 'O1 Revenue to cost|RR'!$A20,'O4 Summary by Class & Accounts'!R$13:R$402) -> 0 | R20: =SUMIF('O4 Summary by Class & Accounts'!$C$13:$C$402, 'O1 Revenue to cost|RR'!$A20,'O4 Summary by Class & Accounts'!S$13:S$402) -> 0 | S20: =SUMIF('O4 Summary by Class & Accounts'!$C$13:$C$402, 'O1 Revenue to cost|RR'!$A20,'O4 Summary by Class & Accounts'!T$13:T$402) -> 0 | T20: =SUMIF('O4 Summary by Class & Accounts'!$C$13:$C$402, 'O1 Revenue to cost|RR'!$A20,'O4 Summary by Class & Accounts'!U$13:U$402) -> 0 | U20: =SUMIF('O4 Summary by Class & Accounts'!$C$13:$C$402, 'O1 Revenue to cost|RR'!$A20,'O4 Summary by Class & Accounts'!V$13:V$402) -> 0 | V20: =SUMIF('O4 Summary by Class & Accounts'!$C$13:$C$402, 'O1 Revenue to cost|RR'!$A20,'O4 Summary by Class & Accounts'!W$13:W$402) -> 0 | W20: =SUMIF('O4 Summary by Class & Accounts'!$C$13:$C$402, 'O1 Revenue to cost|RR'!$A20,'O4 Summary by Class & Accounts'!X$13:X$402) -> 0
A21: Dep | B21: Depreciation on fixed assets | C21: 481787181.8 | D21: =SUMIF('O4 Summary by Class & Accounts'!$C$13:$C$402, 'O1 Revenue to cost|RR'!$A21,'O4 Summary by Class & Accounts'!E$13:E$402) -> 463528773.8 | E21: =SUMIF('O4 Summary by Class & Accounts'!$C$13:$C$402, 'O1 Revenue to cost|RR'!$A21,'O4 Summary by Class & Accounts'!F$13:F$402) -> 18258408.05 | F21: =SUMIF('O4 Summary by Class & Accounts'!$C$13:$C$402, 'O1 Revenue to cost|RR'!$A21,'O4 Summary by Class & Accounts'!G$13:G$402) -> 0 | G21: =SUMIF('O4 Summary by Class & Accounts'!$C$13:$C$402, 'O1 Revenue to cost|RR'!$A21,'O4 Summary by Class & Accounts'!H$13:H$402) -> 0 | H21: =SUMIF('O4 Summary by Class & Accounts'!$C$13:$C$402, 'O1 Revenue to cost|RR'!$A21,'O4 Summary by Class & Accounts'!I$13:I$402) -> 0 | I21: =SUMIF('O4 Summary by Class & Accounts'!$C$13:$C$402, 'O1 Revenue to cost|RR'!$A21,'O4 Summary by Class & Accounts'!J$13:J$402) -> 0 | J21: =SUMIF('O4 Summary by Class & Accounts'!$C$13:$C$402, 'O1 Revenue to cost|RR'!$A21,'O4 Summary by Class & Accounts'!K$13:K$402) -> 0 | K21: =SUMIF('O4 Summary by Class & Accounts'!$C$13:$C$402, 'O1 Revenue to cost|RR'!$A21,'O4 Summary by Class & Accounts'!L$13:L$402) -> 0 | L21: =SUMIF('O4 Summary by Class & Accounts'!$C$13:$C$402, 'O1 Revenue to cost|RR'!$A21,'O4 Summary by Class & Accounts'!M$13:M$402) -> 0 | M21: =SUMIF('O4 Summary by Class & Accounts'!$C$13:$C$402, 'O1 Revenue to cost|RR'!$A21,'O4 Summary by Class & Accounts'!N$13:N$402) -> 0 | N21: =SUMIF('O4 Summary by Class & Accounts'!$C$13:$C$402, 'O1 Revenue to cost|RR'!$A21,'O4 Summary by Class & Accounts'!O$13:O$402) -> 0 | O21: =SUMIF('O4 Summary by Class & Accounts'!$C$13:$C$402, 'O1 Revenue to cost|RR'!$A21,'O4 Summary by Class & Accounts'!P$13:P$402) -> 0 | P21: =SUMIF('O4 Summary by Class & Accounts'!$C$13:$C$402, 'O1 Revenue to cost|RR'!$A21,'O4 Summary by Class & Accounts'!Q$13:Q$402) -> 0 | Q21: =SUMIF('O4 Summary by Class & Accounts'!$C$13:$C$402, 'O1 Revenue to cost|RR'!$A21,'O4 Summary by Class & Accounts'!R$13:R$402) -> 0 | R21: =SUMIF('O4 Summary by Class & Accounts'!$C$13:$C$402, 'O1 Revenue to cost|RR'!$A21,'O4 Summary by Class & Accounts'!S$13:S$402) -> 0 | S21: =SUMIF('O4 Summary by Class & Accounts'!$C$13:$C$402, 'O1 Revenue to cost|RR'!$A21,'O4 Summary by Class & Accounts'!T$13:T$402) -> 0 | T21: =SUMIF('O4 Summary by Class & Accounts'!$C$13:$C$402, 'O1 Revenue to cost|RR'!$A21,'O4 Summary by Class & Accounts'!U$13:U$402) -> 0 | U21: =SUMIF('O4 Summary by Class & Accounts'!$C$13:$C$402, 'O1 Revenue to cost|RR'!$A21,'O4 Summary by Class & Accounts'!V$13:V$402) -> 0 | V21: =SUMIF('O4 Summary by Class & Accounts'!$C$13:$C$402, 'O1 Revenue to cost|RR'!$A21,'O4 Summary by Class & Accounts'!W$13:W$402) -> 0 | W21: =SUMIF('O4 Summary by Class & Accounts'!$C$13:$C$402, 'O1 Revenue to cost|RR'!$A21,'O4 Summary by Class & Accounts'!X$13:X$402) -> 0
A22: CD | B22: Capitalized depreciation | C22: -14787874.56 | D22: =SUMIF('O4 Summary by Class & Accounts'!$C$13:$C$402, 'O1 Revenue to cost|RR'!$A22,'O4 Summary by Class & Accounts'!E$13:E$402) -> -14210524.87 | E22: =SUMIF('O4 Summary by Class & Accounts'!$C$13:$C$402, 'O1 Revenue to cost|RR'!$A22,'O4 Summary by Class & Accounts'!F$13:F$402) -> -577349.6943 | F22: =SUMIF('O4 Summary by Class & Accounts'!$C$13:$C$402, 'O1 Revenue to cost|RR'!$A22,'O4 Summary by Class & Accounts'!G$13:G$402) -> 0 | G22: =SUMIF('O4 Summary by Class & Accounts'!$C$13:$C$402, 'O1 Revenue to cost|RR'!$A22,'O4 Summary by Class & Accounts'!H$13:H$402) -> 0 | H22: =SUMIF('O4 Summary by Class & Accounts'!$C$13:$C$402, 'O1 Revenue to cost|RR'!$A22,'O4 Summary by Class & Accounts'!I$13:I$402) -> 0 | I22: =SUMIF('O4 Summary by Class & Accounts'!$C$13:$C$402, 'O1 Revenue to cost|RR'!$A22,'O4 Summary by Class & Accounts'!J$13:J$402) -> 0 | J22: =SUMIF('O4 Summary by Class & Accounts'!$C$13:$C$402, 'O1 Revenue to cost|RR'!$A22,'O4 Summary by Class & Accounts'!K$13:K$402) -> 0 | K22: =SUMIF('O4 Summary by Class & Accounts'!$C$13:$C$402, 'O1 Revenue to cost|RR'!$A22,'O4 Summary by Class & Accounts'!L$13:L$402) -> 0 | L22: =SUMIF('O4 Summary by Class & Accounts'!$C$13:$C$402, 'O1 Revenue to cost|RR'!$A22,'O4 Summary by Class & Accounts'!M$13:M$402) -> 0 | M22: =SUMIF('O4 Summary by Class & Accounts'!$C$13:$C$402, 'O1 Revenue to cost|RR'!$A22,'O4 Summary by Class & Accounts'!N$13:N$402) -> 0 | N22: =SUMIF('O4 Summary by Class & Accounts'!$C$13:$C$402, 'O1 Revenue to cost|RR'!$A22,'O4 Summary by Class & Accounts'!O$13:O$402) -> 0 | O22: =SUMIF('O4 Summary by Class & Accounts'!$C$13:$C$402, 'O1 Revenue to cost|RR'!$A22,'O4 Summary by Class & Accounts'!P$13:P$402) -> 0 | P22: =SUMIF('O4 Summary by Class & Accounts'!$C$13:$C$402, 'O1 Revenue to cost|RR'!$A22,'O4 Summary by Class & Accounts'!Q$13:Q$402) -> 0 | Q22: =SUMIF('O4 Summary by Class & Accounts'!$C$13:$C$402, 'O1 Revenue to cost|RR'!$A22,'O4 Summary by Class & Accounts'!R$13:R$402) -> 0 | R22: =SUMIF('O4 Summary by Class & Accounts'!$C$13:$C$402, 'O1 Revenue to cost|RR'!$A22,'O4 Summary by Class & Accounts'!S$13:S$402) -> 0 | S22: =SUMIF('O4 Summary by Class & Accounts'!$C$13:$C$402, 'O1 Revenue to cost|RR'!$A22,'O4 Summary by Class & Accounts'!T$13:T$402) -> 0 | T22: =SUMIF('O4 Summary by Class & Accounts'!$C$13:$C$402, 'O1 Revenue to cost|RR'!$A22,'O4 Summary by Class & Accounts'!U$13:U$402) -> 0 | U22: =SUMIF('O4 Summary by Class & Accounts'!$C$13:$C$402, 'O1 Revenue to cost|RR'!$A22,'O4 Summary by Class & Accounts'!V$13:V$402) -> 0 | V22: =SUMIF('O4 Summary by Class & Accounts'!$C$13:$C$402, 'O1 Revenue to cost|RR'!$A22,'O4 Summary by Class & Accounts'!W$13:W$402) -> 0 | W22: =SUMIF('O4 Summary by Class & Accounts'!$C$13:$C$402, 'O1 Revenue to cost|RR'!$A22,'O4 Summary by Class & Accounts'!X$13:X$402) -> 0
A23: ARC | B23: Asset removal costs | C23: 61223602.48 | D23: =SUMIF('O4 Summary by Class & Accounts'!$C$13:$C$402, 'O1 Revenue to cost|RR'!$A23,'O4 Summary by Class & Accounts'!E$13:E$402) -> 58833304.4 | E23: =SUMIF('O4 Summary by Class & Accounts'!$C$13:$C$402, 'O1 Revenue to cost|RR'!$A23,'O4 Summary by Class & Accounts'!F$13:F$402) -> 2390298.08 | F23: =SUMIF('O4 Summary by Class & Accounts'!$C$13:$C$402, 'O1 Revenue to cost|RR'!$A23,'O4 Summary by Class & Accounts'!G$13:G$402) -> 0 | G23: =SUMIF('O4 Summary by Class & Accounts'!$C$13:$C$402, 'O1 Revenue to cost|RR'!$A23,'O4 Summary by Class & Accounts'!H$13:H$402) -> 0 | H23: =SUMIF('O4 Summary by Class & Accounts'!$C$13:$C$402, 'O1 Revenue to cost|RR'!$A23,'O4 Summary by Class & Accounts'!I$13:I$402) -> 0 | I23: =SUMIF('O4 Summary by Class & Accounts'!$C$13:$C$402, 'O1 Revenue to cost|RR'!$A23,'O4 Summary by Class & Accounts'!J$13:J$402) -> 0 | J23: =SUMIF('O4 Summary by Class & Accounts'!$C$13:$C$402, 'O1 Revenue to cost|RR'!$A23,'O4 Summary by Class & Accounts'!K$13:K$402) -> 0 | K23: =SUMIF('O4 Summary by Class & Accounts'!$C$13:$C$402, 'O1 Revenue to cost|RR'!$A23,'O4 Summary by Class & Accounts'!L$13:L$402) -> 0 | L23: =SUMIF('O4 Summary by Class & Accounts'!$C$13:$C$402, 'O1 Revenue to cost|RR'!$A23,'O4 Summary by Class & Accounts'!M$13:M$402) -> 0 | M23: =SUMIF('O4 Summary by Class & Accounts'!$C$13:$C$402, 'O1 Revenue to cost|RR'!$A23,'O4 Summary by Class & Accounts'!N$13:N$402) -> 0 | N23: =SUMIF('O4 Summary by Class & Accounts'!$C$13:$C$402, 'O1 Revenue to cost|RR'!$A23,'O4 Summary by Class & Accounts'!O$13:O$402) -> 0 | O23: =SUMIF('O4 Summary by Class & Accounts'!$C$13:$C$402, 'O1 Revenue to cost|RR'!$A23,'O4 Summary by Class & Accounts'!P$13:P$402) -> 0 | P23: =SUMIF('O4 Summary by Class & Accounts'!$C$13:$C$402, 'O1 Revenue to cost|RR'!$A23,'O4 Summary by Class & Accounts'!Q$13:Q$402) -> 0 | Q23: =SUMIF('O4 Summary by Class & Accounts'!$C$13:$C$402, 'O1 Revenue to cost|RR'!$A23,'O4 Summary by Class & Accounts'!R$13:R$402) -> 0 | R23: =SUMIF('O4 Summary by Class & Accounts'!$C$13:$C$402, 'O1 Revenue to cost|RR'!$A23,'O4 Summary by Class & Accounts'!S$13:S$402) -> 0 | S23: =SUMIF('O4 Summary by Class & Accounts'!$C$13:$C$402, 'O1 Revenue to cost|RR'!$A23,'O4 Summary by Class & Accounts'!T$13:T$402) -> 0 | T23: =SUMIF('O4 Summary by Class & Accounts'!$C$13:$C$402, 'O1 Revenue to cost|RR'!$A23,'O4 Summary by Class & Accounts'!U$13:U$402) -> 0 | U23: =SUMIF('O4 Summary by Class & Accounts'!$C$13:$C$402, 'O1 Revenue to cost|RR'!$A23,'O4 Summary by Class & Accounts'!V$13:V$402) -> 0 | V23: =SUMIF('O4 Summary by Class & Accounts'!$C$13:$C$402, 'O1 Revenue to cost|RR'!$A23,'O4 Summary by Class & Accounts'!W$13:W$402) -> 0 | W23: =SUMIF('O4 Summary by Class & Accounts'!$C$13:$C$402, 'O1 Revenue to cost|RR'!$A23,'O4 Summary by Class & Accounts'!X$13:X$402) -> 0
A24: OPEB | B24: OPEB amortization | C24: 0 | D24: =SUMIF('O4 Summary by Class & Accounts'!$C$13:$C$402, 'O1 Revenue to cost|RR'!$A24,'O4 Summary by Class & Accounts'!E$13:E$402) -> 0 | E24: =SUMIF('O4 Summary by Class & Accounts'!$C$13:$C$402, 'O1 Revenue to cost|RR'!$A24,'O4 Summary by Class & Accounts'!F$13:F$402) -> 0 | F24: =SUMIF('O4 Summary by Class & Accounts'!$C$13:$C$402, 'O1 Revenue to cost|RR'!$A24,'O4 Summary by Class & Accounts'!G$13:G$402) -> 0 | G24: =SUMIF('O4 Summary by Class & Accounts'!$C$13:$C$402, 'O1 Revenue to cost|RR'!$A24,'O4 Summary by Class & Accounts'!H$13:H$402) -> 0 | H24: =SUMIF('O4 Summary by Class & Accounts'!$C$13:$C$402, 'O1 Revenue to cost|RR'!$A24,'O4 Summary by Class & Accounts'!I$13:I$402) -> 0 | I24: =SUMIF('O4 Summary by Class & Accounts'!$C$13:$C$402, 'O1 Revenue to cost|RR'!$A24,'O4 Summary by Class & Accounts'!J$13:J$402) -> 0 | J24: =SUMIF('O4 Summary by Class & Accounts'!$C$13:$C$402, 'O1 Revenue to cost|RR'!$A24,'O4 Summary by Class & Accounts'!K$13:K$402) -> 0 | K24: =SUMIF('O4 Summary by Class & Accounts'!$C$13:$C$402, 'O1 Revenue to cost|RR'!$A24,'O4 Summary by Class & Accounts'!L$13:L$402) -> 0 | L24: =SUMIF('O4 Summary by Class & Accounts'!$C$13:$C$402, 'O1 Revenue to cost|RR'!$A24,'O4 Summary by Class & Accounts'!M$13:M$402) -> 0 | M24: =SUMIF('O4 Summary by Class & Accounts'!$C$13:$C$402, 'O1 Revenue to cost|RR'!$A24,'O4 Summary by Class & Accounts'!N$13:N$402) -> 0 | N24: =SUMIF('O4 Summary by Class & Accounts'!$C$13:$C$402, 'O1 Revenue to cost|RR'!$A24,'O4 Summary by Class & Accounts'!O$13:O$402) -> 0 | O24: =SUMIF('O4 Summary by Class & Accounts'!$C$13:$C$402, 'O1 Revenue to cost|RR'!$A24,'O4 Summary by Class & Accounts'!P$13:P$402) -> 0 | P24: =SUMIF('O4 Summary by Class & Accounts'!$C$13:$C$402, 'O1 Revenue to cost|RR'!$A24,'O4 Summary by Class & Accounts'!Q$13:Q$402) -> 0 | Q24: =SUMIF('O4 Summary by Class & Accounts'!$C$13:$C$402, 'O1 Revenue to cost|RR'!$A24,'O4 Summary by Class & Accounts'!R$13:R$402) -> 0 | R24: =SUMIF('O4 Summary by Class & Accounts'!$C$13:$C$402, 'O1 Revenue to cost|RR'!$A24,'O4 Summary by Class & Accounts'!S$13:S$402) -> 0 | S24: =SUMIF('O4 Summary by Class & Accounts'!$C$13:$C$402, 'O1 Revenue to cost|RR'!$A24,'O4 Summary by Class & Accounts'!T$13:T$402) -> 0 | T24: =SUMIF('O4 Summary by Class & Accounts'!$C$13:$C$402, 'O1 Revenue to cost|RR'!$A24,'O4 Summary by Class & Accounts'!U$13:U$402) -> 0 | U24: =SUMIF('O4 Summary by Class & Accounts'!$C$13:$C$402, 'O1 Revenue to cost|RR'!$A24,'O4 Summary by Class & Accounts'!V$13:V$402) -> 0 | V24: =SUMIF('O4 Summary by Class & Accounts'!$C$13:$C$402, 'O1 Revenue to cost|RR'!$A24,'O4 Summary by Class & Accounts'!W$13:W$402) -> 0 | W24: =SUMIF('O4 Summary by Class & Accounts'!$C$13:$C$402, 'O1 Revenue to cost|RR'!$A24,'O4 Summary by Class & Accounts'!X$13:X$402) -> 0
A25: OA | B25: Other amortization | C25: 0 | D25: =SUMIF('O4 Summary by Class & Accounts'!$C$13:$C$402, 'O1 Revenue to cost|RR'!$A25,'O4 Summary by Class & Accounts'!E$13:E$402) -> 0 | E25: =SUMIF('O4 Summary by Class & Accounts'!$C$13:$C$402, 'O1 Revenue to cost|RR'!$A25,'O4 Summary by Class & Accounts'!F$13:F$402) -> 0 | F25: =SUMIF('O4 Summary by Class & Accounts'!$C$13:$C$402, 'O1 Revenue to cost|RR'!$A25,'O4 Summary by Class & Accounts'!G$13:G$402) -> 0 | G25: =SUMIF('O4 Summary by Class & Accounts'!$C$13:$C$402, 'O1 Revenue to cost|RR'!$A25,'O4 Summary by Class & Accounts'!H$13:H$402) -> 0 | H25: =SUMIF('O4 Summary by Class & Accounts'!$C$13:$C$402, 'O1 Revenue to cost|RR'!$A25,'O4 Summary by Class & Accounts'!I$13:I$402) -> 0 | I25: =SUMIF('O4 Summary by Class & Accounts'!$C$13:$C$402, 'O1 Revenue to cost|RR'!$A25,'O4 Summary by Class & Accounts'!J$13:J$402) -> 0 | J25: =SUMIF('O4 Summary by Class & Accounts'!$C$13:$C$402, 'O1 Revenue to cost|RR'!$A25,'O4 Summary by Class & Accounts'!K$13:K$402) -> 0 | K25: =SUMIF('O4 Summary by Class & Accounts'!$C$13:$C$402, 'O1 Revenue to cost|RR'!$A25,'O4 Summary by Class & Accounts'!L$13:L$402) -> 0 | L25: =SUMIF('O4 Summary by Class & Accounts'!$C$13:$C$402, 'O1 Revenue to cost|RR'!$A25,'O4 Summary by Class & Accounts'!M$13:M$402) -> 0 | M25: =SUMIF('O4 Summary by Class & Accounts'!$C$13:$C$402, 'O1 Revenue to cost|RR'!$A25,'O4 Summary by Class & Accounts'!N$13:N$402) -> 0 | N25: =SUMIF('O4 Summary by Class & Accounts'!$C$13:$C$402, 'O1 Revenue to cost|RR'!$A25,'O4 Summary by Class & Accounts'!O$13:O$402) -> 0 | O25: =SUMIF('O4 Summary by Class & Accounts'!$C$13:$C$402, 'O1 Revenue to cost|RR'!$A25,'O4 Summary by Class & Accounts'!P$13:P$402) -> 0 | P25: =SUMIF('O4 Summary by Class & Accounts'!$C$13:$C$402, 'O1 Revenue to cost|RR'!$A25,'O4 Summary by Class & Accounts'!Q$13:Q$402) -> 0 | Q25: =SUMIF('O4 Summary by Class & Accounts'!$C$13:$C$402, 'O1 Revenue to cost|RR'!$A25,'O4 Summary by Class & Accounts'!R$13:R$402) -> 0 | R25: =SUMIF('O4 Summary by Class & Accounts'!$C$13:$C$402, 'O1 Revenue to cost|RR'!$A25,'O4 Summary by Class & Accounts'!S$13:S$402) -> 0 | S25: =SUMIF('O4 Summary by Class & Accounts'!$C$13:$C$402, 'O1 Revenue to cost|RR'!$A25,'O4 Summary by Class & Accounts'!T$13:T$402) -> 0 | T25: =SUMIF('O4 Summary by Class & Accounts'!$C$13:$C$402, 'O1 Revenue to cost|RR'!$A25,'O4 Summary by Class & Accounts'!U$13:U$402) -> 0 | U25: =SUMIF('O4 Summary by Class & Accounts'!$C$13:$C$402, 'O1 Revenue to cost|RR'!$A25,'O4 Summary by Class & Accounts'!V$13:V$402) -> 0 | V25: =SUMIF('O4 Summary by Class & Accounts'!$C$13:$C$402, 'O1 Revenue to cost|RR'!$A25,'O4 Summary by Class & Accounts'!W$13:W$402) -> 0 | W25: =SUMIF('O4 Summary by Class & Accounts'!$C$13:$C$402, 'O1 Revenue to cost|RR'!$A25,'O4 Summary by Class & Accounts'!X$13:X$402) -> 0
A26: RoD | B26: Return on debt | C26: 339527934.4 | D26: =SUMIF('O4 Summary by Class & Accounts'!$C$13:$C$402, 'O1 Revenue to cost|RR'!$A26,'O4 Summary by Class & Accounts'!E$13:E$402) -> 326173023.6 | E26: =SUMIF('O4 Summary by Class & Accounts'!$C$13:$C$402, 'O1 Revenue to cost|RR'!$A26,'O4 Summary by Class & Accounts'!F$13:F$402) -> 13354910.9 | F26: =SUMIF('O4 Summary by Class & Accounts'!$C$13:$C$402, 'O1 Revenue to cost|RR'!$A26,'O4 Summary by Class & Accounts'!G$13:G$402) -> 0 | G26: =SUMIF('O4 Summary by Class & Accounts'!$C$13:$C$402, 'O1 Revenue to cost|RR'!$A26,'O4 Summary by Class & Accounts'!H$13:H$402) -> 0 | H26: =SUMIF('O4 Summary by Class & Accounts'!$C$13:$C$402, 'O1 Revenue to cost|RR'!$A26,'O4 Summary by Class & Accounts'!I$13:I$402) -> 0 | I26: =SUMIF('O4 Summary by Class & Accounts'!$C$13:$C$402, 'O1 Revenue to cost|RR'!$A26,'O4 Summary by Class & Accounts'!J$13:J$402) -> 0 | J26: =SUMIF('O4 Summary by Class & Accounts'!$C$13:$C$402, 'O1 Revenue to cost|RR'!$A26,'O4 Summary by Class & Accounts'!K$13:K$402) -> 0 | K26: =SUMIF('O4 Summary by Class & Accounts'!$C$13:$C$402, 'O1 Revenue to cost|RR'!$A26,'O4 Summary by Class & Accounts'!L$13:L$402) -> 0 | L26: =SUMIF('O4 Summary by Class & Accounts'!$C$13:$C$402, 'O1 Revenue to cost|RR'!$A26,'O4 Summary by Class & Accounts'!M$13:M$402) -> 0 | M26: =SUMIF('O4 Summary by Class & Accounts'!$C$13:$C$402, 'O1 Revenue to cost|RR'!$A26,'O4 Summary by Class & Accounts'!N$13:N$402) -> 0 | N26: =SUMIF('O4 Summary by Class & Accounts'!$C$13:$C$402, 'O1 Revenue to cost|RR'!$A26,'O4 Summary by Class & Accounts'!O$13:O$402) -> 0 | O26: =SUMIF('O4 Summary by Class & Accounts'!$C$13:$C$402, 'O1 Revenue to cost|RR'!$A26,'O4 Summary by Class & Accounts'!P$13:P$402) -> 0 | P26: =SUMIF('O4 Summary by Class & Accounts'!$C$13:$C$402, 'O1 Revenue to cost|RR'!$A26,'O4 Summary by Class & Accounts'!Q$13:Q$402) -> 0 | Q26: =SUMIF('O4 Summary by Class & Accounts'!$C$13:$C$402, 'O1 Revenue to cost|RR'!$A26,'O4 Summary by Class & Accounts'!R$13:R$402) -> 0 | R26: =SUMIF('O4 Summary by Class & Accounts'!$C$13:$C$402, 'O1 Revenue to cost|RR'!$A26,'O4 Summary by Class & Accounts'!S$13:S$402) -> 0 | S26: =SUMIF('O4 Summary by Class & Accounts'!$C$13:$C$402, 'O1 Revenue to cost|RR'!$A26,'O4 Summary by Class & Accounts'!T$13:T$402) -> 0 | T26: =SUMIF('O4 Summary by Class & Accounts'!$C$13:$C$402, 'O1 Revenue to cost|RR'!$A26,'O4 Summary by Class & Accounts'!U$13:U$402) -> 0 | U26: =SUMIF('O4 Summary by Class & Accounts'!$C$13:$C$402, 'O1 Revenue to cost|RR'!$A26,'O4 Summary by Class & Accounts'!V$13:V$402) -> 0 | V26: =SUMIF('O4 Summary by Class & Accounts'!$C$13:$C$402, 'O1 Revenue to cost|RR'!$A26,'O4 Summary by Class & Accounts'!W$13:W$402) -> 0 | W26: =SUMIF('O4 Summary by Class & Accounts'!$C$13:$C$402, 'O1 Revenue to cost|RR'!$A26,'O4 Summary by Class & Accounts'!X$13:X$402) -> 0
A27: Tax | B27: Income tax | C27: 40497558.21 | D27: =SUMIF('O4 Summary by Class & Accounts'!$C$13:$C$402, 'O1 Revenue to cost|RR'!$A27,'O4 Summary by Class & Accounts'!E$13:E$402) -> 38904636.9 | E27: =SUMIF('O4 Summary by Class & Accounts'!$C$13:$C$402, 'O1 Revenue to cost|RR'!$A27,'O4 Summary by Class & Accounts'!F$13:F$402) -> 1592921.308 | F27: =SUMIF('O4 Summary by Class & Accounts'!$C$13:$C$402, 'O1 Revenue to cost|RR'!$A27,'O4 Summary by Class & Accounts'!G$13:G$402) -> 0 | G27: =SUMIF('O4 Summary by Class & Accounts'!$C$13:$C$402, 'O1 Revenue to cost|RR'!$A27,'O4 Summary by Class & Accounts'!H$13:H$402) -> 0 | H27: =SUMIF('O4 Summary by Class & Accounts'!$C$13:$C$402, 'O1 Revenue to cost|RR'!$A27,'O4 Summary by Class & Accounts'!I$13:I$402) -> 0 | I27: =SUMIF('O4 Summary by Class & Accounts'!$C$13:$C$402, 'O1 Revenue to cost|RR'!$A27,'O4 Summary by Class & Accounts'!J$13:J$402) -> 0 | J27: =SUMIF('O4 Summary by Class & Accounts'!$C$13:$C$402, 'O1 Revenue to cost|RR'!$A27,'O4 Summary by Class & Accounts'!K$13:K$402) -> 0 | K27: =SUMIF('O4 Summary by Class & Accounts'!$C$13:$C$402, 'O1 Revenue to cost|RR'!$A27,'O4 Summary by Class & Accounts'!L$13:L$402) -> 0 | L27: =SUMIF('O4 Summary by Class & Accounts'!$C$13:$C$402, 'O1 Revenue to cost|RR'!$A27,'O4 Summary by Class & Accounts'!M$13:M$402) -> 0 | M27: =SUMIF('O4 Summary by Class & Accounts'!$C$13:$C$402, 'O1 Revenue to cost|RR'!$A27,'O4 Summary by Class & Accounts'!N$13:N$402) -> 0 | N27: =SUMIF('O4 Summary by Class & Accounts'!$C$13:$C$402, 'O1 Revenue to cost|RR'!$A27,'O4 Summary by Class & Accounts'!O$13:O$402) -> 0 | O27: =SUMIF('O4 Summary by Class & Accounts'!$C$13:$C$402, 'O1 Revenue to cost|RR'!$A27,'O4 Summary by Class & Accounts'!P$13:P$402) -> 0 | P27: =SUMIF('O4 Summary by Class & Accounts'!$C$13:$C$402, 'O1 Revenue to cost|RR'!$A27,'O4 Summary by Class & Accounts'!Q$13:Q$402) -> 0 | Q27: =SUMIF('O4 Summary by Class & Accounts'!$C$13:$C$402, 'O1 Revenue to cost|RR'!$A27,'O4 Summary by Class & Accounts'!R$13:R$402) -> 0 | R27: =SUMIF('O4 Summary by Class & Accounts'!$C$13:$C$402, 'O1 Revenue to cost|RR'!$A27,'O4 Summary by Class & Accounts'!S$13:S$402) -> 0 | S27: =SUMIF('O4 Summary by Class & Accounts'!$C$13:$C$402, 'O1 Revenue to cost|RR'!$A27,'O4 Summary by Class & Accounts'!T$13:T$402) -> 0 | T27: =SUMIF('O4 Summary by Class & Accounts'!$C$13:$C$402, 'O1 Revenue to cost|RR'!$A27,'O4 Summary by Class & Accounts'!U$13:U$402) -> 0 | U27: =SUMIF('O4 Summary by Class & Accounts'!$C$13:$C$402, 'O1 Revenue to cost|RR'!$A27,'O4 Summary by Class & Accounts'!V$13:V$402) -> 0 | V27: =SUMIF('O4 Summary by Class & Accounts'!$C$13:$C$402, 'O1 Revenue to cost|RR'!$A27,'O4 Summary by Class & Accounts'!W$13:W$402) -> 0 | W27: =SUMIF('O4 Summary by Class & Accounts'!$C$13:$C$402, 'O1 Revenue to cost|RR'!$A27,'O4 Summary by Class & Accounts'!X$13:X$402) -> 0
A28: CapTax | B28: Capital tax | C28: 0 | D28: =SUMIF('O4 Summary by Class & Accounts'!$C$13:$C$402, 'O1 Revenue to cost|RR'!$A28,'O4 Summary by Class & Accounts'!E$13:E$402) -> 0 | E28: =SUMIF('O4 Summary by Class & Accounts'!$C$13:$C$402, 'O1 Revenue to cost|RR'!$A28,'O4 Summary by Class & Accounts'!F$13:F$402) -> 0 | F28: =SUMIF('O4 Summary by Class & Accounts'!$C$13:$C$402, 'O1 Revenue to cost|RR'!$A28,'O4 Summary by Class & Accounts'!G$13:G$402) -> 0 | G28: =SUMIF('O4 Summary by Class & Accounts'!$C$13:$C$402, 'O1 Revenue to cost|RR'!$A28,'O4 Summary by Class & Accounts'!H$13:H$402) -> 0 | H28: =SUMIF('O4 Summary by Class & Accounts'!$C$13:$C$402, 'O1 Revenue to cost|RR'!$A28,'O4 Summary by Class & Accounts'!I$13:I$402) -> 0 | I28: =SUMIF('O4 Summary by Class & Accounts'!$C$13:$C$402, 'O1 Revenue to cost|RR'!$A28,'O4 Summary by Class & Accounts'!J$13:J$402) -> 0 | J28: =SUMIF('O4 Summary by Class & Accounts'!$C$13:$C$402, 'O1 Revenue to cost|RR'!$A28,'O4 Summary by Class & Accounts'!K$13:K$402) -> 0 | K28: =SUMIF('O4 Summary by Class & Accounts'!$C$13:$C$402, 'O1 Revenue to cost|RR'!$A28,'O4 Summary by Class & Accounts'!L$13:L$402) -> 0 | L28: =SUMIF('O4 Summary by Class & Accounts'!$C$13:$C$402, 'O1 Revenue to cost|RR'!$A28,'O4 Summary by Class & Accounts'!M$13:M$402) -> 0 | M28: =SUMIF('O4 Summary by Class & Accounts'!$C$13:$C$402, 'O1 Revenue to cost|RR'!$A28,'O4 Summary by Class & Accounts'!N$13:N$402) -> 0 | N28: =SUMIF('O4 Summary by Class & Accounts'!$C$13:$C$402, 'O1 Revenue to cost|RR'!$A28,'O4 Summary by Class & Accounts'!O$13:O$402) -> 0 | O28: =SUMIF('O4 Summary by Class & Accounts'!$C$13:$C$402, 'O1 Revenue to cost|RR'!$A28,'O4 Summary by Class & Accounts'!P$13:P$402) -> 0 | P28: =SUMIF('O4 Summary by Class & Accounts'!$C$13:$C$402, 'O1 Revenue to cost|RR'!$A28,'O4 Summary by Class & Accounts'!Q$13:Q$402) -> 0 | Q28: =SUMIF('O4 Summary by Class & Accounts'!$C$13:$C$402, 'O1 Revenue to cost|RR'!$A28,'O4 Summary by Class & Accounts'!R$13:R$402) -> 0 | R28: =SUMIF('O4 Summary by Class & Accounts'!$C$13:$C$402, 'O1 Revenue to cost|RR'!$A28,'O4 Summary by Class & Accounts'!S$13:S$402) -> 0 | S28: =SUMIF('O4 Summary by Class & Accounts'!$C$13:$C$402, 'O1 Revenue to cost|RR'!$A28,'O4 Summary by Class & Accounts'!T$13:T$402) -> 0 | T28: =SUMIF('O4 Summary by Class & Accounts'!$C$13:$C$402, 'O1 Revenue to cost|RR'!$A28,'O4 Summary by Class & Accounts'!U$13:U$402) -> 0 | U28: =SUMIF('O4 Summary by Class & Accounts'!$C$13:$C$402, 'O1 Revenue to cost|RR'!$A28,'O4 Summary by Class & Accounts'!V$13:V$402) -> 0 | V28: =SUMIF('O4 Summary by Class & Accounts'!$C$13:$C$402, 'O1 Revenue to cost|RR'!$A28,'O4 Summary by Class & Accounts'!W$13:W$402) -> 0 | W28: =SUMIF('O4 Summary by Class & Accounts'!$C$13:$C$402, 'O1 Revenue to cost|RR'!$A28,'O4 Summary by Class & Accounts'!X$13:X$402) -> 0
A29: AFUDC | B29: AFUDC | C29: =SUM(D29:W29) -> 0 | D29: =SUMIF('O4 Summary by Class & Accounts'!$C$13:$C$402, 'O1 Revenue to cost|RR'!$A29,'O4 Summary by Class & Accounts'!E$13:E$402) -> 0 | E29: =SUMIF('O4 Summary by Class & Accounts'!$C$13:$C$402, 'O1 Revenue to cost|RR'!$A29,'O4 Summary by Class & Accounts'!F$13:F$402) -> 0 | F29: =SUMIF('O4 Summary by Class & Accounts'!$C$13:$C$402, 'O1 Revenue to cost|RR'!$A29,'O4 Summary by Class & Accounts'!G$13:G$402) -> 0 | G29: =SUMIF('O4 Summary by Class & Accounts'!$C$13:$C$402, 'O1 Revenue to cost|RR'!$A29,'O4 Summary by Class & Accounts'!H$13:H$402) -> 0 | H29: =SUMIF('O4 Summary by Class & Accounts'!$C$13:$C$402, 'O1 Revenue to cost|RR'!$A29,'O4 Summary by Class & Accounts'!I$13:I$402) -> 0 | I29: =SUMIF('O4 Summary by Class & Accounts'!$C$13:$C$402, 'O1 Revenue to cost|RR'!$A29,'O4 Summary by Class & Accounts'!J$13:J$402) -> 0 | J29: =SUMIF('O4 Summary by Class & Accounts'!$C$13:$C$402, 'O1 Revenue to cost|RR'!$A29,'O4 Summary by Class & Accounts'!K$13:K$402) -> 0 | K29: =SUMIF('O4 Summary by Class & Accounts'!$C$13:$C$402, 'O1 Revenue to cost|RR'!$A29,'O4 Summary by Class & Accounts'!L$13:L$402) -> 0 | L29: =SUMIF('O4 Summary by Class & Accounts'!$C$13:$C$402, 'O1 Revenue to cost|RR'!$A29,'O4 Summary by Class & Accounts'!M$13:M$402) -> 0 | M29: =SUMIF('O4 Summary by Class & Accounts'!$C$13:$C$402, 'O1 Revenue to cost|RR'!$A29,'O4 Summary by Class & Accounts'!N$13:N$402) -> 0 | N29: =SUMIF('O4 Summary by Class & Accounts'!$C$13:$C$402, 'O1 Revenue to cost|RR'!$A29,'O4 Summary by Class & Accounts'!O$13:O$402) -> 0 | O29: =SUMIF('O4 Summary by Class & Accounts'!$C$13:$C$402, 'O1 Revenue to cost|RR'!$A29,'O4 Summary by Class & Accounts'!P$13:P$402) -> 0 | P29: =SUMIF('O4 Summary by Class & Accounts'!$C$13:$C$402, 'O1 Revenue to cost|RR'!$A29,'O4 Summary by Class & Accounts'!Q$13:Q$402) -> 0 | Q29: =SUMIF('O4 Summary by Class & Accounts'!$C$13:$C$402, 'O1 Revenue to cost|RR'!$A29,'O4 Summary by Class & Accounts'!R$13:R$402) -> 0 | R29: =SUMIF('O4 Summary by Class & Accounts'!$C$13:$C$402, 'O1 Revenue to cost|RR'!$A29,'O4 Summary by Class & Accounts'!S$13:S$402) -> 0 | S29: =SUMIF('O4 Summary by Class & Accounts'!$C$13:$C$402, 'O1 Revenue to cost|RR'!$A29,'O4 Summary by Class & Accounts'!T$13:T$402) -> 0 | T29: =SUMIF('O4 Summary by Class & Accounts'!$C$13:$C$402, 'O1 Revenue to cost|RR'!$A29,'O4 Summary by Class & Accounts'!U$13:U$402) -> 0 | U29: =SUMIF('O4 Summary by Class & Accounts'!$C$13:$C$402, 'O1 Revenue to cost|RR'!$A29,'O4 Summary by Class & Accounts'!V$13:V$402) -> 0 | V29: =SUMIF('O4 Summary by Class & Accounts'!$C$13:$C$402, 'O1 Revenue to cost|RR'!$A29,'O4 Summary by Class & Accounts'!W$13:W$402) -> 0 | W29: =SUMIF('O4 Summary by Class & Accounts'!$C$13:$C$402, 'O1 Revenue to cost|RR'!$A29,'O4 Summary by Class & Accounts'!X$13:X$402) -> 0
B30: Total Expenses | C30: =SUM(C19:C29) -> 1336387991 | D30: =SUM(D19:D29) -> 1285219177 | E30: 51168814.11 | F30: 0 | G30: 0 | H30: 0 | I30: 0 | J30: 0 | K30: 0 | L30: 0 | M30: 0 | N30: 0 | O30: 0 | P30: 0 | Q30: 0 | R30: 0 | S30: 0 | T30: 0 | U30: 0 | V30: 0 | W30: 0
A32: RoE | B32: Return on equity | C32: =SUM(D32:W32) -> 486813846.4 | D32: =SUMIF('O4 Summary by Class & Accounts'!$C$13:$C$402, 'O1 Revenue to cost|RR'!$A32,'O4 Summary by Class & Accounts'!E$13:E$402) -> 467665626.5 | E32: =SUMIF('O4 Summary by Class & Accounts'!$C$13:$C$402, 'O1 Revenue to cost|RR'!$A32,'O4 Summary by Class & Accounts'!F$13:F$402) -> 19148219.88 | F32: =SUMIF('O4 Summary by Class & Accounts'!$C$13:$C$402, 'O1 Revenue to cost|RR'!$A32,'O4 Summary by Class & Accounts'!G$13:G$402) -> 0 | G32: =SUMIF('O4 Summary by Class & Accounts'!$C$13:$C$402, 'O1 Revenue to cost|RR'!$A32,'O4 Summary by Class & Accounts'!H$13:H$402) -> 0 | H32: =SUMIF('O4 Summary by Class & Accounts'!$C$13:$C$402, 'O1 Revenue to cost|RR'!$A32,'O4 Summary by Class & Accounts'!I$13:I$402) -> 0 | I32: =SUMIF('O4 Summary by Class & Accounts'!$C$13:$C$402, 'O1 Revenue to cost|RR'!$A32,'O4 Summary by Class & Accounts'!J$13:J$402) -> 0 | J32: =SUMIF('O4 Summary by Class & Accounts'!$C$13:$C$402, 'O1 Revenue to cost|RR'!$A32,'O4 Summary by Class & Accounts'!K$13:K$402) -> 0 | K32: =SUMIF('O4 Summary by Class & Accounts'!$C$13:$C$402, 'O1 Revenue to cost|RR'!$A32,'O4 Summary by Class & Accounts'!L$13:L$402) -> 0 | L32: =SUMIF('O4 Summary by Class & Accounts'!$C$13:$C$402, 'O1 Revenue to cost|RR'!$A32,'O4 Summary by Class & Accounts'!M$13:M$402) -> 0 | M32: =SUMIF('O4 Summary by Class & Accounts'!$C$13:$C$402, 'O1 Revenue to cost|RR'!$A32,'O4 Summary by Class & Accounts'!N$13:N$402) -> 0 | N32: =SUMIF('O4 Summary by Class & Accounts'!$C$13:$C$402, 'O1 Revenue to cost|RR'!$A32,'O4 Summary by Class & Accounts'!O$13:O$402) -> 0 | O32: =SUMIF('O4 Summary by Class & Accounts'!$C$13:$C$402, 'O1 Revenue to cost|RR'!$A32,'O4 Summary by Class & Accounts'!P$13:P$402) -> 0 | P32: =SUMIF('O4 Summary by Class & Accounts'!$C$13:$C$402, 'O1 Revenue to cost|RR'!$A32,'O4 Summary by Class & Accounts'!Q$13:Q$402) -> 0 | Q32: =SUMIF('O4 Summary by Class & Accounts'!$C$13:$C$402, 'O1 Revenue to cost|RR'!$A32,'O4 Summary by Class & Accounts'!R$13:R$402) -> 0 | R32: =SUMIF('O4 Summary by Class & Accounts'!$C$13:$C$402, 'O1 Revenue to cost|RR'!$A32,'O4 Summary by Class & Accounts'!S$13:S$402) -> 0 | S32: =SUMIF('O4 Summary by Class & Accounts'!$C$13:$C$402, 'O1 Revenue to cost|RR'!$A32,'O4 Summary by Class & Accounts'!T$13:T$402) -> 0 | T32: =SUMIF('O4 Summary by Class & Accounts'!$C$13:$C$402, 'O1 Revenue to cost|RR'!$A32,'O4 Summary by Class & Accounts'!U$13:U$402) -> 0 | U32: =SUMIF('O4 Summary by Class & Accounts'!$C$13:$C$402, 'O1 Revenue to cost|RR'!$A32,'O4 Summary by Class & Accounts'!V$13:V$402) -> 0 | V32: =SUMIF('O4 Summary by Class & Accounts'!$C$13:$C$402, 'O1 Revenue to cost|RR'!$A32,'O4 Summary by Class & Accounts'!W$13:W$402) -> 0 | W32: =SUMIF('O4 Summary by Class & Accounts'!$C$13:$C$402, 'O1 Revenue to cost|RR'!$A32,'O4 Summary by Class & Accounts'!X$13:X$402) -> 0
AC33: Scenario Details
B34: Revenue Requirement (includes NI) | C34: =SUM(D34:W34) -> 1823201837 | D34: =D30+D32 -> 1752884803 | E34: =E30+E32 -> 70317033.99 | F34: 0 | G34: 0 | H34: 0 | I34: 0 | J34: 0 | K34: 0 | L34: 0 | M34: 0 | N34: 0 | O34: 0 | P34: 0 | Q34: 0 | R34: 0 | S34: 0 | T34: 0 | U34: 0 | V34: 0 | W34: 0
C35: =IF(ISERROR(ROUND('I3 TB Data'!G14-C34,-1)=0), "-", IF(ROUND('I3 TB Data'!G14-C34,-1)=0,"Revenue Requirement Input equals Output","Revenue Requirement Input Does Not Equal Output")) -> Revenue Requirement Input equals Output | AA35: Demand Data Period | AC35: 2020
AA36: Revenue Requirement | AC36: 2023
B37: Offsets | AA37: Shared Network Allocator | AC37: 12CP50 | AD37: (12 CP with exports discounted by 50%)
A38: ER | B38: External Revenues | C38: =SUM(D38:W38) -> -40137522.58 | D38: =SUMIF('O4 Summary by Class & Accounts'!$C$13:$C$402, 'O1 Revenue to cost|RR'!$A38,'O4 Summary by Class & Accounts'!E$13:E$402) -> -39031875.02 | E38: =SUMIF('O4 Summary by Class & Accounts'!$C$13:$C$402, 'O1 Revenue to cost|RR'!$A38,'O4 Summary by Class & Accounts'!F$13:F$402) -> -1105647.562 | F38: =SUMIF('O4 Summary by Class & Accounts'!$C$13:$C$402, 'O1 Revenue to cost|RR'!$A38,'O4 Summary by Class & Accounts'!G$13:G$402) -> 0 | G38: =SUMIF('O4 Summary by Class & Accounts'!$C$13:$C$402, 'O1 Revenue to cost|RR'!$A38,'O4 Summary by Class & Accounts'!H$13:H$402) -> 0 | H38: =SUMIF('O4 Summary by Class & Accounts'!$C$13:$C$402, 'O1 Revenue to cost|RR'!$A38,'O4 Summary by Class & Accounts'!I$13:I$402) -> 0 | I38: =SUMIF('O4 Summary by Class & Accounts'!$C$13:$C$402, 'O1 Revenue to cost|RR'!$A38,'O4 Summary by Class & Accounts'!J$13:J$402) -> 0 | J38: =SUMIF('O4 Summary by Class & Accounts'!$C$13:$C$402, 'O1 Revenue to cost|RR'!$A38,'O4 Summary by Class & Accounts'!K$13:K$402) -> 0 | K38: =SUMIF('O4 Summary by Class & Accounts'!$C$13:$C$402, 'O1 Revenue to cost|RR'!$A38,'O4 Summary by Class & Accounts'!L$13:L$402) -> 0 | L38: =SUMIF('O4 Summary by Class & Accounts'!$C$13:$C$402, 'O1 Revenue to cost|RR'!$A38,'O4 Summary by Class & Accounts'!M$13:M$402) -> 0 | M38: =SUMIF('O4 Summary by Class & Accounts'!$C$13:$C$402, 'O1 Revenue to cost|RR'!$A38,'O4 Summary by Class & Accounts'!N$13:N$402) -> 0 | N38: =SUMIF('O4 Summary by Class & Accounts'!$C$13:$C$402, 'O1 Revenue to cost|RR'!$A38,'O4 Summary by Class & Accounts'!O$13:O$402) -> 0 | O38: =SUMIF('O4 Summary by Class & Accounts'!$C$13:$C$402, 'O1 Revenue to cost|RR'!$A38,'O4 Summary by Class & Accounts'!P$13:P$402) -> 0 | P38: =SUMIF('O4 Summary by Class & Accounts'!$C$13:$C$402, 'O1 Revenue to cost|RR'!$A38,'O4 Summary by Class & Accounts'!Q$13:Q$402) -> 0 | Q38: =SUMIF('O4 Summary by Class & Accounts'!$C$13:$C$402, 'O1 Revenue to cost|RR'!$A38,'O4 Summary by Class & Accounts'!R$13:R$402) -> 0 | R38: =SUMIF('O4 Summary by Class & Accounts'!$C$13:$C$402, 'O1 Revenue to cost|RR'!$A38,'O4 Summary by Class & Accounts'!S$13:S$402) -> 0 | S38: =SUMIF('O4 Summary by Class & Accounts'!$C$13:$C$402, 'O1 Revenue to cost|RR'!$A38,'O4 Summary by Class & Accounts'!T$13:T$402) -> 0 | T38: =SUMIF('O4 Summary by Class & Accounts'!$C$13:$C$402, 'O1 Revenue to cost|RR'!$A38,'O4 Summary by Class & Accounts'!U$13:U$402) -> 0 | U38: =SUMIF('O4 Summary by Class & Accounts'!$C$13:$C$402, 'O1 Revenue to cost|RR'!$A38,'O4 Summary by Class & Accounts'!V$13:V$402) -> 0 | V38: =SUMIF('O4 Summary by Class & Accounts'!$C$13:$C$402, 'O1 Revenue to cost|RR'!$A38,'O4 Summary by Class & Accounts'!W$13:W$402) -> 0 | W38: =SUMIF('O4 Summary by Class & Accounts'!$C$13:$C$402, 'O1 Revenue to cost|RR'!$A38,'O4 Summary by Class & Accounts'!X$13:X$402) -> 0
A39: ERC | B39: Export Revenue Credit | C39: =SUM(D39:W39) -> 0 | D39: =SUMIF('O4 Summary by Class & Accounts'!$C$13:$C$402, 'O1 Revenue to cost|RR'!$A39,'O4 Summary by Class & Accounts'!E$13:E$402) -> 0 | E39: =SUMIF('O4 Summary by Class & Accounts'!$C$13:$C$402, 'O1 Revenue to cost|RR'!$A39,'O4 Summary by Class & Accounts'!F$13:F$402) -> 0 | F39: =SUMIF('O4 Summary by Class & Accounts'!$C$13:$C$402, 'O1 Revenue to cost|RR'!$A39,'O4 Summary by Class & Accounts'!G$13:G$402) -> 0 | G39: =SUMIF('O4 Summary by Class & Accounts'!$C$13:$C$402, 'O1 Revenue to cost|RR'!$A39,'O4 Summary by Class & Accounts'!H$13:H$402) -> 0 | H39: =SUMIF('O4 Summary by Class & Accounts'!$C$13:$C$402, 'O1 Revenue to cost|RR'!$A39,'O4 Summary by Class & Accounts'!I$13:I$402) -> 0 | I39: =SUMIF('O4 Summary by Class & Accounts'!$C$13:$C$402, 'O1 Revenue to cost|RR'!$A39,'O4 Summary by Class & Accounts'!J$13:J$402) -> 0 | J39: =SUMIF('O4 Summary by Class & Accounts'!$C$13:$C$402, 'O1 Revenue to cost|RR'!$A39,'O4 Summary by Class & Accounts'!K$13:K$402) -> 0 | K39: =SUMIF('O4 Summary by Class & Accounts'!$C$13:$C$402, 'O1 Revenue to cost|RR'!$A39,'O4 Summary by Class & Accounts'!L$13:L$402) -> 0 | L39: =SUMIF('O4 Summary by Class & Accounts'!$C$13:$C$402, 'O1 Revenue to cost|RR'!$A39,'O4 Summary by Class & Accounts'!M$13:M$402) -> 0 | M39: =SUMIF('O4 Summary by Class & Accounts'!$C$13:$C$402, 'O1 Revenue to cost|RR'!$A39,'O4 Summary by Class & Accounts'!N$13:N$402) -> 0 | N39: =SUMIF('O4 Summary by Class & Accounts'!$C$13:$C$402, 'O1 Revenue to cost|RR'!$A39,'O4 Summary by Class & Accounts'!O$13:O$402) -> 0 | O39: =SUMIF('O4 Summary by Class & Accounts'!$C$13:$C$402, 'O1 Revenue to cost|RR'!$A39,'O4 Summary by Class & Accounts'!P$13:P$402) -> 0 | P39: =SUMIF('O4 Summary by Class & Accounts'!$C$13:$C$402, 'O1 Revenue to cost|RR'!$A39,'O4 Summary by Class & Accounts'!Q$13:Q$402) -> 0 | Q39: =SUMIF('O4 Summary by Class & Accounts'!$C$13:$C$402, 'O1 Revenue to cost|RR'!$A39,'O4 Summary by Class & Accounts'!R$13:R$402) -> 0 | R39: =SUMIF('O4 Summary by Class & Accounts'!$C$13:$C$402, 'O1 Revenue to cost|RR'!$A39,'O4 Summary by Class & Accounts'!S$13:S$402) -> 0 | S39: =SUMIF('O4 Summary by Class & Accounts'!$C$13:$C$402, 'O1 Revenue to cost|RR'!$A39,'O4 Summary by Class & Accounts'!T$13:T$402) -> 0 | T39: =SUMIF('O4 Summary by Class & Accounts'!$C$13:$C$402, 'O1 Revenue to cost|RR'!$A39,'O4 Summary by Class & Accounts'!U$13:U$402) -> 0 | U39: =SUMIF('O4 Summary by Class & Accounts'!$C$13:$C$402, 'O1 Revenue to cost|RR'!$A39,'O4 Summary by Class & Accounts'!V$13:V$402) -> 0 | V39: =SUMIF('O4 Summary by Class & Accounts'!$C$13:$C$402, 'O1 Revenue to cost|RR'!$A39,'O4 Summary by Class & Accounts'!W$13:W$402) -> 0 | W39: =SUMIF('O4 Summary by Class & Accounts'!$C$13:$C$402, 'O1 Revenue to cost|RR'!$A39,'O4 Summary by Class & Accounts'!X$13:X$402) -> 0
A40: MSP | B40: Meter Services Revenue | C40: =SUM(D40:W40) -> -31600 | D40: =SUMIF('O4 Summary by Class & Accounts'!$C$13:$C$402, 'O1 Revenue to cost|RR'!$A40,'O4 Summary by Class & Accounts'!E$13:E$402) -> -31600 | E40: =SUMIF('O4 Summary by Class & Accounts'!$C$13:$C$402, 'O1 Revenue to cost|RR'!$A40,'O4 Summary by Class & Accounts'!F$13:F$402) -> 0
A41: TX | B41: Tx Riders (DVA balances) | C41: =SUM(D41:W41) -> 915281.1536 | D41: =SUMIF('O4 Summary by Class & Accounts'!$C$13:$C$416, 'O1 Revenue to cost|RR'!$A41,'O4 Summary by Class & Accounts'!E$13:E$416) -> 879980.6977 | E41: =SUMIF('O4 Summary by Class & Accounts'!$C$13:$C$416, 'O1 Revenue to cost|RR'!$A41,'O4 Summary by Class & Accounts'!F$13:F$416) -> 35300.45586 | F41: =SUMIF('O4 Summary by Class & Accounts'!$C$13:$C$402, 'O1 Revenue to cost|RR'!$A41,'O4 Summary by Class & Accounts'!G$13:G$402) -> 0 | G41: =SUMIF('O4 Summary by Class & Accounts'!$C$13:$C$402, 'O1 Revenue to cost|RR'!$A41,'O4 Summary by Class & Accounts'!H$13:H$402) -> 0 | H41: =SUMIF('O4 Summary by Class & Accounts'!$C$13:$C$402, 'O1 Revenue to cost|RR'!$A41,'O4 Summary by Class & Accounts'!I$13:I$402) -> 0 | I41: =SUMIF('O4 Summary by Class & Accounts'!$C$13:$C$402, 'O1 Revenue to cost|RR'!$A41,'O4 Summary by Class & Accounts'!J$13:J$402) -> 0 | J41: =SUMIF('O4 Summary by Class & Accounts'!$C$13:$C$402, 'O1 Revenue to cost|RR'!$A41,'O4 Summary by Class & Accounts'!K$13:K$402) -> 0 | K41: =SUMIF('O4 Summary by Class & Accounts'!$C$13:$C$402, 'O1 Revenue to cost|RR'!$A41,'O4 Summary by Class & Accounts'!L$13:L$402) -> 0 | L41: =SUMIF('O4 Summary by Class & Accounts'!$C$13:$C$402, 'O1 Revenue to cost|RR'!$A41,'O4 Summary by Class & Accounts'!M$13:M$402) -> 0 | M41: =SUMIF('O4 Summary by Class & Accounts'!$C$13:$C$402, 'O1 Revenue to cost|RR'!$A41,'O4 Summary by Class & Accounts'!N$13:N$402) -> 0 | N41: =SUMIF('O4 Summary by Class & Accounts'!$C$13:$C$402, 'O1 Revenue to cost|RR'!$A41,'O4 Summary by Class & Accounts'!O$13:O$402) -> 0 | O41: =SUMIF('O4 Summary by Class & Accounts'!$C$13:$C$402, 'O1 Revenue to cost|RR'!$A41,'O4 Summary by Class & Accounts'!P$13:P$402) -> 0 | P41: =SUMIF('O4 Summary by Class & Accounts'!$C$13:$C$402, 'O1 Revenue to cost|RR'!$A41,'O4 Summary by Class & Accounts'!Q$13:Q$402) -> 0 | Q41: =SUMIF('O4 Summary by Class & Accounts'!$C$13:$C$402, 'O1 Revenue to cost|RR'!$A41,'O4 Summary by Class & Accounts'!R$13:R$402) -> 0 | R41: =SUMIF('O4 Summary by Class & Accounts'!$C$13:$C$402, 'O1 Revenue to cost|RR'!$A41,'O4 Summary by Class & Accounts'!S$13:S$402) -> 0 | S41: =SUMIF('O4 Summary by Class & Accounts'!$C$13:$C$402, 'O1 Revenue to cost|RR'!$A41,'O4 Summary by Class & Accounts'!T$13:T$402) -> 0 | T41: =SUMIF('O4 Summary by Class & Accounts'!$C$13:$C$402, 'O1 Revenue to cost|RR'!$A41,'O4 Summary by Class & Accounts'!U$13:U$402) -> 0 | U41: =SUMIF('O4 Summary by Class & Accounts'!$C$13:$C$402, 'O1 Revenue to cost|RR'!$A41,'O4 Summary by Class & Accounts'!V$13:V$402) -> 0 | V41: =SUMIF('O4 Summary by Class & Accounts'!$C$13:$C$402, 'O1 Revenue to cost|RR'!$A41,'O4 Summary by Class & Accounts'!W$13:W$402) -> 0 | W41: =SUMIF('O4 Summary by Class & Accounts'!$C$13:$C$402, 'O1 Revenue to cost|RR'!$A41,'O4 Summary by Class & Accounts'!X$13:X$402) -> 0
A42: LVSG | B42: LVSG Credit | C42: =SUM(D42:W42) -> 16464707.52 | D42: =SUMIF('O4 Summary by Class & Accounts'!$C$13:$C$402, 'O1 Revenue to cost|RR'!$A42,'O4 Summary by Class & Accounts'!E$13:E$402) -> 16464707.52 | E42: =SUMIF('O4 Summary by Class & Accounts'!$C$13:$C$402, 'O1 Revenue to cost|RR'!$A42,'O4 Summary by Class & Accounts'!F$13:F$402) -> 0 | F42: =SUMIF('O4 Summary by Class & Accounts'!$C$13:$C$402, 'O1 Revenue to cost|RR'!$A42,'O4 Summary by Class & Accounts'!G$13:G$402) -> 0 | G42: =SUMIF('O4 Summary by Class & Accounts'!$C$13:$C$402, 'O1 Revenue to cost|RR'!$A42,'O4 Summary by Class & Accounts'!H$13:H$402) -> 0 | H42: =SUMIF('O4 Summary by Class & Accounts'!$C$13:$C$402, 'O1 Revenue to cost|RR'!$A42,'O4 Summary by Class & Accounts'!I$13:I$402) -> 0 | I42: =SUMIF('O4 Summary by Class & Accounts'!$C$13:$C$402, 'O1 Revenue to cost|RR'!$A42,'O4 Summary by Class & Accounts'!J$13:J$402) -> 0 | J42: =SUMIF('O4 Summary by Class & Accounts'!$C$13:$C$402, 'O1 Revenue to cost|RR'!$A42,'O4 Summary by Class & Accounts'!K$13:K$402) -> 0 | K42: =SUMIF('O4 Summary by Class & Accounts'!$C$13:$C$402, 'O1 Revenue to cost|RR'!$A42,'O4 Summary by Class & Accounts'!L$13:L$402) -> 0 | L42: =SUMIF('O4 Summary by Class & Accounts'!$C$13:$C$402, 'O1 Revenue to cost|RR'!$A42,'O4 Summary by Class & Accounts'!M$13:M$402) -> 0 | M42: =SUMIF('O4 Summary by Class & Accounts'!$C$13:$C$402, 'O1 Revenue to cost|RR'!$A42,'O4 Summary by Class & Accounts'!N$13:N$402) -> 0 | N42: =SUMIF('O4 Summary by Class & Accounts'!$C$13:$C$402, 'O1 Revenue to cost|RR'!$A42,'O4 Summary by Class & Accounts'!O$13:O$402) -> 0 | O42: =SUMIF('O4 Summary by Class & Accounts'!$C$13:$C$402, 'O1 Revenue to cost|RR'!$A42,'O4 Summary by Class & Accounts'!P$13:P$402) -> 0 | P42: =SUMIF('O4 Summary by Class & Accounts'!$C$13:$C$402, 'O1 Revenue to cost|RR'!$A42,'O4 Summary by Class & Accounts'!Q$13:Q$402) -> 0 | Q42: =SUMIF('O4 Summary by Class & Accounts'!$C$13:$C$402, 'O1 Revenue to cost|RR'!$A42,'O4 Summary by Class & Accounts'!R$13:R$402) -> 0 | R42: =SUMIF('O4 Summary by Class & Accounts'!$C$13:$C$402, 'O1 Revenue to cost|RR'!$A42,'O4 Summary by Class & Accounts'!S$13:S$402) -> 0 | S42: =SUMIF('O4 Summary by Class & Accounts'!$C$13:$C$402, 'O1 Revenue to cost|RR'!$A42,'O4 Summary by Class & Accounts'!T$13:T$402) -> 0 | T42: =SUMIF('O4 Summary by Class & Accounts'!$C$13:$C$402, 'O1 Revenue to cost|RR'!$A42,'O4 Summary by Class & Accounts'!U$13:U$402) -> 0 | U42: =SUMIF('O4 Summary by Class & Accounts'!$C$13:$C$402, 'O1 Revenue to cost|RR'!$A42,'O4 Summary by Class & Accounts'!V$13:V$402) -> 0 | V42: =SUMIF('O4 Summary by Class & Accounts'!$C$13:$C$402, 'O1 Revenue to cost|RR'!$A42,'O4 Summary by Class & Accounts'!W$13:W$402) -> 0 | W42: =SUMIF('O4 Summary by Class & Accounts'!$C$13:$C$402, 'O1 Revenue to cost|RR'!$A42,'O4 Summary by Class & Accounts'!X$13:X$402) -> 0
B43: Total Offsets | C43: =SUM(C38:C42) -> -22789133.91 | D43: =SUM(D38:D42) -> -21718786.8 | E43: =SUM(E38:E42) -> -1070347.106 | F43: =SUM(F38:F42) -> 0 | G43: 0 | H43: 0 | I43: 0 | J43: 0 | K43: 0 | L43: 0 | M43: 0 | N43: 0 | O43: 0 | P43: 0 | Q43: 0 | R43: 0 | S43: 0 | T43: 0 | U43: 0 | V43: 0 | W43: 0
B45: Rate Revenue Required | C45: =C34+C43 -> 1800412703 | D45: =D34+D43 -> 1731166017 | E45: =E34+E43 -> 69246686.88 | F45: 0 | G45: 0 | H45: 0 | I45: 0 | J45: 0 | K45: 0 | L45: 0 | M45: 0 | N45: 0 | O45: 0 | P45: 0 | Q45: 0 | R45: 0 | S45: 0 | T45: 0 | U45: 0 | V45: 0 | W45: 0
B47: Target Revenue to Cost | C47: 1 | D47: =D48/D45 -> 1 | E47: 1
B48: Target Revenue | C48: =C45*C47 -> 1800412703 | D48: =C48-E48 -> 1731166017 | E48: =E45*E47 -> 69246686.88
B50: Volume (MWh) | C50: =SUM(D50:W50) -> 152602831 | D50: ='I8 Demand Data'!D35 -> 132225424 | E50: ='I8 Demand Data'!E35 -> 20377407 | F50: ='I8 Demand Data'!F35 -> 0 | G50: ='I8 Demand Data'!G35 -> 0 | H50: ='I8 Demand Data'!H35 -> 0 | I50: ='I8 Demand Data'!I35 -> 0 | J50: ='I8 Demand Data'!J35 -> 0 | K50: ='I8 Demand Data'!K35 -> 0 | L50: ='I8 Demand Data'!L35 -> 0 | M50: ='I8 Demand Data'!M35 -> 0 | N50: ='I8 Demand Data'!N35 -> 0 | O50: ='I8 Demand Data'!O35 -> 0 | P50: ='I8 Demand Data'!P35 -> 0 | Q50: ='I8 Demand Data'!Q35 -> 0 | R50: ='I8 Demand Data'!R35 -> 0 | S50: ='I8 Demand Data'!S35 -> 0 | T50: ='I8 Demand Data'!T35 -> 0 | U50: ='I8 Demand Data'!U35 -> 0 | V50: ='I8 Demand Data'!V35 -> 0 | W50: ='I8 Demand Data'!W35 -> 0
B52: Rate Required ($/MWh) | E52: =E48/E50 -> 3.398208952
B54: On Peak Volume (MWh) | C54: =SUM(D54:W54) -> 81171617 | D54: ='I8 Demand Data'!D37 -> 71797081.67 | E54: ='I8 Demand Data'!E37 -> 9374535.333 | F54: ='I8 Demand Data'!F55 -> 0 | G54: ='I8 Demand Data'!G55 -> 0 | H54: ='I8 Demand Data'!H55 -> 0 | I54: ='I8 Demand Data'!I55 -> 0 | J54: ='I8 Demand Data'!J55 -> 0 | K54: ='I8 Demand Data'!K55 -> 0 | L54: ='I8 Demand Data'!L55 -> 0 | M54: ='I8 Demand Data'!M55 -> 0 | N54: ='I8 Demand Data'!N55 -> 0 | O54: ='I8 Demand Data'!O55 -> 0 | P54: ='I8 Demand Data'!P55 -> 0 | Q54: ='I8 Demand Data'!Q55 -> 0 | R54: ='I8 Demand Data'!R55 -> 0 | S54: ='I8 Demand Data'!S55 -> 0 | T54: ='I8 Demand Data'!T55 -> 0 | U54: ='I8 Demand Data'!U55 -> 0 | V54: ='I8 Demand Data'!V55 -> 0 | W54: ='I8 Demand Data'!W55 -> 0
B56: Rate Required ($/MWh)
B57: ETS RATE INCLUDING OTHER TRANSMITTERS’ REVENUE REQUIREMENT
B58: HONI 2023 Proposed Network Rates Revenue Requirement | E58: 1047890237
B59: Ontario Network Revenue Requirement | E59: 1129289755
B60: Escalate HONI to Ontario Network Revenue Requirement | E60: =(E59/E58) -> 1.077679432
B61: Escalate ETS base rate to other transmitters revenue | E61: =E52*E60 -> 3.662179892
B62: Escalate HONI to Ontario ETS Revenue Requirement | E62: =E48*E60 -> 74625730.16

Sheet O4 Summary by Class & Accounts
B4: ='I2 Class'!C4 -> 
B5: ="Sheet O4 Summary of Allocators by Class & Accounts - "& 'I2 Class'!$C$17 -> Sheet O4 Summary of Allocators by Class & Accounts -
B8: ALLOCATION BY RATE CLASSIFICATION
E11: 1 | F11: 2 | G11: 3 | H11: 4 | I11: 5 | J11: 6 | K11: 7 | L11: 8 | M11: 9 | N11: 10 | O11: 11 | P11: 12 | Q11: 13 | R11: 14 | S11: 15 | T11: 16 | U11: 17 | V11: 18 | W11: 19 | X11: 20
B12: Accounts | C12: O1 Grouping | D12: Total | E12: =IF('I2 Class'!$D$20="",'I2 Class'!$C$20,'I2 Class'!$D$20) -> Domestic | F12: =IF('I2 Class'!$D$21="",'I2 Class'!$C$21,'I2 Class'!$D$21) -> Export | G12: =IF('I2 Class'!$D$22="",'I2 Class'!$C$22,'I2 Class'!$D$22) -> Rate Class 1 | H12: =IF('I2 Class'!$D$23="",'I2 Class'!$C$23,'I2 Class'!$D$23) -> Rate class 2 | I12: =IF('I2 Class'!$D$24="",'I2 Class'!$C$24,'I2 Class'!$D$24) -> Rate class 3 | J12: =IF('I2 Class'!$D$25="",'I2 Class'!$C$25,'I2 Class'!$D$25) -> Rate class 4 | K12: =IF('I2 Class'!$D$26="",'I2 Class'!$C$26,'I2 Class'!$D$26) -> Rate class 5 | L12: =IF('I2 Class'!$D$27="",'I2 Class'!$C$27,'I2 Class'!$D$27) -> Rate class 6 | M12: =IF('I2 Class'!$D$28="",'I2 Class'!$C$28,'I2 Class'!$D$28) -> Rate class 7 | N12: =IF('I2 Class'!$D$29="",'I2 Class'!$C$29,'I2 Class'!$D$29) -> Rate class 8 | O12: =IF('I2 Class'!$D$30="",'I2 Class'!$C$30,'I2 Class'!$D$30) -> Rate class 9 | P12: =IF('I2 Class'!$D$31="",'I2 Class'!$C$31,'I2 Class'!$D$31) -> Rate class 1 | Q12: =IF('I2 Class'!$D$32="",'I2 Class'!$C$32,'I2 Class'!$D$32) -> Rate class 2 | R12: =IF('I2 Class'!$D$33="",'I2 Class'!$C$33,'I2 Class'!$D$33) -> Rate class 3 | S12: =IF('I2 Class'!$D$34="",'I2 Class'!$C$34,'I2 Class'!$D$34) -> Rate class 4 | T12: =IF('I2 Class'!$D$35="",'I2 Class'!$C$35,'I2 Class'!$D$35) -> Rate class 5 | U12: =IF('I2 Class'!$D$36="",'I2 Class'!$C$36,'I2 Class'!$D$36) -> Rate class 6 | V12: =IF('I2 Class'!$D$37="",'I2 Class'!$C$37,'I2 Class'!$D$37) -> Rate class 7 | W12: =IF('I2 Class'!$D$38="",'I2 Class'!$C$38,'I2 Class'!$D$38) -> Rate class 8 | X12: =IF('I2 Class'!$D$39="",'I2 Class'!$C$39,'I2 Class'!$D$39) -> Rate class 9
B13: ='I3 TB Data'!B19 -> Rate Base - Network - Dedicated to Domestic | C13: rb | D13: ='I3 TB Data'!G19 -> 0 | E13: =VLOOKUP('E4 TB Allocation Details'!$C24, 'E2 Allocators'!$B$15:$W$285, MATCH(E$12, 'E2 Allocators'!$B$15:$W$15, 0),FALSE)*$D13 -> 0 | F13: =VLOOKUP('E4 TB Allocation Details'!$C24, 'E2 Allocators'!$B$15:$W$285, MATCH(F$12, 'E2 Allocators'!$B$15:$W$15, 0),FALSE)*$D13 -> 0 | G13: =VLOOKUP('E4 TB Allocation Details'!$C24, 'E2 Allocators'!$B$15:$W$285, MATCH(G$12, 'E2 Allocators'!$B$15:$W$15, 0),FALSE)*$D13 -> 0 | H13: =VLOOKUP('E4 TB Allocation Details'!$C24, 'E2 Allocators'!$B$15:$W$285, MATCH(H$12, 'E2 Allocators'!$B$15:$W$15, 0),FALSE)*$D13 -> 0 | I13: =VLOOKUP('E4 TB Allocation Details'!$C24, 'E2 Allocators'!$B$15:$W$285, MATCH(I$12, 'E2 Allocators'!$B$15:$W$15, 0),FALSE)*$D13 -> 0 | J13: =VLOOKUP('E4 TB Allocation Details'!$C24, 'E2 Allocators'!$B$15:$W$285, MATCH(J$12, 'E2 Allocators'!$B$15:$W$15, 0),FALSE)*$D13 -> 0 | K13: =VLOOKUP('E4 TB Allocation Details'!$C24, 'E2 Allocators'!$B$15:$W$285, MATCH(K$12, 'E2 Allocators'!$B$15:$W$15, 0),FALSE)*$D13 -> 0 | L13: =VLOOKUP('E4 TB Allocation Details'!$C24, 'E2 Allocators'!$B$15:$W$285, MATCH(L$12, 'E2 Allocators'!$B$15:$W$15, 0),FALSE)*$D13 -> 0 | M13: =VLOOKUP('E4 TB Allocation Details'!$C24, 'E2 Allocators'!$B$15:$W$285, MATCH(M$12, 'E2 Allocators'!$B$15:$W$15, 0),FALSE)*$D13 -> 0 | N13: =VLOOKUP('E4 TB Allocation Details'!$C24, 'E2 Allocators'!$B$15:$W$285, MATCH(N$12, 'E2 Allocators'!$B$15:$W$15, 0),FALSE)*$D13 -> 0 | O13: =VLOOKUP('E4 TB Allocation Details'!$C24, 'E2 Allocators'!$B$15:$W$285, MATCH(O$12, 'E2 Allocators'!$B$15:$W$15, 0),FALSE)*$D13 -> 0 | P13: =VLOOKUP('E4 TB Allocation Details'!$C24, 'E2 Allocators'!$B$15:$W$285, MATCH(P$12, 'E2 Allocators'!$B$15:$W$15, 0),FALSE)*$D13 -> 0 | Q13: =VLOOKUP('E4 TB Allocation Details'!$C24, 'E2 Allocators'!$B$15:$W$285, MATCH(Q$12, 'E2 Allocators'!$B$15:$W$15, 0),FALSE)*$D13 -> 0 | R13: =VLOOKUP('E4 TB Allocation Details'!$C24, 'E2 Allocators'!$B$15:$W$285, MATCH(R$12, 'E2 Allocators'!$B$15:$W$15, 0),FALSE)*$D13 -> 0 | S13: =VLOOKUP('E4 TB Allocation Details'!$C24, 'E2 Allocators'!$B$15:$W$285, MATCH(S$12, 'E2 Allocators'!$B$15:$W$15, 0),FALSE)*$D13 -> 0 | T13: =VLOOKUP('E4 TB Allocation Details'!$C24, 'E2 Allocators'!$B$15:$W$285, MATCH(T$12, 'E2 Allocators'!$B$15:$W$15, 0),FALSE)*$D13 -> 0 | U13: =VLOOKUP('E4 TB Allocation Details'!$C24, 'E2 Allocators'!$B$15:$W$285, MATCH(U$12, 'E2 Allocators'!$B$15:$W$15, 0),FALSE)*$D13 -> 0 | V13: =VLOOKUP('E4 TB Allocation Details'!$C24, 'E2 Allocators'!$B$15:$W$285, MATCH(V$12, 'E2 Allocators'!$B$15:$W$15, 0),FALSE)*$D13 -> 0 | W13: =VLOOKUP('E4 TB Allocation Details'!$C24, 'E2 Allocators'!$B$15:$W$285, MATCH(W$12, 'E2 Allocators'!$B$15:$W$15, 0),FALSE)*$D13 -> 0 | X13: =VLOOKUP('E4 TB Allocation Details'!$C24, 'E2 Allocators'!$B$15:$W$285, MATCH(X$12, 'E2 Allocators'!$B$15:$W$15, 0),FALSE)*$D13 -> 0
B14: ='I3 TB Data'!B20 -> Rate Base - Network - Dedicated to Interconnect | C14: rb | D14: ='I3 TB Data'!G20 -> 94126151.22 | E14: =VLOOKUP('E4 TB Allocation Details'!$C25, 'E2 Allocators'!$B$15:$W$285, MATCH(E$12, 'E2 Allocators'!$B$15:$W$15, 0),FALSE)*$D14 -> 26625965.01 | F14: =VLOOKUP('E4 TB Allocation Details'!$C25, 'E2 Allocators'!$B$15:$W$285, MATCH(F$12, 'E2 Allocators'!$B$15:$W$15, 0),FALSE)*$D14 -> 67500186.21 | G14: =VLOOKUP('E4 TB Allocation Details'!$C25, 'E2 Allocators'!$B$15:$W$285, MATCH(G$12, 'E2 Allocators'!$B$15:$W$15, 0),FALSE)*$D14 -> 0 | H14: =VLOOKUP('E4 TB Allocation Details'!$C25, 'E2 Allocators'!$B$15:$W$285, MATCH(H$12, 'E2 Allocators'!$B$15:$W$15, 0),FALSE)*$D14 -> 0 | I14: =VLOOKUP('E4 TB Allocation Details'!$C25, 'E2 Allocators'!$B$15:$W$285, MATCH(I$12, 'E2 Allocators'!$B$15:$W$15, 0),FALSE)*$D14 -> 0 | J14: =VLOOKUP('E4 TB Allocation Details'!$C25, 'E2 Allocators'!$B$15:$W$285, MATCH(J$12, 'E2 Allocators'!$B$15:$W$15, 0),FALSE)*$D14 -> 0 | K14: =VLOOKUP('E4 TB Allocation Details'!$C25, 'E2 Allocators'!$B$15:$W$285, MATCH(K$12, 'E2 Allocators'!$B$15:$W$15, 0),FALSE)*$D14 -> 0 | L14: =VLOOKUP('E4 TB Allocation Details'!$C25, 'E2 Allocators'!$B$15:$W$285, MATCH(L$12, 'E2 Allocators'!$B$15:$W$15, 0),FALSE)*$D14 -> 0 | M14: =VLOOKUP('E4 TB Allocation Details'!$C25, 'E2 Allocators'!$B$15:$W$285, MATCH(M$12, 'E2 Allocators'!$B$15:$W$15, 0),FALSE)*$D14 -> 0 | N14: =VLOOKUP('E4 TB Allocation Details'!$C25, 'E2 Allocators'!$B$15:$W$285, MATCH(N$12, 'E2 Allocators'!$B$15:$W$15, 0),FALSE)*$D14 -> 0 | O14: =VLOOKUP('E4 TB Allocation Details'!$C25, 'E2 Allocators'!$B$15:$W$285, MATCH(O$12, 'E2 Allocators'!$B$15:$W$15, 0),FALSE)*$D14 -> 0 | P14: =VLOOKUP('E4 TB Allocation Details'!$C25, 'E2 Allocators'!$B$15:$W$285, MATCH(P$12, 'E2 Allocators'!$B$15:$W$15, 0),FALSE)*$D14 -> 0 | Q14: =VLOOKUP('E4 TB Allocation Details'!$C25, 'E2 Allocators'!$B$15:$W$285, MATCH(Q$12, 'E2 Allocators'!$B$15:$W$15, 0),FALSE)*$D14 -> 0 | R14: =VLOOKUP('E4 TB Allocation Details'!$C25, 'E2 Allocators'!$B$15:$W$285, MATCH(R$12, 'E2 Allocators'!$B$15:$W$15, 0),FALSE)*$D14 -> 0 | S14: =VLOOKUP('E4 TB Allocation Details'!$C25, 'E2 Allocators'!$B$15:$W$285, MATCH(S$12, 'E2 Allocators'!$B$15:$W$15, 0),FALSE)*$D14 -> 0 | T14: =VLOOKUP('E4 TB Allocation Details'!$C25, 'E2 Allocators'!$B$15:$W$285, MATCH(T$12, 'E2 Allocators'!$B$15:$W$15, 0),FALSE)*$D14 -> 0 | U14: =VLOOKUP('E4 TB Allocation Details'!$C25, 'E2 Allocators'!$B$15:$W$285, MATCH(U$12, 'E2 Allocators'!$B$15:$W$15, 0),FALSE)*$D14 -> 0 | V14: =VLOOKUP('E4 TB Allocation Details'!$C25, 'E2 Allocators'!$B$15:$W$285, MATCH(V$12, 'E2 Allocators'!$B$15:$W$15, 0),FALSE)*$D14 -> 0 | W14: =VLOOKUP('E4 TB Allocation Details'!$C25, 'E2 Allocators'!$B$15:$W$285, MATCH(W$12, 'E2 Allocators'!$B$15:$W$15, 0),FALSE)*$D14 -> 0 | X14: =VLOOKUP('E4 TB Allocation Details'!$C25, 'E2 Allocators'!$B$15:$W$285, MATCH(X$12, 'E2 Allocators'!$B$15:$W$15, 0),FALSE)*$D14 -> 0
B15: ='I3 TB Data'!B21 -> Rate Base - Network - Shared | C15: rb | D15: ='I3 TB Data'!G21 -> 7068194662 | E15: =VLOOKUP('E4 TB Allocation Details'!$C26, 'E2 Allocators'!$B$15:$W$285, MATCH(E$12, 'E2 Allocators'!$B$15:$W$15, 0),FALSE)*$D15 -> 6669229850 | F15: =VLOOKUP('E4 TB Allocation Details'!$C26, 'E2 Allocators'!$B$15:$W$285, MATCH(F$12, 'E2 Allocators'!$B$15:$W$15, 0),FALSE)*$D15 -> 398964811.9 | G15: =VLOOKUP('E4 TB Allocation Details'!$C26, 'E2 Allocators'!$B$15:$W$285, MATCH(G$12, 'E2 Allocators'!$B$15:$W$15, 0),FALSE)*$D15 -> 0 | H15: =VLOOKUP('E4 TB Allocation Details'!$C26, 'E2 Allocators'!$B$15:$W$285, MATCH(H$12, 'E2 Allocators'!$B$15:$W$15, 0),FALSE)*$D15 -> 0 | I15: =VLOOKUP('E4 TB Allocation Details'!$C26, 'E2 Allocators'!$B$15:$W$285, MATCH(I$12, 'E2 Allocators'!$B$15:$W$15, 0),FALSE)*$D15 -> 0 | J15: =VLOOKUP('E4 TB Allocation Details'!$C26, 'E2 Allocators'!$B$15:$W$285, MATCH(J$12, 'E2 Allocators'!$B$15:$W$15, 0),FALSE)*$D15 -> 0 | K15: =VLOOKUP('E4 TB Allocation Details'!$C26, 'E2 Allocators'!$B$15:$W$285, MATCH(K$12, 'E2 Allocators'!$B$15:$W$15, 0),FALSE)*$D15 -> 0 | L15: =VLOOKUP('E4 TB Allocation Details'!$C26, 'E2 Allocators'!$B$15:$W$285, MATCH(L$12, 'E2 Allocators'!$B$15:$W$15, 0),FALSE)*$D15 -> 0 | M15: =VLOOKUP('E4 TB Allocation Details'!$C26, 'E2 Allocators'!$B$15:$W$285, MATCH(M$12, 'E2 Allocators'!$B$15:$W$15, 0),FALSE)*$D15 -> 0 | N15: =VLOOKUP('E4 TB Allocation Details'!$C26, 'E2 Allocators'!$B$15:$W$285, MATCH(N$12, 'E2 Allocators'!$B$15:$W$15, 0),FALSE)*$D15 -> 0 | O15: =VLOOKUP('E4 TB Allocation Details'!$C26, 'E2 Allocators'!$B$15:$W$285, MATCH(O$12, 'E2 Allocators'!$B$15:$W$15, 0),FALSE)*$D15 -> 0 | P15: =VLOOKUP('E4 TB Allocation Details'!$C26, 'E2 Allocators'!$B$15:$W$285, MATCH(P$12, 'E2 Allocators'!$B$15:$W$15, 0),FALSE)*$D15 -> 0 | Q15: =VLOOKUP('E4 TB Allocation Details'!$C26, 'E2 Allocators'!$B$15:$W$285, MATCH(Q$12, 'E2 Allocators'!$B$15:$W$15, 0),FALSE)*$D15 -> 0 | R15: =VLOOKUP('E4 TB Allocation Details'!$C26, 'E2 Allocators'!$B$15:$W$285, MATCH(R$12, 'E2 Allocators'!$B$15:$W$15, 0),FALSE)*$D15 -> 0 | S15: =VLOOKUP('E4 TB Allocation Details'!$C26, 'E2 Allocators'!$B$15:$W$285, MATCH(S$12, 'E2 Allocators'!$B$15:$W$15, 0),FALSE)*$D15 -> 0 | T15: =VLOOKUP('E4 TB Allocation Details'!$C26, 'E2 Allocators'!$B$15:$W$285, MATCH(T$12, 'E2 Allocators'!$B$15:$W$15, 0),FALSE)*$D15 -> 0 | U15: =VLOOKUP('E4 TB Allocation Details'!$C26, 'E2 Allocators'!$B$15:$W$285, MATCH(U$12, 'E2 Allocators'!$B$15:$W$15, 0),FALSE)*$D15 -> 0 | V15: =VLOOKUP('E4 TB Allocation Details'!$C26, 'E2 Allocators'!$B$15:$W$285, MATCH(V$12, 'E2 Allocators'!$B$15:$W$15, 0),FALSE)*$D15 -> 0 | W15: =VLOOKUP('E4 TB Allocation Details'!$C26, 'E2 Allocators'!$B$15:$W$285, MATCH(W$12, 'E2 Allocators'!$B$15:$W$15, 0),FALSE)*$D15 -> 0 | X15: =VLOOKUP('E4 TB Allocation Details'!$C26, 'E2 Allocators'!$B$15:$W$285, MATCH(X$12, 'E2 Allocators'!$B$15:$W$15, 0),FALSE)*$D15 -> 0
B16: ='I3 TB Data'!B22 -> Rate Base - Line Connection - Dedicated to Domestic | C16: rb | D16: ='I3 TB Data'!G22 -> 1321516185 | E16: =VLOOKUP('E4 TB Allocation Details'!$C27, 'E2 Allocators'!$B$15:$W$285, MATCH(E$12, 'E2 Allocators'!$B$15:$W$15, 0),FALSE)*$D16 -> 1321516185 | F16: =VLOOKUP('E4 TB Allocation Details'!$C27, 'E2 Allocators'!$B$15:$W$285, MATCH(F$12, 'E2 Allocators'!$B$15:$W$15, 0),FALSE)*$D16 -> 0 | G16: =VLOOKUP('E4 TB Allocation Details'!$C27, 'E2 Allocators'!$B$15:$W$285, MATCH(G$12, 'E2 Allocators'!$B$15:$W$15, 0),FALSE)*$D16 -> 0 | H16: =VLOOKUP('E4 TB Allocation Details'!$C27, 'E2 Allocators'!$B$15:$W$285, MATCH(H$12, 'E2 Allocators'!$B$15:$W$15, 0),FALSE)*$D16 -> 0 | I16: =VLOOKUP('E4 TB Allocation Details'!$C27, 'E2 Allocators'!$B$15:$W$285, MATCH(I$12, 'E2 Allocators'!$B$15:$W$15, 0),FALSE)*$D16 -> 0 | J16: =VLOOKUP('E4 TB Allocation Details'!$C27, 'E2 Allocators'!$B$15:$W$285, MATCH(J$12, 'E2 Allocators'!$B$15:$W$15, 0),FALSE)*$D16 -> 0 | K16: =VLOOKUP('E4 TB Allocation Details'!$C27, 'E2 Allocators'!$B$15:$W$285, MATCH(K$12, 'E2 Allocators'!$B$15:$W$15, 0),FALSE)*$D16 -> 0 | L16: =VLOOKUP('E4 TB Allocation Details'!$C27, 'E2 Allocators'!$B$15:$W$285, MATCH(L$12, 'E2 Allocators'!$B$15:$W$15, 0),FALSE)*$D16 -> 0 | M16: =VLOOKUP('E4 TB Allocation Details'!$C27, 'E2 Allocators'!$B$15:$W$285, MATCH(M$12, 'E2 Allocators'!$B$15:$W$15, 0),FALSE)*$D16 -> 0 | N16: =VLOOKUP('E4 TB Allocation Details'!$C27, 'E2 Allocators'!$B$15:$W$285, MATCH(N$12, 'E2 Allocators'!$B$15:$W$15, 0),FALSE)*$D16 -> 0 | O16: =VLOOKUP('E4 TB Allocation Details'!$C27, 'E2 Allocators'!$B$15:$W$285, MATCH(O$12, 'E2 Allocators'!$B$15:$W$15, 0),FALSE)*$D16 -> 0 | P16: =VLOOKUP('E4 TB Allocation Details'!$C27, 'E2 Allocators'!$B$15:$W$285, MATCH(P$12, 'E2 Allocators'!$B$15:$W$15, 0),FALSE)*$D16 -> 0 | Q16: =VLOOKUP('E4 TB Allocation Details'!$C27, 'E2 Allocators'!$B$15:$W$285, MATCH(Q$12, 'E2 Allocators'!$B$15:$W$15, 0),FALSE)*$D16 -> 0 | R16: =VLOOKUP('E4 TB Allocation Details'!$C27, 'E2 Allocators'!$B$15:$W$285, MATCH(R$12, 'E2 Allocators'!$B$15:$W$15, 0),FALSE)*$D16 -> 0 | S16: =VLOOKUP('E4 TB Allocation Details'!$C27, 'E2 Allocators'!$B$15:$W$285, MATCH(S$12, 'E2 Allocators'!$B$15:$W$15, 0),FALSE)*$D16 -> 0 | T16: =VLOOKUP('E4 TB Allocation Details'!$C27, 'E2 Allocators'!$B$15:$W$285, MATCH(T$12, 'E2 Allocators'!$B$15:$W$15, 0),FALSE)*$D16 -> 0 | U16: =VLOOKUP('E4 TB Allocation Details'!$C27, 'E2 Allocators'!$B$15:$W$285, MATCH(U$12, 'E2 Allocators'!$B$15:$W$15, 0),FALSE)*$D16 -> 0 | V16: =VLOOKUP('E4 TB Allocation Details'!$C27, 'E2 Allocators'!$B$15:$W$285, MATCH(V$12, 'E2 Allocators'!$B$15:$W$15, 0),FALSE)*$D16 -> 0 | W16: =VLOOKUP('E4 TB Allocation Details'!$C27, 'E2 Allocators'!$B$15:$W$285, MATCH(W$12, 'E2 Allocators'!$B$15:$W$15, 0),FALSE)*$D16 -> 0 | X16: =VLOOKUP('E4 TB Allocation Details'!$C27, 'E2 Allocators'!$B$15:$W$285, MATCH(X$12, 'E2 Allocators'!$B$15:$W$15, 0),FALSE)*$D16 -> 0
B17: ='I3 TB Data'!B23 -> Rate Base - Line Connection - Dedicated to Interconnect | C17: rb | D17: ='I3 TB Data'!G23 -> 0 | E17: =VLOOKUP('E4 TB Allocation Details'!$C28, 'E2 Allocators'!$B$15:$W$285, MATCH(E$12, 'E2 Allocators'!$B$15:$W$15, 0),FALSE)*$D17 -> 0 | F17: =VLOOKUP('E4 TB Allocation Details'!$C28, 'E2 Allocators'!$B$15:$W$285, MATCH(F$12, 'E2 Allocators'!$B$15:$W$15, 0),FALSE)*$D17 -> 0 | G17: =VLOOKUP('E4 TB Allocation Details'!$C28, 'E2 Allocators'!$B$15:$W$285, MATCH(G$12, 'E2 Allocators'!$B$15:$W$15, 0),FALSE)*$D17 -> 0 | H17: =VLOOKUP('E4 TB Allocation Details'!$C28, 'E2 Allocators'!$B$15:$W$285, MATCH(H$12, 'E2 Allocators'!$B$15:$W$15, 0),FALSE)*$D17 -> 0 | I17: =VLOOKUP('E4 TB Allocation Details'!$C28, 'E2 Allocators'!$B$15:$W$285, MATCH(I$12, 'E2 Allocators'!$B$15:$W$15, 0),FALSE)*$D17 -> 0 | J17: =VLOOKUP('E4 TB Allocation Details'!$C28, 'E2 Allocators'!$B$15:$W$285, MATCH(J$12, 'E2 Allocators'!$B$15:$W$15, 0),FALSE)*$D17 -> 0 | K17: =VLOOKUP('E4 TB Allocation Details'!$C28, 'E2 Allocators'!$B$15:$W$285, MATCH(K$12, 'E2 Allocators'!$B$15:$W$15, 0),FALSE)*$D17 -> 0 | L17: =VLOOKUP('E4 TB Allocation Details'!$C28, 'E2 Allocators'!$B$15:$W$285, MATCH(L$12, 'E2 Allocators'!$B$15:$W$15, 0),FALSE)*$D17 -> 0 | M17: =VLOOKUP('E4 TB Allocation Details'!$C28, 'E2 Allocators'!$B$15:$W$285, MATCH(M$12, 'E2 Allocators'!$B$15:$W$15, 0),FALSE)*$D17 -> 0 | N17: =VLOOKUP('E4 TB Allocation Details'!$C28, 'E2 Allocators'!$B$15:$W$285, MATCH(N$12, 'E2 Allocators'!$B$15:$W$15, 0),FALSE)*$D17 -> 0 | O17: =VLOOKUP('E4 TB Allocation Details'!$C28, 'E2 Allocators'!$B$15:$W$285, MATCH(O$12, 'E2 Allocators'!$B$15:$W$15, 0),FALSE)*$D17 -> 0 | P17: =VLOOKUP('E4 TB Allocation Details'!$C28, 'E2 Allocators'!$B$15:$W$285, MATCH(P$12, 'E2 Allocators'!$B$15:$W$15, 0),FALSE)*$D17 -> 0 | Q17: =VLOOKUP('E4 TB Allocation Details'!$C28, 'E2 Allocators'!$B$15:$W$285, MATCH(Q$12, 'E2 Allocators'!$B$15:$W$15, 0),FALSE)*$D17 -> 0 | R17: =VLOOKUP('E4 TB Allocation Details'!$C28, 'E2 Allocators'!$B$15:$W$285, MATCH(R$12, 'E2 Allocators'!$B$15:$W$15, 0),FALSE)*$D17 -> 0 | S17: =VLOOKUP('E4 TB Allocation Details'!$C28, 'E2 Allocators'!$B$15:$W$285, MATCH(S$12, 'E2 Allocators'!$B$15:$W$15, 0),FALSE)*$D17 -> 0 | T17: =VLOOKUP('E4 TB Allocation Details'!$C28, 'E2 Allocators'!$B$15:$W$285, MATCH(T$12, 'E2 Allocators'!$B$15:$W$15, 0),FALSE)*$D17 -> 0 | U17: =VLOOKUP('E4 TB Allocation Details'!$C28, 'E2 Allocators'!$B$15:$W$285, MATCH(U$12, 'E2 Allocators'!$B$15:$W$15, 0),FALSE)*$D17 -> 0 | V17: =VLOOKUP('E4 TB Allocation Details'!$C28, 'E2 Allocators'!$B$15:$W$285, MATCH(V$12, 'E2 Allocators'!$B$15:$W$15, 0),FALSE)*$D17 -> 0 | W17: =VLOOKUP('E4 TB Allocation Details'!$C28, 'E2 Allocators'!$B$15:$W$285, MATCH(W$12, 'E2 Allocators'!$B$15:$W$15, 0),FALSE)*$D17 -> 0 | X17: =VLOOKUP('E4 TB Allocation Details'!$C28, 'E2 Allocators'!$B$15:$W$285, MATCH(X$12, 'E2 Allocators'!$B$15:$W$15, 0),FALSE)*$D17 -> 0
B18: ='I3 TB Data'!B24 -> Rate Base - Line Connection - Shared | C18: rb | D18: ='I3 TB Data'!G24 -> 0 | E18: =VLOOKUP('E4 TB Allocation Details'!$C29, 'E2 Allocators'!$B$15:$W$285, MATCH(E$12, 'E2 Allocators'!$B$15:$W$15, 0),FALSE)*$D18 -> 0 | F18: =VLOOKUP('E4 TB Allocation Details'!$C29, 'E2 Allocators'!$B$15:$W$285, MATCH(F$12, 'E2 Allocators'!$B$15:$W$15, 0),FALSE)*$D18 -> 0 | G18: =VLOOKUP('E4 TB Allocation Details'!$C29, 'E2 Allocators'!$B$15:$W$285, MATCH(G$12, 'E2 Allocators'!$B$15:$W$15, 0),FALSE)*$D18 -> 0 | H18: =VLOOKUP('E4 TB Allocation Details'!$C29, 'E2 Allocators'!$B$15:$W$285, MATCH(H$12, 'E2 Allocators'!$B$15:$W$15, 0),FALSE)*$D18 -> 0 | I18: =VLOOKUP('E4 TB Allocation Details'!$C29, 'E2 Allocators'!$B$15:$W$285, MATCH(I$12, 'E2 Allocators'!$B$15:$W$15, 0),FALSE)*$D18 -> 0 | J18: =VLOOKUP('E4 TB Allocation Details'!$C29, 'E2 Allocators'!$B$15:$W$285, MATCH(J$12, 'E2 Allocators'!$B$15:$W$15, 0),FALSE)*$D18 -> 0 | K18: =VLOOKUP('E4 TB Allocation Details'!$C29, 'E2 Allocators'!$B$15:$W$285, MATCH(K$12, 'E2 Allocators'!$B$15:$W$15, 0),FALSE)*$D18 -> 0 | L18: =VLOOKUP('E4 TB Allocation Details'!$C29, 'E2 Allocators'!$B$15:$W$285, MATCH(L$12, 'E2 Allocators'!$B$15:$W$15, 0),FALSE)*$D18 -> 0 | M18: =VLOOKUP('E4 TB Allocation Details'!$C29, 'E2 Allocators'!$B$15:$W$285, MATCH(M$12, 'E2 Allocators'!$B$15:$W$15, 0),FALSE)*$D18 -> 0 | N18: =VLOOKUP('E4 TB Allocation Details'!$C29, 'E2 Allocators'!$B$15:$W$285, MATCH(N$12, 'E2 Allocators'!$B$15:$W$15, 0),FALSE)*$D18 -> 0 | O18: =VLOOKUP('E4 TB Allocation Details'!$C29, 'E2 Allocators'!$B$15:$W$285, MATCH(O$12, 'E2 Allocators'!$B$15:$W$15, 0),FALSE)*$D18 -> 0 | P18: =VLOOKUP('E4 TB Allocation Details'!$C29, 'E2 Allocators'!$B$15:$W$285, MATCH(P$12, 'E2 Allocators'!$B$15:$W$15, 0),FALSE)*$D18 -> 0 | Q18: =VLOOKUP('E4 TB Allocation Details'!$C29, 'E2 Allocators'!$B$15:$W$285, MATCH(Q$12, 'E2 Allocators'!$B$15:$W$15, 0),FALSE)*$D18 -> 0 | R18: =VLOOKUP('E4 TB Allocation Details'!$C29, 'E2 Allocators'!$B$15:$W$285, MATCH(R$12, 'E2 Allocators'!$B$15:$W$15, 0),FALSE)*$D18 -> 0 | S18: =VLOOKUP('E4 TB Allocation Details'!$C29, 'E2 Allocators'!$B$15:$W$285, MATCH(S$12, 'E2 Allocators'!$B$15:$W$15, 0),FALSE)*$D18 -> 0 | T18: =VLOOKUP('E4 TB Allocation Details'!$C29, 'E2 Allocators'!$B$15:$W$285, MATCH(T$12, 'E2 Allocators'!$B$15:$W$15, 0),FALSE)*$D18 -> 0 | U18: =VLOOKUP('E4 TB Allocation Details'!$C29, 'E2 Allocators'!$B$15:$W$285, MATCH(U$12, 'E2 Allocators'!$B$15:$W$15, 0),FALSE)*$D18 -> 0 | V18: =VLOOKUP('E4 TB Allocation Details'!$C29, 'E2 Allocators'!$B$15:$W$285, MATCH(V$12, 'E2 Allocators'!$B$15:$W$15, 0),FALSE)*$D18 -> 0 | W18: =VLOOKUP('E4 TB Allocation Details'!$C29, 'E2 Allocators'!$B$15:$W$285, MATCH(W$12, 'E2 Allocators'!$B$15:$W$15, 0),FALSE)*$D18 -> 0 | X18: =VLOOKUP('E4 TB Allocation Details'!$C29, 'E2 Allocators'!$B$15:$W$285, MATCH(X$12, 'E2 Allocators'!$B$15:$W$15, 0),FALSE)*$D18 -> 0
B19: ='I3 TB Data'!B25 -> Rate Base - Transformer Connection - Dedicated to Domestic | C19: rb | D19: ='I3 TB Data'!G25 -> 3951462957 | E19: =VLOOKUP('E4 TB Allocation Details'!$C30, 'E2 Allocators'!$B$15:$W$285, MATCH(E$12, 'E2 Allocators'!$B$15:$W$15, 0),FALSE)*$D19 -> 3951462957 | F19: =VLOOKUP('E4 TB Allocation Details'!$C30, 'E2 Allocators'!$B$15:$W$285, MATCH(F$12, 'E2 Allocators'!$B$15:$W$15, 0),FALSE)*$D19 -> 0 | G19: =VLOOKUP('E4 TB Allocation Details'!$C30, 'E2 Allocators'!$B$15:$W$285, MATCH(G$12, 'E2 Allocators'!$B$15:$W$15, 0),FALSE)*$D19 -> 0 | H19: =VLOOKUP('E4 TB Allocation Details'!$C30, 'E2 Allocators'!$B$15:$W$285, MATCH(H$12, 'E2 Allocators'!$B$15:$W$15, 0),FALSE)*$D19 -> 0 | I19: =VLOOKUP('E4 TB Allocation Details'!$C30, 'E2 Allocators'!$B$15:$W$285, MATCH(I$12, 'E2 Allocators'!$B$15:$W$15, 0),FALSE)*$D19 -> 0 | J19: =VLOOKUP('E4 TB Allocation Details'!$C30, 'E2 Allocators'!$B$15:$W$285, MATCH(J$12, 'E2 Allocators'!$B$15:$W$15, 0),FALSE)*$D19 -> 0 | K19: =VLOOKUP('E4 TB Allocation Details'!$C30, 'E2 Allocators'!$B$15:$W$285, MATCH(K$12, 'E2 Allocators'!$B$15:$W$15, 0),FALSE)*$D19 -> 0 | L19: =VLOOKUP('E4 TB Allocation Details'!$C30, 'E2 Allocators'!$B$15:$W$285, MATCH(L$12, 'E2 Allocators'!$B$15:$W$15, 0),FALSE)*$D19 -> 0 | M19: =VLOOKUP('E4 TB Allocation Details'!$C30, 'E2 Allocators'!$B$15:$W$285, MATCH(M$12, 'E2 Allocators'!$B$15:$W$15, 0),FALSE)*$D19 -> 0 | N19: =VLOOKUP('E4 TB Allocation Details'!$C30, 'E2 Allocators'!$B$15:$W$285, MATCH(N$12, 'E2 Allocators'!$B$15:$W$15, 0),FALSE)*$D19 -> 0 | O19: =VLOOKUP('E4 TB Allocation Details'!$C30, 'E2 Allocators'!$B$15:$W$285, MATCH(O$12, 'E2 Allocators'!$B$15:$W$15, 0),FALSE)*$D19 -> 0 | P19: =VLOOKUP('E4 TB Allocation Details'!$C30, 'E2 Allocators'!$B$15:$W$285, MATCH(P$12, 'E2 Allocators'!$B$15:$W$15, 0),FALSE)*$D19 -> 0 | Q19: =VLOOKUP('E4 TB Allocation Details'!$C30, 'E2 Allocators'!$B$15:$W$285, MATCH(Q$12, 'E2 Allocators'!$B$15:$W$15, 0),FALSE)*$D19 -> 0 | R19: =VLOOKUP('E4 TB Allocation Details'!$C30, 'E2 Allocators'!$B$15:$W$285, MATCH(R$12, 'E2 Allocators'!$B$15:$W$15, 0),FALSE)*$D19 -> 0 | S19: =VLOOKUP('E4 TB Allocation Details'!$C30, 'E2 Allocators'!$B$15:$W$285, MATCH(S$12, 'E2 Allocators'!$B$15:$W$15, 0),FALSE)*$D19 -> 0 | T19: =VLOOKUP('E4 TB Allocation Details'!$C30, 'E2 Allocators'!$B$15:$W$285, MATCH(T$12, 'E2 Allocators'!$B$15:$W$15, 0),FALSE)*$D19 -> 0 | U19: =VLOOKUP('E4 TB Allocation Details'!$C30, 'E2 Allocators'!$B$15:$W$285, MATCH(U$12, 'E2 Allocators'!$B$15:$W$15, 0),FALSE)*$D19 -> 0 | V19: =VLOOKUP('E4 TB Allocation Details'!$C30, 'E2 Allocators'!$B$15:$W$285, MATCH(V$12, 'E2 Allocators'!$B$15:$W$15, 0),FALSE)*$D19 -> 0 | W19: =VLOOKUP('E4 TB Allocation Details'!$C30, 'E2 Allocators'!$B$15:$W$285, MATCH(W$12, 'E2 Allocators'!$B$15:$W$15, 0),FALSE)*$D19 -> 0 | X19: =VLOOKUP('E4 TB Allocation Details'!$C30, 'E2 Allocators'!$B$15:$W$285, MATCH(X$12, 'E2 Allocators'!$B$15:$W$15, 0),FALSE)*$D19 -> 0
B20: ='I3 TB Data'!B26 -> Rate Base - Transformer Connection - Dedicated to Interconnect | C20: rb | D20: ='I3 TB Data'!G26 -> 0 | E20: =VLOOKUP('E4 TB Allocation Details'!$C31, 'E2 Allocators'!$B$15:$W$285, MATCH(E$12, 'E2 Allocators'!$B$15:$W$15, 0),FALSE)*$D20 -> 0 | F20: =VLOOKUP('E4 TB Allocation Details'!$C31, 'E2 Allocators'!$B$15:$W$285, MATCH(F$12, 'E2 Allocators'!$B$15:$W$15, 0),FALSE)*$D20 -> 0 | G20: =VLOOKUP('E4 TB Allocation Details'!$C31, 'E2 Allocators'!$B$15:$W$285, MATCH(G$12, 'E2 Allocators'!$B$15:$W$15, 0),FALSE)*$D20 -> 0 | H20: =VLOOKUP('E4 TB Allocation Details'!$C31, 'E2 Allocators'!$B$15:$W$285, MATCH(H$12, 'E2 Allocators'!$B$15:$W$15, 0),FALSE)*$D20 -> 0 | I20: =VLOOKUP('E4 TB Allocation Details'!$C31, 'E2 Allocators'!$B$15:$W$285, MATCH(I$12, 'E2 Allocators'!$B$15:$W$15, 0),FALSE)*$D20 -> 0 | J20: =VLOOKUP('E4 TB Allocation Details'!$C31, 'E2 Allocators'!$B$15:$W$285, MATCH(J$12, 'E2 Allocators'!$B$15:$W$15, 0),FALSE)*$D20 -> 0 | K20: =VLOOKUP('E4 TB Allocation Details'!$C31, 'E2 Allocators'!$B$15:$W$285, MATCH(K$12, 'E2 Allocators'!$B$15:$W$15, 0),FALSE)*$D20 -> 0 | L20: =VLOOKUP('E4 TB Allocation Details'!$C31, 'E2 Allocators'!$B$15:$W$285, MATCH(L$12, 'E2 Allocators'!$B$15:$W$15, 0),FALSE)*$D20 -> 0 | M20: =VLOOKUP('E4 TB Allocation Details'!$C31, 'E2 Allocators'!$B$15:$W$285, MATCH(M$12, 'E2 Allocators'!$B$15:$W$15, 0),FALSE)*$D20 -> 0 | N20: =VLOOKUP('E4 TB Allocation Details'!$C31, 'E2 Allocators'!$B$15:$W$285, MATCH(N$12, 'E2 Allocators'!$B$15:$W$15, 0),FALSE)*$D20 -> 0 | O20: =VLOOKUP('E4 TB Allocation Details'!$C31, 'E2 Allocators'!$B$15:$W$285, MATCH(O$12, 'E2 Allocators'!$B$15:$W$15, 0),FALSE)*$D20 -> 0 | P20: =VLOOKUP('E4 TB Allocation Details'!$C31, 'E2 Allocators'!$B$15:$W$285, MATCH(P$12, 'E2 Allocators'!$B$15:$W$15, 0),FALSE)*$D20 -> 0 | Q20: =VLOOKUP('E4 TB Allocation Details'!$C31, 'E2 Allocators'!$B$15:$W$285, MATCH(Q$12, 'E2 Allocators'!$B$15:$W$15, 0),FALSE)*$D20 -> 0 | R20: =VLOOKUP('E4 TB Allocation Details'!$C31, 'E2 Allocators'!$B$15:$W$285, MATCH(R$12, 'E2 Allocators'!$B$15:$W$15, 0),FALSE)*$D20 -> 0 | S20: =VLOOKUP('E4 TB Allocation Details'!$C31, 'E2 Allocators'!$B$15:$W$285, MATCH(S$12, 'E2 Allocators'!$B$15:$W$15, 0),FALSE)*$D20 -> 0 | T20: =VLOOKUP('E4 TB Allocation Details'!$C31, 'E2 Allocators'!$B$15:$W$285, MATCH(T$12, 'E2 Allocators'!$B$15:$W$15, 0),FALSE)*$D20 -> 0 | U20: =VLOOKUP('E4 TB Allocation Details'!$C31, 'E2 Allocators'!$B$15:$W$285, MATCH(U$12, 'E2 Allocators'!$B$15:$W$15, 0),FALSE)*$D20 -> 0 | V20: =VLOOKUP('E4 TB Allocation Details'!$C31, 'E2 Allocators'!$B$15:$W$285, MATCH(V$12, 'E2 Allocators'!$B$15:$W$15, 0),FALSE)*$D20 -> 0 | W20: =VLOOKUP('E4 TB Allocation Details'!$C31, 'E2 Allocators'!$B$15:$W$285, MATCH(W$12, 'E2 Allocators'!$B$15:$W$15, 0),FALSE)*$D20 -> 0 | X20: =VLOOKUP('E4 TB Allocation Details'!$C31, 'E2 Allocators'!$B$15:$W$285, MATCH(X$12, 'E2 Allocators'!$B$15:$W$15, 0),FALSE)*$D20 -> 0
B21: ='I3 TB Data'!B27 -> Rate Base - Transformer Connection - Shared | C21: rb | D21: ='I3 TB Data'!G27 -> 0 | E21: =VLOOKUP('E4 TB Allocation Details'!$C32, 'E2 Allocators'!$B$15:$W$285, MATCH(E$12, 'E2 Allocators'!$B$15:$W$15, 0),FALSE)*$D21 -> 0 | F21: =VLOOKUP('E4 TB Allocation Details'!$C32, 'E2 Allocators'!$B$15:$W$285, MATCH(F$12, 'E2 Allocators'!$B$15:$W$15, 0),FALSE)*$D21 -> 0 | G21: =VLOOKUP('E4 TB Allocation Details'!$C32, 'E2 Allocators'!$B$15:$W$285, MATCH(G$12, 'E2 Allocators'!$B$15:$W$15, 0),FALSE)*$D21 -> 0 | H21: =VLOOKUP('E4 TB Allocation Details'!$C32, 'E2 Allocators'!$B$15:$W$285, MATCH(H$12, 'E2 Allocators'!$B$15:$W$15, 0),FALSE)*$D21 -> 0 | I21: =VLOOKUP('E4 TB Allocation Details'!$C32, 'E2 Allocators'!$B$15:$W$285, MATCH(I$12, 'E2 Allocators'!$B$15:$W$15, 0),FALSE)*$D21 -> 0 | J21: =VLOOKUP('E4 TB Allocation Details'!$C32, 'E2 Allocators'!$B$15:$W$285, MATCH(J$12, 'E2 Allocators'!$B$15:$W$15, 0),FALSE)*$D21 -> 0 | K21: =VLOOKUP('E4 TB Allocation Details'!$C32, 'E2 Allocators'!$B$15:$W$285, MATCH(K$12, 'E2 Allocators'!$B$15:$W$15, 0),FALSE)*$D21 -> 0 | L21: =VLOOKUP('E4 TB Allocation Details'!$C32, 'E2 Allocators'!$B$15:$W$285, MATCH(L$12, 'E2 Allocators'!$B$15:$W$15, 0),FALSE)*$D21 -> 0 | M21: =VLOOKUP('E4 TB Allocation Details'!$C32, 'E2 Allocators'!$B$15:$W$285, MATCH(M$12, 'E2 Allocators'!$B$15:$W$15, 0),FALSE)*$D21 -> 0 | N21: =VLOOKUP('E4 TB Allocation Details'!$C32, 'E2 Allocators'!$B$15:$W$285, MATCH(N$12, 'E2 Allocators'!$B$15:$W$15, 0),FALSE)*$D21 -> 0 | O21: =VLOOKUP('E4 TB Allocation Details'!$C32, 'E2 Allocators'!$B$15:$W$285, MATCH(O$12, 'E2 Allocators'!$B$15:$W$15, 0),FALSE)*$D21 -> 0 | P21: =VLOOKUP('E4 TB Allocation Details'!$C32, 'E2 Allocators'!$B$15:$W$285, MATCH(P$12, 'E2 Allocators'!$B$15:$W$15, 0),FALSE)*$D21 -> 0 | Q21: =VLOOKUP('E4 TB Allocation Details'!$C32, 'E2 Allocators'!$B$15:$W$285, MATCH(Q$12, 'E2 Allocators'!$B$15:$W$15, 0),FALSE)*$D21 -> 0 | R21: =VLOOKUP('E4 TB Allocation Details'!$C32, 'E2 Allocators'!$B$15:$W$285, MATCH(R$12, 'E2 Allocators'!$B$15:$W$15, 0),FALSE)*$D21 -> 0 | S21: =VLOOKUP('E4 TB Allocation Details'!$C32, 'E2 Allocators'!$B$15:$W$285, MATCH(S$12, 'E2 Allocators'!$B$15:$W$15, 0),FALSE)*$D21 -> 0 | T21: =VLOOKUP('E4 TB Allocation Details'!$C32, 'E2 Allocators'!$B$15:$W$285, MATCH(T$12, 'E2 Allocators'!$B$15:$W$15, 0),FALSE)*$D21 -> 0 | U21: =VLOOKUP('E4 TB Allocation Details'!$C32, 'E2 Allocators'!$B$15:$W$285, MATCH(U$12, 'E2 Allocators'!$B$15:$W$15, 0),FALSE)*$D21 -> 0 | V21: =VLOOKUP('E4 TB Allocation Details'!$C32, 'E2 Allocators'!$B$15:$W$285, MATCH(V$12, 'E2 Allocators'!$B$15:$W$15, 0),FALSE)*$D21 -> 0 | W21: =VLOOKUP('E4 TB Allocation Details'!$C32, 'E2 Allocators'!$B$15:$W$285, MATCH(W$12, 'E2 Allocators'!$B$15:$W$15, 0),FALSE)*$D21 -> 0 | X21: =VLOOKUP('E4 TB Allocation Details'!$C32, 'E2 Allocators'!$B$15:$W$285, MATCH(X$12, 'E2 Allocators'!$B$15:$W$15, 0),FALSE)*$D21 -> 0
B22: ='I3 TB Data'!B28 -> Rate Base - Wholesale Revenue Meter - Dedicated to Domestic | C22: rb | D22: ='I3 TB Data'!G28 -> 0 | E22: =VLOOKUP('E4 TB Allocation Details'!$C33, 'E2 Allocators'!$B$15:$W$285, MATCH(E$12, 'E2 Allocators'!$B$15:$W$15, 0),FALSE)*$D22 -> 0 | F22: =VLOOKUP('E4 TB Allocation Details'!$C33, 'E2 Allocators'!$B$15:$W$285, MATCH(F$12, 'E2 Allocators'!$B$15:$W$15, 0),FALSE)*$D22 -> 0 | G22: =VLOOKUP('E4 TB Allocation Details'!$C33, 'E2 Allocators'!$B$15:$W$285, MATCH(G$12, 'E2 Allocators'!$B$15:$W$15, 0),FALSE)*$D22 -> 0 | H22: =VLOOKUP('E4 TB Allocation Details'!$C33, 'E2 Allocators'!$B$15:$W$285, MATCH(H$12, 'E2 Allocators'!$B$15:$W$15, 0),FALSE)*$D22 -> 0 | I22: =VLOOKUP('E4 TB Allocation Details'!$C33, 'E2 Allocators'!$B$15:$W$285, MATCH(I$12, 'E2 Allocators'!$B$15:$W$15, 0),FALSE)*$D22 -> 0 | J22: =VLOOKUP('E4 TB Allocation Details'!$C33, 'E2 Allocators'!$B$15:$W$285, MATCH(J$12, 'E2 Allocators'!$B$15:$W$15, 0),FALSE)*$D22 -> 0 | K22: =VLOOKUP('E4 TB Allocation Details'!$C33, 'E2 Allocators'!$B$15:$W$285, MATCH(K$12, 'E2 Allocators'!$B$15:$W$15, 0),FALSE)*$D22 -> 0 | L22: =VLOOKUP('E4 TB Allocation Details'!$C33, 'E2 Allocators'!$B$15:$W$285, MATCH(L$12, 'E2 Allocators'!$B$15:$W$15, 0),FALSE)*$D22 -> 0 | M22: =VLOOKUP('E4 TB Allocation Details'!$C33, 'E2 Allocators'!$B$15:$W$285, MATCH(M$12, 'E2 Allocators'!$B$15:$W$15, 0),FALSE)*$D22 -> 0 | N22: =VLOOKUP('E4 TB Allocation Details'!$C33, 'E2 Allocators'!$B$15:$W$285, MATCH(N$12, 'E2 Allocators'!$B$15:$W$15, 0),FALSE)*$D22 -> 0 | O22: =VLOOKUP('E4 TB Allocation Details'!$C33, 'E2 Allocators'!$B$15:$W$285, MATCH(O$12, 'E2 Allocators'!$B$15:$W$15, 0),FALSE)*$D22 -> 0 | P22: =VLOOKUP('E4 TB Allocation Details'!$C33, 'E2 Allocators'!$B$15:$W$285, MATCH(P$12, 'E2 Allocators'!$B$15:$W$15, 0),FALSE)*$D22 -> 0 | Q22: =VLOOKUP('E4 TB Allocation Details'!$C33, 'E2 Allocators'!$B$15:$W$285, MATCH(Q$12, 'E2 Allocators'!$B$15:$W$15, 0),FALSE)*$D22 -> 0 | R22: =VLOOKUP('E4 TB Allocation Details'!$C33, 'E2 Allocators'!$B$15:$W$285, MATCH(R$12, 'E2 Allocators'!$B$15:$W$15, 0),FALSE)*$D22 -> 0 | S22: =VLOOKUP('E4 TB Allocation Details'!$C33, 'E2 Allocators'!$B$15:$W$285, MATCH(S$12, 'E2 Allocators'!$B$15:$W$15, 0),FALSE)*$D22 -> 0 | T22: =VLOOKUP('E4 TB Allocation Details'!$C33, 'E2 Allocators'!$B$15:$W$285, MATCH(T$12, 'E2 Allocators'!$B$15:$W$15, 0),FALSE)*$D22 -> 0 | U22: =VLOOKUP('E4 TB Allocation Details'!$C33, 'E2 Allocators'!$B$15:$W$285, MATCH(U$12, 'E2 Allocators'!$B$15:$W$15, 0),FALSE)*$D22 -> 0 | V22: =VLOOKUP('E4 TB Allocation Details'!$C33, 'E2 Allocators'!$B$15:$W$285, MATCH(V$12, 'E2 Allocators'!$B$15:$W$15, 0),FALSE)*$D22 -> 0 | W22: =VLOOKUP('E4 TB Allocation Details'!$C33, 'E2 Allocators'!$B$15:$W$285, MATCH(W$12, 'E2 Allocators'!$B$15:$W$15, 0),FALSE)*$D22 -> 0 | X22: =VLOOKUP('E4 TB Allocation Details'!$C33, 'E2 Allocators'!$B$15:$W$285, MATCH(X$12, 'E2 Allocators'!$B$15:$W$15, 0),FALSE)*$D22 -> 0
B23: ='I3 TB Data'!B29 -> Rate Base - Wholesale Revenue Meter - Dedicated to Interconnect | C23: rb | D23: ='I3 TB Data'!G29 -> 0 | E23: =VLOOKUP('E4 TB Allocation Details'!$C34, 'E2 Allocators'!$B$15:$W$285, MATCH(E$12, 'E2 Allocators'!$B$15:$W$15, 0),FALSE)*$D23 -> 0 | F23: =VLOOKUP('E4 TB Allocation Details'!$C34, 'E2 Allocators'!$B$15:$W$285, MATCH(F$12, 'E2 Allocators'!$B$15:$W$15, 0),FALSE)*$D23 -> 0 | G23: =VLOOKUP('E4 TB Allocation Details'!$C34, 'E2 Allocators'!$B$15:$W$285, MATCH(G$12, 'E2 Allocators'!$B$15:$W$15, 0),FALSE)*$D23 -> 0 | H23: =VLOOKUP('E4 TB Allocation Details'!$C34, 'E2 Allocators'!$B$15:$W$285, MATCH(H$12, 'E2 Allocators'!$B$15:$W$15, 0),FALSE)*$D23 -> 0 | I23: =VLOOKUP('E4 TB Allocation Details'!$C34, 'E2 Allocators'!$B$15:$W$285, MATCH(I$12, 'E2 Allocators'!$B$15:$W$15, 0),FALSE)*$D23 -> 0 | J23: =VLOOKUP('E4 TB Allocation Details'!$C34, 'E2 Allocators'!$B$15:$W$285, MATCH(J$12, 'E2 Allocators'!$B$15:$W$15, 0),FALSE)*$D23 -> 0 | K23: =VLOOKUP('E4 TB Allocation Details'!$C34, 'E2 Allocators'!$B$15:$W$285, MATCH(K$12, 'E2 Allocators'!$B$15:$W$15, 0),FALSE)*$D23 -> 0 | L23: =VLOOKUP('E4 TB Allocation Details'!$C34, 'E2 Allocators'!$B$15:$W$285, MATCH(L$12, 'E2 Allocators'!$B$15:$W$15, 0),FALSE)*$D23 -> 0 | M23: =VLOOKUP('E4 TB Allocation Details'!$C34, 'E2 Allocators'!$B$15:$W$285, MATCH(M$12, 'E2 Allocators'!$B$15:$W$15, 0),FALSE)*$D23 -> 0 | N23: =VLOOKUP('E4 TB Allocation Details'!$C34, 'E2 Allocators'!$B$15:$W$285, MATCH(N$12, 'E2 Allocators'!$B$15:$W$15, 0),FALSE)*$D23 -> 0 | O23: =VLOOKUP('E4 TB Allocation Details'!$C34, 'E2 Allocators'!$B$15:$W$285, MATCH(O$12, 'E2 Allocators'!$B$15:$W$15, 0),FALSE)*$D23 -> 0 | P23: =VLOOKUP('E4 TB Allocation Details'!$C34, 'E2 Allocators'!$B$15:$W$285, MATCH(P$12, 'E2 Allocators'!$B$15:$W$15, 0),FALSE)*$D23 -> 0 | Q23: =VLOOKUP('E4 TB Allocation Details'!$C34, 'E2 Allocators'!$B$15:$W$285, MATCH(Q$12, 'E2 Allocators'!$B$15:$W$15, 0),FALSE)*$D23 -> 0 | R23: =VLOOKUP('E4 TB Allocation Details'!$C34, 'E2 Allocators'!$B$15:$W$285, MATCH(R$12, 'E2 Allocators'!$B$15:$W$15, 0),FALSE)*$D23 -> 0 | S23: =VLOOKUP('E4 TB Allocation Details'!$C34, 'E2 Allocators'!$B$15:$W$285, MATCH(S$12, 'E2 Allocators'!$B$15:$W$15, 0),FALSE)*$D23 -> 0 | T23: =VLOOKUP('E4 TB Allocation Details'!$C34, 'E2 Allocators'!$B$15:$W$285, MATCH(T$12, 'E2 Allocators'!$B$15:$W$15, 0),FALSE)*$D23 -> 0 | U23: =VLOOKUP('E4 TB Allocation Details'!$C34, 'E2 Allocators'!$B$15:$W$285, MATCH(U$12, 'E2 Allocators'!$B$15:$W$15, 0),FALSE)*$D23 -> 0 | V23: =VLOOKUP('E4 TB Allocation Details'!$C34, 'E2 Allocators'!$B$15:$W$285, MATCH(V$12, 'E2 Allocators'!$B$15:$W$15, 0),FALSE)*$D23 -> 0 | W23: =VLOOKUP('E4 TB Allocation Details'!$C34, 'E2 Allocators'!$B$15:$W$285, MATCH(W$12, 'E2 Allocators'!$B$15:$W$15, 0),FALSE)*$D23 -> 0 | X23: =VLOOKUP('E4 TB Allocation Details'!$C34, 'E2 Allocators'!$B$15:$W$285, MATCH(X$12, 'E2 Allocators'!$B$15:$W$15, 0),FALSE)*$D23 -> 0
B24: ='I3 TB Data'!B30 -> Rate Base - Wholesale Revenue Meter - Shared | C24: rb | D24: ='I3 TB Data'!G30 -> 0 | E24: =VLOOKUP('E4 TB Allocation Details'!$C35, 'E2 Allocators'!$B$15:$W$285, MATCH(E$12, 'E2 Allocators'!$B$15:$W$15, 0),FALSE)*$D24 -> 0 | F24: =VLOOKUP('E4 TB Allocation Details'!$C35, 'E2 Allocators'!$B$15:$W$285, MATCH(F$12, 'E2 Allocators'!$B$15:$W$15, 0),FALSE)*$D24 -> 0 | G24: =VLOOKUP('E4 TB Allocation Details'!$C35, 'E2 Allocators'!$B$15:$W$285, MATCH(G$12, 'E2 Allocators'!$B$15:$W$15, 0),FALSE)*$D24 -> 0 | H24: =VLOOKUP('E4 TB Allocation Details'!$C35, 'E2 Allocators'!$B$15:$W$285, MATCH(H$12, 'E2 Allocators'!$B$15:$W$15, 0),FALSE)*$D24 -> 0 | I24: =VLOOKUP('E4 TB Allocation Details'!$C35, 'E2 Allocators'!$B$15:$W$285, MATCH(I$12, 'E2 Allocators'!$B$15:$W$15, 0),FALSE)*$D24 -> 0 | J24: =VLOOKUP('E4 TB Allocation Details'!$C35, 'E2 Allocators'!$B$15:$W$285, MATCH(J$12, 'E2 Allocators'!$B$15:$W$15, 0),FALSE)*$D24 -> 0 | K24: =VLOOKUP('E4 TB Allocation Details'!$C35, 'E2 Allocators'!$B$15:$W$285, MATCH(K$12, 'E2 Allocators'!$B$15:$W$15, 0),FALSE)*$D24 -> 0 | L24: =VLOOKUP('E4 TB Allocation Details'!$C35, 'E2 Allocators'!$B$15:$W$285, MATCH(L$12, 'E2 Allocators'!$B$15:$W$15, 0),FALSE)*$D24 -> 0 | M24: =VLOOKUP('E4 TB Allocation Details'!$C35, 'E2 Allocators'!$B$15:$W$285, MATCH(M$12, 'E2 Allocators'!$B$15:$W$15, 0),FALSE)*$D24 -> 0 | N24: =VLOOKUP('E4 TB Allocation Details'!$C35, 'E2 Allocators'!$B$15:$W$285, MATCH(N$12, 'E2 Allocators'!$B$15:$W$15, 0),FALSE)*$D24 -> 0 | O24: =VLOOKUP('E4 TB Allocation Details'!$C35, 'E2 Allocators'!$B$15:$W$285, MATCH(O$12, 'E2 Allocators'!$B$15:$W$15, 0),FALSE)*$D24 -> 0 | P24: =VLOOKUP('E4 TB Allocation Details'!$C35, 'E2 Allocators'!$B$15:$W$285, MATCH(P$12, 'E2 Allocators'!$B$15:$W$15, 0),FALSE)*$D24 -> 0 | Q24: =VLOOKUP('E4 TB Allocation Details'!$C35, 'E2 Allocators'!$B$15:$W$285, MATCH(Q$12, 'E2 Allocators'!$B$15:$W$15, 0),FALSE)*$D24 -> 0 | R24: =VLOOKUP('E4 TB Allocation Details'!$C35, 'E2 Allocators'!$B$15:$W$285, MATCH(R$12, 'E2 Allocators'!$B$15:$W$15, 0),FALSE)*$D24 -> 0 | S24: =VLOOKUP('E4 TB Allocation Details'!$C35, 'E2 Allocators'!$B$15:$W$285, MATCH(S$12, 'E2 Allocators'!$B$15:$W$15, 0),FALSE)*$D24 -> 0 | T24: =VLOOKUP('E4 TB Allocation Details'!$C35, 'E2 Allocators'!$B$15:$W$285, MATCH(T$12, 'E2 Allocators'!$B$15:$W$15, 0),FALSE)*$D24 -> 0 | U24: =VLOOKUP('E4 TB Allocation Details'!$C35, 'E2 Allocators'!$B$15:$W$285, MATCH(U$12, 'E2 Allocators'!$B$15:$W$15, 0),FALSE)*$D24 -> 0 | V24: =VLOOKUP('E4 TB Allocation Details'!$C35, 'E2 Allocators'!$B$15:$W$285, MATCH(V$12, 'E2 Allocators'!$B$15:$W$15, 0),FALSE)*$D24 -> 0 | W24: =VLOOKUP('E4 TB Allocation Details'!$C35, 'E2 Allocators'!$B$15:$W$285, MATCH(W$12, 'E2 Allocators'!$B$15:$W$15, 0),FALSE)*$D24 -> 0 | X24: =VLOOKUP('E4 TB Allocation Details'!$C35, 'E2 Allocators'!$B$15:$W$285, MATCH(X$12, 'E2 Allocators'!$B$15:$W$15, 0),FALSE)*$D24 -> 0
B25: ='I3 TB Data'!B31 -> Rate Base - Network Dual Function Line - Dedicated to Domestic | C25: rb | D25: ='I3 TB Data'!G31 -> 0 | E25: =VLOOKUP('E4 TB Allocation Details'!$C36, 'E2 Allocators'!$B$15:$W$285, MATCH(E$12, 'E2 Allocators'!$B$15:$W$15, 0),FALSE)*$D25 -> 0 | F25: =VLOOKUP('E4 TB Allocation Details'!$C36, 'E2 Allocators'!$B$15:$W$285, MATCH(F$12, 'E2 Allocators'!$B$15:$W$15, 0),FALSE)*$D25 -> 0 | G25: =VLOOKUP('E4 TB Allocation Details'!$C36, 'E2 Allocators'!$B$15:$W$285, MATCH(G$12, 'E2 Allocators'!$B$15:$W$15, 0),FALSE)*$D25 -> 0 | H25: =VLOOKUP('E4 TB Allocation Details'!$C36, 'E2 Allocators'!$B$15:$W$285, MATCH(H$12, 'E2 Allocators'!$B$15:$W$15, 0),FALSE)*$D25 -> 0 | I25: =VLOOKUP('E4 TB Allocation Details'!$C36, 'E2 Allocators'!$B$15:$W$285, MATCH(I$12, 'E2 Allocators'!$B$15:$W$15, 0),FALSE)*$D25 -> 0 | J25: =VLOOKUP('E4 TB Allocation Details'!$C36, 'E2 Allocators'!$B$15:$W$285, MATCH(J$12, 'E2 Allocators'!$B$15:$W$15, 0),FALSE)*$D25 -> 0 | K25: =VLOOKUP('E4 TB Allocation Details'!$C36, 'E2 Allocators'!$B$15:$W$285, MATCH(K$12, 'E2 Allocators'!$B$15:$W$15, 0),FALSE)*$D25 -> 0 | L25: =VLOOKUP('E4 TB Allocation Details'!$C36, 'E2 Allocators'!$B$15:$W$285, MATCH(L$12, 'E2 Allocators'!$B$15:$W$15, 0),FALSE)*$D25 -> 0 | M25: =VLOOKUP('E4 TB Allocation Details'!$C36, 'E2 Allocators'!$B$15:$W$285, MATCH(M$12, 'E2 Allocators'!$B$15:$W$15, 0),FALSE)*$D25 -> 0 | N25: =VLOOKUP('E4 TB Allocation Details'!$C36, 'E2 Allocators'!$B$15:$W$285, MATCH(N$12, 'E2 Allocators'!$B$15:$W$15, 0),FALSE)*$D25 -> 0 | O25: =VLOOKUP('E4 TB Allocation Details'!$C36, 'E2 Allocators'!$B$15:$W$285, MATCH(O$12, 'E2 Allocators'!$B$15:$W$15, 0),FALSE)*$D25 -> 0 | P25: =VLOOKUP('E4 TB Allocation Details'!$C36, 'E2 Allocators'!$B$15:$W$285, MATCH(P$12, 'E2 Allocators'!$B$15:$W$15, 0),FALSE)*$D25 -> 0 | Q25: =VLOOKUP('E4 TB Allocation Details'!$C36, 'E2 Allocators'!$B$15:$W$285, MATCH(Q$12, 'E2 Allocators'!$B$15:$W$15, 0),FALSE)*$D25 -> 0 | R25: =VLOOKUP('E4 TB Allocation Details'!$C36, 'E2 Allocators'!$B$15:$W$285, MATCH(R$12, 'E2 Allocators'!$B$15:$W$15, 0),FALSE)*$D25 -> 0 | S25: =VLOOKUP('E4 TB Allocation Details'!$C36, 'E2 Allocators'!$B$15:$W$285, MATCH(S$12, 'E2 Allocators'!$B$15:$W$15, 0),FALSE)*$D25 -> 0 | T25: =VLOOKUP('E4 TB Allocation Details'!$C36, 'E2 Allocators'!$B$15:$W$285, MATCH(T$12, 'E2 Allocators'!$B$15:$W$15, 0),FALSE)*$D25 -> 0 | U25: =VLOOKUP('E4 TB Allocation Details'!$C36, 'E2 Allocators'!$B$15:$W$285, MATCH(U$12, 'E2 Allocators'!$B$15:$W$15, 0),FALSE)*$D25 -> 0 | V25: =VLOOKUP('E4 TB Allocation Details'!$C36, 'E2 Allocators'!$B$15:$W$285, MATCH(V$12, 'E2 Allocators'!$B$15:$W$15, 0),FALSE)*$D25 -> 0 | W25: =VLOOKUP('E4 TB Allocation Details'!$C36, 'E2 Allocators'!$B$15:$W$285, MATCH(W$12, 'E2 Allocators'!$B$15:$W$15, 0),FALSE)*$D25 -> 0 | X25: =VLOOKUP('E4 TB Allocation Details'!$C36, 'E2 Allocators'!$B$15:$W$285, MATCH(X$12, 'E2 Allocators'!$B$15:$W$15, 0),FALSE)*$D25 -> 0
B26: ='I3 TB Data'!B32 -> Rate Base - Network Dual Function Line - Dedicated to Interconnect | C26: rb | D26: ='I3 TB Data'!G32 -> 0 | E26: =VLOOKUP('E4 TB Allocation Details'!$C37, 'E2 Allocators'!$B$15:$W$285, MATCH(E$12, 'E2 Allocators'!$B$15:$W$15, 0),FALSE)*$D26 -> 0 | F26: =VLOOKUP('E4 TB Allocation Details'!$C37, 'E2 Allocators'!$B$15:$W$285, MATCH(F$12, 'E2 Allocators'!$B$15:$W$15, 0),FALSE)*$D26 -> 0 | G26: =VLOOKUP('E4 TB Allocation Details'!$C37, 'E2 Allocators'!$B$15:$W$285, MATCH(G$12, 'E2 Allocators'!$B$15:$W$15, 0),FALSE)*$D26 -> 0 | H26: =VLOOKUP('E4 TB Allocation Details'!$C37, 'E2 Allocators'!$B$15:$W$285, MATCH(H$12, 'E2 Allocators'!$B$15:$W$15, 0),FALSE)*$D26 -> 0 | I26: =VLOOKUP('E4 TB Allocation Details'!$C37, 'E2 Allocators'!$B$15:$W$285, MATCH(I$12, 'E2 Allocators'!$B$15:$W$15, 0),FALSE)*$D26 -> 0 | J26: =VLOOKUP('E4 TB Allocation Details'!$C37, 'E2 Allocators'!$B$15:$W$285, MATCH(J$12, 'E2 Allocators'!$B$15:$W$15, 0),FALSE)*$D26 -> 0 | K26: =VLOOKUP('E4 TB Allocation Details'!$C37, 'E2 Allocators'!$B$15:$W$285, MATCH(K$12, 'E2 Allocators'!$B$15:$W$15, 0),FALSE)*$D26 -> 0 | L26: =VLOOKUP('E4 TB Allocation Details'!$C37, 'E2 Allocators'!$B$15:$W$285, MATCH(L$12, 'E2 Allocators'!$B$15:$W$15, 0),FALSE)*$D26 -> 0 | M26: =VLOOKUP('E4 TB Allocation Details'!$C37, 'E2 Allocators'!$B$15:$W$285, MATCH(M$12, 'E2 Allocators'!$B$15:$W$15, 0),FALSE)*$D26 -> 0 | N26: =VLOOKUP('E4 TB Allocation Details'!$C37, 'E2 Allocators'!$B$15:$W$285, MATCH(N$12, 'E2 Allocators'!$B$15:$W$15, 0),FALSE)*$D26 -> 0 | O26: =VLOOKUP('E4 TB Allocation Details'!$C37, 'E2 Allocators'!$B$15:$W$285, MATCH(O$12, 'E2 Allocators'!$B$15:$W$15, 0),FALSE)*$D26 -> 0 | P26: =VLOOKUP('E4 TB Allocation Details'!$C37, 'E2 Allocators'!$B$15:$W$285, MATCH(P$12, 'E2 Allocators'!$B$15:$W$15, 0),FALSE)*$D26 -> 0 | Q26: =VLOOKUP('E4 TB Allocation Details'!$C37, 'E2 Allocators'!$B$15:$W$285, MATCH(Q$12, 'E2 Allocators'!$B$15:$W$15, 0),FALSE)*$D26 -> 0 | R26: =VLOOKUP('E4 TB Allocation Details'!$C37, 'E2 Allocators'!$B$15:$W$285, MATCH(R$12, 'E2 Allocators'!$B$15:$W$15, 0),FALSE)*$D26 -> 0 | S26: =VLOOKUP('E4 TB Allocation Details'!$C37, 'E2 Allocators'!$B$15:$W$285, MATCH(S$12, 'E2 Allocators'!$B$15:$W$15, 0),FALSE)*$D26 -> 0 | T26: =VLOOKUP('E4 TB Allocation Details'!$C37, 'E2 Allocators'!$B$15:$W$285, MATCH(T$12, 'E2 Allocators'!$B$15:$W$15, 0),FALSE)*$D26 -> 0 | U26: =VLOOKUP('E4 TB Allocation Details'!$C37, 'E2 Allocators'!$B$15:$W$285, MATCH(U$12, 'E2 Allocators'!$B$15:$W$15, 0),FALSE)*$D26 -> 0 | V26: =VLOOKUP('E4 TB Allocation Details'!$C37, 'E2 Allocators'!$B$15:$W$285, MATCH(V$12, 'E2 Allocators'!$B$15:$W$15, 0),FALSE)*$D26 -> 0 | W26: =VLOOKUP('E4 TB Allocation Details'!$C37, 'E2 Allocators'!$B$15:$W$285, MATCH(W$12, 'E2 Allocators'!$B$15:$W$15, 0),FALSE)*$D26 -> 0 | X26: =VLOOKUP('E4 TB Allocation Details'!$C37, 'E2 Allocators'!$B$15:$W$285, MATCH(X$12, 'E2 Allocators'!$B$15:$W$15, 0),FALSE)*$D26 -> 0
B27: ='I3 TB Data'!B33 -> Rate Base - Network Dual Function Line - Shared | C27: rb | D27: ='I3 TB Data'!G33 -> 1486764007 | E27: =VLOOKUP('E4 TB Allocation Details'!$C38, 'E2 Allocators'!$B$15:$W$285, MATCH(E$12, 'E2 Allocators'!$B$15:$W$15, 0),FALSE)*$D27 -> 1402843494 | F27: =VLOOKUP('E4 TB Allocation Details'!$C38, 'E2 Allocators'!$B$15:$W$285, MATCH(F$12, 'E2 Allocators'!$B$15:$W$15, 0),FALSE)*$D27 -> 83920513.02 | G27: =VLOOKUP('E4 TB Allocation Details'!$C38, 'E2 Allocators'!$B$15:$W$285, MATCH(G$12, 'E2 Allocators'!$B$15:$W$15, 0),FALSE)*$D27 -> 0 | H27: =VLOOKUP('E4 TB Allocation Details'!$C38, 'E2 Allocators'!$B$15:$W$285, MATCH(H$12, 'E2 Allocators'!$B$15:$W$15, 0),FALSE)*$D27 -> 0 | I27: =VLOOKUP('E4 TB Allocation Details'!$C38, 'E2 Allocators'!$B$15:$W$285, MATCH(I$12, 'E2 Allocators'!$B$15:$W$15, 0),FALSE)*$D27 -> 0 | J27: =VLOOKUP('E4 TB Allocation Details'!$C38, 'E2 Allocators'!$B$15:$W$285, MATCH(J$12, 'E2 Allocators'!$B$15:$W$15, 0),FALSE)*$D27 -> 0 | K27: =VLOOKUP('E4 TB Allocation Details'!$C38, 'E2 Allocators'!$B$15:$W$285, MATCH(K$12, 'E2 Allocators'!$B$15:$W$15, 0),FALSE)*$D27 -> 0 | L27: =VLOOKUP('E4 TB Allocation Details'!$C38, 'E2 Allocators'!$B$15:$W$285, MATCH(L$12, 'E2 Allocators'!$B$15:$W$15, 0),FALSE)*$D27 -> 0 | M27: =VLOOKUP('E4 TB Allocation Details'!$C38, 'E2 Allocators'!$B$15:$W$285, MATCH(M$12, 'E2 Allocators'!$B$15:$W$15, 0),FALSE)*$D27 -> 0 | N27: =VLOOKUP('E4 TB Allocation Details'!$C38, 'E2 Allocators'!$B$15:$W$285, MATCH(N$12, 'E2 Allocators'!$B$15:$W$15, 0),FALSE)*$D27 -> 0 | O27: =VLOOKUP('E4 TB Allocation Details'!$C38, 'E2 Allocators'!$B$15:$W$285, MATCH(O$12, 'E2 Allocators'!$B$15:$W$15, 0),FALSE)*$D27 -> 0 | P27: =VLOOKUP('E4 TB Allocation Details'!$C38, 'E2 Allocators'!$B$15:$W$285, MATCH(P$12, 'E2 Allocators'!$B$15:$W$15, 0),FALSE)*$D27 -> 0 | Q27: =VLOOKUP('E4 TB Allocation Details'!$C38, 'E2 Allocators'!$B$15:$W$285, MATCH(Q$12, 'E2 Allocators'!$B$15:$W$15, 0),FALSE)*$D27 -> 0 | R27: =VLOOKUP('E4 TB Allocation Details'!$C38, 'E2 Allocators'!$B$15:$W$285, MATCH(R$12, 'E2 Allocators'!$B$15:$W$15, 0),FALSE)*$D27 -> 0 | S27: =VLOOKUP('E4 TB Allocation Details'!$C38, 'E2 Allocators'!$B$15:$W$285, MATCH(S$12, 'E2 Allocators'!$B$15:$W$15, 0),FALSE)*$D27 -> 0 | T27: =VLOOKUP('E4 TB Allocation Details'!$C38, 'E2 Allocators'!$B$15:$W$285, MATCH(T$12, 'E2 Allocators'!$B$15:$W$15, 0),FALSE)*$D27 -> 0 | U27: =VLOOKUP('E4 TB Allocation Details'!$C38, 'E2 Allocators'!$B$15:$W$285, MATCH(U$12, 'E2 Allocators'!$B$15:$W$15, 0),FALSE)*$D27 -> 0 | V27: =VLOOKUP('E4 TB Allocation Details'!$C38, 'E2 Allocators'!$B$15:$W$285, MATCH(V$12, 'E2 Allocators'!$B$15:$W$15, 0),FALSE)*$D27 -> 0 | W27: =VLOOKUP('E4 TB Allocation Details'!$C38, 'E2 Allocators'!$B$15:$W$285, MATCH(W$12, 'E2 Allocators'!$B$15:$W$15, 0),FALSE)*$D27 -> 0 | X27: =VLOOKUP('E4 TB Allocation Details'!$C38, 'E2 Allocators'!$B$15:$W$285, MATCH(X$12, 'E2 Allocators'!$B$15:$W$15, 0),FALSE)*$D27 -> 0
B28: ='I3 TB Data'!B34 -> Rate Base - Line Connection Dual Function Line - Dedicated to Domestic | C28: rb | D28: ='I3 TB Data'!G34 -> 252538131.2 | E28: =VLOOKUP('E4 TB Allocation Details'!$C39, 'E2 Allocators'!$B$15:$W$285, MATCH(E$12, 'E2 Allocators'!$B$15:$W$15, 0),FALSE)*$D28 -> 252538131.2 | F28: =VLOOKUP('E4 TB Allocation Details'!$C39, 'E2 Allocators'!$B$15:$W$285, MATCH(F$12, 'E2 Allocators'!$B$15:$W$15, 0),FALSE)*$D28 -> 0 | G28: =VLOOKUP('E4 TB Allocation Details'!$C39, 'E2 Allocators'!$B$15:$W$285, MATCH(G$12, 'E2 Allocators'!$B$15:$W$15, 0),FALSE)*$D28 -> 0 | H28: =VLOOKUP('E4 TB Allocation Details'!$C39, 'E2 Allocators'!$B$15:$W$285, MATCH(H$12, 'E2 Allocators'!$B$15:$W$15, 0),FALSE)*$D28 -> 0 | I28: =VLOOKUP('E4 TB Allocation Details'!$C39, 'E2 Allocators'!$B$15:$W$285, MATCH(I$12, 'E2 Allocators'!$B$15:$W$15, 0),FALSE)*$D28 -> 0 | J28: =VLOOKUP('E4 TB Allocation Details'!$C39, 'E2 Allocators'!$B$15:$W$285, MATCH(J$12, 'E2 Allocators'!$B$15:$W$15, 0),FALSE)*$D28 -> 0 | K28: =VLOOKUP('E4 TB Allocation Details'!$C39, 'E2 Allocators'!$B$15:$W$285, MATCH(K$12, 'E2 Allocators'!$B$15:$W$15, 0),FALSE)*$D28 -> 0 | L28: =VLOOKUP('E4 TB Allocation Details'!$C39, 'E2 Allocators'!$B$15:$W$285, MATCH(L$12, 'E2 Allocators'!$B$15:$W$15, 0),FALSE)*$D28 -> 0 | M28: =VLOOKUP('E4 TB Allocation Details'!$C39, 'E2 Allocators'!$B$15:$W$285, MATCH(M$12, 'E2 Allocators'!$B$15:$W$15, 0),FALSE)*$D28 -> 0 | N28: =VLOOKUP('E4 TB Allocation Details'!$C39, 'E2 Allocators'!$B$15:$W$285, MATCH(N$12, 'E2 Allocators'!$B$15:$W$15, 0),FALSE)*$D28 -> 0 | O28: =VLOOKUP('E4 TB Allocation Details'!$C39, 'E2 Allocators'!$B$15:$W$285, MATCH(O$12, 'E2 Allocators'!$B$15:$W$15, 0),FALSE)*$D28 -> 0 | P28: =VLOOKUP('E4 TB Allocation Details'!$C39, 'E2 Allocators'!$B$15:$W$285, MATCH(P$12, 'E2 Allocators'!$B$15:$W$15, 0),FALSE)*$D28 -> 0 | Q28: =VLOOKUP('E4 TB Allocation Details'!$C39, 'E2 Allocators'!$B$15:$W$285, MATCH(Q$12, 'E2 Allocators'!$B$15:$W$15, 0),FALSE)*$D28 -> 0 | R28: =VLOOKUP('E4 TB Allocation Details'!$C39, 'E2 Allocators'!$B$15:$W$285, MATCH(R$12, 'E2 Allocators'!$B$15:$W$15, 0),FALSE)*$D28 -> 0 | S28: =VLOOKUP('E4 TB Allocation Details'!$C39, 'E2 Allocators'!$B$15:$W$285, MATCH(S$12, 'E2 Allocators'!$B$15:$W$15, 0),FALSE)*$D28 -> 0 | T28: =VLOOKUP('E4 TB Allocation Details'!$C39, 'E2 Allocators'!$B$15:$W$285, MATCH(T$12, 'E2 Allocators'!$B$15:$W$15, 0),FALSE)*$D28 -> 0 | U28: =VLOOKUP('E4 TB Allocation Details'!$C39, 'E2 Allocators'!$B$15:$W$285, MATCH(U$12, 'E2 Allocators'!$B$15:$W$15, 0),FALSE)*$D28 -> 0 | V28: =VLOOKUP('E4 TB Allocation Details'!$C39, 'E2 Allocators'!$B$15:$W$285, MATCH(V$12, 'E2 Allocators'!$B$15:$W$15, 0),FALSE)*$D28 -> 0 | W28: =VLOOKUP('E4 TB Allocation Details'!$C39, 'E2 Allocators'!$B$15:$W$285, MATCH(W$12, 'E2 Allocators'!$B$15:$W$15, 0),FALSE)*$D28 -> 0 | X28: =VLOOKUP('E4 TB Allocation Details'!$C39, 'E2 Allocators'!$B$15:$W$285, MATCH(X$12, 'E2 Allocators'!$B$15:$W$15, 0),FALSE)*$D28 -> 0
B29: ='I3 TB Data'!B35 -> Rate Base - Line Connection Dual Function Line - Dedicated to Interconnect | C29: rb | D29: ='I3 TB Data'!G35 -> 0 | E29: =VLOOKUP('E4 TB Allocation Details'!$C40, 'E2 Allocators'!$B$15:$W$285, MATCH(E$12, 'E2 Allocators'!$B$15:$W$15, 0),FALSE)*$D29 -> 0 | F29: =VLOOKUP('E4 TB Allocation Details'!$C40, 'E2 Allocators'!$B$15:$W$285, MATCH(F$12, 'E2 Allocators'!$B$15:$W$15, 0),FALSE)*$D29 -> 0 | G29: =VLOOKUP('E4 TB Allocation Details'!$C40, 'E2 Allocators'!$B$15:$W$285, MATCH(G$12, 'E2 Allocators'!$B$15:$W$15, 0),FALSE)*$D29 -> 0 | H29: =VLOOKUP('E4 TB Allocation Details'!$C40, 'E2 Allocators'!$B$15:$W$285, MATCH(H$12, 'E2 Allocators'!$B$15:$W$15, 0),FALSE)*$D29 -> 0 | I29: =VLOOKUP('E4 TB Allocation Details'!$C40, 'E2 Allocators'!$B$15:$W$285, MATCH(I$12, 'E2 Allocators'!$B$15:$W$15, 0),FALSE)*$D29 -> 0 | J29: =VLOOKUP('E4 TB Allocation Details'!$C40, 'E2 Allocators'!$B$15:$W$285, MATCH(J$12, 'E2 Allocators'!$B$15:$W$15, 0),FALSE)*$D29 -> 0 | K29: =VLOOKUP('E4 TB Allocation Details'!$C40, 'E2 Allocators'!$B$15:$W$285, MATCH(K$12, 'E2 Allocators'!$B$15:$W$15, 0),FALSE)*$D29 -> 0 | L29: =VLOOKUP('E4 TB Allocation Details'!$C40, 'E2 Allocators'!$B$15:$W$285, MATCH(L$12, 'E2 Allocators'!$B$15:$W$15, 0),FALSE)*$D29 -> 0 | M29: =VLOOKUP('E4 TB Allocation Details'!$C40, 'E2 Allocators'!$B$15:$W$285, MATCH(M$12, 'E2 Allocators'!$B$15:$W$15, 0),FALSE)*$D29 -> 0 | N29: =VLOOKUP('E4 TB Allocation Details'!$C40, 'E2 Allocators'!$B$15:$W$285, MATCH(N$12, 'E2 Allocators'!$B$15:$W$15, 0),FALSE)*$D29 -> 0 | O29: =VLOOKUP('E4 TB Allocation Details'!$C40, 'E2 Allocators'!$B$15:$W$285, MATCH(O$12, 'E2 Allocators'!$B$15:$W$15, 0),FALSE)*$D29 -> 0 | P29: =VLOOKUP('E4 TB Allocation Details'!$C40, 'E2 Allocators'!$B$15:$W$285, MATCH(P$12, 'E2 Allocators'!$B$15:$W$15, 0),FALSE)*$D29 -> 0 | Q29: =VLOOKUP('E4 TB Allocation Details'!$C40, 'E2 Allocators'!$B$15:$W$285, MATCH(Q$12, 'E2 Allocators'!$B$15:$W$15, 0),FALSE)*$D29 -> 0 | R29: =VLOOKUP('E4 TB Allocation Details'!$C40, 'E2 Allocators'!$B$15:$W$285, MATCH(R$12, 'E2 Allocators'!$B$15:$W$15, 0),FALSE)*$D29 -> 0 | S29: =VLOOKUP('E4 TB Allocation Details'!$C40, 'E2 Allocators'!$B$15:$W$285, MATCH(S$12, 'E2 Allocators'!$B$15:$W$15, 0),FALSE)*$D29 -> 0 | T29: =VLOOKUP('E4 TB Allocation Details'!$C40, 'E2 Allocators'!$B$15:$W$285, MATCH(T$12, 'E2 Allocators'!$B$15:$W$15, 0),FALSE)*$D29 -> 0 | U29: =VLOOKUP('E4 TB Allocation Details'!$C40, 'E2 Allocators'!$B$15:$W$285, MATCH(U$12, 'E2 Allocators'!$B$15:$W$15, 0),FALSE)*$D29 -> 0 | V29: =VLOOKUP('E4 TB Allocation Details'!$C40, 'E2 Allocators'!$B$15:$W$285, MATCH(V$12, 'E2 Allocators'!$B$15:$W$15, 0),FALSE)*$D29 -> 0 | W29: =VLOOKUP('E4 TB Allocation Details'!$C40, 'E2 Allocators'!$B$15:$W$285, MATCH(W$12, 'E2 Allocators'!$B$15:$W$15, 0),FALSE)*$D29 -> 0 | X29: =VLOOKUP('E4 TB Allocation Details'!$C40, 'E2 Allocators'!$B$15:$W$285, MATCH(X$12, 'E2 Allocators'!$B$15:$W$15, 0),FALSE)*$D29 -> 0
B30: ='I3 TB Data'!B36 -> Rate Base - Line Connection Dual Function Line - Shared | C30: rb | D30: ='I3 TB Data'!G36 -> 0 | E30: =VLOOKUP('E4 TB Allocation Details'!$C41, 'E2 Allocators'!$B$15:$W$285, MATCH(E$12, 'E2 Allocators'!$B$15:$W$15, 0),FALSE)*$D30 -> 0 | F30: =VLOOKUP('E4 TB Allocation Details'!$C41, 'E2 Allocators'!$B$15:$W$285, MATCH(F$12, 'E2 Allocators'!$B$15:$W$15, 0),FALSE)*$D30 -> 0 | G30: =VLOOKUP('E4 TB Allocation Details'!$C41, 'E2 Allocators'!$B$15:$W$285, MATCH(G$12, 'E2 Allocators'!$B$15:$W$15, 0),FALSE)*$D30 -> 0 | H30: =VLOOKUP('E4 TB Allocation Details'!$C41, 'E2 Allocators'!$B$15:$W$285, MATCH(H$12, 'E2 Allocators'!$B$15:$W$15, 0),FALSE)*$D30 -> 0 | I30: =VLOOKUP('E4 TB Allocation Details'!$C41, 'E2 Allocators'!$B$15:$W$285, MATCH(I$12, 'E2 Allocators'!$B$15:$W$15, 0),FALSE)*$D30 -> 0 | J30: =VLOOKUP('E4 TB Allocation Details'!$C41, 'E2 Allocators'!$B$15:$W$285, MATCH(J$12, 'E2 Allocators'!$B$15:$W$15, 0),FALSE)*$D30 -> 0 | K30: =VLOOKUP('E4 TB Allocation Details'!$C41, 'E2 Allocators'!$B$15:$W$285, MATCH(K$12, 'E2 Allocators'!$B$15:$W$15, 0),FALSE)*$D30 -> 0 | L30: =VLOOKUP('E4 TB Allocation Details'!$C41, 'E2 Allocators'!$B$15:$W$285, MATCH(L$12, 'E2 Allocators'!$B$15:$W$15, 0),FALSE)*$D30 -> 0 | M30: =VLOOKUP('E4 TB Allocation Details'!$C41, 'E2 Allocators'!$B$15:$W$285, MATCH(M$12, 'E2 Allocators'!$B$15:$W$15, 0),FALSE)*$D30 -> 0 | N30: =VLOOKUP('E4 TB Allocation Details'!$C41, 'E2 Allocators'!$B$15:$W$285, MATCH(N$12, 'E2 Allocators'!$B$15:$W$15, 0),FALSE)*$D30 -> 0 | O30: =VLOOKUP('E4 TB Allocation Details'!$C41, 'E2 Allocators'!$B$15:$W$285, MATCH(O$12, 'E2 Allocators'!$B$15:$W$15, 0),FALSE)*$D30 -> 0 | P30: =VLOOKUP('E4 TB Allocation Details'!$C41, 'E2 Allocators'!$B$15:$W$285, MATCH(P$12, 'E2 Allocators'!$B$15:$W$15, 0),FALSE)*$D30 -> 0 | Q30: =VLOOKUP('E4 TB Allocation Details'!$C41, 'E2 Allocators'!$B$15:$W$285, MATCH(Q$12, 'E2 Allocators'!$B$15:$W$15, 0),FALSE)*$D30 -> 0 | R30: =VLOOKUP('E4 TB Allocation Details'!$C41, 'E2 Allocators'!$B$15:$W$285, MATCH(R$12, 'E2 Allocators'!$B$15:$W$15, 0),FALSE)*$D30 -> 0 | S30: =VLOOKUP('E4 TB Allocation Details'!$C41, 'E2 Allocators'!$B$15:$W$285, MATCH(S$12, 'E2 Allocators'!$B$15:$W$15, 0),FALSE)*$D30 -> 0 | T30: =VLOOKUP('E4 TB Allocation Details'!$C41, 'E2 Allocators'!$B$15:$W$285, MATCH(T$12, 'E2 Allocators'!$B$15:$W$15, 0),FALSE)*$D30 -> 0 | U30: =VLOOKUP('E4 TB Allocation Details'!$C41, 'E2 Allocators'!$B$15:$W$285, MATCH(U$12, 'E2 Allocators'!$B$15:$W$15, 0),FALSE)*$D30 -> 0 | V30: =VLOOKUP('E4 TB Allocation Details'!$C41, 'E2 Allocators'!$B$15:$W$285, MATCH(V$12, 'E2 Allocators'!$B$15:$W$15, 0),FALSE)*$D30 -> 0 | W30: =VLOOKUP('E4 TB Allocation Details'!$C41, 'E2 Allocators'!$B$15:$W$285, MATCH(W$12, 'E2 Allocators'!$B$15:$W$15, 0),FALSE)*$D30 -> 0 | X30: =VLOOKUP('E4 TB Allocation Details'!$C41, 'E2 Allocators'!$B$15:$W$285, MATCH(X$12, 'E2 Allocators'!$B$15:$W$15, 0),FALSE)*$D30 -> 0
B31: ='I3 TB Data'!B37 -> Rate Base - Generation Line Connection - Dedicated to Domestic | C31: rb | D31: ='I3 TB Data'!G37 -> 0 | E31: =VLOOKUP('E4 TB Allocation Details'!$C42, 'E2 Allocators'!$B$15:$W$285, MATCH(E$12, 'E2 Allocators'!$B$15:$W$15, 0),FALSE)*$D31 -> 0 | F31: =VLOOKUP('E4 TB Allocation Details'!$C42, 'E2 Allocators'!$B$15:$W$285, MATCH(F$12, 'E2 Allocators'!$B$15:$W$15, 0),FALSE)*$D31 -> 0 | G31: =VLOOKUP('E4 TB Allocation Details'!$C42, 'E2 Allocators'!$B$15:$W$285, MATCH(G$12, 'E2 Allocators'!$B$15:$W$15, 0),FALSE)*$D31 -> 0 | H31: =VLOOKUP('E4 TB Allocation Details'!$C42, 'E2 Allocators'!$B$15:$W$285, MATCH(H$12, 'E2 Allocators'!$B$15:$W$15, 0),FALSE)*$D31 -> 0 | I31: =VLOOKUP('E4 TB Allocation Details'!$C42, 'E2 Allocators'!$B$15:$W$285, MATCH(I$12, 'E2 Allocators'!$B$15:$W$15, 0),FALSE)*$D31 -> 0 | J31: =VLOOKUP('E4 TB Allocation Details'!$C42, 'E2 Allocators'!$B$15:$W$285, MATCH(J$12, 'E2 Allocators'!$B$15:$W$15, 0),FALSE)*$D31 -> 0 | K31: =VLOOKUP('E4 TB Allocation Details'!$C42, 'E2 Allocators'!$B$15:$W$285, MATCH(K$12, 'E2 Allocators'!$B$15:$W$15, 0),FALSE)*$D31 -> 0 | L31: =VLOOKUP('E4 TB Allocation Details'!$C42, 'E2 Allocators'!$B$15:$W$285, MATCH(L$12, 'E2 Allocators'!$B$15:$W$15, 0),FALSE)*$D31 -> 0 | M31: =VLOOKUP('E4 TB Allocation Details'!$C42, 'E2 Allocators'!$B$15:$W$285, MATCH(M$12, 'E2 Allocators'!$B$15:$W$15, 0),FALSE)*$D31 -> 0 | N31: =VLOOKUP('E4 TB Allocation Details'!$C42, 'E2 Allocators'!$B$15:$W$285, MATCH(N$12, 'E2 Allocators'!$B$15:$W$15, 0),FALSE)*$D31 -> 0 | O31: =VLOOKUP('E4 TB Allocation Details'!$C42, 'E2 Allocators'!$B$15:$W$285, MATCH(O$12, 'E2 Allocators'!$B$15:$W$15, 0),FALSE)*$D31 -> 0 | P31: =VLOOKUP('E4 TB Allocation Details'!$C42, 'E2 Allocators'!$B$15:$W$285, MATCH(P$12, 'E2 Allocators'!$B$15:$W$15, 0),FALSE)*$D31 -> 0 | Q31: =VLOOKUP('E4 TB Allocation Details'!$C42, 'E2 Allocators'!$B$15:$W$285, MATCH(Q$12, 'E2 Allocators'!$B$15:$W$15, 0),FALSE)*$D31 -> 0 | R31: =VLOOKUP('E4 TB Allocation Details'!$C42, 'E2 Allocators'!$B$15:$W$285, MATCH(R$12, 'E2 Allocators'!$B$15:$W$15, 0),FALSE)*$D31 -> 0 | S31: =VLOOKUP('E4 TB Allocation Details'!$C42, 'E2 Allocators'!$B$15:$W$285, MATCH(S$12, 'E2 Allocators'!$B$15:$W$15, 0),FALSE)*$D31 -> 0 | T31: =VLOOKUP('E4 TB Allocation Details'!$C42, 'E2 Allocators'!$B$15:$W$285, MATCH(T$12, 'E2 Allocators'!$B$15:$W$15, 0),FALSE)*$D31 -> 0 | U31: =VLOOKUP('E4 TB Allocation Details'!$C42, 'E2 Allocators'!$B$15:$W$285, MATCH(U$12, 'E2 Allocators'!$B$15:$W$15, 0),FALSE)*$D31 -> 0 | V31: =VLOOKUP('E4 TB Allocation Details'!$C42, 'E2 Allocators'!$B$15:$W$285, MATCH(V$12, 'E2 Allocators'!$B$15:$W$15, 0),FALSE)*$D31 -> 0 | W31: =VLOOKUP('E4 TB Allocation Details'!$C42, 'E2 Allocators'!$B$15:$W$285, MATCH(W$12, 'E2 Allocators'!$B$15:$W$15, 0),FALSE)*$D31 -> 0 | X31: =VLOOKUP('E4 TB Allocation Details'!$C42, 'E2 Allocators'!$B$15:$W$285, MATCH(X$12, 'E2 Allocators'!$B$15:$W$15, 0),FALSE)*$D31 -> 0
B32: ='I3 TB Data'!B38 -> Rate Base - Generation Line Connection - Dedicated to Interconnect | C32: rb | D32: ='I3 TB Data'!G38 -> 0 | E32: =VLOOKUP('E4 TB Allocation Details'!$C43, 'E2 Allocators'!$B$15:$W$285, MATCH(E$12, 'E2 Allocators'!$B$15:$W$15, 0),FALSE)*$D32 -> 0 | F32: =VLOOKUP('E4 TB Allocation Details'!$C43, 'E2 Allocators'!$B$15:$W$285, MATCH(F$12, 'E2 Allocators'!$B$15:$W$15, 0),FALSE)*$D32 -> 0 | G32: =VLOOKUP('E4 TB Allocation Details'!$C43, 'E2 Allocators'!$B$15:$W$285, MATCH(G$12, 'E2 Allocators'!$B$15:$W$15, 0),FALSE)*$D32 -> 0 | H32: =VLOOKUP('E4 TB Allocation Details'!$C43, 'E2 Allocators'!$B$15:$W$285, MATCH(H$12, 'E2 Allocators'!$B$15:$W$15, 0),FALSE)*$D32 -> 0 | I32: =VLOOKUP('E4 TB Allocation Details'!$C43, 'E2 Allocators'!$B$15:$W$285, MATCH(I$12, 'E2 Allocators'!$B$15:$W$15, 0),FALSE)*$D32 -> 0 | J32: =VLOOKUP('E4 TB Allocation Details'!$C43, 'E2 Allocators'!$B$15:$W$285, MATCH(J$12, 'E2 Allocators'!$B$15:$W$15, 0),FALSE)*$D32 -> 0 | K32: =VLOOKUP('E4 TB Allocation Details'!$C43, 'E2 Allocators'!$B$15:$W$285, MATCH(K$12, 'E2 Allocators'!$B$15:$W$15, 0),FALSE)*$D32 -> 0 | L32: =VLOOKUP('E4 TB Allocation Details'!$C43, 'E2 Allocators'!$B$15:$W$285, MATCH(L$12, 'E2 Allocators'!$B$15:$W$15, 0),FALSE)*$D32 -> 0 | M32: =VLOOKUP('E4 TB Allocation Details'!$C43, 'E2 Allocators'!$B$15:$W$285, MATCH(M$12, 'E2 Allocators'!$B$15:$W$15, 0),FALSE)*$D32 -> 0 | N32: =VLOOKUP('E4 TB Allocation Details'!$C43, 'E2 Allocators'!$B$15:$W$285, MATCH(N$12, 'E2 Allocators'!$B$15:$W$15, 0),FALSE)*$D32 -> 0 | O32: =VLOOKUP('E4 TB Allocation Details'!$C43, 'E2 Allocators'!$B$15:$W$285, MATCH(O$12, 'E2 Allocators'!$B$15:$W$15, 0),FALSE)*$D32 -> 0 | P32: =VLOOKUP('E4 TB Allocation Details'!$C43, 'E2 Allocators'!$B$15:$W$285, MATCH(P$12, 'E2 Allocators'!$B$15:$W$15, 0),FALSE)*$D32 -> 0 | Q32: =VLOOKUP('E4 TB Allocation Details'!$C43, 'E2 Allocators'!$B$15:$W$285, MATCH(Q$12, 'E2 Allocators'!$B$15:$W$15, 0),FALSE)*$D32 -> 0 | R32: =VLOOKUP('E4 TB Allocation Details'!$C43, 'E2 Allocators'!$B$15:$W$285, MATCH(R$12, 'E2 Allocators'!$B$15:$W$15, 0),FALSE)*$D32 -> 0 | S32: =VLOOKUP('E4 TB Allocation Details'!$C43, 'E2 Allocators'!$B$15:$W$285, MATCH(S$12, 'E2 Allocators'!$B$15:$W$15, 0),FALSE)*$D32 -> 0 | T32: =VLOOKUP('E4 TB Allocation Details'!$C43, 'E2 Allocators'!$B$15:$W$285, MATCH(T$12, 'E2 Allocators'!$B$15:$W$15, 0),FALSE)*$D32 -> 0 | U32: =VLOOKUP('E4 TB Allocation Details'!$C43, 'E2 Allocators'!$B$15:$W$285, MATCH(U$12, 'E2 Allocators'!$B$15:$W$15, 0),FALSE)*$D32 -> 0 | V32: =VLOOKUP('E4 TB Allocation Details'!$C43, 'E2 Allocators'!$B$15:$W$285, MATCH(V$12, 'E2 Allocators'!$B$15:$W$15, 0),FALSE)*$D32 -> 0 | W32: =VLOOKUP('E4 TB Allocation Details'!$C43, 'E2 Allocators'!$B$15:$W$285, MATCH(W$12, 'E2 Allocators'!$B$15:$W$15, 0),FALSE)*$D32 -> 0 | X32: =VLOOKUP('E4 TB Allocation Details'!$C43, 'E2 Allocators'!$B$15:$W$285, MATCH(X$12, 'E2 Allocators'!$B$15:$W$15, 0),FALSE)*$D32 -> 0
B33: ='I3 TB Data'!B39 -> Rate Base - Generation Line Connection - Shared | C33: rb | D33: ='I3 TB Data'!G39 -> 356072951.8 | E33: =VLOOKUP('E4 TB Allocation Details'!$C44, 'E2 Allocators'!$B$15:$W$285, MATCH(E$12, 'E2 Allocators'!$B$15:$W$15, 0),FALSE)*$D33 -> 335974385.6 | F33: =VLOOKUP('E4 TB Allocation Details'!$C44, 'E2 Allocators'!$B$15:$W$285, MATCH(F$12, 'E2 Allocators'!$B$15:$W$15, 0),FALSE)*$D33 -> 20098566.18 | G33: =VLOOKUP('E4 TB Allocation Details'!$C44, 'E2 Allocators'!$B$15:$W$285, MATCH(G$12, 'E2 Allocators'!$B$15:$W$15, 0),FALSE)*$D33 -> 0 | H33: =VLOOKUP('E4 TB Allocation Details'!$C44, 'E2 Allocators'!$B$15:$W$285, MATCH(H$12, 'E2 Allocators'!$B$15:$W$15, 0),FALSE)*$D33 -> 0 | I33: =VLOOKUP('E4 TB Allocation Details'!$C44, 'E2 Allocators'!$B$15:$W$285, MATCH(I$12, 'E2 Allocators'!$B$15:$W$15, 0),FALSE)*$D33 -> 0 | J33: =VLOOKUP('E4 TB Allocation Details'!$C44, 'E2 Allocators'!$B$15:$W$285, MATCH(J$12, 'E2 Allocators'!$B$15:$W$15, 0),FALSE)*$D33 -> 0 | K33: =VLOOKUP('E4 TB Allocation Details'!$C44, 'E2 Allocators'!$B$15:$W$285, MATCH(K$12, 'E2 Allocators'!$B$15:$W$15, 0),FALSE)*$D33 -> 0 | L33: =VLOOKUP('E4 TB Allocation Details'!$C44, 'E2 Allocators'!$B$15:$W$285, MATCH(L$12, 'E2 Allocators'!$B$15:$W$15, 0),FALSE)*$D33 -> 0 | M33: =VLOOKUP('E4 TB Allocation Details'!$C44, 'E2 Allocators'!$B$15:$W$285, MATCH(M$12, 'E2 Allocators'!$B$15:$W$15, 0),FALSE)*$D33 -> 0 | N33: =VLOOKUP('E4 TB Allocation Details'!$C44, 'E2 Allocators'!$B$15:$W$285, MATCH(N$12, 'E2 Allocators'!$B$15:$W$15, 0),FALSE)*$D33 -> 0 | O33: =VLOOKUP('E4 TB Allocation Details'!$C44, 'E2 Allocators'!$B$15:$W$285, MATCH(O$12, 'E2 Allocators'!$B$15:$W$15, 0),FALSE)*$D33 -> 0 | P33: =VLOOKUP('E4 TB Allocation Details'!$C44, 'E2 Allocators'!$B$15:$W$285, MATCH(P$12, 'E2 Allocators'!$B$15:$W$15, 0),FALSE)*$D33 -> 0 | Q33: =VLOOKUP('E4 TB Allocation Details'!$C44, 'E2 Allocators'!$B$15:$W$285, MATCH(Q$12, 'E2 Allocators'!$B$15:$W$15, 0),FALSE)*$D33 -> 0 | R33: =VLOOKUP('E4 TB Allocation Details'!$C44, 'E2 Allocators'!$B$15:$W$285, MATCH(R$12, 'E2 Allocators'!$B$15:$W$15, 0),FALSE)*$D33 -> 0 | S33: =VLOOKUP('E4 TB Allocation Details'!$C44, 'E2 Allocators'!$B$15:$W$285, MATCH(S$12, 'E2 Allocators'!$B$15:$W$15, 0),FALSE)*$D33 -> 0 | T33: =VLOOKUP('E4 TB Allocation Details'!$C44, 'E2 Allocators'!$B$15:$W$285, MATCH(T$12, 'E2 Allocators'!$B$15:$W$15, 0),FALSE)*$D33 -> 0 | U33: =VLOOKUP('E4 TB Allocation Details'!$C44, 'E2 Allocators'!$B$15:$W$285, MATCH(U$12, 'E2 Allocators'!$B$15:$W$15, 0),FALSE)*$D33 -> 0 | V33: =VLOOKUP('E4 TB Allocation Details'!$C44, 'E2 Allocators'!$B$15:$W$285, MATCH(V$12, 'E2 Allocators'!$B$15:$W$15, 0),FALSE)*$D33 -> 0 | W33: =VLOOKUP('E4 TB Allocation Details'!$C44, 'E2 Allocators'!$B$15:$W$285, MATCH(W$12, 'E2 Allocators'!$B$15:$W$15, 0),FALSE)*$D33 -> 0 | X33: =VLOOKUP('E4 TB Allocation Details'!$C44, 'E2 Allocators'!$B$15:$W$285, MATCH(X$12, 'E2 Allocators'!$B$15:$W$15, 0),FALSE)*$D33 -> 0
B34: ='I3 TB Data'!B40 -> Rate Base - Generation Transformation Connection - Dedicated to Domestic | C34: rb | D34: ='I3 TB Data'!G40 -> 0 | E34: =VLOOKUP('E4 TB Allocation Details'!$C45, 'E2 Allocators'!$B$15:$W$285, MATCH(E$12, 'E2 Allocators'!$B$15:$W$15, 0),FALSE)*$D34 -> 0 | F34: =VLOOKUP('E4 TB Allocation Details'!$C45, 'E2 Allocators'!$B$15:$W$285, MATCH(F$12, 'E2 Allocators'!$B$15:$W$15, 0),FALSE)*$D34 -> 0 | G34: =VLOOKUP('E4 TB Allocation Details'!$C45, 'E2 Allocators'!$B$15:$W$285, MATCH(G$12, 'E2 Allocators'!$B$15:$W$15, 0),FALSE)*$D34 -> 0 | H34: =VLOOKUP('E4 TB Allocation Details'!$C45, 'E2 Allocators'!$B$15:$W$285, MATCH(H$12, 'E2 Allocators'!$B$15:$W$15, 0),FALSE)*$D34 -> 0 | I34: =VLOOKUP('E4 TB Allocation Details'!$C45, 'E2 Allocators'!$B$15:$W$285, MATCH(I$12, 'E2 Allocators'!$B$15:$W$15, 0),FALSE)*$D34 -> 0 | J34: =VLOOKUP('E4 TB Allocation Details'!$C45, 'E2 Allocators'!$B$15:$W$285, MATCH(J$12, 'E2 Allocators'!$B$15:$W$15, 0),FALSE)*$D34 -> 0 | K34: =VLOOKUP('E4 TB Allocation Details'!$C45, 'E2 Allocators'!$B$15:$W$285, MATCH(K$12, 'E2 Allocators'!$B$15:$W$15, 0),FALSE)*$D34 -> 0 | L34: =VLOOKUP('E4 TB Allocation Details'!$C45, 'E2 Allocators'!$B$15:$W$285, MATCH(L$12, 'E2 Allocators'!$B$15:$W$15, 0),FALSE)*$D34 -> 0 | M34: =VLOOKUP('E4 TB Allocation Details'!$C45, 'E2 Allocators'!$B$15:$W$285, MATCH(M$12, 'E2 Allocators'!$B$15:$W$15, 0),FALSE)*$D34 -> 0 | N34: =VLOOKUP('E4 TB Allocation Details'!$C45, 'E2 Allocators'!$B$15:$W$285, MATCH(N$12, 'E2 Allocators'!$B$15:$W$15, 0),FALSE)*$D34 -> 0 | O34: =VLOOKUP('E4 TB Allocation Details'!$C45, 'E2 Allocators'!$B$15:$W$285, MATCH(O$12, 'E2 Allocators'!$B$15:$W$15, 0),FALSE)*$D34 -> 0 | P34: =VLOOKUP('E4 TB Allocation Details'!$C45, 'E2 Allocators'!$B$15:$W$285, MATCH(P$12, 'E2 Allocators'!$B$15:$W$15, 0),FALSE)*$D34 -> 0 | Q34: =VLOOKUP('E4 TB Allocation Details'!$C45, 'E2 Allocators'!$B$15:$W$285, MATCH(Q$12, 'E2 Allocators'!$B$15:$W$15, 0),FALSE)*$D34 -> 0 | R34: =VLOOKUP('E4 TB Allocation Details'!$C45, 'E2 Allocators'!$B$15:$W$285, MATCH(R$12, 'E2 Allocators'!$B$15:$W$15, 0),FALSE)*$D34 -> 0 | S34: =VLOOKUP('E4 TB Allocation Details'!$C45, 'E2 Allocators'!$B$15:$W$285, MATCH(S$12, 'E2 Allocators'!$B$15:$W$15, 0),FALSE)*$D34 -> 0 | T34: =VLOOKUP('E4 TB Allocation Details'!$C45, 'E2 Allocators'!$B$15:$W$285, MATCH(T$12, 'E2 Allocators'!$B$15:$W$15, 0),FALSE)*$D34 -> 0 | U34: =VLOOKUP('E4 TB Allocation Details'!$C45, 'E2 Allocators'!$B$15:$W$285, MATCH(U$12, 'E2 Allocators'!$B$15:$W$15, 0),FALSE)*$D34 -> 0 | V34: =VLOOKUP('E4 TB Allocation Details'!$C45, 'E2 Allocators'!$B$15:$W$285, MATCH(V$12, 'E2 Allocators'!$B$15:$W$15, 0),FALSE)*$D34 -> 0 | W34: =VLOOKUP('E4 TB Allocation Details'!$C45, 'E2 Allocators'!$B$15:$W$285, MATCH(W$12, 'E2 Allocators'!$B$15:$W$15, 0),FALSE)*$D34 -> 0 | X34: =VLOOKUP('E4 TB Allocation Details'!$C45, 'E2 Allocators'!$B$15:$W$285, MATCH(X$12, 'E2 Allocators'!$B$15:$W$15, 0),FALSE)*$D34 -> 0
B35: ='I3 TB Data'!B41 -> Rate Base - Generation Transformation Connection - Dedicated to Interconnect | C35: rb | D35: ='I3 TB Data'!G41 -> 0 | E35: =VLOOKUP('E4 TB Allocation Details'!$C46, 'E2 Allocators'!$B$15:$W$285, MATCH(E$12, 'E2 Allocators'!$B$15:$W$15, 0),FALSE)*$D35 -> 0 | F35: =VLOOKUP('E4 TB Allocation Details'!$C46, 'E2 Allocators'!$B$15:$W$285, MATCH(F$12, 'E2 Allocators'!$B$15:$W$15, 0),FALSE)*$D35 -> 0 | G35: =VLOOKUP('E4 TB Allocation Details'!$C46, 'E2 Allocators'!$B$15:$W$285, MATCH(G$12, 'E2 Allocators'!$B$15:$W$15, 0),FALSE)*$D35 -> 0 | H35: =VLOOKUP('E4 TB Allocation Details'!$C46, 'E2 Allocators'!$B$15:$W$285, MATCH(H$12, 'E2 Allocators'!$B$15:$W$15, 0),FALSE)*$D35 -> 0 | I35: =VLOOKUP('E4 TB Allocation Details'!$C46, 'E2 Allocators'!$B$15:$W$285, MATCH(I$12, 'E2 Allocators'!$B$15:$W$15, 0),FALSE)*$D35 -> 0 | J35: =VLOOKUP('E4 TB Allocation Details'!$C46, 'E2 Allocators'!$B$15:$W$285, MATCH(J$12, 'E2 Allocators'!$B$15:$W$15, 0),FALSE)*$D35 -> 0 | K35: =VLOOKUP('E4 TB Allocation Details'!$C46, 'E2 Allocators'!$B$15:$W$285, MATCH(K$12, 'E2 Allocators'!$B$15:$W$15, 0),FALSE)*$D35 -> 0 | L35: =VLOOKUP('E4 TB Allocation Details'!$C46, 'E2 Allocators'!$B$15:$W$285, MATCH(L$12, 'E2 Allocators'!$B$15:$W$15, 0),FALSE)*$D35 -> 0 | M35: =VLOOKUP('E4 TB Allocation Details'!$C46, 'E2 Allocators'!$B$15:$W$285, MATCH(M$12, 'E2 Allocators'!$B$15:$W$15, 0),FALSE)*$D35 -> 0 | N35: =VLOOKUP('E4 TB Allocation Details'!$C46, 'E2 Allocators'!$B$15:$W$285, MATCH(N$12, 'E2 Allocators'!$B$15:$W$15, 0),FALSE)*$D35 -> 0 | O35: =VLOOKUP('E4 TB Allocation Details'!$C46, 'E2 Allocators'!$B$15:$W$285, MATCH(O$12, 'E2 Allocators'!$B$15:$W$15, 0),FALSE)*$D35 -> 0 | P35: =VLOOKUP('E4 TB Allocation Details'!$C46, 'E2 Allocators'!$B$15:$W$285, MATCH(P$12, 'E2 Allocators'!$B$15:$W$15, 0),FALSE)*$D35 -> 0 | Q35: =VLOOKUP('E4 TB Allocation Details'!$C46, 'E2 Allocators'!$B$15:$W$285, MATCH(Q$12, 'E2 Allocators'!$B$15:$W$15, 0),FALSE)*$D35 -> 0 | R35: =VLOOKUP('E4 TB Allocation Details'!$C46, 'E2 Allocators'!$B$15:$W$285, MATCH(R$12, 'E2 Allocators'!$B$15:$W$15, 0),FALSE)*$D35 -> 0 | S35: =VLOOKUP('E4 TB Allocation Details'!$C46, 'E2 Allocators'!$B$15:$W$285, MATCH(S$12, 'E2 Allocators'!$B$15:$W$15, 0),FALSE)*$D35 -> 0 | T35: =VLOOKUP('E4 TB Allocation Details'!$C46, 'E2 Allocators'!$B$15:$W$285, MATCH(T$12, 'E2 Allocators'!$B$15:$W$15, 0),FALSE)*$D35 -> 0 | U35: =VLOOKUP('E4 TB Allocation Details'!$C46, 'E2 Allocators'!$B$15:$W$285, MATCH(U$12, 'E2 Allocators'!$B$15:$W$15, 0),FALSE)*$D35 -> 0 | V35: =VLOOKUP('E4 TB Allocation Details'!$C46, 'E2 Allocators'!$B$15:$W$285, MATCH(V$12, 'E2 Allocators'!$B$15:$W$15, 0),FALSE)*$D35 -> 0 | W35: =VLOOKUP('E4 TB Allocation Details'!$C46, 'E2 Allocators'!$B$15:$W$285, MATCH(W$12, 'E2 Allocators'!$B$15:$W$15, 0),FALSE)*$D35 -> 0 | X35: =VLOOKUP('E4 TB Allocation Details'!$C46, 'E2 Allocators'!$B$15:$W$285, MATCH(X$12, 'E2 Allocators'!$B$15:$W$15, 0),FALSE)*$D35 -> 0
B36: ='I3 TB Data'!B42 -> Rate Base - Generation Transformation Connection - Shared | C36: rb | D36: ='I3 TB Data'!G42 -> 62066154.24 | E36: =VLOOKUP('E4 TB Allocation Details'!$C47, 'E2 Allocators'!$B$15:$W$285, MATCH(E$12, 'E2 Allocators'!$B$15:$W$15, 0),FALSE)*$D36 -> 58562825.21 | F36: =VLOOKUP('E4 TB Allocation Details'!$C47, 'E2 Allocators'!$B$15:$W$285, MATCH(F$12, 'E2 Allocators'!$B$15:$W$15, 0),FALSE)*$D36 -> 3503329.03 | G36: =VLOOKUP('E4 TB Allocation Details'!$C47, 'E2 Allocators'!$B$15:$W$285, MATCH(G$12, 'E2 Allocators'!$B$15:$W$15, 0),FALSE)*$D36 -> 0 | H36: =VLOOKUP('E4 TB Allocation Details'!$C47, 'E2 Allocators'!$B$15:$W$285, MATCH(H$12, 'E2 Allocators'!$B$15:$W$15, 0),FALSE)*$D36 -> 0 | I36: =VLOOKUP('E4 TB Allocation Details'!$C47, 'E2 Allocators'!$B$15:$W$285, MATCH(I$12, 'E2 Allocators'!$B$15:$W$15, 0),FALSE)*$D36 -> 0 | J36: =VLOOKUP('E4 TB Allocation Details'!$C47, 'E2 Allocators'!$B$15:$W$285, MATCH(J$12, 'E2 Allocators'!$B$15:$W$15, 0),FALSE)*$D36 -> 0 | K36: =VLOOKUP('E4 TB Allocation Details'!$C47, 'E2 Allocators'!$B$15:$W$285, MATCH(K$12, 'E2 Allocators'!$B$15:$W$15, 0),FALSE)*$D36 -> 0 | L36: =VLOOKUP('E4 TB Allocation Details'!$C47, 'E2 Allocators'!$B$15:$W$285, MATCH(L$12, 'E2 Allocators'!$B$15:$W$15, 0),FALSE)*$D36 -> 0 | M36: =VLOOKUP('E4 TB Allocation Details'!$C47, 'E2 Allocators'!$B$15:$W$285, MATCH(M$12, 'E2 Allocators'!$B$15:$W$15, 0),FALSE)*$D36 -> 0 | N36: =VLOOKUP('E4 TB Allocation Details'!$C47, 'E2 Allocators'!$B$15:$W$285, MATCH(N$12, 'E2 Allocators'!$B$15:$W$15, 0),FALSE)*$D36 -> 0 | O36: =VLOOKUP('E4 TB Allocation Details'!$C47, 'E2 Allocators'!$B$15:$W$285, MATCH(O$12, 'E2 Allocators'!$B$15:$W$15, 0),FALSE)*$D36 -> 0 | P36: =VLOOKUP('E4 TB Allocation Details'!$C47, 'E2 Allocators'!$B$15:$W$285, MATCH(P$12, 'E2 Allocators'!$B$15:$W$15, 0),FALSE)*$D36 -> 0 | Q36: =VLOOKUP('E4 TB Allocation Details'!$C47, 'E2 Allocators'!$B$15:$W$285, MATCH(Q$12, 'E2 Allocators'!$B$15:$W$15, 0),FALSE)*$D36 -> 0 | R36: =VLOOKUP('E4 TB Allocation Details'!$C47, 'E2 Allocators'!$B$15:$W$285, MATCH(R$12, 'E2 Allocators'!$B$15:$W$15, 0),FALSE)*$D36 -> 0 | S36: =VLOOKUP('E4 TB Allocation Details'!$C47, 'E2 Allocators'!$B$15:$W$285, MATCH(S$12, 'E2 Allocators'!$B$15:$W$15, 0),FALSE)*$D36 -> 0 | T36: =VLOOKUP('E4 TB Allocation Details'!$C47, 'E2 Allocators'!$B$15:$W$285, MATCH(T$12, 'E2 Allocators'!$B$15:$W$15, 0),FALSE)*$D36 -> 0 | U36: =VLOOKUP('E4 TB Allocation Details'!$C47, 'E2 Allocators'!$B$15:$W$285, MATCH(U$12, 'E2 Allocators'!$B$15:$W$15, 0),FALSE)*$D36 -> 0 | V36: =VLOOKUP('E4 TB Allocation Details'!$C47, 'E2 Allocators'!$B$15:$W$285, MATCH(V$12, 'E2 Allocators'!$B$15:$W$15, 0),FALSE)*$D36 -> 0 | W36: =VLOOKUP('E4 TB Allocation Details'!$C47, 'E2 Allocators'!$B$15:$W$285, MATCH(W$12, 'E2 Allocators'!$B$15:$W$15, 0),FALSE)*$D36 -> 0 | X36: =VLOOKUP('E4 TB Allocation Details'!$C47, 'E2 Allocators'!$B$15:$W$285, MATCH(X$12, 'E2 Allocators'!$B$15:$W$15, 0),FALSE)*$D36 -> 0
B37: ='I3 TB Data'!B43 -> Contributions and Grants - Credit
B38: ='I3 TB Data'!B44 -> Accum. Amortization of Electric Utility Plant - Property, Plant, & Equipment
B39: ='I3 TB Data'!B45 -> Accumulated Amortization of Electric Utility Plant - Intangibles
B40: ='I3 TB Data'!B46 -> External Revenues - Network - Dedicated to Domestic | C40: ER | D40: ='I3 TB Data'!G46 -> 0 | E40: =VLOOKUP('E4 TB Allocation Details'!$C51, 'E2 Allocators'!$B$15:$W$285, MATCH(E$12, 'E2 Allocators'!$B$15:$W$15, 0),FALSE)*$D40 -> 0 | F40: =VLOOKUP('E4 TB Allocation Details'!$C51, 'E2 Allocators'!$B$15:$W$285, MATCH(F$12, 'E2 Allocators'!$B$15:$W$15, 0),FALSE)*$D40 -> 0 | G40: =VLOOKUP('E4 TB Allocation Details'!$C51, 'E2 Allocators'!$B$15:$W$285, MATCH(G$12, 'E2 Allocators'!$B$15:$W$15, 0),FALSE)*$D40 -> 0 | H40: =VLOOKUP('E4 TB Allocation Details'!$C51, 'E2 Allocators'!$B$15:$W$285, MATCH(H$12, 'E2 Allocators'!$B$15:$W$15, 0),FALSE)*$D40 -> 0 | I40: =VLOOKUP('E4 TB Allocation Details'!$C51, 'E2 Allocators'!$B$15:$W$285, MATCH(I$12, 'E2 Allocators'!$B$15:$W$15, 0),FALSE)*$D40 -> 0 | J40: =VLOOKUP('E4 TB Allocation Details'!$C51, 'E2 Allocators'!$B$15:$W$285, MATCH(J$12, 'E2 Allocators'!$B$15:$W$15, 0),FALSE)*$D40 -> 0 | K40: =VLOOKUP('E4 TB Allocation Details'!$C51, 'E2 Allocators'!$B$15:$W$285, MATCH(K$12, 'E2 Allocators'!$B$15:$W$15, 0),FALSE)*$D40 -> 0 | L40: =VLOOKUP('E4 TB Allocation Details'!$C51, 'E2 Allocators'!$B$15:$W$285, MATCH(L$12, 'E2 Allocators'!$B$15:$W$15, 0),FALSE)*$D40 -> 0 | M40: =VLOOKUP('E4 TB Allocation Details'!$C51, 'E2 Allocators'!$B$15:$W$285, MATCH(M$12, 'E2 Allocators'!$B$15:$W$15, 0),FALSE)*$D40 -> 0 | N40: =VLOOKUP('E4 TB Allocation Details'!$C51, 'E2 Allocators'!$B$15:$W$285, MATCH(N$12, 'E2 Allocators'!$B$15:$W$15, 0),FALSE)*$D40 -> 0 | O40: =VLOOKUP('E4 TB Allocation Details'!$C51, 'E2 Allocators'!$B$15:$W$285, MATCH(O$12, 'E2 Allocators'!$B$15:$W$15, 0),FALSE)*$D40 -> 0 | P40: =VLOOKUP('E4 TB Allocation Details'!$C51, 'E2 Allocators'!$B$15:$W$285, MATCH(P$12, 'E2 Allocators'!$B$15:$W$15, 0),FALSE)*$D40 -> 0 | Q40: =VLOOKUP('E4 TB Allocation Details'!$C51, 'E2 Allocators'!$B$15:$W$285, MATCH(Q$12, 'E2 Allocators'!$B$15:$W$15, 0),FALSE)*$D40 -> 0 | R40: =VLOOKUP('E4 TB Allocation Details'!$C51, 'E2 Allocators'!$B$15:$W$285, MATCH(R$12, 'E2 Allocators'!$B$15:$W$15, 0),FALSE)*$D40 -> 0 | S40: =VLOOKUP('E4 TB Allocation Details'!$C51, 'E2 Allocators'!$B$15:$W$285, MATCH(S$12, 'E2 Allocators'!$B$15:$W$15, 0),FALSE)*$D40 -> 0 | T40: =VLOOKUP('E4 TB Allocation Details'!$C51, 'E2 Allocators'!$B$15:$W$285, MATCH(T$12, 'E2 Allocators'!$B$15:$W$15, 0),FALSE)*$D40 -> 0 | U40: =VLOOKUP('E4 TB Allocation Details'!$C51, 'E2 Allocators'!$B$15:$W$285, MATCH(U$12, 'E2 Allocators'!$B$15:$W$15, 0),FALSE)*$D40 -> 0 | V40: =VLOOKUP('E4 TB Allocation Details'!$C51, 'E2 Allocators'!$B$15:$W$285, MATCH(V$12, 'E2 Allocators'!$B$15:$W$15, 0),FALSE)*$D40 -> 0 | W40: =VLOOKUP('E4 TB Allocation Details'!$C51, 'E2 Allocators'!$B$15:$W$285, MATCH(W$12, 'E2 Allocators'!$B$15:$W$15, 0),FALSE)*$D40 -> 0 | X40: =VLOOKUP('E4 TB Allocation Details'!$C51, 'E2 Allocators'!$B$15:$W$285, MATCH(X$12, 'E2 Allocators'!$B$15:$W$15, 0),FALSE)*$D40 -> 0
B41: ='I3 TB Data'!B47 -> External Revenues - Network - Dedicated to Interconnect | C41: ER | D41: ='I3 TB Data'!G47 -> 0 | E41: =VLOOKUP('E4 TB Allocation Details'!$C52, 'E2 Allocators'!$B$15:$W$285, MATCH(E$12, 'E2 Allocators'!$B$15:$W$15, 0),FALSE)*$D41 -> 0 | F41: =VLOOKUP('E4 TB Allocation Details'!$C52, 'E2 Allocators'!$B$15:$W$285, MATCH(F$12, 'E2 Allocators'!$B$15:$W$15, 0),FALSE)*$D41 -> 0 | G41: =VLOOKUP('E4 TB Allocation Details'!$C52, 'E2 Allocators'!$B$15:$W$285, MATCH(G$12, 'E2 Allocators'!$B$15:$W$15, 0),FALSE)*$D41 -> 0 | H41: =VLOOKUP('E4 TB Allocation Details'!$C52, 'E2 Allocators'!$B$15:$W$285, MATCH(H$12, 'E2 Allocators'!$B$15:$W$15, 0),FALSE)*$D41 -> 0 | I41: =VLOOKUP('E4 TB Allocation Details'!$C52, 'E2 Allocators'!$B$15:$W$285, MATCH(I$12, 'E2 Allocators'!$B$15:$W$15, 0),FALSE)*$D41 -> 0 | J41: =VLOOKUP('E4 TB Allocation Details'!$C52, 'E2 Allocators'!$B$15:$W$285, MATCH(J$12, 'E2 Allocators'!$B$15:$W$15, 0),FALSE)*$D41 -> 0 | K41: =VLOOKUP('E4 TB Allocation Details'!$C52, 'E2 Allocators'!$B$15:$W$285, MATCH(K$12, 'E2 Allocators'!$B$15:$W$15, 0),FALSE)*$D41 -> 0 | L41: =VLOOKUP('E4 TB Allocation Details'!$C52, 'E2 Allocators'!$B$15:$W$285, MATCH(L$12, 'E2 Allocators'!$B$15:$W$15, 0),FALSE)*$D41 -> 0 | M41: =VLOOKUP('E4 TB Allocation Details'!$C52, 'E2 Allocators'!$B$15:$W$285, MATCH(M$12, 'E2 Allocators'!$B$15:$W$15, 0),FALSE)*$D41 -> 0 | N41: =VLOOKUP('E4 TB Allocation Details'!$C52, 'E2 Allocators'!$B$15:$W$285, MATCH(N$12, 'E2 Allocators'!$B$15:$W$15, 0),FALSE)*$D41 -> 0 | O41: =VLOOKUP('E4 TB Allocation Details'!$C52, 'E2 Allocators'!$B$15:$W$285, MATCH(O$12, 'E2 Allocators'!$B$15:$W$15, 0),FALSE)*$D41 -> 0 | P41: =VLOOKUP('E4 TB Allocation Details'!$C52, 'E2 Allocators'!$B$15:$W$285, MATCH(P$12, 'E2 Allocators'!$B$15:$W$15, 0),FALSE)*$D41 -> 0 | Q41: =VLOOKUP('E4 TB Allocation Details'!$C52, 'E2 Allocators'!$B$15:$W$285, MATCH(Q$12, 'E2 Allocators'!$B$15:$W$15, 0),FALSE)*$D41 -> 0 | R41: =VLOOKUP('E4 TB Allocation Details'!$C52, 'E2 Allocators'!$B$15:$W$285, MATCH(R$12, 'E2 Allocators'!$B$15:$W$15, 0),FALSE)*$D41 -> 0 | S41: =VLOOKUP('E4 TB Allocation Details'!$C52, 'E2 Allocators'!$B$15:$W$285, MATCH(S$12, 'E2 Allocators'!$B$15:$W$15, 0),FALSE)*$D41 -> 0 | T41: =VLOOKUP('E4 TB Allocation Details'!$C52, 'E2 Allocators'!$B$15:$W$285, MATCH(T$12, 'E2 Allocators'!$B$15:$W$15, 0),FALSE)*$D41 -> 0 | U41: =VLOOKUP('E4 TB Allocation Details'!$C52, 'E2 Allocators'!$B$15:$W$285, MATCH(U$12, 'E2 Allocators'!$B$15:$W$15, 0),FALSE)*$D41 -> 0 | V41: =VLOOKUP('E4 TB Allocation Details'!$C52, 'E2 Allocators'!$B$15:$W$285, MATCH(V$12, 'E2 Allocators'!$B$15:$W$15, 0),FALSE)*$D41 -> 0 | W41: =VLOOKUP('E4 TB Allocation Details'!$C52, 'E2 Allocators'!$B$15:$W$285, MATCH(W$12, 'E2 Allocators'!$B$15:$W$15, 0),FALSE)*$D41 -> 0 | X41: =VLOOKUP('E4 TB Allocation Details'!$C52, 'E2 Allocators'!$B$15:$W$285, MATCH(X$12, 'E2 Allocators'!$B$15:$W$15, 0),FALSE)*$D41 -> 0
B42: ='I3 TB Data'!B48 -> External Revenues - Network - Shared | C42: ER | D42: ='I3 TB Data'!G48 -> -19588023.72 | E42: =VLOOKUP('E4 TB Allocation Details'!$C53, 'E2 Allocators'!$B$15:$W$285, MATCH(E$12, 'E2 Allocators'!$B$15:$W$15, 0),FALSE)*$D42 -> -18482376.16 | F42: =VLOOKUP('E4 TB Allocation Details'!$C53, 'E2 Allocators'!$B$15:$W$285, MATCH(F$12, 'E2 Allocators'!$B$15:$W$15, 0),FALSE)*$D42 -> -1105647.562 | G42: =VLOOKUP('E4 TB Allocation Details'!$C53, 'E2 Allocators'!$B$15:$W$285, MATCH(G$12, 'E2 Allocators'!$B$15:$W$15, 0),FALSE)*$D42 -> 0 | H42: =VLOOKUP('E4 TB Allocation Details'!$C53, 'E2 Allocators'!$B$15:$W$285, MATCH(H$12, 'E2 Allocators'!$B$15:$W$15, 0),FALSE)*$D42 -> 0 | I42: =VLOOKUP('E4 TB Allocation Details'!$C53, 'E2 Allocators'!$B$15:$W$285, MATCH(I$12, 'E2 Allocators'!$B$15:$W$15, 0),FALSE)*$D42 -> 0 | J42: =VLOOKUP('E4 TB Allocation Details'!$C53, 'E2 Allocators'!$B$15:$W$285, MATCH(J$12, 'E2 Allocators'!$B$15:$W$15, 0),FALSE)*$D42 -> 0 | K42: =VLOOKUP('E4 TB Allocation Details'!$C53, 'E2 Allocators'!$B$15:$W$285, MATCH(K$12, 'E2 Allocators'!$B$15:$W$15, 0),FALSE)*$D42 -> 0 | L42: =VLOOKUP('E4 TB Allocation Details'!$C53, 'E2 Allocators'!$B$15:$W$285, MATCH(L$12, 'E2 Allocators'!$B$15:$W$15, 0),FALSE)*$D42 -> 0 | M42: =VLOOKUP('E4 TB Allocation Details'!$C53, 'E2 Allocators'!$B$15:$W$285, MATCH(M$12, 'E2 Allocators'!$B$15:$W$15, 0),FALSE)*$D42 -> 0 | N42: =VLOOKUP('E4 TB Allocation Details'!$C53, 'E2 Allocators'!$B$15:$W$285, MATCH(N$12, 'E2 Allocators'!$B$15:$W$15, 0),FALSE)*$D42 -> 0 | O42: =VLOOKUP('E4 TB Allocation Details'!$C53, 'E2 Allocators'!$B$15:$W$285, MATCH(O$12, 'E2 Allocators'!$B$15:$W$15, 0),FALSE)*$D42 -> 0 | P42: =VLOOKUP('E4 TB Allocation Details'!$C53, 'E2 Allocators'!$B$15:$W$285, MATCH(P$12, 'E2 Allocators'!$B$15:$W$15, 0),FALSE)*$D42 -> 0 | Q42: =VLOOKUP('E4 TB Allocation Details'!$C53, 'E2 Allocators'!$B$15:$W$285, MATCH(Q$12, 'E2 Allocators'!$B$15:$W$15, 0),FALSE)*$D42 -> 0 | R42: =VLOOKUP('E4 TB Allocation Details'!$C53, 'E2 Allocators'!$B$15:$W$285, MATCH(R$12, 'E2 Allocators'!$B$15:$W$15, 0),FALSE)*$D42 -> 0 | S42: =VLOOKUP('E4 TB Allocation Details'!$C53, 'E2 Allocators'!$B$15:$W$285, MATCH(S$12, 'E2 Allocators'!$B$15:$W$15, 0),FALSE)*$D42 -> 0 | T42: =VLOOKUP('E4 TB Allocation Details'!$C53, 'E2 Allocators'!$B$15:$W$285, MATCH(T$12, 'E2 Allocators'!$B$15:$W$15, 0),FALSE)*$D42 -> 0 | U42: =VLOOKUP('E4 TB Allocation Details'!$C53, 'E2 Allocators'!$B$15:$W$285, MATCH(U$12, 'E2 Allocators'!$B$15:$W$15, 0),FALSE)*$D42 -> 0 | V42: =VLOOKUP('E4 TB Allocation Details'!$C53, 'E2 Allocators'!$B$15:$W$285, MATCH(V$12, 'E2 Allocators'!$B$15:$W$15, 0),FALSE)*$D42 -> 0 | W42: =VLOOKUP('E4 TB Allocation Details'!$C53, 'E2 Allocators'!$B$15:$W$285, MATCH(W$12, 'E2 Allocators'!$B$15:$W$15, 0),FALSE)*$D42 -> 0 | X42: =VLOOKUP('E4 TB Allocation Details'!$C53, 'E2 Allocators'!$B$15:$W$285, MATCH(X$12, 'E2 Allocators'!$B$15:$W$15, 0),FALSE)*$D42 -> 0
B43: ='I3 TB Data'!B49 -> External Revenues - Line Connection - Dedicated to Domestic | C43: ER | D43: ='I3 TB Data'!G49 -> -3518751.36 | E43: =VLOOKUP('E4 TB Allocation Details'!$C54, 'E2 Allocators'!$B$15:$W$285, MATCH(E$12, 'E2 Allocators'!$B$15:$W$15, 0),FALSE)*$D43 -> -3518751.36 | F43: =VLOOKUP('E4 TB Allocation Details'!$C54, 'E2 Allocators'!$B$15:$W$285, MATCH(F$12, 'E2 Allocators'!$B$15:$W$15, 0),FALSE)*$D43 -> 0 | G43: =VLOOKUP('E4 TB Allocation Details'!$C54, 'E2 Allocators'!$B$15:$W$285, MATCH(G$12, 'E2 Allocators'!$B$15:$W$15, 0),FALSE)*$D43 -> 0 | H43: =VLOOKUP('E4 TB Allocation Details'!$C54, 'E2 Allocators'!$B$15:$W$285, MATCH(H$12, 'E2 Allocators'!$B$15:$W$15, 0),FALSE)*$D43 -> 0 | I43: =VLOOKUP('E4 TB Allocation Details'!$C54, 'E2 Allocators'!$B$15:$W$285, MATCH(I$12, 'E2 Allocators'!$B$15:$W$15, 0),FALSE)*$D43 -> 0 | J43: =VLOOKUP('E4 TB Allocation Details'!$C54, 'E2 Allocators'!$B$15:$W$285, MATCH(J$12, 'E2 Allocators'!$B$15:$W$15, 0),FALSE)*$D43 -> 0 | K43: =VLOOKUP('E4 TB Allocation Details'!$C54, 'E2 Allocators'!$B$15:$W$285, MATCH(K$12, 'E2 Allocators'!$B$15:$W$15, 0),FALSE)*$D43 -> 0 | L43: =VLOOKUP('E4 TB Allocation Details'!$C54, 'E2 Allocators'!$B$15:$W$285, MATCH(L$12, 'E2 Allocators'!$B$15:$W$15, 0),FALSE)*$D43 -> 0 | M43: =VLOOKUP('E4 TB Allocation Details'!$C54, 'E2 Allocators'!$B$15:$W$285, MATCH(M$12, 'E2 Allocators'!$B$15:$W$15, 0),FALSE)*$D43 -> 0 | N43: =VLOOKUP('E4 TB Allocation Details'!$C54, 'E2 Allocators'!$B$15:$W$285, MATCH(N$12, 'E2 Allocators'!$B$15:$W$15, 0),FALSE)*$D43 -> 0 | O43: =VLOOKUP('E4 TB Allocation Details'!$C54, 'E2 Allocators'!$B$15:$W$285, MATCH(O$12, 'E2 Allocators'!$B$15:$W$15, 0),FALSE)*$D43 -> 0 | P43: =VLOOKUP('E4 TB Allocation Details'!$C54, 'E2 Allocators'!$B$15:$W$285, MATCH(P$12, 'E2 Allocators'!$B$15:$W$15, 0),FALSE)*$D43 -> 0 | Q43: =VLOOKUP('E4 TB Allocation Details'!$C54, 'E2 Allocators'!$B$15:$W$285, MATCH(Q$12, 'E2 Allocators'!$B$15:$W$15, 0),FALSE)*$D43 -> 0 | R43: =VLOOKUP('E4 TB Allocation Details'!$C54, 'E2 Allocators'!$B$15:$W$285, MATCH(R$12, 'E2 Allocators'!$B$15:$W$15, 0),FALSE)*$D43 -> 0 | S43: =VLOOKUP('E4 TB Allocation Details'!$C54, 'E2 Allocators'!$B$15:$W$285, MATCH(S$12, 'E2 Allocators'!$B$15:$W$15, 0),FALSE)*$D43 -> 0 | T43: =VLOOKUP('E4 TB Allocation Details'!$C54, 'E2 Allocators'!$B$15:$W$285, MATCH(T$12, 'E2 Allocators'!$B$15:$W$15, 0),FALSE)*$D43 -> 0 | U43: =VLOOKUP('E4 TB Allocation Details'!$C54, 'E2 Allocators'!$B$15:$W$285, MATCH(U$12, 'E2 Allocators'!$B$15:$W$15, 0),FALSE)*$D43 -> 0 | V43: =VLOOKUP('E4 TB Allocation Details'!$C54, 'E2 Allocators'!$B$15:$W$285, MATCH(V$12, 'E2 Allocators'!$B$15:$W$15, 0),FALSE)*$D43 -> 0 | W43: =VLOOKUP('E4 TB Allocation Details'!$C54, 'E2 Allocators'!$B$15:$W$285, MATCH(W$12, 'E2 Allocators'!$B$15:$W$15, 0),FALSE)*$D43 -> 0 | X43: =VLOOKUP('E4 TB Allocation Details'!$C54, 'E2 Allocators'!$B$15:$W$285, MATCH(X$12, 'E2 Allocators'!$B$15:$W$15, 0),FALSE)*$D43 -> 0
B44: ='I3 TB Data'!B50 -> External Revenues - Line Connection - Dedicated to Interconnect | C44: ER | D44: ='I3 TB Data'!G50 -> 0 | E44: =VLOOKUP('E4 TB Allocation Details'!$C55, 'E2 Allocators'!$B$15:$W$285, MATCH(E$12, 'E2 Allocators'!$B$15:$W$15, 0),FALSE)*$D44 -> 0 | F44: =VLOOKUP('E4 TB Allocation Details'!$C55, 'E2 Allocators'!$B$15:$W$285, MATCH(F$12, 'E2 Allocators'!$B$15:$W$15, 0),FALSE)*$D44 -> 0 | G44: =VLOOKUP('E4 TB Allocation Details'!$C55, 'E2 Allocators'!$B$15:$W$285, MATCH(G$12, 'E2 Allocators'!$B$15:$W$15, 0),FALSE)*$D44 -> 0 | H44: =VLOOKUP('E4 TB Allocation Details'!$C55, 'E2 Allocators'!$B$15:$W$285, MATCH(H$12, 'E2 Allocators'!$B$15:$W$15, 0),FALSE)*$D44 -> 0 | I44: =VLOOKUP('E4 TB Allocation Details'!$C55, 'E2 Allocators'!$B$15:$W$285, MATCH(I$12, 'E2 Allocators'!$B$15:$W$15, 0),FALSE)*$D44 -> 0 | J44: =VLOOKUP('E4 TB Allocation Details'!$C55, 'E2 Allocators'!$B$15:$W$285, MATCH(J$12, 'E2 Allocators'!$B$15:$W$15, 0),FALSE)*$D44 -> 0 | K44: =VLOOKUP('E4 TB Allocation Details'!$C55, 'E2 Allocators'!$B$15:$W$285, MATCH(K$12, 'E2 Allocators'!$B$15:$W$15, 0),FALSE)*$D44 -> 0 | L44: =VLOOKUP('E4 TB Allocation Details'!$C55, 'E2 Allocators'!$B$15:$W$285, MATCH(L$12, 'E2 Allocators'!$B$15:$W$15, 0),FALSE)*$D44 -> 0 | M44: =VLOOKUP('E4 TB Allocation Details'!$C55, 'E2 Allocators'!$B$15:$W$285, MATCH(M$12, 'E2 Allocators'!$B$15:$W$15, 0),FALSE)*$D44 -> 0 | N44: =VLOOKUP('E4 TB Allocation Details'!$C55, 'E2 Allocators'!$B$15:$W$285, MATCH(N$12, 'E2 Allocators'!$B$15:$W$15, 0),FALSE)*$D44 -> 0 | O44: =VLOOKUP('E4 TB Allocation Details'!$C55, 'E2 Allocators'!$B$15:$W$285, MATCH(O$12, 'E2 Allocators'!$B$15:$W$15, 0),FALSE)*$D44 -> 0 | P44: =VLOOKUP('E4 TB Allocation Details'!$C55, 'E2 Allocators'!$B$15:$W$285, MATCH(P$12, 'E2 Allocators'!$B$15:$W$15, 0),FALSE)*$D44 -> 0 | Q44: =VLOOKUP('E4 TB Allocation Details'!$C55, 'E2 Allocators'!$B$15:$W$285, MATCH(Q$12, 'E2 Allocators'!$B$15:$W$15, 0),FALSE)*$D44 -> 0 | R44: =VLOOKUP('E4 TB Allocation Details'!$C55, 'E2 Allocators'!$B$15:$W$285, MATCH(R$12, 'E2 Allocators'!$B$15:$W$15, 0),FALSE)*$D44 -> 0 | S44: =VLOOKUP('E4 TB Allocation Details'!$C55, 'E2 Allocators'!$B$15:$W$285, MATCH(S$12, 'E2 Allocators'!$B$15:$W$15, 0),FALSE)*$D44 -> 0 | T44: =VLOOKUP('E4 TB Allocation Details'!$C55, 'E2 Allocators'!$B$15:$W$285, MATCH(T$12, 'E2 Allocators'!$B$15:$W$15, 0),FALSE)*$D44 -> 0 | U44: =VLOOKUP('E4 TB Allocation Details'!$C55, 'E2 Allocators'!$B$15:$W$285, MATCH(U$12, 'E2 Allocators'!$B$15:$W$15, 0),FALSE)*$D44 -> 0 | V44: =VLOOKUP('E4 TB Allocation Details'!$C55, 'E2 Allocators'!$B$15:$W$285, MATCH(V$12, 'E2 Allocators'!$B$15:$W$15, 0),FALSE)*$D44 -> 0 | W44: =VLOOKUP('E4 TB Allocation Details'!$C55, 'E2 Allocators'!$B$15:$W$285, MATCH(W$12, 'E2 Allocators'!$B$15:$W$15, 0),FALSE)*$D44 -> 0 | X44: =VLOOKUP('E4 TB Allocation Details'!$C55, 'E2 Allocators'!$B$15:$W$285, MATCH(X$12, 'E2 Allocators'!$B$15:$W$15, 0),FALSE)*$D44 -> 0
B45: ='I3 TB Data'!B51 -> External Revenues - Line Connection - Shared | C45: ER | D45: ='I3 TB Data'!G51 -> 0 | E45: =VLOOKUP('E4 TB Allocation Details'!$C56, 'E2 Allocators'!$B$15:$W$285, MATCH(E$12, 'E2 Allocators'!$B$15:$W$15, 0),FALSE)*$D45 -> 0 | F45: =VLOOKUP('E4 TB Allocation Details'!$C56, 'E2 Allocators'!$B$15:$W$285, MATCH(F$12, 'E2 Allocators'!$B$15:$W$15, 0),FALSE)*$D45 -> 0 | G45: =VLOOKUP('E4 TB Allocation Details'!$C56, 'E2 Allocators'!$B$15:$W$285, MATCH(G$12, 'E2 Allocators'!$B$15:$W$15, 0),FALSE)*$D45 -> 0 | H45: =VLOOKUP('E4 TB Allocation Details'!$C56, 'E2 Allocators'!$B$15:$W$285, MATCH(H$12, 'E2 Allocators'!$B$15:$W$15, 0),FALSE)*$D45 -> 0 | I45: =VLOOKUP('E4 TB Allocation Details'!$C56, 'E2 Allocators'!$B$15:$W$285, MATCH(I$12, 'E2 Allocators'!$B$15:$W$15, 0),FALSE)*$D45 -> 0 | J45: =VLOOKUP('E4 TB Allocation Details'!$C56, 'E2 Allocators'!$B$15:$W$285, MATCH(J$12, 'E2 Allocators'!$B$15:$W$15, 0),FALSE)*$D45 -> 0 | K45: =VLOOKUP('E4 TB Allocation Details'!$C56, 'E2 Allocators'!$B$15:$W$285, MATCH(K$12, 'E2 Allocators'!$B$15:$W$15, 0),FALSE)*$D45 -> 0 | L45: =VLOOKUP('E4 TB Allocation Details'!$C56, 'E2 Allocators'!$B$15:$W$285, MATCH(L$12, 'E2 Allocators'!$B$15:$W$15, 0),FALSE)*$D45 -> 0 | M45: =VLOOKUP('E4 TB Allocation Details'!$C56, 'E2 Allocators'!$B$15:$W$285, MATCH(M$12, 'E2 Allocators'!$B$15:$W$15, 0),FALSE)*$D45 -> 0 | N45: =VLOOKUP('E4 TB Allocation Details'!$C56, 'E2 Allocators'!$B$15:$W$285, MATCH(N$12, 'E2 Allocators'!$B$15:$W$15, 0),FALSE)*$D45 -> 0 | O45: =VLOOKUP('E4 TB Allocation Details'!$C56, 'E2 Allocators'!$B$15:$W$285, MATCH(O$12, 'E2 Allocators'!$B$15:$W$15, 0),FALSE)*$D45 -> 0 | P45: =VLOOKUP('E4 TB Allocation Details'!$C56, 'E2 Allocators'!$B$15:$W$285, MATCH(P$12, 'E2 Allocators'!$B$15:$W$15, 0),FALSE)*$D45 -> 0 | Q45: =VLOOKUP('E4 TB Allocation Details'!$C56, 'E2 Allocators'!$B$15:$W$285, MATCH(Q$12, 'E2 Allocators'!$B$15:$W$15, 0),FALSE)*$D45 -> 0 | R45: =VLOOKUP('E4 TB Allocation Details'!$C56, 'E2 Allocators'!$B$15:$W$285, MATCH(R$12, 'E2 Allocators'!$B$15:$W$15, 0),FALSE)*$D45 -> 0 | S45: =VLOOKUP('E4 TB Allocation Details'!$C56, 'E2 Allocators'!$B$15:$W$285, MATCH(S$12, 'E2 Allocators'!$B$15:$W$15, 0),FALSE)*$D45 -> 0 | T45: =VLOOKUP('E4 TB Allocation Details'!$C56, 'E2 Allocators'!$B$15:$W$285, MATCH(T$12, 'E2 Allocators'!$B$15:$W$15, 0),FALSE)*$D45 -> 0 | U45: =VLOOKUP('E4 TB Allocation Details'!$C56, 'E2 Allocators'!$B$15:$W$285, MATCH(U$12, 'E2 Allocators'!$B$15:$W$15, 0),FALSE)*$D45 -> 0 | V45: =VLOOKUP('E4 TB Allocation Details'!$C56, 'E2 Allocators'!$B$15:$W$285, MATCH(V$12, 'E2 Allocators'!$B$15:$W$15, 0),FALSE)*$D45 -> 0 | W45: =VLOOKUP('E4 TB Allocation Details'!$C56, 'E2 Allocators'!$B$15:$W$285, MATCH(W$12, 'E2 Allocators'!$B$15:$W$15, 0),FALSE)*$D45 -> 0 | X45: =VLOOKUP('E4 TB Allocation Details'!$C56, 'E2 Allocators'!$B$15:$W$285, MATCH(X$12, 'E2 Allocators'!$B$15:$W$15, 0),FALSE)*$D45 -> 0
B46: ='I3 TB Data'!B52 -> External Revenues - Transformer Connection - Dedicated to Domestic | C46: ER | D46: ='I3 TB Data'!G52 -> -11569843.69 | E46: =VLOOKUP('E4 TB Allocation Details'!$C57, 'E2 Allocators'!$B$15:$W$285, MATCH(E$12, 'E2 Allocators'!$B$15:$W$15, 0),FALSE)*$D46 -> -11569843.69 | F46: =VLOOKUP('E4 TB Allocation Details'!$C57, 'E2 Allocators'!$B$15:$W$285, MATCH(F$12, 'E2 Allocators'!$B$15:$W$15, 0),FALSE)*$D46 -> 0 | G46: =VLOOKUP('E4 TB Allocation Details'!$C57, 'E2 Allocators'!$B$15:$W$285, MATCH(G$12, 'E2 Allocators'!$B$15:$W$15, 0),FALSE)*$D46 -> 0 | H46: =VLOOKUP('E4 TB Allocation Details'!$C57, 'E2 Allocators'!$B$15:$W$285, MATCH(H$12, 'E2 Allocators'!$B$15:$W$15, 0),FALSE)*$D46 -> 0 | I46: =VLOOKUP('E4 TB Allocation Details'!$C57, 'E2 Allocators'!$B$15:$W$285, MATCH(I$12, 'E2 Allocators'!$B$15:$W$15, 0),FALSE)*$D46 -> 0 | J46: =VLOOKUP('E4 TB Allocation Details'!$C57, 'E2 Allocators'!$B$15:$W$285, MATCH(J$12, 'E2 Allocators'!$B$15:$W$15, 0),FALSE)*$D46 -> 0 | K46: =VLOOKUP('E4 TB Allocation Details'!$C57, 'E2 Allocators'!$B$15:$W$285, MATCH(K$12, 'E2 Allocators'!$B$15:$W$15, 0),FALSE)*$D46 -> 0 | L46: =VLOOKUP('E4 TB Allocation Details'!$C57, 'E2 Allocators'!$B$15:$W$285, MATCH(L$12, 'E2 Allocators'!$B$15:$W$15, 0),FALSE)*$D46 -> 0 | M46: =VLOOKUP('E4 TB Allocation Details'!$C57, 'E2 Allocators'!$B$15:$W$285, MATCH(M$12, 'E2 Allocators'!$B$15:$W$15, 0),FALSE)*$D46 -> 0 | N46: =VLOOKUP('E4 TB Allocation Details'!$C57, 'E2 Allocators'!$B$15:$W$285, MATCH(N$12, 'E2 Allocators'!$B$15:$W$15, 0),FALSE)*$D46 -> 0 | O46: =VLOOKUP('E4 TB Allocation Details'!$C57, 'E2 Allocators'!$B$15:$W$285, MATCH(O$12, 'E2 Allocators'!$B$15:$W$15, 0),FALSE)*$D46 -> 0 | P46: =VLOOKUP('E4 TB Allocation Details'!$C57, 'E2 Allocators'!$B$15:$W$285, MATCH(P$12, 'E2 Allocators'!$B$15:$W$15, 0),FALSE)*$D46 -> 0 | Q46: =VLOOKUP('E4 TB Allocation Details'!$C57, 'E2 Allocators'!$B$15:$W$285, MATCH(Q$12, 'E2 Allocators'!$B$15:$W$15, 0),FALSE)*$D46 -> 0 | R46: =VLOOKUP('E4 TB Allocation Details'!$C57, 'E2 Allocators'!$B$15:$W$285, MATCH(R$12, 'E2 Allocators'!$B$15:$W$15, 0),FALSE)*$D46 -> 0 | S46: =VLOOKUP('E4 TB Allocation Details'!$C57, 'E2 Allocators'!$B$15:$W$285, MATCH(S$12, 'E2 Allocators'!$B$15:$W$15, 0),FALSE)*$D46 -> 0 | T46: =VLOOKUP('E4 TB Allocation Details'!$C57, 'E2 Allocators'!$B$15:$W$285, MATCH(T$12, 'E2 Allocators'!$B$15:$W$15, 0),FALSE)*$D46 -> 0 | U46: =VLOOKUP('E4 TB Allocation Details'!$C57, 'E2 Allocators'!$B$15:$W$285, MATCH(U$12, 'E2 Allocators'!$B$15:$W$15, 0),FALSE)*$D46 -> 0 | V46: =VLOOKUP('E4 TB Allocation Details'!$C57, 'E2 Allocators'!$B$15:$W$285, MATCH(V$12, 'E2 Allocators'!$B$15:$W$15, 0),FALSE)*$D46 -> 0 | W46: =VLOOKUP('E4 TB Allocation Details'!$C57, 'E2 Allocators'!$B$15:$W$285, MATCH(W$12, 'E2 Allocators'!$B$15:$W$15, 0),FALSE)*$D46 -> 0 | X46: =VLOOKUP('E4 TB Allocation Details'!$C57, 'E2 Allocators'!$B$15:$W$285, MATCH(X$12, 'E2 Allocators'!$B$15:$W$15, 0),FALSE)*$D46 -> 0
B47: ='I3 TB Data'!B53 -> External Revenues - Transformer Connection - Dedicated to Interconnect | C47: ER | D47: ='I3 TB Data'!G53 -> 0 | E47: =VLOOKUP('E4 TB Allocation Details'!$C58, 'E2 Allocators'!$B$15:$W$285, MATCH(E$12, 'E2 Allocators'!$B$15:$W$15, 0),FALSE)*$D47 -> 0 | F47: =VLOOKUP('E4 TB Allocation Details'!$C58, 'E2 Allocators'!$B$15:$W$285, MATCH(F$12, 'E2 Allocators'!$B$15:$W$15, 0),FALSE)*$D47 -> 0 | G47: =VLOOKUP('E4 TB Allocation Details'!$C58, 'E2 Allocators'!$B$15:$W$285, MATCH(G$12, 'E2 Allocators'!$B$15:$W$15, 0),FALSE)*$D47 -> 0 | H47: =VLOOKUP('E4 TB Allocation Details'!$C58, 'E2 Allocators'!$B$15:$W$285, MATCH(H$12, 'E2 Allocators'!$B$15:$W$15, 0),FALSE)*$D47 -> 0 | I47: =VLOOKUP('E4 TB Allocation Details'!$C58, 'E2 Allocators'!$B$15:$W$285, MATCH(I$12, 'E2 Allocators'!$B$15:$W$15, 0),FALSE)*$D47 -> 0 | J47: =VLOOKUP('E4 TB Allocation Details'!$C58, 'E2 Allocators'!$B$15:$W$285, MATCH(J$12, 'E2 Allocators'!$B$15:$W$15, 0),FALSE)*$D47 -> 0 | K47: =VLOOKUP('E4 TB Allocation Details'!$C58, 'E2 Allocators'!$B$15:$W$285, MATCH(K$12, 'E2 Allocators'!$B$15:$W$15, 0),FALSE)*$D47 -> 0 | L47: =VLOOKUP('E4 TB Allocation Details'!$C58, 'E2 Allocators'!$B$15:$W$285, MATCH(L$12, 'E2 Allocators'!$B$15:$W$15, 0),FALSE)*$D47 -> 0 | M47: =VLOOKUP('E4 TB Allocation Details'!$C58, 'E2 Allocators'!$B$15:$W$285, MATCH(M$12, 'E2 Allocators'!$B$15:$W$15, 0),FALSE)*$D47 -> 0 | N47: =VLOOKUP('E4 TB Allocation Details'!$C58, 'E2 Allocators'!$B$15:$W$285, MATCH(N$12, 'E2 Allocators'!$B$15:$W$15, 0),FALSE)*$D47 -> 0 | O47: =VLOOKUP('E4 TB Allocation Details'!$C58, 'E2 Allocators'!$B$15:$W$285, MATCH(O$12, 'E2 Allocators'!$B$15:$W$15, 0),FALSE)*$D47 -> 0 | P47: =VLOOKUP('E4 TB Allocation Details'!$C58, 'E2 Allocators'!$B$15:$W$285, MATCH(P$12, 'E2 Allocators'!$B$15:$W$15, 0),FALSE)*$D47 -> 0 | Q47: =VLOOKUP('E4 TB Allocation Details'!$C58, 'E2 Allocators'!$B$15:$W$285, MATCH(Q$12, 'E2 Allocators'!$B$15:$W$15, 0),FALSE)*$D47 -> 0 | R47: =VLOOKUP('E4 TB Allocation Details'!$C58, 'E2 Allocators'!$B$15:$W$285, MATCH(R$12, 'E2 Allocators'!$B$15:$W$15, 0),FALSE)*$D47 -> 0 | S47: =VLOOKUP('E4 TB Allocation Details'!$C58, 'E2 Allocators'!$B$15:$W$285, MATCH(S$12, 'E2 Allocators'!$B$15:$W$15, 0),FALSE)*$D47 -> 0 | T47: =VLOOKUP('E4 TB Allocation Details'!$C58, 'E2 Allocators'!$B$15:$W$285, MATCH(T$12, 'E2 Allocators'!$B$15:$W$15, 0),FALSE)*$D47 -> 0 | U47: =VLOOKUP('E4 TB Allocation Details'!$C58, 'E2 Allocators'!$B$15:$W$285, MATCH(U$12, 'E2 Allocators'!$B$15:$W$15, 0),FALSE)*$D47 -> 0 | V47: =VLOOKUP('E4 TB Allocation Details'!$C58, 'E2 Allocators'!$B$15:$W$285, MATCH(V$12, 'E2 Allocators'!$B$15:$W$15, 0),FALSE)*$D47 -> 0 | W47: =VLOOKUP('E4 TB Allocation Details'!$C58, 'E2 Allocators'!$B$15:$W$285, MATCH(W$12, 'E2 Allocators'!$B$15:$W$15, 0),FALSE)*$D47 -> 0 | X47: =VLOOKUP('E4 TB Allocation Details'!$C58, 'E2 Allocators'!$B$15:$W$285, MATCH(X$12, 'E2 Allocators'!$B$15:$W$15, 0),FALSE)*$D47 -> 0
B48: ='I3 TB Data'!B54 -> External Revenues - Transformer Connection - Shared | C48: ER | D48: ='I3 TB Data'!G54 -> 0 | E48: =VLOOKUP('E4 TB Allocation Details'!$C59, 'E2 Allocators'!$B$15:$W$285, MATCH(E$12, 'E2 Allocators'!$B$15:$W$15, 0),FALSE)*$D48 -> 0 | F48: =VLOOKUP('E4 TB Allocation Details'!$C59, 'E2 Allocators'!$B$15:$W$285, MATCH(F$12, 'E2 Allocators'!$B$15:$W$15, 0),FALSE)*$D48 -> 0 | G48: =VLOOKUP('E4 TB Allocation Details'!$C59, 'E2 Allocators'!$B$15:$W$285, MATCH(G$12, 'E2 Allocators'!$B$15:$W$15, 0),FALSE)*$D48 -> 0 | H48: =VLOOKUP('E4 TB Allocation Details'!$C59, 'E2 Allocators'!$B$15:$W$285, MATCH(H$12, 'E2 Allocators'!$B$15:$W$15, 0),FALSE)*$D48 -> 0 | I48: =VLOOKUP('E4 TB Allocation Details'!$C59, 'E2 Allocators'!$B$15:$W$285, MATCH(I$12, 'E2 Allocators'!$B$15:$W$15, 0),FALSE)*$D48 -> 0 | J48: =VLOOKUP('E4 TB Allocation Details'!$C59, 'E2 Allocators'!$B$15:$W$285, MATCH(J$12, 'E2 Allocators'!$B$15:$W$15, 0),FALSE)*$D48 -> 0 | K48: =VLOOKUP('E4 TB Allocation Details'!$C59, 'E2 Allocators'!$B$15:$W$285, MATCH(K$12, 'E2 Allocators'!$B$15:$W$15, 0),FALSE)*$D48 -> 0 | L48: =VLOOKUP('E4 TB Allocation Details'!$C59, 'E2 Allocators'!$B$15:$W$285, MATCH(L$12, 'E2 Allocators'!$B$15:$W$15, 0),FALSE)*$D48 -> 0 | M48: =VLOOKUP('E4 TB Allocation Details'!$C59, 'E2 Allocators'!$B$15:$W$285, MATCH(M$12, 'E2 Allocators'!$B$15:$W$15, 0),FALSE)*$D48 -> 0 | N48: =VLOOKUP('E4 TB Allocation Details'!$C59, 'E2 Allocators'!$B$15:$W$285, MATCH(N$12, 'E2 Allocators'!$B$15:$W$15, 0),FALSE)*$D48 -> 0 | O48: =VLOOKUP('E4 TB Allocation Details'!$C59, 'E2 Allocators'!$B$15:$W$285, MATCH(O$12, 'E2 Allocators'!$B$15:$W$15, 0),FALSE)*$D48 -> 0 | P48: =VLOOKUP('E4 TB Allocation Details'!$C59, 'E2 Allocators'!$B$15:$W$285, MATCH(P$12, 'E2 Allocators'!$B$15:$W$15, 0),FALSE)*$D48 -> 0 | Q48: =VLOOKUP('E4 TB Allocation Details'!$C59, 'E2 Allocators'!$B$15:$W$285, MATCH(Q$12, 'E2 Allocators'!$B$15:$W$15, 0),FALSE)*$D48 -> 0 | R48: =VLOOKUP('E4 TB Allocation Details'!$C59, 'E2 Allocators'!$B$15:$W$285, MATCH(R$12, 'E2 Allocators'!$B$15:$W$15, 0),FALSE)*$D48 -> 0 | S48: =VLOOKUP('E4 TB Allocation Details'!$C59, 'E2 Allocators'!$B$15:$W$285, MATCH(S$12, 'E2 Allocators'!$B$15:$W$15, 0),FALSE)*$D48 -> 0 | T48: =VLOOKUP('E4 TB Allocation Details'!$C59, 'E2 Allocators'!$B$15:$W$285, MATCH(T$12, 'E2 Allocators'!$B$15:$W$15, 0),FALSE)*$D48 -> 0 | U48: =VLOOKUP('E4 TB Allocation Details'!$C59, 'E2 Allocators'!$B$15:$W$285, MATCH(U$12, 'E2 Allocators'!$B$15:$W$15, 0),FALSE)*$D48 -> 0 | V48: =VLOOKUP('E4 TB Allocation Details'!$C59, 'E2 Allocators'!$B$15:$W$285, MATCH(V$12, 'E2 Allocators'!$B$15:$W$15, 0),FALSE)*$D48 -> 0 | W48: =VLOOKUP('E4 TB Allocation Details'!$C59, 'E2 Allocators'!$B$15:$W$285, MATCH(W$12, 'E2 Allocators'!$B$15:$W$15, 0),FALSE)*$D48 -> 0 | X48: =VLOOKUP('E4 TB Allocation Details'!$C59, 'E2 Allocators'!$B$15:$W$285, MATCH(X$12, 'E2 Allocators'!$B$15:$W$15, 0),FALSE)*$D48 -> 0
B49: ='I3 TB Data'!B55 -> External Revenues - Wholesale Revenue Meter - Dedicated to Domestic | C49: ER | D49: ='I3 TB Data'!G55 -> 0 | E49: =VLOOKUP('E4 TB Allocation Details'!$C60, 'E2 Allocators'!$B$15:$W$285, MATCH(E$12, 'E2 Allocators'!$B$15:$W$15, 0),FALSE)*$D49 -> 0 | F49: =VLOOKUP('E4 TB Allocation Details'!$C60, 'E2 Allocators'!$B$15:$W$285, MATCH(F$12, 'E2 Allocators'!$B$15:$W$15, 0),FALSE)*$D49 -> 0 | G49: =VLOOKUP('E4 TB Allocation Details'!$C60, 'E2 Allocators'!$B$15:$W$285, MATCH(G$12, 'E2 Allocators'!$B$15:$W$15, 0),FALSE)*$D49 -> 0 | H49: =VLOOKUP('E4 TB Allocation Details'!$C60, 'E2 Allocators'!$B$15:$W$285, MATCH(H$12, 'E2 Allocators'!$B$15:$W$15, 0),FALSE)*$D49 -> 0 | I49: =VLOOKUP('E4 TB Allocation Details'!$C60, 'E2 Allocators'!$B$15:$W$285, MATCH(I$12, 'E2 Allocators'!$B$15:$W$15, 0),FALSE)*$D49 -> 0 | J49: =VLOOKUP('E4 TB Allocation Details'!$C60, 'E2 Allocators'!$B$15:$W$285, MATCH(J$12, 'E2 Allocators'!$B$15:$W$15, 0),FALSE)*$D49 -> 0 | K49: =VLOOKUP('E4 TB Allocation Details'!$C60, 'E2 Allocators'!$B$15:$W$285, MATCH(K$12, 'E2 Allocators'!$B$15:$W$15, 0),FALSE)*$D49 -> 0 | L49: =VLOOKUP('E4 TB Allocation Details'!$C60, 'E2 Allocators'!$B$15:$W$285, MATCH(L$12, 'E2 Allocators'!$B$15:$W$15, 0),FALSE)*$D49 -> 0 | M49: =VLOOKUP('E4 TB Allocation Details'!$C60, 'E2 Allocators'!$B$15:$W$285, MATCH(M$12, 'E2 Allocators'!$B$15:$W$15, 0),FALSE)*$D49 -> 0 | N49: =VLOOKUP('E4 TB Allocation Details'!$C60, 'E2 Allocators'!$B$15:$W$285, MATCH(N$12, 'E2 Allocators'!$B$15:$W$15, 0),FALSE)*$D49 -> 0 | O49: =VLOOKUP('E4 TB Allocation Details'!$C60, 'E2 Allocators'!$B$15:$W$285, MATCH(O$12, 'E2 Allocators'!$B$15:$W$15, 0),FALSE)*$D49 -> 0 | P49: =VLOOKUP('E4 TB Allocation Details'!$C60, 'E2 Allocators'!$B$15:$W$285, MATCH(P$12, 'E2 Allocators'!$B$15:$W$15, 0),FALSE)*$D49 -> 0 | Q49: =VLOOKUP('E4 TB Allocation Details'!$C60, 'E2 Allocators'!$B$15:$W$285, MATCH(Q$12, 'E2 Allocators'!$B$15:$W$15, 0),FALSE)*$D49 -> 0 | R49: =VLOOKUP('E4 TB Allocation Details'!$C60, 'E2 Allocators'!$B$15:$W$285, MATCH(R$12, 'E2 Allocators'!$B$15:$W$15, 0),FALSE)*$D49 -> 0 | S49: =VLOOKUP('E4 TB Allocation Details'!$C60, 'E2 Allocators'!$B$15:$W$285, MATCH(S$12, 'E2 Allocators'!$B$15:$W$15, 0),FALSE)*$D49 -> 0 | T49: =VLOOKUP('E4 TB Allocation Details'!$C60, 'E2 Allocators'!$B$15:$W$285, MATCH(T$12, 'E2 Allocators'!$B$15:$W$15, 0),FALSE)*$D49 -> 0 | U49: =VLOOKUP('E4 TB Allocation Details'!$C60, 'E2 Allocators'!$B$15:$W$285, MATCH(U$12, 'E2 Allocators'!$B$15:$W$15, 0),FALSE)*$D49 -> 0 | V49: =VLOOKUP('E4 TB Allocation Details'!$C60, 'E2 Allocators'!$B$15:$W$285, MATCH(V$12, 'E2 Allocators'!$B$15:$W$15, 0),FALSE)*$D49 -> 0 | W49: =VLOOKUP('E4 TB Allocation Details'!$C60, 'E2 Allocators'!$B$15:$W$285, MATCH(W$12, 'E2 Allocators'!$B$15:$W$15, 0),FALSE)*$D49 -> 0 | X49: =VLOOKUP('E4 TB Allocation Details'!$C60, 'E2 Allocators'!$B$15:$W$285, MATCH(X$12, 'E2 Allocators'!$B$15:$W$15, 0),FALSE)*$D49 -> 0
B50: ='I3 TB Data'!B56 -> External Revenues - Wholesale Revenue Meter - Dedicated to Interconnect | C50: ER | D50: ='I3 TB Data'!G56 -> 0 | E50: =VLOOKUP('E4 TB Allocation Details'!$C61, 'E2 Allocators'!$B$15:$W$285, MATCH(E$12, 'E2 Allocators'!$B$15:$W$15, 0),FALSE)*$D50 -> 0 | F50: =VLOOKUP('E4 TB Allocation Details'!$C61, 'E2 Allocators'!$B$15:$W$285, MATCH(F$12, 'E2 Allocators'!$B$15:$W$15, 0),FALSE)*$D50 -> 0 | G50: =VLOOKUP('E4 TB Allocation Details'!$C61, 'E2 Allocators'!$B$15:$W$285, MATCH(G$12, 'E2 Allocators'!$B$15:$W$15, 0),FALSE)*$D50 -> 0 | H50: =VLOOKUP('E4 TB Allocation Details'!$C61, 'E2 Allocators'!$B$15:$W$285, MATCH(H$12, 'E2 Allocators'!$B$15:$W$15, 0),FALSE)*$D50 -> 0 | I50: =VLOOKUP('E4 TB Allocation Details'!$C61, 'E2 Allocators'!$B$15:$W$285, MATCH(I$12, 'E2 Allocators'!$B$15:$W$15, 0),FALSE)*$D50 -> 0 | J50: =VLOOKUP('E4 TB Allocation Details'!$C61, 'E2 Allocators'!$B$15:$W$285, MATCH(J$12, 'E2 Allocators'!$B$15:$W$15, 0),FALSE)*$D50 -> 0 | K50: =VLOOKUP('E4 TB Allocation Details'!$C61, 'E2 Allocators'!$B$15:$W$285, MATCH(K$12, 'E2 Allocators'!$B$15:$W$15, 0),FALSE)*$D50 -> 0 | L50: =VLOOKUP('E4 TB Allocation Details'!$C61, 'E2 Allocators'!$B$15:$W$285, MATCH(L$12, 'E2 Allocators'!$B$15:$W$15, 0),FALSE)*$D50 -> 0 | M50: =VLOOKUP('E4 TB Allocation Details'!$C61, 'E2 Allocators'!$B$15:$W$285, MATCH(M$12, 'E2 Allocators'!$B$15:$W$15, 0),FALSE)*$D50 -> 0 | N50: =VLOOKUP('E4 TB Allocation Details'!$C61, 'E2 Allocators'!$B$15:$W$285, MATCH(N$12, 'E2 Allocators'!$B$15:$W$15, 0),FALSE)*$D50 -> 0 | O50: =VLOOKUP('E4 TB Allocation Details'!$C61, 'E2 Allocators'!$B$15:$W$285, MATCH(O$12, 'E2 Allocators'!$B$15:$W$15, 0),FALSE)*$D50 -> 0 | P50: =VLOOKUP('E4 TB Allocation Details'!$C61, 'E2 Allocators'!$B$15:$W$285, MATCH(P$12, 'E2 Allocators'!$B$15:$W$15, 0),FALSE)*$D50 -> 0 | Q50: =VLOOKUP('E4 TB Allocation Details'!$C61, 'E2 Allocators'!$B$15:$W$285, MATCH(Q$12, 'E2 Allocators'!$B$15:$W$15, 0),FALSE)*$D50 -> 0 | R50: =VLOOKUP('E4 TB Allocation Details'!$C61, 'E2 Allocators'!$B$15:$W$285, MATCH(R$12, 'E2 Allocators'!$B$15:$W$15, 0),FALSE)*$D50 -> 0 | S50: =VLOOKUP('E4 TB Allocation Details'!$C61, 'E2 Allocators'!$B$15:$W$285, MATCH(S$12, 'E2 Allocators'!$B$15:$W$15, 0),FALSE)*$D50 -> 0 | T50: =VLOOKUP('E4 TB Allocation Details'!$C61, 'E2 Allocators'!$B$15:$W$285, MATCH(T$12, 'E2 Allocators'!$B$15:$W$15, 0),FALSE)*$D50 -> 0 | U50: =VLOOKUP('E4 TB Allocation Details'!$C61, 'E2 Allocators'!$B$15:$W$285, MATCH(U$12, 'E2 Allocators'!$B$15:$W$15, 0),FALSE)*$D50 -> 0 | V50: =VLOOKUP('E4 TB Allocation Details'!$C61, 'E2 Allocators'!$B$15:$W$285, MATCH(V$12, 'E2 Allocators'!$B$15:$W$15, 0),FALSE)*$D50 -> 0 | W50: =VLOOKUP('E4 TB Allocation Details'!$C61, 'E2 Allocators'!$B$15:$W$285, MATCH(W$12, 'E2 Allocators'!$B$15:$W$15, 0),FALSE)*$D50 -> 0 | X50: =VLOOKUP('E4 TB Allocation Details'!$C61, 'E2 Allocators'!$B$15:$W$285, MATCH(X$12, 'E2 Allocators'!$B$15:$W$15, 0),FALSE)*$D50 -> 0
B51: ='I3 TB Data'!B57 -> External Revenues - Wholesale Revenue Meter - Shared | C51: ER | D51: ='I3 TB Data'!G57 -> 0 | E51: =VLOOKUP('E4 TB Allocation Details'!$C62, 'E2 Allocators'!$B$15:$W$285, MATCH(E$12, 'E2 Allocators'!$B$15:$W$15, 0),FALSE)*$D51 -> 0 | F51: =VLOOKUP('E4 TB Allocation Details'!$C62, 'E2 Allocators'!$B$15:$W$285, MATCH(F$12, 'E2 Allocators'!$B$15:$W$15, 0),FALSE)*$D51 -> 0 | G51: =VLOOKUP('E4 TB Allocation Details'!$C62, 'E2 Allocators'!$B$15:$W$285, MATCH(G$12, 'E2 Allocators'!$B$15:$W$15, 0),FALSE)*$D51 -> 0 | H51: =VLOOKUP('E4 TB Allocation Details'!$C62, 'E2 Allocators'!$B$15:$W$285, MATCH(H$12, 'E2 Allocators'!$B$15:$W$15, 0),FALSE)*$D51 -> 0 | I51: =VLOOKUP('E4 TB Allocation Details'!$C62, 'E2 Allocators'!$B$15:$W$285, MATCH(I$12, 'E2 Allocators'!$B$15:$W$15, 0),FALSE)*$D51 -> 0 | J51: =VLOOKUP('E4 TB Allocation Details'!$C62, 'E2 Allocators'!$B$15:$W$285, MATCH(J$12, 'E2 Allocators'!$B$15:$W$15, 0),FALSE)*$D51 -> 0 | K51: =VLOOKUP('E4 TB Allocation Details'!$C62, 'E2 Allocators'!$B$15:$W$285, MATCH(K$12, 'E2 Allocators'!$B$15:$W$15, 0),FALSE)*$D51 -> 0 | L51: =VLOOKUP('E4 TB Allocation Details'!$C62, 'E2 Allocators'!$B$15:$W$285, MATCH(L$12, 'E2 Allocators'!$B$15:$W$15, 0),FALSE)*$D51 -> 0 | M51: =VLOOKUP('E4 TB Allocation Details'!$C62, 'E2 Allocators'!$B$15:$W$285, MATCH(M$12, 'E2 Allocators'!$B$15:$W$15, 0),FALSE)*$D51 -> 0 | N51: =VLOOKUP('E4 TB Allocation Details'!$C62, 'E2 Allocators'!$B$15:$W$285, MATCH(N$12, 'E2 Allocators'!$B$15:$W$15, 0),FALSE)*$D51 -> 0 | O51: =VLOOKUP('E4 TB Allocation Details'!$C62, 'E2 Allocators'!$B$15:$W$285, MATCH(O$12, 'E2 Allocators'!$B$15:$W$15, 0),FALSE)*$D51 -> 0 | P51: =VLOOKUP('E4 TB Allocation Details'!$C62, 'E2 Allocators'!$B$15:$W$285, MATCH(P$12, 'E2 Allocators'!$B$15:$W$15, 0),FALSE)*$D51 -> 0 | Q51: =VLOOKUP('E4 TB Allocation Details'!$C62, 'E2 Allocators'!$B$15:$W$285, MATCH(Q$12, 'E2 Allocators'!$B$15:$W$15, 0),FALSE)*$D51 -> 0 | R51: =VLOOKUP('E4 TB Allocation Details'!$C62, 'E2 Allocators'!$B$15:$W$285, MATCH(R$12, 'E2 Allocators'!$B$15:$W$15, 0),FALSE)*$D51 -> 0 | S51: =VLOOKUP('E4 TB Allocation Details'!$C62, 'E2 Allocators'!$B$15:$W$285, MATCH(S$12, 'E2 Allocators'!$B$15:$W$15, 0),FALSE)*$D51 -> 0 | T51: =VLOOKUP('E4 TB Allocation Details'!$C62, 'E2 Allocators'!$B$15:$W$285, MATCH(T$12, 'E2 Allocators'!$B$15:$W$15, 0),FALSE)*$D51 -> 0 | U51: =VLOOKUP('E4 TB Allocation Details'!$C62, 'E2 Allocators'!$B$15:$W$285, MATCH(U$12, 'E2 Allocators'!$B$15:$W$15, 0),FALSE)*$D51 -> 0 | V51: =VLOOKUP('E4 TB Allocation Details'!$C62, 'E2 Allocators'!$B$15:$W$285, MATCH(V$12, 'E2 Allocators'!$B$15:$W$15, 0),FALSE)*$D51 -> 0 | W51: =VLOOKUP('E4 TB Allocation Details'!$C62, 'E2 Allocators'!$B$15:$W$285, MATCH(W$12, 'E2 Allocators'!$B$15:$W$15, 0),FALSE)*$D51 -> 0 | X51: =VLOOKUP('E4 TB Allocation Details'!$C62, 'E2 Allocators'!$B$15:$W$285, MATCH(X$12, 'E2 Allocators'!$B$15:$W$15, 0),FALSE)*$D51 -> 0
B52: ='I3 TB Data'!B58 -> External Revenues - Network Dual Function Line - Dedicated to Domestic | C52: ER | D52: ='I3 TB Data'!G58 -> -3728031.311 | E52: =VLOOKUP('E4 TB Allocation Details'!$C63, 'E2 Allocators'!$B$15:$W$285, MATCH(E$12, 'E2 Allocators'!$B$15:$W$15, 0),FALSE)*$D52 -> -3728031.311 | F52: =VLOOKUP('E4 TB Allocation Details'!$C63, 'E2 Allocators'!$B$15:$W$285, MATCH(F$12, 'E2 Allocators'!$B$15:$W$15, 0),FALSE)*$D52 -> 0 | G52: =VLOOKUP('E4 TB Allocation Details'!$C63, 'E2 Allocators'!$B$15:$W$285, MATCH(G$12, 'E2 Allocators'!$B$15:$W$15, 0),FALSE)*$D52 -> 0 | H52: =VLOOKUP('E4 TB Allocation Details'!$C63, 'E2 Allocators'!$B$15:$W$285, MATCH(H$12, 'E2 Allocators'!$B$15:$W$15, 0),FALSE)*$D52 -> 0 | I52: =VLOOKUP('E4 TB Allocation Details'!$C63, 'E2 Allocators'!$B$15:$W$285, MATCH(I$12, 'E2 Allocators'!$B$15:$W$15, 0),FALSE)*$D52 -> 0 | J52: =VLOOKUP('E4 TB Allocation Details'!$C63, 'E2 Allocators'!$B$15:$W$285, MATCH(J$12, 'E2 Allocators'!$B$15:$W$15, 0),FALSE)*$D52 -> 0 | K52: =VLOOKUP('E4 TB Allocation Details'!$C63, 'E2 Allocators'!$B$15:$W$285, MATCH(K$12, 'E2 Allocators'!$B$15:$W$15, 0),FALSE)*$D52 -> 0 | L52: =VLOOKUP('E4 TB Allocation Details'!$C63, 'E2 Allocators'!$B$15:$W$285, MATCH(L$12, 'E2 Allocators'!$B$15:$W$15, 0),FALSE)*$D52 -> 0 | M52: =VLOOKUP('E4 TB Allocation Details'!$C63, 'E2 Allocators'!$B$15:$W$285, MATCH(M$12, 'E2 Allocators'!$B$15:$W$15, 0),FALSE)*$D52 -> 0 | N52: =VLOOKUP('E4 TB Allocation Details'!$C63, 'E2 Allocators'!$B$15:$W$285, MATCH(N$12, 'E2 Allocators'!$B$15:$W$15, 0),FALSE)*$D52 -> 0 | O52: =VLOOKUP('E4 TB Allocation Details'!$C63, 'E2 Allocators'!$B$15:$W$285, MATCH(O$12, 'E2 Allocators'!$B$15:$W$15, 0),FALSE)*$D52 -> 0 | P52: =VLOOKUP('E4 TB Allocation Details'!$C63, 'E2 Allocators'!$B$15:$W$285, MATCH(P$12, 'E2 Allocators'!$B$15:$W$15, 0),FALSE)*$D52 -> 0 | Q52: =VLOOKUP('E4 TB Allocation Details'!$C63, 'E2 Allocators'!$B$15:$W$285, MATCH(Q$12, 'E2 Allocators'!$B$15:$W$15, 0),FALSE)*$D52 -> 0 | R52: =VLOOKUP('E4 TB Allocation Details'!$C63, 'E2 Allocators'!$B$15:$W$285, MATCH(R$12, 'E2 Allocators'!$B$15:$W$15, 0),FALSE)*$D52 -> 0 | S52: =VLOOKUP('E4 TB Allocation Details'!$C63, 'E2 Allocators'!$B$15:$W$285, MATCH(S$12, 'E2 Allocators'!$B$15:$W$15, 0),FALSE)*$D52 -> 0 | T52: =VLOOKUP('E4 TB Allocation Details'!$C63, 'E2 Allocators'!$B$15:$W$285, MATCH(T$12, 'E2 Allocators'!$B$15:$W$15, 0),FALSE)*$D52 -> 0 | U52: =VLOOKUP('E4 TB Allocation Details'!$C63, 'E2 Allocators'!$B$15:$W$285, MATCH(U$12, 'E2 Allocators'!$B$15:$W$15, 0),FALSE)*$D52 -> 0 | V52: =VLOOKUP('E4 TB Allocation Details'!$C63, 'E2 Allocators'!$B$15:$W$285, MATCH(V$12, 'E2 Allocators'!$B$15:$W$15, 0),FALSE)*$D52 -> 0 | W52: =VLOOKUP('E4 TB Allocation Details'!$C63, 'E2 Allocators'!$B$15:$W$285, MATCH(W$12, 'E2 Allocators'!$B$15:$W$15, 0),FALSE)*$D52 -> 0 | X52: =VLOOKUP('E4 TB Allocation Details'!$C63, 'E2 Allocators'!$B$15:$W$285, MATCH(X$12, 'E2 Allocators'!$B$15:$W$15, 0),FALSE)*$D52 -> 0
B53: ='I3 TB Data'!B59 -> External Revenues - Network Dual Function Line - Dedicated to Interconnect | C53: ER | D53: ='I3 TB Data'!G59 -> 0 | E53: =VLOOKUP('E4 TB Allocation Details'!$C64, 'E2 Allocators'!$B$15:$W$285, MATCH(E$12, 'E2 Allocators'!$B$15:$W$15, 0),FALSE)*$D53 -> 0 | F53: =VLOOKUP('E4 TB Allocation Details'!$C64, 'E2 Allocators'!$B$15:$W$285, MATCH(F$12, 'E2 Allocators'!$B$15:$W$15, 0),FALSE)*$D53 -> 0 | G53: =VLOOKUP('E4 TB Allocation Details'!$C64, 'E2 Allocators'!$B$15:$W$285, MATCH(G$12, 'E2 Allocators'!$B$15:$W$15, 0),FALSE)*$D53 -> 0 | H53: =VLOOKUP('E4 TB Allocation Details'!$C64, 'E2 Allocators'!$B$15:$W$285, MATCH(H$12, 'E2 Allocators'!$B$15:$W$15, 0),FALSE)*$D53 -> 0 | I53: =VLOOKUP('E4 TB Allocation Details'!$C64, 'E2 Allocators'!$B$15:$W$285, MATCH(I$12, 'E2 Allocators'!$B$15:$W$15, 0),FALSE)*$D53 -> 0 | J53: =VLOOKUP('E4 TB Allocation Details'!$C64, 'E2 Allocators'!$B$15:$W$285, MATCH(J$12, 'E2 Allocators'!$B$15:$W$15, 0),FALSE)*$D53 -> 0 | K53: =VLOOKUP('E4 TB Allocation Details'!$C64, 'E2 Allocators'!$B$15:$W$285, MATCH(K$12, 'E2 Allocators'!$B$15:$W$15, 0),FALSE)*$D53 -> 0 | L53: =VLOOKUP('E4 TB Allocation Details'!$C64, 'E2 Allocators'!$B$15:$W$285, MATCH(L$12, 'E2 Allocators'!$B$15:$W$15, 0),FALSE)*$D53 -> 0 | M53: =VLOOKUP('E4 TB Allocation Details'!$C64, 'E2 Allocators'!$B$15:$W$285, MATCH(M$12, 'E2 Allocators'!$B$15:$W$15, 0),FALSE)*$D53 -> 0 | N53: =VLOOKUP('E4 TB Allocation Details'!$C64, 'E2 Allocators'!$B$15:$W$285, MATCH(N$12, 'E2 Allocators'!$B$15:$W$15, 0),FALSE)*$D53 -> 0 | O53: =VLOOKUP('E4 TB Allocation Details'!$C64, 'E2 Allocators'!$B$15:$W$285, MATCH(O$12, 'E2 Allocators'!$B$15:$W$15, 0),FALSE)*$D53 -> 0 | P53: =VLOOKUP('E4 TB Allocation Details'!$C64, 'E2 Allocators'!$B$15:$W$285, MATCH(P$12, 'E2 Allocators'!$B$15:$W$15, 0),FALSE)*$D53 -> 0 | Q53: =VLOOKUP('E4 TB Allocation Details'!$C64, 'E2 Allocators'!$B$15:$W$285, MATCH(Q$12, 'E2 Allocators'!$B$15:$W$15, 0),FALSE)*$D53 -> 0 | R53: =VLOOKUP('E4 TB Allocation Details'!$C64, 'E2 Allocators'!$B$15:$W$285, MATCH(R$12, 'E2 Allocators'!$B$15:$W$15, 0),FALSE)*$D53 -> 0 | S53: =VLOOKUP('E4 TB Allocation Details'!$C64, 'E2 Allocators'!$B$15:$W$285, MATCH(S$12, 'E2 Allocators'!$B$15:$W$15, 0),FALSE)*$D53 -> 0 | T53: =VLOOKUP('E4 TB Allocation Details'!$C64, 'E2 Allocators'!$B$15:$W$285, MATCH(T$12, 'E2 Allocators'!$B$15:$W$15, 0),FALSE)*$D53 -> 0 | U53: =VLOOKUP('E4 TB Allocation Details'!$C64, 'E2 Allocators'!$B$15:$W$285, MATCH(U$12, 'E2 Allocators'!$B$15:$W$15, 0),FALSE)*$D53 -> 0 | V53: =VLOOKUP('E4 TB Allocation Details'!$C64, 'E2 Allocators'!$B$15:$W$285, MATCH(V$12, 'E2 Allocators'!$B$15:$W$15, 0),FALSE)*$D53 -> 0 | W53: =VLOOKUP('E4 TB Allocation Details'!$C64, 'E2 Allocators'!$B$15:$W$285, MATCH(W$12, 'E2 Allocators'!$B$15:$W$15, 0),FALSE)*$D53 -> 0 | X53: =VLOOKUP('E4 TB Allocation Details'!$C64, 'E2 Allocators'!$B$15:$W$285, MATCH(X$12, 'E2 Allocators'!$B$15:$W$15, 0),FALSE)*$D53 -> 0
B54: ='I3 TB Data'!B60 -> External Revenues - Network Dual Function Line - Shared | C54: ER | D54: ='I3 TB Data'!G60 -> 0 | E54: =VLOOKUP('E4 TB Allocation Details'!$C65, 'E2 Allocators'!$B$15:$W$285, MATCH(E$12, 'E2 Allocators'!$B$15:$W$15, 0),FALSE)*$D54 -> 0 | F54: =VLOOKUP('E4 TB Allocation Details'!$C65, 'E2 Allocators'!$B$15:$W$285, MATCH(F$12, 'E2 Allocators'!$B$15:$W$15, 0),FALSE)*$D54 -> 0 | G54: =VLOOKUP('E4 TB Allocation Details'!$C65, 'E2 Allocators'!$B$15:$W$285, MATCH(G$12, 'E2 Allocators'!$B$15:$W$15, 0),FALSE)*$D54 -> 0 | H54: =VLOOKUP('E4 TB Allocation Details'!$C65, 'E2 Allocators'!$B$15:$W$285, MATCH(H$12, 'E2 Allocators'!$B$15:$W$15, 0),FALSE)*$D54 -> 0 | I54: =VLOOKUP('E4 TB Allocation Details'!$C65, 'E2 Allocators'!$B$15:$W$285, MATCH(I$12, 'E2 Allocators'!$B$15:$W$15, 0),FALSE)*$D54 -> 0 | J54: =VLOOKUP('E4 TB Allocation Details'!$C65, 'E2 Allocators'!$B$15:$W$285, MATCH(J$12, 'E2 Allocators'!$B$15:$W$15, 0),FALSE)*$D54 -> 0 | K54: =VLOOKUP('E4 TB Allocation Details'!$C65, 'E2 Allocators'!$B$15:$W$285, MATCH(K$12, 'E2 Allocators'!$B$15:$W$15, 0),FALSE)*$D54 -> 0 | L54: =VLOOKUP('E4 TB Allocation Details'!$C65, 'E2 Allocators'!$B$15:$W$285, MATCH(L$12, 'E2 Allocators'!$B$15:$W$15, 0),FALSE)*$D54 -> 0 | M54: =VLOOKUP('E4 TB Allocation Details'!$C65, 'E2 Allocators'!$B$15:$W$285, MATCH(M$12, 'E2 Allocators'!$B$15:$W$15, 0),FALSE)*$D54 -> 0 | N54: =VLOOKUP('E4 TB Allocation Details'!$C65, 'E2 Allocators'!$B$15:$W$285, MATCH(N$12, 'E2 Allocators'!$B$15:$W$15, 0),FALSE)*$D54 -> 0 | O54: =VLOOKUP('E4 TB Allocation Details'!$C65, 'E2 Allocators'!$B$15:$W$285, MATCH(O$12, 'E2 Allocators'!$B$15:$W$15, 0),FALSE)*$D54 -> 0 | P54: =VLOOKUP('E4 TB Allocation Details'!$C65, 'E2 Allocators'!$B$15:$W$285, MATCH(P$12, 'E2 Allocators'!$B$15:$W$15, 0),FALSE)*$D54 -> 0 | Q54: =VLOOKUP('E4 TB Allocation Details'!$C65, 'E2 Allocators'!$B$15:$W$285, MATCH(Q$12, 'E2 Allocators'!$B$15:$W$15, 0),FALSE)*$D54 -> 0 | R54: =VLOOKUP('E4 TB Allocation Details'!$C65, 'E2 Allocators'!$B$15:$W$285, MATCH(R$12, 'E2 Allocators'!$B$15:$W$15, 0),FALSE)*$D54 -> 0 | S54: =VLOOKUP('E4 TB Allocation Details'!$C65, 'E2 Allocators'!$B$15:$W$285, MATCH(S$12, 'E2 Allocators'!$B$15:$W$15, 0),FALSE)*$D54 -> 0 | T54: =VLOOKUP('E4 TB Allocation Details'!$C65, 'E2 Allocators'!$B$15:$W$285, MATCH(T$12, 'E2 Allocators'!$B$15:$W$15, 0),FALSE)*$D54 -> 0 | U54: =VLOOKUP('E4 TB Allocation Details'!$C65, 'E2 Allocators'!$B$15:$W$285, MATCH(U$12, 'E2 Allocators'!$B$15:$W$15, 0),FALSE)*$D54 -> 0 | V54: =VLOOKUP('E4 TB Allocation Details'!$C65, 'E2 Allocators'!$B$15:$W$285, MATCH(V$12, 'E2 Allocators'!$B$15:$W$15, 0),FALSE)*$D54 -> 0 | W54: =VLOOKUP('E4 TB Allocation Details'!$C65, 'E2 Allocators'!$B$15:$W$285, MATCH(W$12, 'E2 Allocators'!$B$15:$W$15, 0),FALSE)*$D54 -> 0 | X54: =VLOOKUP('E4 TB Allocation Details'!$C65, 'E2 Allocators'!$B$15:$W$285, MATCH(X$12, 'E2 Allocators'!$B$15:$W$15, 0),FALSE)*$D54 -> 0
B55: ='I3 TB Data'!B61 -> External Revenues - Line Connection Dual Function Line - Dedicated to Domestic | C55: ER | D55: ='I3 TB Data'!G61 -> -636787.3583 | E55: =VLOOKUP('E4 TB Allocation Details'!$C66, 'E2 Allocators'!$B$15:$W$285, MATCH(E$12, 'E2 Allocators'!$B$15:$W$15, 0),FALSE)*$D55 -> -636787.3583 | F55: =VLOOKUP('E4 TB Allocation Details'!$C66, 'E2 Allocators'!$B$15:$W$285, MATCH(F$12, 'E2 Allocators'!$B$15:$W$15, 0),FALSE)*$D55 -> 0 | G55: =VLOOKUP('E4 TB Allocation Details'!$C66, 'E2 Allocators'!$B$15:$W$285, MATCH(G$12, 'E2 Allocators'!$B$15:$W$15, 0),FALSE)*$D55 -> 0 | H55: =VLOOKUP('E4 TB Allocation Details'!$C66, 'E2 Allocators'!$B$15:$W$285, MATCH(H$12, 'E2 Allocators'!$B$15:$W$15, 0),FALSE)*$D55 -> 0 | I55: =VLOOKUP('E4 TB Allocation Details'!$C66, 'E2 Allocators'!$B$15:$W$285, MATCH(I$12, 'E2 Allocators'!$B$15:$W$15, 0),FALSE)*$D55 -> 0 | J55: =VLOOKUP('E4 TB Allocation Details'!$C66, 'E2 Allocators'!$B$15:$W$285, MATCH(J$12, 'E2 Allocators'!$B$15:$W$15, 0),FALSE)*$D55 -> 0 | K55: =VLOOKUP('E4 TB Allocation Details'!$C66, 'E2 Allocators'!$B$15:$W$285, MATCH(K$12, 'E2 Allocators'!$B$15:$W$15, 0),FALSE)*$D55 -> 0 | L55: =VLOOKUP('E4 TB Allocation Details'!$C66, 'E2 Allocators'!$B$15:$W$285, MATCH(L$12, 'E2 Allocators'!$B$15:$W$15, 0),FALSE)*$D55 -> 0 | M55: =VLOOKUP('E4 TB Allocation Details'!$C66, 'E2 Allocators'!$B$15:$W$285, MATCH(M$12, 'E2 Allocators'!$B$15:$W$15, 0),FALSE)*$D55 -> 0 | N55: =VLOOKUP('E4 TB Allocation Details'!$C66, 'E2 Allocators'!$B$15:$W$285, MATCH(N$12, 'E2 Allocators'!$B$15:$W$15, 0),FALSE)*$D55 -> 0 | O55: =VLOOKUP('E4 TB Allocation Details'!$C66, 'E2 Allocators'!$B$15:$W$285, MATCH(O$12, 'E2 Allocators'!$B$15:$W$15, 0),FALSE)*$D55 -> 0 | P55: =VLOOKUP('E4 TB Allocation Details'!$C66, 'E2 Allocators'!$B$15:$W$285, MATCH(P$12, 'E2 Allocators'!$B$15:$W$15, 0),FALSE)*$D55 -> 0 | Q55: =VLOOKUP('E4 TB Allocation Details'!$C66, 'E2 Allocators'!$B$15:$W$285, MATCH(Q$12, 'E2 Allocators'!$B$15:$W$15, 0),FALSE)*$D55 -> 0 | R55: =VLOOKUP('E4 TB Allocation Details'!$C66, 'E2 Allocators'!$B$15:$W$285, MATCH(R$12, 'E2 Allocators'!$B$15:$W$15, 0),FALSE)*$D55 -> 0 | S55: =VLOOKUP('E4 TB Allocation Details'!$C66, 'E2 Allocators'!$B$15:$W$285, MATCH(S$12, 'E2 Allocators'!$B$15:$W$15, 0),FALSE)*$D55 -> 0 | T55: =VLOOKUP('E4 TB Allocation Details'!$C66, 'E2 Allocators'!$B$15:$W$285, MATCH(T$12, 'E2 Allocators'!$B$15:$W$15, 0),FALSE)*$D55 -> 0 | U55: =VLOOKUP('E4 TB Allocation Details'!$C66, 'E2 Allocators'!$B$15:$W$285, MATCH(U$12, 'E2 Allocators'!$B$15:$W$15, 0),FALSE)*$D55 -> 0 | V55: =VLOOKUP('E4 TB Allocation Details'!$C66, 'E2 Allocators'!$B$15:$W$285, MATCH(V$12, 'E2 Allocators'!$B$15:$W$15, 0),FALSE)*$D55 -> 0 | W55: =VLOOKUP('E4 TB Allocation Details'!$C66, 'E2 Allocators'!$B$15:$W$285, MATCH(W$12, 'E2 Allocators'!$B$15:$W$15, 0),FALSE)*$D55 -> 0 | X55: =VLOOKUP('E4 TB Allocation Details'!$C66, 'E2 Allocators'!$B$15:$W$285, MATCH(X$12, 'E2 Allocators'!$B$15:$W$15, 0),FALSE)*$D55 -> 0
B56: ='I3 TB Data'!B62 -> External Revenues - Line Connection Dual Function Line - Dedicated to Interconnect | C56: ER | D56: ='I3 TB Data'!G62 -> 0 | E56: =VLOOKUP('E4 TB Allocation Details'!$C67, 'E2 Allocators'!$B$15:$W$285, MATCH(E$12, 'E2 Allocators'!$B$15:$W$15, 0),FALSE)*$D56 -> 0 | F56: =VLOOKUP('E4 TB Allocation Details'!$C67, 'E2 Allocators'!$B$15:$W$285, MATCH(F$12, 'E2 Allocators'!$B$15:$W$15, 0),FALSE)*$D56 -> 0 | G56: =VLOOKUP('E4 TB Allocation Details'!$C67, 'E2 Allocators'!$B$15:$W$285, MATCH(G$12, 'E2 Allocators'!$B$15:$W$15, 0),FALSE)*$D56 -> 0 | H56: =VLOOKUP('E4 TB Allocation Details'!$C67, 'E2 Allocators'!$B$15:$W$285, MATCH(H$12, 'E2 Allocators'!$B$15:$W$15, 0),FALSE)*$D56 -> 0 | I56: =VLOOKUP('E4 TB Allocation Details'!$C67, 'E2 Allocators'!$B$15:$W$285, MATCH(I$12, 'E2 Allocators'!$B$15:$W$15, 0),FALSE)*$D56 -> 0 | J56: =VLOOKUP('E4 TB Allocation Details'!$C67, 'E2 Allocators'!$B$15:$W$285, MATCH(J$12, 'E2 Allocators'!$B$15:$W$15, 0),FALSE)*$D56 -> 0 | K56: =VLOOKUP('E4 TB Allocation Details'!$C67, 'E2 Allocators'!$B$15:$W$285, MATCH(K$12, 'E2 Allocators'!$B$15:$W$15, 0),FALSE)*$D56 -> 0 | L56: =VLOOKUP('E4 TB Allocation Details'!$C67, 'E2 Allocators'!$B$15:$W$285, MATCH(L$12, 'E2 Allocators'!$B$15:$W$15, 0),FALSE)*$D56 -> 0 | M56: =VLOOKUP('E4 TB Allocation Details'!$C67, 'E2 Allocators'!$B$15:$W$285, MATCH(M$12, 'E2 Allocators'!$B$15:$W$15, 0),FALSE)*$D56 -> 0 | N56: =VLOOKUP('E4 TB Allocation Details'!$C67, 'E2 Allocators'!$B$15:$W$285, MATCH(N$12, 'E2 Allocators'!$B$15:$W$15, 0),FALSE)*$D56 -> 0 | O56: =VLOOKUP('E4 TB Allocation Details'!$C67, 'E2 Allocators'!$B$15:$W$285, MATCH(O$12, 'E2 Allocators'!$B$15:$W$15, 0),FALSE)*$D56 -> 0 | P56: =VLOOKUP('E4 TB Allocation Details'!$C67, 'E2 Allocators'!$B$15:$W$285, MATCH(P$12, 'E2 Allocators'!$B$15:$W$15, 0),FALSE)*$D56 -> 0 | Q56: =VLOOKUP('E4 TB Allocation Details'!$C67, 'E2 Allocators'!$B$15:$W$285, MATCH(Q$12, 'E2 Allocators'!$B$15:$W$15, 0),FALSE)*$D56 -> 0 | R56: =VLOOKUP('E4 TB Allocation Details'!$C67, 'E2 Allocators'!$B$15:$W$285, MATCH(R$12, 'E2 Allocators'!$B$15:$W$15, 0),FALSE)*$D56 -> 0 | S56: =VLOOKUP('E4 TB Allocation Details'!$C67, 'E2 Allocators'!$B$15:$W$285, MATCH(S$12, 'E2 Allocators'!$B$15:$W$15, 0),FALSE)*$D56 -> 0 | T56: =VLOOKUP('E4 TB Allocation Details'!$C67, 'E2 Allocators'!$B$15:$W$285, MATCH(T$12, 'E2 Allocators'!$B$15:$W$15, 0),FALSE)*$D56 -> 0 | U56: =VLOOKUP('E4 TB Allocation Details'!$C67, 'E2 Allocators'!$B$15:$W$285, MATCH(U$12, 'E2 Allocators'!$B$15:$W$15, 0),FALSE)*$D56 -> 0 | V56: =VLOOKUP('E4 TB Allocation Details'!$C67, 'E2 Allocators'!$B$15:$W$285, MATCH(V$12, 'E2 Allocators'!$B$15:$W$15, 0),FALSE)*$D56 -> 0 | W56: =VLOOKUP('E4 TB Allocation Details'!$C67, 'E2 Allocators'!$B$15:$W$285, MATCH(W$12, 'E2 Allocators'!$B$15:$W$15, 0),FALSE)*$D56 -> 0 | X56: =VLOOKUP('E4 TB Allocation Details'!$C67, 'E2 Allocators'!$B$15:$W$285, MATCH(X$12, 'E2 Allocators'!$B$15:$W$15, 0),FALSE)*$D56 -> 0
B57: ='I3 TB Data'!B63 -> External Revenues - Line Connection Dual Function Line - Shared | C57: ER | D57: ='I3 TB Data'!G63 -> 0 | E57: =VLOOKUP('E4 TB Allocation Details'!$C68, 'E2 Allocators'!$B$15:$W$285, MATCH(E$12, 'E2 Allocators'!$B$15:$W$15, 0),FALSE)*$D57 -> 0 | F57: =VLOOKUP('E4 TB Allocation Details'!$C68, 'E2 Allocators'!$B$15:$W$285, MATCH(F$12, 'E2 Allocators'!$B$15:$W$15, 0),FALSE)*$D57 -> 0 | G57: =VLOOKUP('E4 TB Allocation Details'!$C68, 'E2 Allocators'!$B$15:$W$285, MATCH(G$12, 'E2 Allocators'!$B$15:$W$15, 0),FALSE)*$D57 -> 0 | H57: =VLOOKUP('E4 TB Allocation Details'!$C68, 'E2 Allocators'!$B$15:$W$285, MATCH(H$12, 'E2 Allocators'!$B$15:$W$15, 0),FALSE)*$D57 -> 0 | I57: =VLOOKUP('E4 TB Allocation Details'!$C68, 'E2 Allocators'!$B$15:$W$285, MATCH(I$12, 'E2 Allocators'!$B$15:$W$15, 0),FALSE)*$D57 -> 0 | J57: =VLOOKUP('E4 TB Allocation Details'!$C68, 'E2 Allocators'!$B$15:$W$285, MATCH(J$12, 'E2 Allocators'!$B$15:$W$15, 0),FALSE)*$D57 -> 0 | K57: =VLOOKUP('E4 TB Allocation Details'!$C68, 'E2 Allocators'!$B$15:$W$285, MATCH(K$12, 'E2 Allocators'!$B$15:$W$15, 0),FALSE)*$D57 -> 0 | L57: =VLOOKUP('E4 TB Allocation Details'!$C68, 'E2 Allocators'!$B$15:$W$285, MATCH(L$12, 'E2 Allocators'!$B$15:$W$15, 0),FALSE)*$D57 -> 0 | M57: =VLOOKUP('E4 TB Allocation Details'!$C68, 'E2 Allocators'!$B$15:$W$285, MATCH(M$12, 'E2 Allocators'!$B$15:$W$15, 0),FALSE)*$D57 -> 0 | N57: =VLOOKUP('E4 TB Allocation Details'!$C68, 'E2 Allocators'!$B$15:$W$285, MATCH(N$12, 'E2 Allocators'!$B$15:$W$15, 0),FALSE)*$D57 -> 0 | O57: =VLOOKUP('E4 TB Allocation Details'!$C68, 'E2 Allocators'!$B$15:$W$285, MATCH(O$12, 'E2 Allocators'!$B$15:$W$15, 0),FALSE)*$D57 -> 0 | P57: =VLOOKUP('E4 TB Allocation Details'!$C68, 'E2 Allocators'!$B$15:$W$285, MATCH(P$12, 'E2 Allocators'!$B$15:$W$15, 0),FALSE)*$D57 -> 0 | Q57: =VLOOKUP('E4 TB Allocation Details'!$C68, 'E2 Allocators'!$B$15:$W$285, MATCH(Q$12, 'E2 Allocators'!$B$15:$W$15, 0),FALSE)*$D57 -> 0 | R57: =VLOOKUP('E4 TB Allocation Details'!$C68, 'E2 Allocators'!$B$15:$W$285, MATCH(R$12, 'E2 Allocators'!$B$15:$W$15, 0),FALSE)*$D57 -> 0 | S57: =VLOOKUP('E4 TB Allocation Details'!$C68, 'E2 Allocators'!$B$15:$W$285, MATCH(S$12, 'E2 Allocators'!$B$15:$W$15, 0),FALSE)*$D57 -> 0 | T57: =VLOOKUP('E4 TB Allocation Details'!$C68, 'E2 Allocators'!$B$15:$W$285, MATCH(T$12, 'E2 Allocators'!$B$15:$W$15, 0),FALSE)*$D57 -> 0 | U57: =VLOOKUP('E4 TB Allocation Details'!$C68, 'E2 Allocators'!$B$15:$W$285, MATCH(U$12, 'E2 Allocators'!$B$15:$W$15, 0),FALSE)*$D57 -> 0 | V57: =VLOOKUP('E4 TB Allocation Details'!$C68, 'E2 Allocators'!$B$15:$W$285, MATCH(V$12, 'E2 Allocators'!$B$15:$W$15, 0),FALSE)*$D57 -> 0 | W57: =VLOOKUP('E4 TB Allocation Details'!$C68, 'E2 Allocators'!$B$15:$W$285, MATCH(W$12, 'E2 Allocators'!$B$15:$W$15, 0),FALSE)*$D57 -> 0 | X57: =VLOOKUP('E4 TB Allocation Details'!$C68, 'E2 Allocators'!$B$15:$W$285, MATCH(X$12, 'E2 Allocators'!$B$15:$W$15, 0),FALSE)*$D57 -> 0
B58: ='I3 TB Data'!B64 -> External Revenues - Generation Line Connection - Dedicated to Domestic | C58: ER | D58: ='I3 TB Data'!G64 -> -891290.2521 | E58: =VLOOKUP('E4 TB Allocation Details'!$C69, 'E2 Allocators'!$B$15:$W$285, MATCH(E$12, 'E2 Allocators'!$B$15:$W$15, 0),FALSE)*$D58 -> -891290.2521 | F58: =VLOOKUP('E4 TB Allocation Details'!$C69, 'E2 Allocators'!$B$15:$W$285, MATCH(F$12, 'E2 Allocators'!$B$15:$W$15, 0),FALSE)*$D58 -> 0 | G58: =VLOOKUP('E4 TB Allocation Details'!$C69, 'E2 Allocators'!$B$15:$W$285, MATCH(G$12, 'E2 Allocators'!$B$15:$W$15, 0),FALSE)*$D58 -> 0 | H58: =VLOOKUP('E4 TB Allocation Details'!$C69, 'E2 Allocators'!$B$15:$W$285, MATCH(H$12, 'E2 Allocators'!$B$15:$W$15, 0),FALSE)*$D58 -> 0 | I58: =VLOOKUP('E4 TB Allocation Details'!$C69, 'E2 Allocators'!$B$15:$W$285, MATCH(I$12, 'E2 Allocators'!$B$15:$W$15, 0),FALSE)*$D58 -> 0 | J58: =VLOOKUP('E4 TB Allocation Details'!$C69, 'E2 Allocators'!$B$15:$W$285, MATCH(J$12, 'E2 Allocators'!$B$15:$W$15, 0),FALSE)*$D58 -> 0 | K58: =VLOOKUP('E4 TB Allocation Details'!$C69, 'E2 Allocators'!$B$15:$W$285, MATCH(K$12, 'E2 Allocators'!$B$15:$W$15, 0),FALSE)*$D58 -> 0 | L58: =VLOOKUP('E4 TB Allocation Details'!$C69, 'E2 Allocators'!$B$15:$W$285, MATCH(L$12, 'E2 Allocators'!$B$15:$W$15, 0),FALSE)*$D58 -> 0 | M58: =VLOOKUP('E4 TB Allocation Details'!$C69, 'E2 Allocators'!$B$15:$W$285, MATCH(M$12, 'E2 Allocators'!$B$15:$W$15, 0),FALSE)*$D58 -> 0 | N58: =VLOOKUP('E4 TB Allocation Details'!$C69, 'E2 Allocators'!$B$15:$W$285, MATCH(N$12, 'E2 Allocators'!$B$15:$W$15, 0),FALSE)*$D58 -> 0 | O58: =VLOOKUP('E4 TB Allocation Details'!$C69, 'E2 Allocators'!$B$15:$W$285, MATCH(O$12, 'E2 Allocators'!$B$15:$W$15, 0),FALSE)*$D58 -> 0 | P58: =VLOOKUP('E4 TB Allocation Details'!$C69, 'E2 Allocators'!$B$15:$W$285, MATCH(P$12, 'E2 Allocators'!$B$15:$W$15, 0),FALSE)*$D58 -> 0 | Q58: =VLOOKUP('E4 TB Allocation Details'!$C69, 'E2 Allocators'!$B$15:$W$285, MATCH(Q$12, 'E2 Allocators'!$B$15:$W$15, 0),FALSE)*$D58 -> 0 | R58: =VLOOKUP('E4 TB Allocation Details'!$C69, 'E2 Allocators'!$B$15:$W$285, MATCH(R$12, 'E2 Allocators'!$B$15:$W$15, 0),FALSE)*$D58 -> 0 | S58: =VLOOKUP('E4 TB Allocation Details'!$C69, 'E2 Allocators'!$B$15:$W$285, MATCH(S$12, 'E2 Allocators'!$B$15:$W$15, 0),FALSE)*$D58 -> 0 | T58: =VLOOKUP('E4 TB Allocation Details'!$C69, 'E2 Allocators'!$B$15:$W$285, MATCH(T$12, 'E2 Allocators'!$B$15:$W$15, 0),FALSE)*$D58 -> 0 | U58: =VLOOKUP('E4 TB Allocation Details'!$C69, 'E2 Allocators'!$B$15:$W$285, MATCH(U$12, 'E2 Allocators'!$B$15:$W$15, 0),FALSE)*$D58 -> 0 | V58: =VLOOKUP('E4 TB Allocation Details'!$C69, 'E2 Allocators'!$B$15:$W$285, MATCH(V$12, 'E2 Allocators'!$B$15:$W$15, 0),FALSE)*$D58 -> 0 | W58: =VLOOKUP('E4 TB Allocation Details'!$C69, 'E2 Allocators'!$B$15:$W$285, MATCH(W$12, 'E2 Allocators'!$B$15:$W$15, 0),FALSE)*$D58 -> 0 | X58: =VLOOKUP('E4 TB Allocation Details'!$C69, 'E2 Allocators'!$B$15:$W$285, MATCH(X$12, 'E2 Allocators'!$B$15:$W$15, 0),FALSE)*$D58 -> 0
B59: ='I3 TB Data'!B65 -> External Revenues - Generation Line Connection - Dedicated to Interconnect | C59: ER | D59: ='I3 TB Data'!G65 -> 0 | E59: =VLOOKUP('E4 TB Allocation Details'!$C70, 'E2 Allocators'!$B$15:$W$285, MATCH(E$12, 'E2 Allocators'!$B$15:$W$15, 0),FALSE)*$D59 -> 0 | F59: =VLOOKUP('E4 TB Allocation Details'!$C70, 'E2 Allocators'!$B$15:$W$285, MATCH(F$12, 'E2 Allocators'!$B$15:$W$15, 0),FALSE)*$D59 -> 0 | G59: =VLOOKUP('E4 TB Allocation Details'!$C70, 'E2 Allocators'!$B$15:$W$285, MATCH(G$12, 'E2 Allocators'!$B$15:$W$15, 0),FALSE)*$D59 -> 0 | H59: =VLOOKUP('E4 TB Allocation Details'!$C70, 'E2 Allocators'!$B$15:$W$285, MATCH(H$12, 'E2 Allocators'!$B$15:$W$15, 0),FALSE)*$D59 -> 0 | I59: =VLOOKUP('E4 TB Allocation Details'!$C70, 'E2 Allocators'!$B$15:$W$285, MATCH(I$12, 'E2 Allocators'!$B$15:$W$15, 0),FALSE)*$D59 -> 0 | J59: =VLOOKUP('E4 TB Allocation Details'!$C70, 'E2 Allocators'!$B$15:$W$285, MATCH(J$12, 'E2 Allocators'!$B$15:$W$15, 0),FALSE)*$D59 -> 0 | K59: =VLOOKUP('E4 TB Allocation Details'!$C70, 'E2 Allocators'!$B$15:$W$285, MATCH(K$12, 'E2 Allocators'!$B$15:$W$15, 0),FALSE)*$D59 -> 0 | L59: =VLOOKUP('E4 TB Allocation Details'!$C70, 'E2 Allocators'!$B$15:$W$285, MATCH(L$12, 'E2 Allocators'!$B$15:$W$15, 0),FALSE)*$D59 -> 0 | M59: =VLOOKUP('E4 TB Allocation Details'!$C70, 'E2 Allocators'!$B$15:$W$285, MATCH(M$12, 'E2 Allocators'!$B$15:$W$15, 0),FALSE)*$D59 -> 0 | N59: =VLOOKUP('E4 TB Allocation Details'!$C70, 'E2 Allocators'!$B$15:$W$285, MATCH(N$12, 'E2 Allocators'!$B$15:$W$15, 0),FALSE)*$D59 -> 0 | O59: =VLOOKUP('E4 TB Allocation Details'!$C70, 'E2 Allocators'!$B$15:$W$285, MATCH(O$12, 'E2 Allocators'!$B$15:$W$15, 0),FALSE)*$D59 -> 0 | P59: =VLOOKUP('E4 TB Allocation Details'!$C70, 'E2 Allocators'!$B$15:$W$285, MATCH(P$12, 'E2 Allocators'!$B$15:$W$15, 0),FALSE)*$D59 -> 0 | Q59: =VLOOKUP('E4 TB Allocation Details'!$C70, 'E2 Allocators'!$B$15:$W$285, MATCH(Q$12, 'E2 Allocators'!$B$15:$W$15, 0),FALSE)*$D59 -> 0 | R59: =VLOOKUP('E4 TB Allocation Details'!$C70, 'E2 Allocators'!$B$15:$W$285, MATCH(R$12, 'E2 Allocators'!$B$15:$W$15, 0),FALSE)*$D59 -> 0 | S59: =VLOOKUP('E4 TB Allocation Details'!$C70, 'E2 Allocators'!$B$15:$W$285, MATCH(S$12, 'E2 Allocators'!$B$15:$W$15, 0),FALSE)*$D59 -> 0 | T59: =VLOOKUP('E4 TB Allocation Details'!$C70, 'E2 Allocators'!$B$15:$W$285, MATCH(T$12, 'E2 Allocators'!$B$15:$W$15, 0),FALSE)*$D59 -> 0 | U59: =VLOOKUP('E4 TB Allocation Details'!$C70, 'E2 Allocators'!$B$15:$W$285, MATCH(U$12, 'E2 Allocators'!$B$15:$W$15, 0),FALSE)*$D59 -> 0 | V59: =VLOOKUP('E4 TB Allocation Details'!$C70, 'E2 Allocators'!$B$15:$W$285, MATCH(V$12, 'E2 Allocators'!$B$15:$W$15, 0),FALSE)*$D59 -> 0 | W59: =VLOOKUP('E4 TB Allocation Details'!$C70, 'E2 Allocators'!$B$15:$W$285, MATCH(W$12, 'E2 Allocators'!$B$15:$W$15, 0),FALSE)*$D59 -> 0 | X59: =VLOOKUP('E4 TB Allocation Details'!$C70, 'E2 Allocators'!$B$15:$W$285, MATCH(X$12, 'E2 Allocators'!$B$15:$W$15, 0),FALSE)*$D59 -> 0
B60: ='I3 TB Data'!B66 -> External Revenues - Generation Line Connection - Shared | C60: ER | D60: ='I3 TB Data'!G66 -> 0 | E60: =VLOOKUP('E4 TB Allocation Details'!$C71, 'E2 Allocators'!$B$15:$W$285, MATCH(E$12, 'E2 Allocators'!$B$15:$W$15, 0),FALSE)*$D60 -> 0 | F60: =VLOOKUP('E4 TB Allocation Details'!$C71, 'E2 Allocators'!$B$15:$W$285, MATCH(F$12, 'E2 Allocators'!$B$15:$W$15, 0),FALSE)*$D60 -> 0 | G60: =VLOOKUP('E4 TB Allocation Details'!$C71, 'E2 Allocators'!$B$15:$W$285, MATCH(G$12, 'E2 Allocators'!$B$15:$W$15, 0),FALSE)*$D60 -> 0 | H60: =VLOOKUP('E4 TB Allocation Details'!$C71, 'E2 Allocators'!$B$15:$W$285, MATCH(H$12, 'E2 Allocators'!$B$15:$W$15, 0),FALSE)*$D60 -> 0 | I60: =VLOOKUP('E4 TB Allocation Details'!$C71, 'E2 Allocators'!$B$15:$W$285, MATCH(I$12, 'E2 Allocators'!$B$15:$W$15, 0),FALSE)*$D60 -> 0 | J60: =VLOOKUP('E4 TB Allocation Details'!$C71, 'E2 Allocators'!$B$15:$W$285, MATCH(J$12, 'E2 Allocators'!$B$15:$W$15, 0),FALSE)*$D60 -> 0 | K60: =VLOOKUP('E4 TB Allocation Details'!$C71, 'E2 Allocators'!$B$15:$W$285, MATCH(K$12, 'E2 Allocators'!$B$15:$W$15, 0),FALSE)*$D60 -> 0 | L60: =VLOOKUP('E4 TB Allocation Details'!$C71, 'E2 Allocators'!$B$15:$W$285, MATCH(L$12, 'E2 Allocators'!$B$15:$W$15, 0),FALSE)*$D60 -> 0 | M60: =VLOOKUP('E4 TB Allocation Details'!$C71, 'E2 Allocators'!$B$15:$W$285, MATCH(M$12, 'E2 Allocators'!$B$15:$W$15, 0),FALSE)*$D60 -> 0 | N60: =VLOOKUP('E4 TB Allocation Details'!$C71, 'E2 Allocators'!$B$15:$W$285, MATCH(N$12, 'E2 Allocators'!$B$15:$W$15, 0),FALSE)*$D60 -> 0 | O60: =VLOOKUP('E4 TB Allocation Details'!$C71, 'E2 Allocators'!$B$15:$W$285, MATCH(O$12, 'E2 Allocators'!$B$15:$W$15, 0),FALSE)*$D60 -> 0 | P60: =VLOOKUP('E4 TB Allocation Details'!$C71, 'E2 Allocators'!$B$15:$W$285, MATCH(P$12, 'E2 Allocators'!$B$15:$W$15, 0),FALSE)*$D60 -> 0 | Q60: =VLOOKUP('E4 TB Allocation Details'!$C71, 'E2 Allocators'!$B$15:$W$285, MATCH(Q$12, 'E2 Allocators'!$B$15:$W$15, 0),FALSE)*$D60 -> 0 | R60: =VLOOKUP('E4 TB Allocation Details'!$C71, 'E2 Allocators'!$B$15:$W$285, MATCH(R$12, 'E2 Allocators'!$B$15:$W$15, 0),FALSE)*$D60 -> 0 | S60: =VLOOKUP('E4 TB Allocation Details'!$C71, 'E2 Allocators'!$B$15:$W$285, MATCH(S$12, 'E2 Allocators'!$B$15:$W$15, 0),FALSE)*$D60 -> 0 | T60: =VLOOKUP('E4 TB Allocation Details'!$C71, 'E2 Allocators'!$B$15:$W$285, MATCH(T$12, 'E2 Allocators'!$B$15:$W$15, 0),FALSE)*$D60 -> 0 | U60: =VLOOKUP('E4 TB Allocation Details'!$C71, 'E2 Allocators'!$B$15:$W$285, MATCH(U$12, 'E2 Allocators'!$B$15:$W$15, 0),FALSE)*$D60 -> 0 | V60: =VLOOKUP('E4 TB Allocation Details'!$C71, 'E2 Allocators'!$B$15:$W$285, MATCH(V$12, 'E2 Allocators'!$B$15:$W$15, 0),FALSE)*$D60 -> 0 | W60: =VLOOKUP('E4 TB Allocation Details'!$C71, 'E2 Allocators'!$B$15:$W$285, MATCH(W$12, 'E2 Allocators'!$B$15:$W$15, 0),FALSE)*$D60 -> 0 | X60: =VLOOKUP('E4 TB Allocation Details'!$C71, 'E2 Allocators'!$B$15:$W$285, MATCH(X$12, 'E2 Allocators'!$B$15:$W$15, 0),FALSE)*$D60 -> 0
B61: ='I3 TB Data'!B67 -> External Revenues - Generation Transformation Connection - Dedicated to Domestic | C61: ER | D61: ='I3 TB Data'!G67 -> -204794.8931 | E61: =VLOOKUP('E4 TB Allocation Details'!$C72, 'E2 Allocators'!$B$15:$W$285, MATCH(E$12, 'E2 Allocators'!$B$15:$W$15, 0),FALSE)*$D61 -> -204794.8931 | F61: =VLOOKUP('E4 TB Allocation Details'!$C72, 'E2 Allocators'!$B$15:$W$285, MATCH(F$12, 'E2 Allocators'!$B$15:$W$15, 0),FALSE)*$D61 -> 0 | G61: =VLOOKUP('E4 TB Allocation Details'!$C72, 'E2 Allocators'!$B$15:$W$285, MATCH(G$12, 'E2 Allocators'!$B$15:$W$15, 0),FALSE)*$D61 -> 0 | H61: =VLOOKUP('E4 TB Allocation Details'!$C72, 'E2 Allocators'!$B$15:$W$285, MATCH(H$12, 'E2 Allocators'!$B$15:$W$15, 0),FALSE)*$D61 -> 0 | I61: =VLOOKUP('E4 TB Allocation Details'!$C72, 'E2 Allocators'!$B$15:$W$285, MATCH(I$12, 'E2 Allocators'!$B$15:$W$15, 0),FALSE)*$D61 -> 0 | J61: =VLOOKUP('E4 TB Allocation Details'!$C72, 'E2 Allocators'!$B$15:$W$285, MATCH(J$12, 'E2 Allocators'!$B$15:$W$15, 0),FALSE)*$D61 -> 0 | K61: =VLOOKUP('E4 TB Allocation Details'!$C72, 'E2 Allocators'!$B$15:$W$285, MATCH(K$12, 'E2 Allocators'!$B$15:$W$15, 0),FALSE)*$D61 -> 0 | L61: =VLOOKUP('E4 TB Allocation Details'!$C72, 'E2 Allocators'!$B$15:$W$285, MATCH(L$12, 'E2 Allocators'!$B$15:$W$15, 0),FALSE)*$D61 -> 0 | M61: =VLOOKUP('E4 TB Allocation Details'!$C72, 'E2 Allocators'!$B$15:$W$285, MATCH(M$12, 'E2 Allocators'!$B$15:$W$15, 0),FALSE)*$D61 -> 0 | N61: =VLOOKUP('E4 TB Allocation Details'!$C72, 'E2 Allocators'!$B$15:$W$285, MATCH(N$12, 'E2 Allocators'!$B$15:$W$15, 0),FALSE)*$D61 -> 0 | O61: =VLOOKUP('E4 TB Allocation Details'!$C72, 'E2 Allocators'!$B$15:$W$285, MATCH(O$12, 'E2 Allocators'!$B$15:$W$15, 0),FALSE)*$D61 -> 0 | P61: =VLOOKUP('E4 TB Allocation Details'!$C72, 'E2 Allocators'!$B$15:$W$285, MATCH(P$12, 'E2 Allocators'!$B$15:$W$15, 0),FALSE)*$D61 -> 0 | Q61: =VLOOKUP('E4 TB Allocation Details'!$C72, 'E2 Allocators'!$B$15:$W$285, MATCH(Q$12, 'E2 Allocators'!$B$15:$W$15, 0),FALSE)*$D61 -> 0 | R61: =VLOOKUP('E4 TB Allocation Details'!$C72, 'E2 Allocators'!$B$15:$W$285, MATCH(R$12, 'E2 Allocators'!$B$15:$W$15, 0),FALSE)*$D61 -> 0 | S61: =VLOOKUP('E4 TB Allocation Details'!$C72, 'E2 Allocators'!$B$15:$W$285, MATCH(S$12, 'E2 Allocators'!$B$15:$W$15, 0),FALSE)*$D61 -> 0 | T61: =VLOOKUP('E4 TB Allocation Details'!$C72, 'E2 Allocators'!$B$15:$W$285, MATCH(T$12, 'E2 Allocators'!$B$15:$W$15, 0),FALSE)*$D61 -> 0 | U61: =VLOOKUP('E4 TB Allocation Details'!$C72, 'E2 Allocators'!$B$15:$W$285, MATCH(U$12, 'E2 Allocators'!$B$15:$W$15, 0),FALSE)*$D61 -> 0 | V61: =VLOOKUP('E4 TB Allocation Details'!$C72, 'E2 Allocators'!$B$15:$W$285, MATCH(V$12, 'E2 Allocators'!$B$15:$W$15, 0),FALSE)*$D61 -> 0 | W61: =VLOOKUP('E4 TB Allocation Details'!$C72, 'E2 Allocators'!$B$15:$W$285, MATCH(W$12, 'E2 Allocators'!$B$15:$W$15, 0),FALSE)*$D61 -> 0 | X61: =VLOOKUP('E4 TB Allocation Details'!$C72, 'E2 Allocators'!$B$15:$W$285, MATCH(X$12, 'E2 Allocators'!$B$15:$W$15, 0),FALSE)*$D61 -> 0
B62: ='I3 TB Data'!B68 -> External Revenues - Generation Transformation Connection - Dedicated to Interconnect | C62: ER | D62: ='I3 TB Data'!G68 -> 0 | E62: =VLOOKUP('E4 TB Allocation Details'!$C73, 'E2 Allocators'!$B$15:$W$285, MATCH(E$12, 'E2 Allocators'!$B$15:$W$15, 0),FALSE)*$D62 -> 0 | F62: =VLOOKUP('E4 TB Allocation Details'!$C73, 'E2 Allocators'!$B$15:$W$285, MATCH(F$12, 'E2 Allocators'!$B$15:$W$15, 0),FALSE)*$D62 -> 0 | G62: =VLOOKUP('E4 TB Allocation Details'!$C73, 'E2 Allocators'!$B$15:$W$285, MATCH(G$12, 'E2 Allocators'!$B$15:$W$15, 0),FALSE)*$D62 -> 0 | H62: =VLOOKUP('E4 TB Allocation Details'!$C73, 'E2 Allocators'!$B$15:$W$285, MATCH(H$12, 'E2 Allocators'!$B$15:$W$15, 0),FALSE)*$D62 -> 0 | I62: =VLOOKUP('E4 TB Allocation Details'!$C73, 'E2 Allocators'!$B$15:$W$285, MATCH(I$12, 'E2 Allocators'!$B$15:$W$15, 0),FALSE)*$D62 -> 0 | J62: =VLOOKUP('E4 TB Allocation Details'!$C73, 'E2 Allocators'!$B$15:$W$285, MATCH(J$12, 'E2 Allocators'!$B$15:$W$15, 0),FALSE)*$D62 -> 0 | K62: =VLOOKUP('E4 TB Allocation Details'!$C73, 'E2 Allocators'!$B$15:$W$285, MATCH(K$12, 'E2 Allocators'!$B$15:$W$15, 0),FALSE)*$D62 -> 0 | L62: =VLOOKUP('E4 TB Allocation Details'!$C73, 'E2 Allocators'!$B$15:$W$285, MATCH(L$12, 'E2 Allocators'!$B$15:$W$15, 0),FALSE)*$D62 -> 0 | M62: =VLOOKUP('E4 TB Allocation Details'!$C73, 'E2 Allocators'!$B$15:$W$285, MATCH(M$12, 'E2 Allocators'!$B$15:$W$15, 0),FALSE)*$D62 -> 0 | N62: =VLOOKUP('E4 TB Allocation Details'!$C73, 'E2 Allocators'!$B$15:$W$285, MATCH(N$12, 'E2 Allocators'!$B$15:$W$15, 0),FALSE)*$D62 -> 0 | O62: =VLOOKUP('E4 TB Allocation Details'!$C73, 'E2 Allocators'!$B$15:$W$285, MATCH(O$12, 'E2 Allocators'!$B$15:$W$15, 0),FALSE)*$D62 -> 0 | P62: =VLOOKUP('E4 TB Allocation Details'!$C73, 'E2 Allocators'!$B$15:$W$285, MATCH(P$12, 'E2 Allocators'!$B$15:$W$15, 0),FALSE)*$D62 -> 0 | Q62: =VLOOKUP('E4 TB Allocation Details'!$C73, 'E2 Allocators'!$B$15:$W$285, MATCH(Q$12, 'E2 Allocators'!$B$15:$W$15, 0),FALSE)*$D62 -> 0 | R62: =VLOOKUP('E4 TB Allocation Details'!$C73, 'E2 Allocators'!$B$15:$W$285, MATCH(R$12, 'E2 Allocators'!$B$15:$W$15, 0),FALSE)*$D62 -> 0 | S62: =VLOOKUP('E4 TB Allocation Details'!$C73, 'E2 Allocators'!$B$15:$W$285, MATCH(S$12, 'E2 Allocators'!$B$15:$W$15, 0),FALSE)*$D62 -> 0 | T62: =VLOOKUP('E4 TB Allocation Details'!$C73, 'E2 Allocators'!$B$15:$W$285, MATCH(T$12, 'E2 Allocators'!$B$15:$W$15, 0),FALSE)*$D62 -> 0 | U62: =VLOOKUP('E4 TB Allocation Details'!$C73, 'E2 Allocators'!$B$15:$W$285, MATCH(U$12, 'E2 Allocators'!$B$15:$W$15, 0),FALSE)*$D62 -> 0 | V62: =VLOOKUP('E4 TB Allocation Details'!$C73, 'E2 Allocators'!$B$15:$W$285, MATCH(V$12, 'E2 Allocators'!$B$15:$W$15, 0),FALSE)*$D62 -> 0 | W62: =VLOOKUP('E4 TB Allocation Details'!$C73, 'E2 Allocators'!$B$15:$W$285, MATCH(W$12, 'E2 Allocators'!$B$15:$W$15, 0),FALSE)*$D62 -> 0 | X62: =VLOOKUP('E4 TB Allocation Details'!$C73, 'E2 Allocators'!$B$15:$W$285, MATCH(X$12, 'E2 Allocators'!$B$15:$W$15, 0),FALSE)*$D62 -> 0
B63: ='I3 TB Data'!B69 -> External Revenues - Generation Transformation Connection - Shared | C63: ER | D63: ='I3 TB Data'!G69 -> 0 | E63: =VLOOKUP('E4 TB Allocation Details'!$C74, 'E2 Allocators'!$B$15:$W$285, MATCH(E$12, 'E2 Allocators'!$B$15:$W$15, 0),FALSE)*$D63 -> 0 | F63: =VLOOKUP('E4 TB Allocation Details'!$C74, 'E2 Allocators'!$B$15:$W$285, MATCH(F$12, 'E2 Allocators'!$B$15:$W$15, 0),FALSE)*$D63 -> 0 | G63: =VLOOKUP('E4 TB Allocation Details'!$C74, 'E2 Allocators'!$B$15:$W$285, MATCH(G$12, 'E2 Allocators'!$B$15:$W$15, 0),FALSE)*$D63 -> 0 | H63: =VLOOKUP('E4 TB Allocation Details'!$C74, 'E2 Allocators'!$B$15:$W$285, MATCH(H$12, 'E2 Allocators'!$B$15:$W$15, 0),FALSE)*$D63 -> 0 | I63: =VLOOKUP('E4 TB Allocation Details'!$C74, 'E2 Allocators'!$B$15:$W$285, MATCH(I$12, 'E2 Allocators'!$B$15:$W$15, 0),FALSE)*$D63 -> 0 | J63: =VLOOKUP('E4 TB Allocation Details'!$C74, 'E2 Allocators'!$B$15:$W$285, MATCH(J$12, 'E2 Allocators'!$B$15:$W$15, 0),FALSE)*$D63 -> 0 | K63: =VLOOKUP('E4 TB Allocation Details'!$C74, 'E2 Allocators'!$B$15:$W$285, MATCH(K$12, 'E2 Allocators'!$B$15:$W$15, 0),FALSE)*$D63 -> 0 | L63: =VLOOKUP('E4 TB Allocation Details'!$C74, 'E2 Allocators'!$B$15:$W$285, MATCH(L$12, 'E2 Allocators'!$B$15:$W$15, 0),FALSE)*$D63 -> 0 | M63: =VLOOKUP('E4 TB Allocation Details'!$C74, 'E2 Allocators'!$B$15:$W$285, MATCH(M$12, 'E2 Allocators'!$B$15:$W$15, 0),FALSE)*$D63 -> 0 | N63: =VLOOKUP('E4 TB Allocation Details'!$C74, 'E2 Allocators'!$B$15:$W$285, MATCH(N$12, 'E2 Allocators'!$B$15:$W$15, 0),FALSE)*$D63 -> 0 | O63: =VLOOKUP('E4 TB Allocation Details'!$C74, 'E2 Allocators'!$B$15:$W$285, MATCH(O$12, 'E2 Allocators'!$B$15:$W$15, 0),FALSE)*$D63 -> 0 | P63: =VLOOKUP('E4 TB Allocation Details'!$C74, 'E2 Allocators'!$B$15:$W$285, MATCH(P$12, 'E2 Allocators'!$B$15:$W$15, 0),FALSE)*$D63 -> 0 | Q63: =VLOOKUP('E4 TB Allocation Details'!$C74, 'E2 Allocators'!$B$15:$W$285, MATCH(Q$12, 'E2 Allocators'!$B$15:$W$15, 0),FALSE)*$D63 -> 0 | R63: =VLOOKUP('E4 TB Allocation Details'!$C74, 'E2 Allocators'!$B$15:$W$285, MATCH(R$12, 'E2 Allocators'!$B$15:$W$15, 0),FALSE)*$D63 -> 0 | S63: =VLOOKUP('E4 TB Allocation Details'!$C74, 'E2 Allocators'!$B$15:$W$285, MATCH(S$12, 'E2 Allocators'!$B$15:$W$15, 0),FALSE)*$D63 -> 0 | T63: =VLOOKUP('E4 TB Allocation Details'!$C74, 'E2 Allocators'!$B$15:$W$285, MATCH(T$12, 'E2 Allocators'!$B$15:$W$15, 0),FALSE)*$D63 -> 0 | U63: =VLOOKUP('E4 TB Allocation Details'!$C74, 'E2 Allocators'!$B$15:$W$285, MATCH(U$12, 'E2 Allocators'!$B$15:$W$15, 0),FALSE)*$D63 -> 0 | V63: =VLOOKUP('E4 TB Allocation Details'!$C74, 'E2 Allocators'!$B$15:$W$285, MATCH(V$12, 'E2 Allocators'!$B$15:$W$15, 0),FALSE)*$D63 -> 0 | W63: =VLOOKUP('E4 TB Allocation Details'!$C74, 'E2 Allocators'!$B$15:$W$285, MATCH(W$12, 'E2 Allocators'!$B$15:$W$15, 0),FALSE)*$D63 -> 0 | X63: =VLOOKUP('E4 TB Allocation Details'!$C74, 'E2 Allocators'!$B$15:$W$285, MATCH(X$12, 'E2 Allocators'!$B$15:$W$15, 0),FALSE)*$D63 -> 0
B64: ='I3 TB Data'!B70 -> Export Revenue Credit - Network - Dedicated to Domestic | C64: ERC | D64: ='I3 TB Data'!G70 -> 0 | E64: =VLOOKUP('E4 TB Allocation Details'!$C75, 'E2 Allocators'!$B$15:$W$285, MATCH(E$12, 'E2 Allocators'!$B$15:$W$15, 0),FALSE)*$D64 -> 0 | F64: =VLOOKUP('E4 TB Allocation Details'!$C75, 'E2 Allocators'!$B$15:$W$285, MATCH(F$12, 'E2 Allocators'!$B$15:$W$15, 0),FALSE)*$D64 -> 0 | G64: =VLOOKUP('E4 TB Allocation Details'!$C75, 'E2 Allocators'!$B$15:$W$285, MATCH(G$12, 'E2 Allocators'!$B$15:$W$15, 0),FALSE)*$D64 -> 0 | H64: =VLOOKUP('E4 TB Allocation Details'!$C75, 'E2 Allocators'!$B$15:$W$285, MATCH(H$12, 'E2 Allocators'!$B$15:$W$15, 0),FALSE)*$D64 -> 0 | I64: =VLOOKUP('E4 TB Allocation Details'!$C75, 'E2 Allocators'!$B$15:$W$285, MATCH(I$12, 'E2 Allocators'!$B$15:$W$15, 0),FALSE)*$D64 -> 0 | J64: =VLOOKUP('E4 TB Allocation Details'!$C75, 'E2 Allocators'!$B$15:$W$285, MATCH(J$12, 'E2 Allocators'!$B$15:$W$15, 0),FALSE)*$D64 -> 0 | K64: =VLOOKUP('E4 TB Allocation Details'!$C75, 'E2 Allocators'!$B$15:$W$285, MATCH(K$12, 'E2 Allocators'!$B$15:$W$15, 0),FALSE)*$D64 -> 0 | L64: =VLOOKUP('E4 TB Allocation Details'!$C75, 'E2 Allocators'!$B$15:$W$285, MATCH(L$12, 'E2 Allocators'!$B$15:$W$15, 0),FALSE)*$D64 -> 0 | M64: =VLOOKUP('E4 TB Allocation Details'!$C75, 'E2 Allocators'!$B$15:$W$285, MATCH(M$12, 'E2 Allocators'!$B$15:$W$15, 0),FALSE)*$D64 -> 0 | N64: =VLOOKUP('E4 TB Allocation Details'!$C75, 'E2 Allocators'!$B$15:$W$285, MATCH(N$12, 'E2 Allocators'!$B$15:$W$15, 0),FALSE)*$D64 -> 0 | O64: =VLOOKUP('E4 TB Allocation Details'!$C75, 'E2 Allocators'!$B$15:$W$285, MATCH(O$12, 'E2 Allocators'!$B$15:$W$15, 0),FALSE)*$D64 -> 0 | P64: =VLOOKUP('E4 TB Allocation Details'!$C75, 'E2 Allocators'!$B$15:$W$285, MATCH(P$12, 'E2 Allocators'!$B$15:$W$15, 0),FALSE)*$D64 -> 0 | Q64: =VLOOKUP('E4 TB Allocation Details'!$C75, 'E2 Allocators'!$B$15:$W$285, MATCH(Q$12, 'E2 Allocators'!$B$15:$W$15, 0),FALSE)*$D64 -> 0 | R64: =VLOOKUP('E4 TB Allocation Details'!$C75, 'E2 Allocators'!$B$15:$W$285, MATCH(R$12, 'E2 Allocators'!$B$15:$W$15, 0),FALSE)*$D64 -> 0 | S64: =VLOOKUP('E4 TB Allocation Details'!$C75, 'E2 Allocators'!$B$15:$W$285, MATCH(S$12, 'E2 Allocators'!$B$15:$W$15, 0),FALSE)*$D64 -> 0 | T64: =VLOOKUP('E4 TB Allocation Details'!$C75, 'E2 Allocators'!$B$15:$W$285, MATCH(T$12, 'E2 Allocators'!$B$15:$W$15, 0),FALSE)*$D64 -> 0 | U64: =VLOOKUP('E4 TB Allocation Details'!$C75, 'E2 Allocators'!$B$15:$W$285, MATCH(U$12, 'E2 Allocators'!$B$15:$W$15, 0),FALSE)*$D64 -> 0 | V64: =VLOOKUP('E4 TB Allocation Details'!$C75, 'E2 Allocators'!$B$15:$W$285, MATCH(V$12, 'E2 Allocators'!$B$15:$W$15, 0),FALSE)*$D64 -> 0 | W64: =VLOOKUP('E4 TB Allocation Details'!$C75, 'E2 Allocators'!$B$15:$W$285, MATCH(W$12, 'E2 Allocators'!$B$15:$W$15, 0),FALSE)*$D64 -> 0 | X64: =VLOOKUP('E4 TB Allocation Details'!$C75, 'E2 Allocators'!$B$15:$W$285, MATCH(X$12, 'E2 Allocators'!$B$15:$W$15, 0),FALSE)*$D64 -> 0
B65: ='I3 TB Data'!B71 -> Export Revenue Credit - Network - Dedicated to Interconnect | C65: ERC | D65: ='I3 TB Data'!G71 -> 0 | E65: =VLOOKUP('E4 TB Allocation Details'!$C76, 'E2 Allocators'!$B$15:$W$285, MATCH(E$12, 'E2 Allocators'!$B$15:$W$15, 0),FALSE)*$D65 -> 0 | F65: =VLOOKUP('E4 TB Allocation Details'!$C76, 'E2 Allocators'!$B$15:$W$285, MATCH(F$12, 'E2 Allocators'!$B$15:$W$15, 0),FALSE)*$D65 -> 0 | G65: =VLOOKUP('E4 TB Allocation Details'!$C76, 'E2 Allocators'!$B$15:$W$285, MATCH(G$12, 'E2 Allocators'!$B$15:$W$15, 0),FALSE)*$D65 -> 0 | H65: =VLOOKUP('E4 TB Allocation Details'!$C76, 'E2 Allocators'!$B$15:$W$285, MATCH(H$12, 'E2 Allocators'!$B$15:$W$15, 0),FALSE)*$D65 -> 0 | I65: =VLOOKUP('E4 TB Allocation Details'!$C76, 'E2 Allocators'!$B$15:$W$285, MATCH(I$12, 'E2 Allocators'!$B$15:$W$15, 0),FALSE)*$D65 -> 0 | J65: =VLOOKUP('E4 TB Allocation Details'!$C76, 'E2 Allocators'!$B$15:$W$285, MATCH(J$12, 'E2 Allocators'!$B$15:$W$15, 0),FALSE)*$D65 -> 0 | K65: =VLOOKUP('E4 TB Allocation Details'!$C76, 'E2 Allocators'!$B$15:$W$285, MATCH(K$12, 'E2 Allocators'!$B$15:$W$15, 0),FALSE)*$D65 -> 0 | L65: =VLOOKUP('E4 TB Allocation Details'!$C76, 'E2 Allocators'!$B$15:$W$285, MATCH(L$12, 'E2 Allocators'!$B$15:$W$15, 0),FALSE)*$D65 -> 0 | M65: =VLOOKUP('E4 TB Allocation Details'!$C76, 'E2 Allocators'!$B$15:$W$285, MATCH(M$12, 'E2 Allocators'!$B$15:$W$15, 0),FALSE)*$D65 -> 0 | N65: =VLOOKUP('E4 TB Allocation Details'!$C76, 'E2 Allocators'!$B$15:$W$285, MATCH(N$12, 'E2 Allocators'!$B$15:$W$15, 0),FALSE)*$D65 -> 0 | O65: =VLOOKUP('E4 TB Allocation Details'!$C76, 'E2 Allocators'!$B$15:$W$285, MATCH(O$12, 'E2 Allocators'!$B$15:$W$15, 0),FALSE)*$D65 -> 0 | P65: =VLOOKUP('E4 TB Allocation Details'!$C76, 'E2 Allocators'!$B$15:$W$285, MATCH(P$12, 'E2 Allocators'!$B$15:$W$15, 0),FALSE)*$D65 -> 0 | Q65: =VLOOKUP('E4 TB Allocation Details'!$C76, 'E2 Allocators'!$B$15:$W$285, MATCH(Q$12, 'E2 Allocators'!$B$15:$W$15, 0),FALSE)*$D65 -> 0 | R65: =VLOOKUP('E4 TB Allocation Details'!$C76, 'E2 Allocators'!$B$15:$W$285, MATCH(R$12, 'E2 Allocators'!$B$15:$W$15, 0),FALSE)*$D65 -> 0 | S65: =VLOOKUP('E4 TB Allocation Details'!$C76, 'E2 Allocators'!$B$15:$W$285, MATCH(S$12, 'E2 Allocators'!$B$15:$W$15, 0),FALSE)*$D65 -> 0 | T65: =VLOOKUP('E4 TB Allocation Details'!$C76, 'E2 Allocators'!$B$15:$W$285, MATCH(T$12, 'E2 Allocators'!$B$15:$W$15, 0),FALSE)*$D65 -> 0 | U65: =VLOOKUP('E4 TB Allocation Details'!$C76, 'E2 Allocators'!$B$15:$W$285, MATCH(U$12, 'E2 Allocators'!$B$15:$W$15, 0),FALSE)*$D65 -> 0 | V65: =VLOOKUP('E4 TB Allocation Details'!$C76, 'E2 Allocators'!$B$15:$W$285, MATCH(V$12, 'E2 Allocators'!$B$15:$W$15, 0),FALSE)*$D65 -> 0 | W65: =VLOOKUP('E4 TB Allocation Details'!$C76, 'E2 Allocators'!$B$15:$W$285, MATCH(W$12, 'E2 Allocators'!$B$15:$W$15, 0),FALSE)*$D65 -> 0 | X65: =VLOOKUP('E4 TB Allocation Details'!$C76, 'E2 Allocators'!$B$15:$W$285, MATCH(X$12, 'E2 Allocators'!$B$15:$W$15, 0),FALSE)*$D65 -> 0
B66: ='I3 TB Data'!B72 -> Export Revenue Credit - Network - Shared | C66: ERC | D66: ='I3 TB Data'!G72 -> 0 | E66: =VLOOKUP('E4 TB Allocation Details'!$C77, 'E2 Allocators'!$B$15:$W$285, MATCH(E$12, 'E2 Allocators'!$B$15:$W$15, 0),FALSE)*$D66 -> 0 | F66: =VLOOKUP('E4 TB Allocation Details'!$C77, 'E2 Allocators'!$B$15:$W$285, MATCH(F$12, 'E2 Allocators'!$B$15:$W$15, 0),FALSE)*$D66 -> 0 | G66: =VLOOKUP('E4 TB Allocation Details'!$C77, 'E2 Allocators'!$B$15:$W$285, MATCH(G$12, 'E2 Allocators'!$B$15:$W$15, 0),FALSE)*$D66 -> 0 | H66: =VLOOKUP('E4 TB Allocation Details'!$C77, 'E2 Allocators'!$B$15:$W$285, MATCH(H$12, 'E2 Allocators'!$B$15:$W$15, 0),FALSE)*$D66 -> 0 | I66: =VLOOKUP('E4 TB Allocation Details'!$C77, 'E2 Allocators'!$B$15:$W$285, MATCH(I$12, 'E2 Allocators'!$B$15:$W$15, 0),FALSE)*$D66 -> 0 | J66: =VLOOKUP('E4 TB Allocation Details'!$C77, 'E2 Allocators'!$B$15:$W$285, MATCH(J$12, 'E2 Allocators'!$B$15:$W$15, 0),FALSE)*$D66 -> 0 | K66: =VLOOKUP('E4 TB Allocation Details'!$C77, 'E2 Allocators'!$B$15:$W$285, MATCH(K$12, 'E2 Allocators'!$B$15:$W$15, 0),FALSE)*$D66 -> 0 | L66: =VLOOKUP('E4 TB Allocation Details'!$C77, 'E2 Allocators'!$B$15:$W$285, MATCH(L$12, 'E2 Allocators'!$B$15:$W$15, 0),FALSE)*$D66 -> 0 | M66: =VLOOKUP('E4 TB Allocation Details'!$C77, 'E2 Allocators'!$B$15:$W$285, MATCH(M$12, 'E2 Allocators'!$B$15:$W$15, 0),FALSE)*$D66 -> 0 | N66: =VLOOKUP('E4 TB Allocation Details'!$C77, 'E2 Allocators'!$B$15:$W$285, MATCH(N$12, 'E2 Allocators'!$B$15:$W$15, 0),FALSE)*$D66 -> 0 | O66: =VLOOKUP('E4 TB Allocation Details'!$C77, 'E2 Allocators'!$B$15:$W$285, MATCH(O$12, 'E2 Allocators'!$B$15:$W$15, 0),FALSE)*$D66 -> 0 | P66: =VLOOKUP('E4 TB Allocation Details'!$C77, 'E2 Allocators'!$B$15:$W$285, MATCH(P$12, 'E2 Allocators'!$B$15:$W$15, 0),FALSE)*$D66 -> 0 | Q66: =VLOOKUP('E4 TB Allocation Details'!$C77, 'E2 Allocators'!$B$15:$W$285, MATCH(Q$12, 'E2 Allocators'!$B$15:$W$15, 0),FALSE)*$D66 -> 0 | R66: =VLOOKUP('E4 TB Allocation Details'!$C77, 'E2 Allocators'!$B$15:$W$285, MATCH(R$12, 'E2 Allocators'!$B$15:$W$15, 0),FALSE)*$D66 -> 0 | S66: =VLOOKUP('E4 TB Allocation Details'!$C77, 'E2 Allocators'!$B$15:$W$285, MATCH(S$12, 'E2 Allocators'!$B$15:$W$15, 0),FALSE)*$D66 -> 0 | T66: =VLOOKUP('E4 TB Allocation Details'!$C77, 'E2 Allocators'!$B$15:$W$285, MATCH(T$12, 'E2 Allocators'!$B$15:$W$15, 0),FALSE)*$D66 -> 0 | U66: =VLOOKUP('E4 TB Allocation Details'!$C77, 'E2 Allocators'!$B$15:$W$285, MATCH(U$12, 'E2 Allocators'!$B$15:$W$15, 0),FALSE)*$D66 -> 0 | V66: =VLOOKUP('E4 TB Allocation Details'!$C77, 'E2 Allocators'!$B$15:$W$285, MATCH(V$12, 'E2 Allocators'!$B$15:$W$15, 0),FALSE)*$D66 -> 0 | W66: =VLOOKUP('E4 TB Allocation Details'!$C77, 'E2 Allocators'!$B$15:$W$285, MATCH(W$12, 'E2 Allocators'!$B$15:$W$15, 0),FALSE)*$D66 -> 0 | X66: =VLOOKUP('E4 TB Allocation Details'!$C77, 'E2 Allocators'!$B$15:$W$285, MATCH(X$12, 'E2 Allocators'!$B$15:$W$15, 0),FALSE)*$D66 -> 0
B67: ='I3 TB Data'!B73 -> Export Revenue Credit - Line Connection - Dedicated to Domestic | C67: ERC | D67: ='I3 TB Data'!G73 -> 0 | E67: =VLOOKUP('E4 TB Allocation Details'!$C78, 'E2 Allocators'!$B$15:$W$285, MATCH(E$12, 'E2 Allocators'!$B$15:$W$15, 0),FALSE)*$D67 -> 0 | F67: =VLOOKUP('E4 TB Allocation Details'!$C78, 'E2 Allocators'!$B$15:$W$285, MATCH(F$12, 'E2 Allocators'!$B$15:$W$15, 0),FALSE)*$D67 -> 0 | G67: =VLOOKUP('E4 TB Allocation Details'!$C78, 'E2 Allocators'!$B$15:$W$285, MATCH(G$12, 'E2 Allocators'!$B$15:$W$15, 0),FALSE)*$D67 -> 0 | H67: =VLOOKUP('E4 TB Allocation Details'!$C78, 'E2 Allocators'!$B$15:$W$285, MATCH(H$12, 'E2 Allocators'!$B$15:$W$15, 0),FALSE)*$D67 -> 0 | I67: =VLOOKUP('E4 TB Allocation Details'!$C78, 'E2 Allocators'!$B$15:$W$285, MATCH(I$12, 'E2 Allocators'!$B$15:$W$15, 0),FALSE)*$D67 -> 0 | J67: =VLOOKUP('E4 TB Allocation Details'!$C78, 'E2 Allocators'!$B$15:$W$285, MATCH(J$12, 'E2 Allocators'!$B$15:$W$15, 0),FALSE)*$D67 -> 0 | K67: =VLOOKUP('E4 TB Allocation Details'!$C78, 'E2 Allocators'!$B$15:$W$285, MATCH(K$12, 'E2 Allocators'!$B$15:$W$15, 0),FALSE)*$D67 -> 0 | L67: =VLOOKUP('E4 TB Allocation Details'!$C78, 'E2 Allocators'!$B$15:$W$285, MATCH(L$12, 'E2 Allocators'!$B$15:$W$15, 0),FALSE)*$D67 -> 0 | M67: =VLOOKUP('E4 TB Allocation Details'!$C78, 'E2 Allocators'!$B$15:$W$285, MATCH(M$12, 'E2 Allocators'!$B$15:$W$15, 0),FALSE)*$D67 -> 0 | N67: =VLOOKUP('E4 TB Allocation Details'!$C78, 'E2 Allocators'!$B$15:$W$285, MATCH(N$12, 'E2 Allocators'!$B$15:$W$15, 0),FALSE)*$D67 -> 0 | O67: =VLOOKUP('E4 TB Allocation Details'!$C78, 'E2 Allocators'!$B$15:$W$285, MATCH(O$12, 'E2 Allocators'!$B$15:$W$15, 0),FALSE)*$D67 -> 0 | P67: =VLOOKUP('E4 TB Allocation Details'!$C78, 'E2 Allocators'!$B$15:$W$285, MATCH(P$12, 'E2 Allocators'!$B$15:$W$15, 0),FALSE)*$D67 -> 0 | Q67: =VLOOKUP('E4 TB Allocation Details'!$C78, 'E2 Allocators'!$B$15:$W$285, MATCH(Q$12, 'E2 Allocators'!$B$15:$W$15, 0),FALSE)*$D67 -> 0 | R67: =VLOOKUP('E4 TB Allocation Details'!$C78, 'E2 Allocators'!$B$15:$W$285, MATCH(R$12, 'E2 Allocators'!$B$15:$W$15, 0),FALSE)*$D67 -> 0 | S67: =VLOOKUP('E4 TB Allocation Details'!$C78, 'E2 Allocators'!$B$15:$W$285, MATCH(S$12, 'E2 Allocators'!$B$15:$W$15, 0),FALSE)*$D67 -> 0 | T67: =VLOOKUP('E4 TB Allocation Details'!$C78, 'E2 Allocators'!$B$15:$W$285, MATCH(T$12, 'E2 Allocators'!$B$15:$W$15, 0),FALSE)*$D67 -> 0 | U67: =VLOOKUP('E4 TB Allocation Details'!$C78, 'E2 Allocators'!$B$15:$W$285, MATCH(U$12, 'E2 Allocators'!$B$15:$W$15, 0),FALSE)*$D67 -> 0 | V67: =VLOOKUP('E4 TB Allocation Details'!$C78, 'E2 Allocators'!$B$15:$W$285, MATCH(V$12, 'E2 Allocators'!$B$15:$W$15, 0),FALSE)*$D67 -> 0 | W67: =VLOOKUP('E4 TB Allocation Details'!$C78, 'E2 Allocators'!$B$15:$W$285, MATCH(W$12, 'E2 Allocators'!$B$15:$W$15, 0),FALSE)*$D67 -> 0 | X67: =VLOOKUP('E4 TB Allocation Details'!$C78, 'E2 Allocators'!$B$15:$W$285, MATCH(X$12, 'E2 Allocators'!$B$15:$W$15, 0),FALSE)*$D67 -> 0
B68: ='I3 TB Data'!B74 -> Export Revenue Credit - Line Connection - Dedicated to Interconnect | C68: ERC | D68: ='I3 TB Data'!G74 -> 0 | E68: =VLOOKUP('E4 TB Allocation Details'!$C79, 'E2 Allocators'!$B$15:$W$285, MATCH(E$12, 'E2 Allocators'!$B$15:$W$15, 0),FALSE)*$D68 -> 0 | F68: =VLOOKUP('E4 TB Allocation Details'!$C79, 'E2 Allocators'!$B$15:$W$285, MATCH(F$12, 'E2 Allocators'!$B$15:$W$15, 0),FALSE)*$D68 -> 0 | G68: =VLOOKUP('E4 TB Allocation Details'!$C79, 'E2 Allocators'!$B$15:$W$285, MATCH(G$12, 'E2 Allocators'!$B$15:$W$15, 0),FALSE)*$D68 -> 0 | H68: =VLOOKUP('E4 TB Allocation Details'!$C79, 'E2 Allocators'!$B$15:$W$285, MATCH(H$12, 'E2 Allocators'!$B$15:$W$15, 0),FALSE)*$D68 -> 0 | I68: =VLOOKUP('E4 TB Allocation Details'!$C79, 'E2 Allocators'!$B$15:$W$285, MATCH(I$12, 'E2 Allocators'!$B$15:$W$15, 0),FALSE)*$D68 -> 0 | J68: =VLOOKUP('E4 TB Allocation Details'!$C79, 'E2 Allocators'!$B$15:$W$285, MATCH(J$12, 'E2 Allocators'!$B$15:$W$15, 0),FALSE)*$D68 -> 0 | K68: =VLOOKUP('E4 TB Allocation Details'!$C79, 'E2 Allocators'!$B$15:$W$285, MATCH(K$12, 'E2 Allocators'!$B$15:$W$15, 0),FALSE)*$D68 -> 0 | L68: =VLOOKUP('E4 TB Allocation Details'!$C79, 'E2 Allocators'!$B$15:$W$285, MATCH(L$12, 'E2 Allocators'!$B$15:$W$15, 0),FALSE)*$D68 -> 0 | M68: =VLOOKUP('E4 TB Allocation Details'!$C79, 'E2 Allocators'!$B$15:$W$285, MATCH(M$12, 'E2 Allocators'!$B$15:$W$15, 0),FALSE)*$D68 -> 0 | N68: =VLOOKUP('E4 TB Allocation Details'!$C79, 'E2 Allocators'!$B$15:$W$285, MATCH(N$12, 'E2 Allocators'!$B$15:$W$15, 0),FALSE)*$D68 -> 0 | O68: =VLOOKUP('E4 TB Allocation Details'!$C79, 'E2 Allocators'!$B$15:$W$285, MATCH(O$12, 'E2 Allocators'!$B$15:$W$15, 0),FALSE)*$D68 -> 0 | P68: =VLOOKUP('E4 TB Allocation Details'!$C79, 'E2 Allocators'!$B$15:$W$285, MATCH(P$12, 'E2 Allocators'!$B$15:$W$15, 0),FALSE)*$D68 -> 0 | Q68: =VLOOKUP('E4 TB Allocation Details'!$C79, 'E2 Allocators'!$B$15:$W$285, MATCH(Q$12, 'E2 Allocators'!$B$15:$W$15, 0),FALSE)*$D68 -> 0 | R68: =VLOOKUP('E4 TB Allocation Details'!$C79, 'E2 Allocators'!$B$15:$W$285, MATCH(R$12, 'E2 Allocators'!$B$15:$W$15, 0),FALSE)*$D68 -> 0 | S68: =VLOOKUP('E4 TB Allocation Details'!$C79, 'E2 Allocators'!$B$15:$W$285, MATCH(S$12, 'E2 Allocators'!$B$15:$W$15, 0),FALSE)*$D68 -> 0 | T68: =VLOOKUP('E4 TB Allocation Details'!$C79, 'E2 Allocators'!$B$15:$W$285, MATCH(T$12, 'E2 Allocators'!$B$15:$W$15, 0),FALSE)*$D68 -> 0 | U68: =VLOOKUP('E4 TB Allocation Details'!$C79, 'E2 Allocators'!$B$15:$W$285, MATCH(U$12, 'E2 Allocators'!$B$15:$W$15, 0),FALSE)*$D68 -> 0 | V68: =VLOOKUP('E4 TB Allocation Details'!$C79, 'E2 Allocators'!$B$15:$W$285, MATCH(V$12, 'E2 Allocators'!$B$15:$W$15, 0),FALSE)*$D68 -> 0 | W68: =VLOOKUP('E4 TB Allocation Details'!$C79, 'E2 Allocators'!$B$15:$W$285, MATCH(W$12, 'E2 Allocators'!$B$15:$W$15, 0),FALSE)*$D68 -> 0 | X68: =VLOOKUP('E4 TB Allocation Details'!$C79, 'E2 Allocators'!$B$15:$W$285, MATCH(X$12, 'E2 Allocators'!$B$15:$W$15, 0),FALSE)*$D68 -> 0
B69: ='I3 TB Data'!B75 -> Export Revenue Credit - Line Connection - Shared | C69: ERC | D69: ='I3 TB Data'!G75 -> 0 | E69: =VLOOKUP('E4 TB Allocation Details'!$C80, 'E2 Allocators'!$B$15:$W$285, MATCH(E$12, 'E2 Allocators'!$B$15:$W$15, 0),FALSE)*$D69 -> 0 | F69: =VLOOKUP('E4 TB Allocation Details'!$C80, 'E2 Allocators'!$B$15:$W$285, MATCH(F$12, 'E2 Allocators'!$B$15:$W$15, 0),FALSE)*$D69 -> 0 | G69: =VLOOKUP('E4 TB Allocation Details'!$C80, 'E2 Allocators'!$B$15:$W$285, MATCH(G$12, 'E2 Allocators'!$B$15:$W$15, 0),FALSE)*$D69 -> 0 | H69: =VLOOKUP('E4 TB Allocation Details'!$C80, 'E2 Allocators'!$B$15:$W$285, MATCH(H$12, 'E2 Allocators'!$B$15:$W$15, 0),FALSE)*$D69 -> 0 | I69: =VLOOKUP('E4 TB Allocation Details'!$C80, 'E2 Allocators'!$B$15:$W$285, MATCH(I$12, 'E2 Allocators'!$B$15:$W$15, 0),FALSE)*$D69 -> 0 | J69: =VLOOKUP('E4 TB Allocation Details'!$C80, 'E2 Allocators'!$B$15:$W$285, MATCH(J$12, 'E2 Allocators'!$B$15:$W$15, 0),FALSE)*$D69 -> 0 | K69: =VLOOKUP('E4 TB Allocation Details'!$C80, 'E2 Allocators'!$B$15:$W$285, MATCH(K$12, 'E2 Allocators'!$B$15:$W$15, 0),FALSE)*$D69 -> 0 | L69: =VLOOKUP('E4 TB Allocation Details'!$C80, 'E2 Allocators'!$B$15:$W$285, MATCH(L$12, 'E2 Allocators'!$B$15:$W$15, 0),FALSE)*$D69 -> 0 | M69: =VLOOKUP('E4 TB Allocation Details'!$C80, 'E2 Allocators'!$B$15:$W$285, MATCH(M$12, 'E2 Allocators'!$B$15:$W$15, 0),FALSE)*$D69 -> 0 | N69: =VLOOKUP('E4 TB Allocation Details'!$C80, 'E2 Allocators'!$B$15:$W$285, MATCH(N$12, 'E2 Allocators'!$B$15:$W$15, 0),FALSE)*$D69 -> 0 | O69: =VLOOKUP('E4 TB Allocation Details'!$C80, 'E2 Allocators'!$B$15:$W$285, MATCH(O$12, 'E2 Allocators'!$B$15:$W$15, 0),FALSE)*$D69 -> 0 | P69: =VLOOKUP('E4 TB Allocation Details'!$C80, 'E2 Allocators'!$B$15:$W$285, MATCH(P$12, 'E2 Allocators'!$B$15:$W$15, 0),FALSE)*$D69 -> 0 | Q69: =VLOOKUP('E4 TB Allocation Details'!$C80, 'E2 Allocators'!$B$15:$W$285, MATCH(Q$12, 'E2 Allocators'!$B$15:$W$15, 0),FALSE)*$D69 -> 0 | R69: =VLOOKUP('E4 TB Allocation Details'!$C80, 'E2 Allocators'!$B$15:$W$285, MATCH(R$12, 'E2 Allocators'!$B$15:$W$15, 0),FALSE)*$D69 -> 0 | S69: =VLOOKUP('E4 TB Allocation Details'!$C80, 'E2 Allocators'!$B$15:$W$285, MATCH(S$12, 'E2 Allocators'!$B$15:$W$15, 0),FALSE)*$D69 -> 0 | T69: =VLOOKUP('E4 TB Allocation Details'!$C80, 'E2 Allocators'!$B$15:$W$285, MATCH(T$12, 'E2 Allocators'!$B$15:$W$15, 0),FALSE)*$D69 -> 0 | U69: =VLOOKUP('E4 TB Allocation Details'!$C80, 'E2 Allocators'!$B$15:$W$285, MATCH(U$12, 'E2 Allocators'!$B$15:$W$15, 0),FALSE)*$D69 -> 0 | V69: =VLOOKUP('E4 TB Allocation Details'!$C80, 'E2 Allocators'!$B$15:$W$285, MATCH(V$12, 'E2 Allocators'!$B$15:$W$15, 0),FALSE)*$D69 -> 0 | W69: =VLOOKUP('E4 TB Allocation Details'!$C80, 'E2 Allocators'!$B$15:$W$285, MATCH(W$12, 'E2 Allocators'!$B$15:$W$15, 0),FALSE)*$D69 -> 0 | X69: =VLOOKUP('E4 TB Allocation Details'!$C80, 'E2 Allocators'!$B$15:$W$285, MATCH(X$12, 'E2 Allocators'!$B$15:$W$15, 0),FALSE)*$D69 -> 0
B70: ='I3 TB Data'!B76 -> Export Revenue Credit - Transformer Connection - Dedicated to Domestic | C70: ERC | D70: ='I3 TB Data'!G76 -> 0 | E70: =VLOOKUP('E4 TB Allocation Details'!$C81, 'E2 Allocators'!$B$15:$W$285, MATCH(E$12, 'E2 Allocators'!$B$15:$W$15, 0),FALSE)*$D70 -> 0 | F70: =VLOOKUP('E4 TB Allocation Details'!$C81, 'E2 Allocators'!$B$15:$W$285, MATCH(F$12, 'E2 Allocators'!$B$15:$W$15, 0),FALSE)*$D70 -> 0 | G70: =VLOOKUP('E4 TB Allocation Details'!$C81, 'E2 Allocators'!$B$15:$W$285, MATCH(G$12, 'E2 Allocators'!$B$15:$W$15, 0),FALSE)*$D70 -> 0 | H70: =VLOOKUP('E4 TB Allocation Details'!$C81, 'E2 Allocators'!$B$15:$W$285, MATCH(H$12, 'E2 Allocators'!$B$15:$W$15, 0),FALSE)*$D70 -> 0 | I70: =VLOOKUP('E4 TB Allocation Details'!$C81, 'E2 Allocators'!$B$15:$W$285, MATCH(I$12, 'E2 Allocators'!$B$15:$W$15, 0),FALSE)*$D70 -> 0 | J70: =VLOOKUP('E4 TB Allocation Details'!$C81, 'E2 Allocators'!$B$15:$W$285, MATCH(J$12, 'E2 Allocators'!$B$15:$W$15, 0),FALSE)*$D70 -> 0 | K70: =VLOOKUP('E4 TB Allocation Details'!$C81, 'E2 Allocators'!$B$15:$W$285, MATCH(K$12, 'E2 Allocators'!$B$15:$W$15, 0),FALSE)*$D70 -> 0 | L70: =VLOOKUP('E4 TB Allocation Details'!$C81, 'E2 Allocators'!$B$15:$W$285, MATCH(L$12, 'E2 Allocators'!$B$15:$W$15, 0),FALSE)*$D70 -> 0 | M70: =VLOOKUP('E4 TB Allocation Details'!$C81, 'E2 Allocators'!$B$15:$W$285, MATCH(M$12, 'E2 Allocators'!$B$15:$W$15, 0),FALSE)*$D70 -> 0 | N70: =VLOOKUP('E4 TB Allocation Details'!$C81, 'E2 Allocators'!$B$15:$W$285, MATCH(N$12, 'E2 Allocators'!$B$15:$W$15, 0),FALSE)*$D70 -> 0 | O70: =VLOOKUP('E4 TB Allocation Details'!$C81, 'E2 Allocators'!$B$15:$W$285, MATCH(O$12, 'E2 Allocators'!$B$15:$W$15, 0),FALSE)*$D70 -> 0 | P70: =VLOOKUP('E4 TB Allocation Details'!$C81, 'E2 Allocators'!$B$15:$W$285, MATCH(P$12, 'E2 Allocators'!$B$15:$W$15, 0),FALSE)*$D70 -> 0 | Q70: =VLOOKUP('E4 TB Allocation Details'!$C81, 'E2 Allocators'!$B$15:$W$285, MATCH(Q$12, 'E2 Allocators'!$B$15:$W$15, 0),FALSE)*$D70 -> 0 | R70: =VLOOKUP('E4 TB Allocation Details'!$C81, 'E2 Allocators'!$B$15:$W$285, MATCH(R$12, 'E2 Allocators'!$B$15:$W$15, 0),FALSE)*$D70 -> 0 | S70: =VLOOKUP('E4 TB Allocation Details'!$C81, 'E2 Allocators'!$B$15:$W$285, MATCH(S$12, 'E2 Allocators'!$B$15:$W$15, 0),FALSE)*$D70 -> 0 | T70: =VLOOKUP('E4 TB Allocation Details'!$C81, 'E2 Allocators'!$B$15:$W$285, MATCH(T$12, 'E2 Allocators'!$B$15:$W$15, 0),FALSE)*$D70 -> 0 | U70: =VLOOKUP('E4 TB Allocation Details'!$C81, 'E2 Allocators'!$B$15:$W$285, MATCH(U$12, 'E2 Allocators'!$B$15:$W$15, 0),FALSE)*$D70 -> 0 | V70: =VLOOKUP('E4 TB Allocation Details'!$C81, 'E2 Allocators'!$B$15:$W$285, MATCH(V$12, 'E2 Allocators'!$B$15:$W$15, 0),FALSE)*$D70 -> 0 | W70: =VLOOKUP('E4 TB Allocation Details'!$C81, 'E2 Allocators'!$B$15:$W$285, MATCH(W$12, 'E2 Allocators'!$B$15:$W$15, 0),FALSE)*$D70 -> 0 | X70: =VLOOKUP('E4 TB Allocation Details'!$C81, 'E2 Allocators'!$B$15:$W$285, MATCH(X$12, 'E2 Allocators'!$B$15:$W$15, 0),FALSE)*$D70 -> 0
B71: ='I3 TB Data'!B77 -> Export Revenue Credit - Transformer Connection - Dedicated to Interconnect | C71: ERC | D71: ='I3 TB Data'!G77 -> 0 | E71: =VLOOKUP('E4 TB Allocation Details'!$C82, 'E2 Allocators'!$B$15:$W$285, MATCH(E$12, 'E2 Allocators'!$B$15:$W$15, 0),FALSE)*$D71 -> 0 | F71: =VLOOKUP('E4 TB Allocation Details'!$C82, 'E2 Allocators'!$B$15:$W$285, MATCH(F$12, 'E2 Allocators'!$B$15:$W$15, 0),FALSE)*$D71 -> 0 | G71: =VLOOKUP('E4 TB Allocation Details'!$C82, 'E2 Allocators'!$B$15:$W$285, MATCH(G$12, 'E2 Allocators'!$B$15:$W$15, 0),FALSE)*$D71 -> 0 | H71: =VLOOKUP('E4 TB Allocation Details'!$C82, 'E2 Allocators'!$B$15:$W$285, MATCH(H$12, 'E2 Allocators'!$B$15:$W$15, 0),FALSE)*$D71 -> 0 | I71: =VLOOKUP('E4 TB Allocation Details'!$C82, 'E2 Allocators'!$B$15:$W$285, MATCH(I$12, 'E2 Allocators'!$B$15:$W$15, 0),FALSE)*$D71 -> 0 | J71: =VLOOKUP('E4 TB Allocation Details'!$C82, 'E2 Allocators'!$B$15:$W$285, MATCH(J$12, 'E2 Allocators'!$B$15:$W$15, 0),FALSE)*$D71 -> 0 | K71: =VLOOKUP('E4 TB Allocation Details'!$C82, 'E2 Allocators'!$B$15:$W$285, MATCH(K$12, 'E2 Allocators'!$B$15:$W$15, 0),FALSE)*$D71 -> 0 | L71: =VLOOKUP('E4 TB Allocation Details'!$C82, 'E2 Allocators'!$B$15:$W$285, MATCH(L$12, 'E2 Allocators'!$B$15:$W$15, 0),FALSE)*$D71 -> 0 | M71: =VLOOKUP('E4 TB Allocation Details'!$C82, 'E2 Allocators'!$B$15:$W$285, MATCH(M$12, 'E2 Allocators'!$B$15:$W$15, 0),FALSE)*$D71 -> 0 | N71: =VLOOKUP('E4 TB Allocation Details'!$C82, 'E2 Allocators'!$B$15:$W$285, MATCH(N$12, 'E2 Allocators'!$B$15:$W$15, 0),FALSE)*$D71 -> 0 | O71: =VLOOKUP('E4 TB Allocation Details'!$C82, 'E2 Allocators'!$B$15:$W$285, MATCH(O$12, 'E2 Allocators'!$B$15:$W$15, 0),FALSE)*$D71 -> 0 | P71: =VLOOKUP('E4 TB Allocation Details'!$C82, 'E2 Allocators'!$B$15:$W$285, MATCH(P$12, 'E2 Allocators'!$B$15:$W$15, 0),FALSE)*$D71 -> 0 | Q71: =VLOOKUP('E4 TB Allocation Details'!$C82, 'E2 Allocators'!$B$15:$W$285, MATCH(Q$12, 'E2 Allocators'!$B$15:$W$15, 0),FALSE)*$D71 -> 0 | R71: =VLOOKUP('E4 TB Allocation Details'!$C82, 'E2 Allocators'!$B$15:$W$285, MATCH(R$12, 'E2 Allocators'!$B$15:$W$15, 0),FALSE)*$D71 -> 0 | S71: =VLOOKUP('E4 TB Allocation Details'!$C82, 'E2 Allocators'!$B$15:$W$285, MATCH(S$12, 'E2 Allocators'!$B$15:$W$15, 0),FALSE)*$D71 -> 0 | T71: =VLOOKUP('E4 TB Allocation Details'!$C82, 'E2 Allocators'!$B$15:$W$285, MATCH(T$12, 'E2 Allocators'!$B$15:$W$15, 0),FALSE)*$D71 -> 0 | U71: =VLOOKUP('E4 TB Allocation Details'!$C82, 'E2 Allocators'!$B$15:$W$285, MATCH(U$12, 'E2 Allocators'!$B$15:$W$15, 0),FALSE)*$D71 -> 0 | V71: =VLOOKUP('E4 TB Allocation Details'!$C82, 'E2 Allocators'!$B$15:$W$285, MATCH(V$12, 'E2 Allocators'!$B$15:$W$15, 0),FALSE)*$D71 -> 0 | W71: =VLOOKUP('E4 TB Allocation Details'!$C82, 'E2 Allocators'!$B$15:$W$285, MATCH(W$12, 'E2 Allocators'!$B$15:$W$15, 0),FALSE)*$D71 -> 0 | X71: =VLOOKUP('E4 TB Allocation Details'!$C82, 'E2 Allocators'!$B$15:$W$285, MATCH(X$12, 'E2 Allocators'!$B$15:$W$15, 0),FALSE)*$D71 -> 0
B72: ='I3 TB Data'!B78 -> Export Revenue Credit - Transformer Connection - Shared | C72: ERC | D72: ='I3 TB Data'!G78 -> 0 | E72: =VLOOKUP('E4 TB Allocation Details'!$C83, 'E2 Allocators'!$B$15:$W$285, MATCH(E$12, 'E2 Allocators'!$B$15:$W$15, 0),FALSE)*$D72 -> 0 | F72: =VLOOKUP('E4 TB Allocation Details'!$C83, 'E2 Allocators'!$B$15:$W$285, MATCH(F$12, 'E2 Allocators'!$B$15:$W$15, 0),FALSE)*$D72 -> 0 | G72: =VLOOKUP('E4 TB Allocation Details'!$C83, 'E2 Allocators'!$B$15:$W$285, MATCH(G$12, 'E2 Allocators'!$B$15:$W$15, 0),FALSE)*$D72 -> 0 | H72: =VLOOKUP('E4 TB Allocation Details'!$C83, 'E2 Allocators'!$B$15:$W$285, MATCH(H$12, 'E2 Allocators'!$B$15:$W$15, 0),FALSE)*$D72 -> 0 | I72: =VLOOKUP('E4 TB Allocation Details'!$C83, 'E2 Allocators'!$B$15:$W$285, MATCH(I$12, 'E2 Allocators'!$B$15:$W$15, 0),FALSE)*$D72 -> 0 | J72: =VLOOKUP('E4 TB Allocation Details'!$C83, 'E2 Allocators'!$B$15:$W$285, MATCH(J$12, 'E2 Allocators'!$B$15:$W$15, 0),FALSE)*$D72 -> 0 | K72: =VLOOKUP('E4 TB Allocation Details'!$C83, 'E2 Allocators'!$B$15:$W$285, MATCH(K$12, 'E2 Allocators'!$B$15:$W$15, 0),FALSE)*$D72 -> 0 | L72: =VLOOKUP('E4 TB Allocation Details'!$C83, 'E2 Allocators'!$B$15:$W$285, MATCH(L$12, 'E2 Allocators'!$B$15:$W$15, 0),FALSE)*$D72 -> 0 | M72: =VLOOKUP('E4 TB Allocation Details'!$C83, 'E2 Allocators'!$B$15:$W$285, MATCH(M$12, 'E2 Allocators'!$B$15:$W$15, 0),FALSE)*$D72 -> 0 | N72: =VLOOKUP('E4 TB Allocation Details'!$C83, 'E2 Allocators'!$B$15:$W$285, MATCH(N$12, 'E2 Allocators'!$B$15:$W$15, 0),FALSE)*$D72 -> 0 | O72: =VLOOKUP('E4 TB Allocation Details'!$C83, 'E2 Allocators'!$B$15:$W$285, MATCH(O$12, 'E2 Allocators'!$B$15:$W$15, 0),FALSE)*$D72 -> 0 | P72: =VLOOKUP('E4 TB Allocation Details'!$C83, 'E2 Allocators'!$B$15:$W$285, MATCH(P$12, 'E2 Allocators'!$B$15:$W$15, 0),FALSE)*$D72 -> 0 | Q72: =VLOOKUP('E4 TB Allocation Details'!$C83, 'E2 Allocators'!$B$15:$W$285, MATCH(Q$12, 'E2 Allocators'!$B$15:$W$15, 0),FALSE)*$D72 -> 0 | R72: =VLOOKUP('E4 TB Allocation Details'!$C83, 'E2 Allocators'!$B$15:$W$285, MATCH(R$12, 'E2 Allocators'!$B$15:$W$15, 0),FALSE)*$D72 -> 0 | S72: =VLOOKUP('E4 TB Allocation Details'!$C83, 'E2 Allocators'!$B$15:$W$285, MATCH(S$12, 'E2 Allocators'!$B$15:$W$15, 0),FALSE)*$D72 -> 0 | T72: =VLOOKUP('E4 TB Allocation Details'!$C83, 'E2 Allocators'!$B$15:$W$285, MATCH(T$12, 'E2 Allocators'!$B$15:$W$15, 0),FALSE)*$D72 -> 0 | U72: =VLOOKUP('E4 TB Allocation Details'!$C83, 'E2 Allocators'!$B$15:$W$285, MATCH(U$12, 'E2 Allocators'!$B$15:$W$15, 0),FALSE)*$D72 -> 0 | V72: =VLOOKUP('E4 TB Allocation Details'!$C83, 'E2 Allocators'!$B$15:$W$285, MATCH(V$12, 'E2 Allocators'!$B$15:$W$15, 0),FALSE)*$D72 -> 0 | W72: =VLOOKUP('E4 TB Allocation Details'!$C83, 'E2 Allocators'!$B$15:$W$285, MATCH(W$12, 'E2 Allocators'!$B$15:$W$15, 0),FALSE)*$D72 -> 0 | X72: =VLOOKUP('E4 TB Allocation Details'!$C83, 'E2 Allocators'!$B$15:$W$285, MATCH(X$12, 'E2 Allocators'!$B$15:$W$15, 0),FALSE)*$D72 -> 0
B73: ='I3 TB Data'!B79 -> Export Revenue Credit - Wholesale Revenue Meter - Dedicated to Domestic | C73: ERC | D73: ='I3 TB Data'!G79 -> 0 | E73: =VLOOKUP('E4 TB Allocation Details'!$C84, 'E2 Allocators'!$B$15:$W$285, MATCH(E$12, 'E2 Allocators'!$B$15:$W$15, 0),FALSE)*$D73 -> 0 | F73: =VLOOKUP('E4 TB Allocation Details'!$C84, 'E2 Allocators'!$B$15:$W$285, MATCH(F$12, 'E2 Allocators'!$B$15:$W$15, 0),FALSE)*$D73 -> 0 | G73: =VLOOKUP('E4 TB Allocation Details'!$C84, 'E2 Allocators'!$B$15:$W$285, MATCH(G$12, 'E2 Allocators'!$B$15:$W$15, 0),FALSE)*$D73 -> 0 | H73: =VLOOKUP('E4 TB Allocation Details'!$C84, 'E2 Allocators'!$B$15:$W$285, MATCH(H$12, 'E2 Allocators'!$B$15:$W$15, 0),FALSE)*$D73 -> 0 | I73: =VLOOKUP('E4 TB Allocation Details'!$C84, 'E2 Allocators'!$B$15:$W$285, MATCH(I$12, 'E2 Allocators'!$B$15:$W$15, 0),FALSE)*$D73 -> 0 | J73: =VLOOKUP('E4 TB Allocation Details'!$C84, 'E2 Allocators'!$B$15:$W$285, MATCH(J$12, 'E2 Allocators'!$B$15:$W$15, 0),FALSE)*$D73 -> 0 | K73: =VLOOKUP('E4 TB Allocation Details'!$C84, 'E2 Allocators'!$B$15:$W$285, MATCH(K$12, 'E2 Allocators'!$B$15:$W$15, 0),FALSE)*$D73 -> 0 | L73: =VLOOKUP('E4 TB Allocation Details'!$C84, 'E2 Allocators'!$B$15:$W$285, MATCH(L$12, 'E2 Allocators'!$B$15:$W$15, 0),FALSE)*$D73 -> 0 | M73: =VLOOKUP('E4 TB Allocation Details'!$C84, 'E2 Allocators'!$B$15:$W$285, MATCH(M$12, 'E2 Allocators'!$B$15:$W$15, 0),FALSE)*$D73 -> 0 | N73: =VLOOKUP('E4 TB Allocation Details'!$C84, 'E2 Allocators'!$B$15:$W$285, MATCH(N$12, 'E2 Allocators'!$B$15:$W$15, 0),FALSE)*$D73 -> 0 | O73: =VLOOKUP('E4 TB Allocation Details'!$C84, 'E2 Allocators'!$B$15:$W$285, MATCH(O$12, 'E2 Allocators'!$B$15:$W$15, 0),FALSE)*$D73 -> 0 | P73: =VLOOKUP('E4 TB Allocation Details'!$C84, 'E2 Allocators'!$B$15:$W$285, MATCH(P$12, 'E2 Allocators'!$B$15:$W$15, 0),FALSE)*$D73 -> 0 | Q73: =VLOOKUP('E4 TB Allocation Details'!$C84, 'E2 Allocators'!$B$15:$W$285, MATCH(Q$12, 'E2 Allocators'!$B$15:$W$15, 0),FALSE)*$D73 -> 0 | R73: =VLOOKUP('E4 TB Allocation Details'!$C84, 'E2 Allocators'!$B$15:$W$285, MATCH(R$12, 'E2 Allocators'!$B$15:$W$15, 0),FALSE)*$D73 -> 0 | S73: =VLOOKUP('E4 TB Allocation Details'!$C84, 'E2 Allocators'!$B$15:$W$285, MATCH(S$12, 'E2 Allocators'!$B$15:$W$15, 0),FALSE)*$D73 -> 0 | T73: =VLOOKUP('E4 TB Allocation Details'!$C84, 'E2 Allocators'!$B$15:$W$285, MATCH(T$12, 'E2 Allocators'!$B$15:$W$15, 0),FALSE)*$D73 -> 0 | U73: =VLOOKUP('E4 TB Allocation Details'!$C84, 'E2 Allocators'!$B$15:$W$285, MATCH(U$12, 'E2 Allocators'!$B$15:$W$15, 0),FALSE)*$D73 -> 0 | V73: =VLOOKUP('E4 TB Allocation Details'!$C84, 'E2 Allocators'!$B$15:$W$285, MATCH(V$12, 'E2 Allocators'!$B$15:$W$15, 0),FALSE)*$D73 -> 0 | W73: =VLOOKUP('E4 TB Allocation Details'!$C84, 'E2 Allocators'!$B$15:$W$285, MATCH(W$12, 'E2 Allocators'!$B$15:$W$15, 0),FALSE)*$D73 -> 0 | X73: =VLOOKUP('E4 TB Allocation Details'!$C84, 'E2 Allocators'!$B$15:$W$285, MATCH(X$12, 'E2 Allocators'!$B$15:$W$15, 0),FALSE)*$D73 -> 0
B74: ='I3 TB Data'!B80 -> Export Revenue Credit - Wholesale Revenue Meter - Dedicated to Interconnect | C74: ERC | D74: ='I3 TB Data'!G80 -> 0 | E74: =VLOOKUP('E4 TB Allocation Details'!$C85, 'E2 Allocators'!$B$15:$W$285, MATCH(E$12, 'E2 Allocators'!$B$15:$W$15, 0),FALSE)*$D74 -> 0 | F74: =VLOOKUP('E4 TB Allocation Details'!$C85, 'E2 Allocators'!$B$15:$W$285, MATCH(F$12, 'E2 Allocators'!$B$15:$W$15, 0),FALSE)*$D74 -> 0 | G74: =VLOOKUP('E4 TB Allocation Details'!$C85, 'E2 Allocators'!$B$15:$W$285, MATCH(G$12, 'E2 Allocators'!$B$15:$W$15, 0),FALSE)*$D74 -> 0 | H74: =VLOOKUP('E4 TB Allocation Details'!$C85, 'E2 Allocators'!$B$15:$W$285, MATCH(H$12, 'E2 Allocators'!$B$15:$W$15, 0),FALSE)*$D74 -> 0 | I74: =VLOOKUP('E4 TB Allocation Details'!$C85, 'E2 Allocators'!$B$15:$W$285, MATCH(I$12, 'E2 Allocators'!$B$15:$W$15, 0),FALSE)*$D74 -> 0 | J74: =VLOOKUP('E4 TB Allocation Details'!$C85, 'E2 Allocators'!$B$15:$W$285, MATCH(J$12, 'E2 Allocators'!$B$15:$W$15, 0),FALSE)*$D74 -> 0 | K74: =VLOOKUP('E4 TB Allocation Details'!$C85, 'E2 Allocators'!$B$15:$W$285, MATCH(K$12, 'E2 Allocators'!$B$15:$W$15, 0),FALSE)*$D74 -> 0 | L74: =VLOOKUP('E4 TB Allocation Details'!$C85, 'E2 Allocators'!$B$15:$W$285, MATCH(L$12, 'E2 Allocators'!$B$15:$W$15, 0),FALSE)*$D74 -> 0 | M74: =VLOOKUP('E4 TB Allocation Details'!$C85, 'E2 Allocators'!$B$15:$W$285, MATCH(M$12, 'E2 Allocators'!$B$15:$W$15, 0),FALSE)*$D74 -> 0 | N74: =VLOOKUP('E4 TB Allocation Details'!$C85, 'E2 Allocators'!$B$15:$W$285, MATCH(N$12, 'E2 Allocators'!$B$15:$W$15, 0),FALSE)*$D74 -> 0 | O74: =VLOOKUP('E4 TB Allocation Details'!$C85, 'E2 Allocators'!$B$15:$W$285, MATCH(O$12, 'E2 Allocators'!$B$15:$W$15, 0),FALSE)*$D74 -> 0 | P74: =VLOOKUP('E4 TB Allocation Details'!$C85, 'E2 Allocators'!$B$15:$W$285, MATCH(P$12, 'E2 Allocators'!$B$15:$W$15, 0),FALSE)*$D74 -> 0 | Q74: =VLOOKUP('E4 TB Allocation Details'!$C85, 'E2 Allocators'!$B$15:$W$285, MATCH(Q$12, 'E2 Allocators'!$B$15:$W$15, 0),FALSE)*$D74 -> 0 | R74: =VLOOKUP('E4 TB Allocation Details'!$C85, 'E2 Allocators'!$B$15:$W$285, MATCH(R$12, 'E2 Allocators'!$B$15:$W$15, 0),FALSE)*$D74 -> 0 | S74: =VLOOKUP('E4 TB Allocation Details'!$C85, 'E2 Allocators'!$B$15:$W$285, MATCH(S$12, 'E2 Allocators'!$B$15:$W$15, 0),FALSE)*$D74 -> 0 | T74: =VLOOKUP('E4 TB Allocation Details'!$C85, 'E2 Allocators'!$B$15:$W$285, MATCH(T$12, 'E2 Allocators'!$B$15:$W$15, 0),FALSE)*$D74 -> 0 | U74: =VLOOKUP('E4 TB Allocation Details'!$C85, 'E2 Allocators'!$B$15:$W$285, MATCH(U$12, 'E2 Allocators'!$B$15:$W$15, 0),FALSE)*$D74 -> 0 | V74: =VLOOKUP('E4 TB Allocation Details'!$C85, 'E2 Allocators'!$B$15:$W$285, MATCH(V$12, 'E2 Allocators'!$B$15:$W$15, 0),FALSE)*$D74 -> 0 | W74: =VLOOKUP('E4 TB Allocation Details'!$C85, 'E2 Allocators'!$B$15:$W$285, MATCH(W$12, 'E2 Allocators'!$B$15:$W$15, 0),FALSE)*$D74 -> 0 | X74: =VLOOKUP('E4 TB Allocation Details'!$C85, 'E2 Allocators'!$B$15:$W$285, MATCH(X$12, 'E2 Allocators'!$B$15:$W$15, 0),FALSE)*$D74 -> 0
B75: ='I3 TB Data'!B81 -> Export Revenue Credit - Wholesale Revenue Meter - Shared | C75: ERC | D75: ='I3 TB Data'!G81 -> 0 | E75: =VLOOKUP('E4 TB Allocation Details'!$C86, 'E2 Allocators'!$B$15:$W$285, MATCH(E$12, 'E2 Allocators'!$B$15:$W$15, 0),FALSE)*$D75 -> 0 | F75: =VLOOKUP('E4 TB Allocation Details'!$C86, 'E2 Allocators'!$B$15:$W$285, MATCH(F$12, 'E2 Allocators'!$B$15:$W$15, 0),FALSE)*$D75 -> 0 | G75: =VLOOKUP('E4 TB Allocation Details'!$C86, 'E2 Allocators'!$B$15:$W$285, MATCH(G$12, 'E2 Allocators'!$B$15:$W$15, 0),FALSE)*$D75 -> 0 | H75: =VLOOKUP('E4 TB Allocation Details'!$C86, 'E2 Allocators'!$B$15:$W$285, MATCH(H$12, 'E2 Allocators'!$B$15:$W$15, 0),FALSE)*$D75 -> 0 | I75: =VLOOKUP('E4 TB Allocation Details'!$C86, 'E2 Allocators'!$B$15:$W$285, MATCH(I$12, 'E2 Allocators'!$B$15:$W$15, 0),FALSE)*$D75 -> 0 | J75: =VLOOKUP('E4 TB Allocation Details'!$C86, 'E2 Allocators'!$B$15:$W$285, MATCH(J$12, 'E2 Allocators'!$B$15:$W$15, 0),FALSE)*$D75 -> 0 | K75: =VLOOKUP('E4 TB Allocation Details'!$C86, 'E2 Allocators'!$B$15:$W$285, MATCH(K$12, 'E2 Allocators'!$B$15:$W$15, 0),FALSE)*$D75 -> 0 | L75: =VLOOKUP('E4 TB Allocation Details'!$C86, 'E2 Allocators'!$B$15:$W$285, MATCH(L$12, 'E2 Allocators'!$B$15:$W$15, 0),FALSE)*$D75 -> 0 | M75: =VLOOKUP('E4 TB Allocation Details'!$C86, 'E2 Allocators'!$B$15:$W$285, MATCH(M$12, 'E2 Allocators'!$B$15:$W$15, 0),FALSE)*$D75 -> 0 | N75: =VLOOKUP('E4 TB Allocation Details'!$C86, 'E2 Allocators'!$B$15:$W$285, MATCH(N$12, 'E2 Allocators'!$B$15:$W$15, 0),FALSE)*$D75 -> 0 | O75: =VLOOKUP('E4 TB Allocation Details'!$C86, 'E2 Allocators'!$B$15:$W$285, MATCH(O$12, 'E2 Allocators'!$B$15:$W$15, 0),FALSE)*$D75 -> 0 | P75: =VLOOKUP('E4 TB Allocation Details'!$C86, 'E2 Allocators'!$B$15:$W$285, MATCH(P$12, 'E2 Allocators'!$B$15:$W$15, 0),FALSE)*$D75 -> 0 | Q75: =VLOOKUP('E4 TB Allocation Details'!$C86, 'E2 Allocators'!$B$15:$W$285, MATCH(Q$12, 'E2 Allocators'!$B$15:$W$15, 0),FALSE)*$D75 -> 0 | R75: =VLOOKUP('E4 TB Allocation Details'!$C86, 'E2 Allocators'!$B$15:$W$285, MATCH(R$12, 'E2 Allocators'!$B$15:$W$15, 0),FALSE)*$D75 -> 0 | S75: =VLOOKUP('E4 TB Allocation Details'!$C86, 'E2 Allocators'!$B$15:$W$285, MATCH(S$12, 'E2 Allocators'!$B$15:$W$15, 0),FALSE)*$D75 -> 0 | T75: =VLOOKUP('E4 TB Allocation Details'!$C86, 'E2 Allocators'!$B$15:$W$285, MATCH(T$12, 'E2 Allocators'!$B$15:$W$15, 0),FALSE)*$D75 -> 0 | U75: =VLOOKUP('E4 TB Allocation Details'!$C86, 'E2 Allocators'!$B$15:$W$285, MATCH(U$12, 'E2 Allocators'!$B$15:$W$15, 0),FALSE)*$D75 -> 0 | V75: =VLOOKUP('E4 TB Allocation Details'!$C86, 'E2 Allocators'!$B$15:$W$285, MATCH(V$12, 'E2 Allocators'!$B$15:$W$15, 0),FALSE)*$D75 -> 0 | W75: =VLOOKUP('E4 TB Allocation Details'!$C86, 'E2 Allocators'!$B$15:$W$285, MATCH(W$12, 'E2 Allocators'!$B$15:$W$15, 0),FALSE)*$D75 -> 0 | X75: =VLOOKUP('E4 TB Allocation Details'!$C86, 'E2 Allocators'!$B$15:$W$285, MATCH(X$12, 'E2 Allocators'!$B$15:$W$15, 0),FALSE)*$D75 -> 0
B76: ='I3 TB Data'!B82 -> Export Revenue Credit - Network Dual Function Line - Dedicated to Domestic | C76: ERC | D76: ='I3 TB Data'!G82 -> 0 | E76: =VLOOKUP('E4 TB Allocation Details'!$C87, 'E2 Allocators'!$B$15:$W$285, MATCH(E$12, 'E2 Allocators'!$B$15:$W$15, 0),FALSE)*$D76 -> 0 | F76: =VLOOKUP('E4 TB Allocation Details'!$C87, 'E2 Allocators'!$B$15:$W$285, MATCH(F$12, 'E2 Allocators'!$B$15:$W$15, 0),FALSE)*$D76 -> 0 | G76: =VLOOKUP('E4 TB Allocation Details'!$C87, 'E2 Allocators'!$B$15:$W$285, MATCH(G$12, 'E2 Allocators'!$B$15:$W$15, 0),FALSE)*$D76 -> 0 | H76: =VLOOKUP('E4 TB Allocation Details'!$C87, 'E2 Allocators'!$B$15:$W$285, MATCH(H$12, 'E2 Allocators'!$B$15:$W$15, 0),FALSE)*$D76 -> 0 | I76: =VLOOKUP('E4 TB Allocation Details'!$C87, 'E2 Allocators'!$B$15:$W$285, MATCH(I$12, 'E2 Allocators'!$B$15:$W$15, 0),FALSE)*$D76 -> 0 | J76: =VLOOKUP('E4 TB Allocation Details'!$C87, 'E2 Allocators'!$B$15:$W$285, MATCH(J$12, 'E2 Allocators'!$B$15:$W$15, 0),FALSE)*$D76 -> 0 | K76: =VLOOKUP('E4 TB Allocation Details'!$C87, 'E2 Allocators'!$B$15:$W$285, MATCH(K$12, 'E2 Allocators'!$B$15:$W$15, 0),FALSE)*$D76 -> 0 | L76: =VLOOKUP('E4 TB Allocation Details'!$C87, 'E2 Allocators'!$B$15:$W$285, MATCH(L$12, 'E2 Allocators'!$B$15:$W$15, 0),FALSE)*$D76 -> 0 | M76: =VLOOKUP('E4 TB Allocation Details'!$C87, 'E2 Allocators'!$B$15:$W$285, MATCH(M$12, 'E2 Allocators'!$B$15:$W$15, 0),FALSE)*$D76 -> 0 | N76: =VLOOKUP('E4 TB Allocation Details'!$C87, 'E2 Allocators'!$B$15:$W$285, MATCH(N$12, 'E2 Allocators'!$B$15:$W$15, 0),FALSE)*$D76 -> 0 | O76: =VLOOKUP('E4 TB Allocation Details'!$C87, 'E2 Allocators'!$B$15:$W$285, MATCH(O$12, 'E2 Allocators'!$B$15:$W$15, 0),FALSE)*$D76 -> 0 | P76: =VLOOKUP('E4 TB Allocation Details'!$C87, 'E2 Allocators'!$B$15:$W$285, MATCH(P$12, 'E2 Allocators'!$B$15:$W$15, 0),FALSE)*$D76 -> 0 | Q76: =VLOOKUP('E4 TB Allocation Details'!$C87, 'E2 Allocators'!$B$15:$W$285, MATCH(Q$12, 'E2 Allocators'!$B$15:$W$15, 0),FALSE)*$D76 -> 0 | R76: =VLOOKUP('E4 TB Allocation Details'!$C87, 'E2 Allocators'!$B$15:$W$285, MATCH(R$12, 'E2 Allocators'!$B$15:$W$15, 0),FALSE)*$D76 -> 0 | S76: =VLOOKUP('E4 TB Allocation Details'!$C87, 'E2 Allocators'!$B$15:$W$285, MATCH(S$12, 'E2 Allocators'!$B$15:$W$15, 0),FALSE)*$D76 -> 0 | T76: =VLOOKUP('E4 TB Allocation Details'!$C87, 'E2 Allocators'!$B$15:$W$285, MATCH(T$12, 'E2 Allocators'!$B$15:$W$15, 0),FALSE)*$D76 -> 0 | U76: =VLOOKUP('E4 TB Allocation Details'!$C87, 'E2 Allocators'!$B$15:$W$285, MATCH(U$12, 'E2 Allocators'!$B$15:$W$15, 0),FALSE)*$D76 -> 0 | V76: =VLOOKUP('E4 TB Allocation Details'!$C87, 'E2 Allocators'!$B$15:$W$285, MATCH(V$12, 'E2 Allocators'!$B$15:$W$15, 0),FALSE)*$D76 -> 0 | W76: =VLOOKUP('E4 TB Allocation Details'!$C87, 'E2 Allocators'!$B$15:$W$285, MATCH(W$12, 'E2 Allocators'!$B$15:$W$15, 0),FALSE)*$D76 -> 0 | X76: =VLOOKUP('E4 TB Allocation Details'!$C87, 'E2 Allocators'!$B$15:$W$285, MATCH(X$12, 'E2 Allocators'!$B$15:$W$15, 0),FALSE)*$D76 -> 0
B77: ='I3 TB Data'!B83 -> Export Revenue Credit - Network Dual Function Line - Dedicated to Interconnect | C77: ERC | D77: ='I3 TB Data'!G83 -> 0 | E77: =VLOOKUP('E4 TB Allocation Details'!$C88, 'E2 Allocators'!$B$15:$W$285, MATCH(E$12, 'E2 Allocators'!$B$15:$W$15, 0),FALSE)*$D77 -> 0 | F77: =VLOOKUP('E4 TB Allocation Details'!$C88, 'E2 Allocators'!$B$15:$W$285, MATCH(F$12, 'E2 Allocators'!$B$15:$W$15, 0),FALSE)*$D77 -> 0 | G77: =VLOOKUP('E4 TB Allocation Details'!$C88, 'E2 Allocators'!$B$15:$W$285, MATCH(G$12, 'E2 Allocators'!$B$15:$W$15, 0),FALSE)*$D77 -> 0 | H77: =VLOOKUP('E4 TB Allocation Details'!$C88, 'E2 Allocators'!$B$15:$W$285, MATCH(H$12, 'E2 Allocators'!$B$15:$W$15, 0),FALSE)*$D77 -> 0 | I77: =VLOOKUP('E4 TB Allocation Details'!$C88, 'E2 Allocators'!$B$15:$W$285, MATCH(I$12, 'E2 Allocators'!$B$15:$W$15, 0),FALSE)*$D77 -> 0 | J77: =VLOOKUP('E4 TB Allocation Details'!$C88, 'E2 Allocators'!$B$15:$W$285, MATCH(J$12, 'E2 Allocators'!$B$15:$W$15, 0),FALSE)*$D77 -> 0 | K77: =VLOOKUP('E4 TB Allocation Details'!$C88, 'E2 Allocators'!$B$15:$W$285, MATCH(K$12, 'E2 Allocators'!$B$15:$W$15, 0),FALSE)*$D77 -> 0 | L77: =VLOOKUP('E4 TB Allocation Details'!$C88, 'E2 Allocators'!$B$15:$W$285, MATCH(L$12, 'E2 Allocators'!$B$15:$W$15, 0),FALSE)*$D77 -> 0 | M77: =VLOOKUP('E4 TB Allocation Details'!$C88, 'E2 Allocators'!$B$15:$W$285, MATCH(M$12, 'E2 Allocators'!$B$15:$W$15, 0),FALSE)*$D77 -> 0 | N77: =VLOOKUP('E4 TB Allocation Details'!$C88, 'E2 Allocators'!$B$15:$W$285, MATCH(N$12, 'E2 Allocators'!$B$15:$W$15, 0),FALSE)*$D77 -> 0 | O77: =VLOOKUP('E4 TB Allocation Details'!$C88, 'E2 Allocators'!$B$15:$W$285, MATCH(O$12, 'E2 Allocators'!$B$15:$W$15, 0),FALSE)*$D77 -> 0 | P77: =VLOOKUP('E4 TB Allocation Details'!$C88, 'E2 Allocators'!$B$15:$W$285, MATCH(P$12, 'E2 Allocators'!$B$15:$W$15, 0),FALSE)*$D77 -> 0 | Q77: =VLOOKUP('E4 TB Allocation Details'!$C88, 'E2 Allocators'!$B$15:$W$285, MATCH(Q$12, 'E2 Allocators'!$B$15:$W$15, 0),FALSE)*$D77 -> 0 | R77: =VLOOKUP('E4 TB Allocation Details'!$C88, 'E2 Allocators'!$B$15:$W$285, MATCH(R$12, 'E2 Allocators'!$B$15:$W$15, 0),FALSE)*$D77 -> 0 | S77: =VLOOKUP('E4 TB Allocation Details'!$C88, 'E2 Allocators'!$B$15:$W$285, MATCH(S$12, 'E2 Allocators'!$B$15:$W$15, 0),FALSE)*$D77 -> 0 | T77: =VLOOKUP('E4 TB Allocation Details'!$C88, 'E2 Allocators'!$B$15:$W$285, MATCH(T$12, 'E2 Allocators'!$B$15:$W$15, 0),FALSE)*$D77 -> 0 | U77: =VLOOKUP('E4 TB Allocation Details'!$C88, 'E2 Allocators'!$B$15:$W$285, MATCH(U$12, 'E2 Allocators'!$B$15:$W$15, 0),FALSE)*$D77 -> 0 | V77: =VLOOKUP('E4 TB Allocation Details'!$C88, 'E2 Allocators'!$B$15:$W$285, MATCH(V$12, 'E2 Allocators'!$B$15:$W$15, 0),FALSE)*$D77 -> 0 | W77: =VLOOKUP('E4 TB Allocation Details'!$C88, 'E2 Allocators'!$B$15:$W$285, MATCH(W$12, 'E2 Allocators'!$B$15:$W$15, 0),FALSE)*$D77 -> 0 | X77: =VLOOKUP('E4 TB Allocation Details'!$C88, 'E2 Allocators'!$B$15:$W$285, MATCH(X$12, 'E2 Allocators'!$B$15:$W$15, 0),FALSE)*$D77 -> 0
B78: ='I3 TB Data'!B84 -> Export Revenue Credit - Network Dual Function Line - Shared | C78: ERC | D78: ='I3 TB Data'!G84 -> 0 | E78: =VLOOKUP('E4 TB Allocation Details'!$C89, 'E2 Allocators'!$B$15:$W$285, MATCH(E$12, 'E2 Allocators'!$B$15:$W$15, 0),FALSE)*$D78 -> 0 | F78: =VLOOKUP('E4 TB Allocation Details'!$C89, 'E2 Allocators'!$B$15:$W$285, MATCH(F$12, 'E2 Allocators'!$B$15:$W$15, 0),FALSE)*$D78 -> 0 | G78: =VLOOKUP('E4 TB Allocation Details'!$C89, 'E2 Allocators'!$B$15:$W$285, MATCH(G$12, 'E2 Allocators'!$B$15:$W$15, 0),FALSE)*$D78 -> 0 | H78: =VLOOKUP('E4 TB Allocation Details'!$C89, 'E2 Allocators'!$B$15:$W$285, MATCH(H$12, 'E2 Allocators'!$B$15:$W$15, 0),FALSE)*$D78 -> 0 | I78: =VLOOKUP('E4 TB Allocation Details'!$C89, 'E2 Allocators'!$B$15:$W$285, MATCH(I$12, 'E2 Allocators'!$B$15:$W$15, 0),FALSE)*$D78 -> 0 | J78: =VLOOKUP('E4 TB Allocation Details'!$C89, 'E2 Allocators'!$B$15:$W$285, MATCH(J$12, 'E2 Allocators'!$B$15:$W$15, 0),FALSE)*$D78 -> 0 | K78: =VLOOKUP('E4 TB Allocation Details'!$C89, 'E2 Allocators'!$B$15:$W$285, MATCH(K$12, 'E2 Allocators'!$B$15:$W$15, 0),FALSE)*$D78 -> 0 | L78: =VLOOKUP('E4 TB Allocation Details'!$C89, 'E2 Allocators'!$B$15:$W$285, MATCH(L$12, 'E2 Allocators'!$B$15:$W$15, 0),FALSE)*$D78 -> 0 | M78: =VLOOKUP('E4 TB Allocation Details'!$C89, 'E2 Allocators'!$B$15:$W$285, MATCH(M$12, 'E2 Allocators'!$B$15:$W$15, 0),FALSE)*$D78 -> 0 | N78: =VLOOKUP('E4 TB Allocation Details'!$C89, 'E2 Allocators'!$B$15:$W$285, MATCH(N$12, 'E2 Allocators'!$B$15:$W$15, 0),FALSE)*$D78 -> 0 | O78: =VLOOKUP('E4 TB Allocation Details'!$C89, 'E2 Allocators'!$B$15:$W$285, MATCH(O$12, 'E2 Allocators'!$B$15:$W$15, 0),FALSE)*$D78 -> 0 | P78: =VLOOKUP('E4 TB Allocation Details'!$C89, 'E2 Allocators'!$B$15:$W$285, MATCH(P$12, 'E2 Allocators'!$B$15:$W$15, 0),FALSE)*$D78 -> 0 | Q78: =VLOOKUP('E4 TB Allocation Details'!$C89, 'E2 Allocators'!$B$15:$W$285, MATCH(Q$12, 'E2 Allocators'!$B$15:$W$15, 0),FALSE)*$D78 -> 0 | R78: =VLOOKUP('E4 TB Allocation Details'!$C89, 'E2 Allocators'!$B$15:$W$285, MATCH(R$12, 'E2 Allocators'!$B$15:$W$15, 0),FALSE)*$D78 -> 0 | S78: =VLOOKUP('E4 TB Allocation Details'!$C89, 'E2 Allocators'!$B$15:$W$285, MATCH(S$12, 'E2 Allocators'!$B$15:$W$15, 0),FALSE)*$D78 -> 0 | T78: =VLOOKUP('E4 TB Allocation Details'!$C89, 'E2 Allocators'!$B$15:$W$285, MATCH(T$12, 'E2 Allocators'!$B$15:$W$15, 0),FALSE)*$D78 -> 0 | U78: =VLOOKUP('E4 TB Allocation Details'!$C89, 'E2 Allocators'!$B$15:$W$285, MATCH(U$12, 'E2 Allocators'!$B$15:$W$15, 0),FALSE)*$D78 -> 0 | V78: =VLOOKUP('E4 TB Allocation Details'!$C89, 'E2 Allocators'!$B$15:$W$285, MATCH(V$12, 'E2 Allocators'!$B$15:$W$15, 0),FALSE)*$D78 -> 0 | W78: =VLOOKUP('E4 TB Allocation Details'!$C89, 'E2 Allocators'!$B$15:$W$285, MATCH(W$12, 'E2 Allocators'!$B$15:$W$15, 0),FALSE)*$D78 -> 0 | X78: =VLOOKUP('E4 TB Allocation Details'!$C89, 'E2 Allocators'!$B$15:$W$285, MATCH(X$12, 'E2 Allocators'!$B$15:$W$15, 0),FALSE)*$D78 -> 0
B79: ='I3 TB Data'!B85 -> Export Revenue Credit - Line Connection Dual Function Line - Dedicated to Domestic | C79: ERC | D79: ='I3 TB Data'!G85 -> 0 | E79: =VLOOKUP('E4 TB Allocation Details'!$C90, 'E2 Allocators'!$B$15:$W$285, MATCH(E$12, 'E2 Allocators'!$B$15:$W$15, 0),FALSE)*$D79 -> 0 | F79: =VLOOKUP('E4 TB Allocation Details'!$C90, 'E2 Allocators'!$B$15:$W$285, MATCH(F$12, 'E2 Allocators'!$B$15:$W$15, 0),FALSE)*$D79 -> 0 | G79: =VLOOKUP('E4 TB Allocation Details'!$C90, 'E2 Allocators'!$B$15:$W$285, MATCH(G$12, 'E2 Allocators'!$B$15:$W$15, 0),FALSE)*$D79 -> 0 | H79: =VLOOKUP('E4 TB Allocation Details'!$C90, 'E2 Allocators'!$B$15:$W$285, MATCH(H$12, 'E2 Allocators'!$B$15:$W$15, 0),FALSE)*$D79 -> 0 | I79: =VLOOKUP('E4 TB Allocation Details'!$C90, 'E2 Allocators'!$B$15:$W$285, MATCH(I$12, 'E2 Allocators'!$B$15:$W$15, 0),FALSE)*$D79 -> 0 | J79: =VLOOKUP('E4 TB Allocation Details'!$C90, 'E2 Allocators'!$B$15:$W$285, MATCH(J$12, 'E2 Allocators'!$B$15:$W$15, 0),FALSE)*$D79 -> 0 | K79: =VLOOKUP('E4 TB Allocation Details'!$C90, 'E2 Allocators'!$B$15:$W$285, MATCH(K$12, 'E2 Allocators'!$B$15:$W$15, 0),FALSE)*$D79 -> 0 | L79: =VLOOKUP('E4 TB Allocation Details'!$C90, 'E2 Allocators'!$B$15:$W$285, MATCH(L$12, 'E2 Allocators'!$B$15:$W$15, 0),FALSE)*$D79 -> 0 | M79: =VLOOKUP('E4 TB Allocation Details'!$C90, 'E2 Allocators'!$B$15:$W$285, MATCH(M$12, 'E2 Allocators'!$B$15:$W$15, 0),FALSE)*$D79 -> 0 | N79: =VLOOKUP('E4 TB Allocation Details'!$C90, 'E2 Allocators'!$B$15:$W$285, MATCH(N$12, 'E2 Allocators'!$B$15:$W$15, 0),FALSE)*$D79 -> 0 | O79: =VLOOKUP('E4 TB Allocation Details'!$C90, 'E2 Allocators'!$B$15:$W$285, MATCH(O$12, 'E2 Allocators'!$B$15:$W$15, 0),FALSE)*$D79 -> 0 | P79: =VLOOKUP('E4 TB Allocation Details'!$C90, 'E2 Allocators'!$B$15:$W$285, MATCH(P$12, 'E2 Allocators'!$B$15:$W$15, 0),FALSE)*$D79 -> 0 | Q79: =VLOOKUP('E4 TB Allocation Details'!$C90, 'E2 Allocators'!$B$15:$W$285, MATCH(Q$12, 'E2 Allocators'!$B$15:$W$15, 0),FALSE)*$D79 -> 0 | R79: =VLOOKUP('E4 TB Allocation Details'!$C90, 'E2 Allocators'!$B$15:$W$285, MATCH(R$12, 'E2 Allocators'!$B$15:$W$15, 0),FALSE)*$D79 -> 0 | S79: =VLOOKUP('E4 TB Allocation Details'!$C90, 'E2 Allocators'!$B$15:$W$285, MATCH(S$12, 'E2 Allocators'!$B$15:$W$15, 0),FALSE)*$D79 -> 0 | T79: =VLOOKUP('E4 TB Allocation Details'!$C90, 'E2 Allocators'!$B$15:$W$285, MATCH(T$12, 'E2 Allocators'!$B$15:$W$15, 0),FALSE)*$D79 -> 0 | U79: =VLOOKUP('E4 TB Allocation Details'!$C90, 'E2 Allocators'!$B$15:$W$285, MATCH(U$12, 'E2 Allocators'!$B$15:$W$15, 0),FALSE)*$D79 -> 0 | V79: =VLOOKUP('E4 TB Allocation Details'!$C90, 'E2 Allocators'!$B$15:$W$285, MATCH(V$12, 'E2 Allocators'!$B$15:$W$15, 0),FALSE)*$D79 -> 0 | W79: =VLOOKUP('E4 TB Allocation Details'!$C90, 'E2 Allocators'!$B$15:$W$285, MATCH(W$12, 'E2 Allocators'!$B$15:$W$15, 0),FALSE)*$D79 -> 0 | X79: =VLOOKUP('E4 TB Allocation Details'!$C90, 'E2 Allocators'!$B$15:$W$285, MATCH(X$12, 'E2 Allocators'!$B$15:$W$15, 0),FALSE)*$D79 -> 0
B80: ='I3 TB Data'!B86 -> Export Revenue Credit - Line Connection Dual Function Line - Dedicated to Interconnect | C80: ERC | D80: ='I3 TB Data'!G86 -> 0 | E80: =VLOOKUP('E4 TB Allocation Details'!$C91, 'E2 Allocators'!$B$15:$W$285, MATCH(E$12, 'E2 Allocators'!$B$15:$W$15, 0),FALSE)*$D80 -> 0 | F80: =VLOOKUP('E4 TB Allocation Details'!$C91, 'E2 Allocators'!$B$15:$W$285, MATCH(F$12, 'E2 Allocators'!$B$15:$W$15, 0),FALSE)*$D80 -> 0 | G80: =VLOOKUP('E4 TB Allocation Details'!$C91, 'E2 Allocators'!$B$15:$W$285, MATCH(G$12, 'E2 Allocators'!$B$15:$W$15, 0),FALSE)*$D80 -> 0 | H80: =VLOOKUP('E4 TB Allocation Details'!$C91, 'E2 Allocators'!$B$15:$W$285, MATCH(H$12, 'E2 Allocators'!$B$15:$W$15, 0),FALSE)*$D80 -> 0 | I80: =VLOOKUP('E4 TB Allocation Details'!$C91, 'E2 Allocators'!$B$15:$W$285, MATCH(I$12, 'E2 Allocators'!$B$15:$W$15, 0),FALSE)*$D80 -> 0 | J80: =VLOOKUP('E4 TB Allocation Details'!$C91, 'E2 Allocators'!$B$15:$W$285, MATCH(J$12, 'E2 Allocators'!$B$15:$W$15, 0),FALSE)*$D80 -> 0 | K80: =VLOOKUP('E4 TB Allocation Details'!$C91, 'E2 Allocators'!$B$15:$W$285, MATCH(K$12, 'E2 Allocators'!$B$15:$W$15, 0),FALSE)*$D80 -> 0 | L80: =VLOOKUP('E4 TB Allocation Details'!$C91, 'E2 Allocators'!$B$15:$W$285, MATCH(L$12, 'E2 Allocators'!$B$15:$W$15, 0),FALSE)*$D80 -> 0 | M80: =VLOOKUP('E4 TB Allocation Details'!$C91, 'E2 Allocators'!$B$15:$W$285, MATCH(M$12, 'E2 Allocators'!$B$15:$W$15, 0),FALSE)*$D80 -> 0 | N80: =VLOOKUP('E4 TB Allocation Details'!$C91, 'E2 Allocators'!$B$15:$W$285, MATCH(N$12, 'E2 Allocators'!$B$15:$W$15, 0),FALSE)*$D80 -> 0 | O80: =VLOOKUP('E4 TB Allocation Details'!$C91, 'E2 Allocators'!$B$15:$W$285, MATCH(O$12, 'E2 Allocators'!$B$15:$W$15, 0),FALSE)*$D80 -> 0 | P80: =VLOOKUP('E4 TB Allocation Details'!$C91, 'E2 Allocators'!$B$15:$W$285, MATCH(P$12, 'E2 Allocators'!$B$15:$W$15, 0),FALSE)*$D80 -> 0 | Q80: =VLOOKUP('E4 TB Allocation Details'!$C91, 'E2 Allocators'!$B$15:$W$285, MATCH(Q$12, 'E2 Allocators'!$B$15:$W$15, 0),FALSE)*$D80 -> 0 | R80: =VLOOKUP('E4 TB Allocation Details'!$C91, 'E2 Allocators'!$B$15:$W$285, MATCH(R$12, 'E2 Allocators'!$B$15:$W$15, 0),FALSE)*$D80 -> 0 | S80: =VLOOKUP('E4 TB Allocation Details'!$C91, 'E2 Allocators'!$B$15:$W$285, MATCH(S$12, 'E2 Allocators'!$B$15:$W$15, 0),FALSE)*$D80 -> 0 | T80: =VLOOKUP('E4 TB Allocation Details'!$C91, 'E2 Allocators'!$B$15:$W$285, MATCH(T$12, 'E2 Allocators'!$B$15:$W$15, 0),FALSE)*$D80 -> 0 | U80: =VLOOKUP('E4 TB Allocation Details'!$C91, 'E2 Allocators'!$B$15:$W$285, MATCH(U$12, 'E2 Allocators'!$B$15:$W$15, 0),FALSE)*$D80 -> 0 | V80: =VLOOKUP('E4 TB Allocation Details'!$C91, 'E2 Allocators'!$B$15:$W$285, MATCH(V$12, 'E2 Allocators'!$B$15:$W$15, 0),FALSE)*$D80 -> 0 | W80: =VLOOKUP('E4 TB Allocation Details'!$C91, 'E2 Allocators'!$B$15:$W$285, MATCH(W$12, 'E2 Allocators'!$B$15:$W$15, 0),FALSE)*$D80 -> 0 | X80: =VLOOKUP('E4 TB Allocation Details'!$C91, 'E2 Allocators'!$B$15:$W$285, MATCH(X$12, 'E2 Allocators'!$B$15:$W$15, 0),FALSE)*$D80 -> 0
B81: ='I3 TB Data'!B87 -> Export Revenue Credit - Line Connection Dual Function Line - Shared | C81: ERC | D81: ='I3 TB Data'!G87 -> 0 | E81: =VLOOKUP('E4 TB Allocation Details'!$C92, 'E2 Allocators'!$B$15:$W$285, MATCH(E$12, 'E2 Allocators'!$B$15:$W$15, 0),FALSE)*$D81 -> 0 | F81: =VLOOKUP('E4 TB Allocation Details'!$C92, 'E2 Allocators'!$B$15:$W$285, MATCH(F$12, 'E2 Allocators'!$B$15:$W$15, 0),FALSE)*$D81 -> 0 | G81: =VLOOKUP('E4 TB Allocation Details'!$C92, 'E2 Allocators'!$B$15:$W$285, MATCH(G$12, 'E2 Allocators'!$B$15:$W$15, 0),FALSE)*$D81 -> 0 | H81: =VLOOKUP('E4 TB Allocation Details'!$C92, 'E2 Allocators'!$B$15:$W$285, MATCH(H$12, 'E2 Allocators'!$B$15:$W$15, 0),FALSE)*$D81 -> 0 | I81: =VLOOKUP('E4 TB Allocation Details'!$C92, 'E2 Allocators'!$B$15:$W$285, MATCH(I$12, 'E2 Allocators'!$B$15:$W$15, 0),FALSE)*$D81 -> 0 | J81: =VLOOKUP('E4 TB Allocation Details'!$C92, 'E2 Allocators'!$B$15:$W$285, MATCH(J$12, 'E2 Allocators'!$B$15:$W$15, 0),FALSE)*$D81 -> 0 | K81: =VLOOKUP('E4 TB Allocation Details'!$C92, 'E2 Allocators'!$B$15:$W$285, MATCH(K$12, 'E2 Allocators'!$B$15:$W$15, 0),FALSE)*$D81 -> 0 | L81: =VLOOKUP('E4 TB Allocation Details'!$C92, 'E2 Allocators'!$B$15:$W$285, MATCH(L$12, 'E2 Allocators'!$B$15:$W$15, 0),FALSE)*$D81 -> 0 | M81: =VLOOKUP('E4 TB Allocation Details'!$C92, 'E2 Allocators'!$B$15:$W$285, MATCH(M$12, 'E2 Allocators'!$B$15:$W$15, 0),FALSE)*$D81 -> 0 | N81: =VLOOKUP('E4 TB Allocation Details'!$C92, 'E2 Allocators'!$B$15:$W$285, MATCH(N$12, 'E2 Allocators'!$B$15:$W$15, 0),FALSE)*$D81 -> 0 | O81: =VLOOKUP('E4 TB Allocation Details'!$C92, 'E2 Allocators'!$B$15:$W$285, MATCH(O$12, 'E2 Allocators'!$B$15:$W$15, 0),FALSE)*$D81 -> 0 | P81: =VLOOKUP('E4 TB Allocation Details'!$C92, 'E2 Allocators'!$B$15:$W$285, MATCH(P$12, 'E2 Allocators'!$B$15:$W$15, 0),FALSE)*$D81 -> 0 | Q81: =VLOOKUP('E4 TB Allocation Details'!$C92, 'E2 Allocators'!$B$15:$W$285, MATCH(Q$12, 'E2 Allocators'!$B$15:$W$15, 0),FALSE)*$D81 -> 0 | R81: =VLOOKUP('E4 TB Allocation Details'!$C92, 'E2 Allocators'!$B$15:$W$285, MATCH(R$12, 'E2 Allocators'!$B$15:$W$15, 0),FALSE)*$D81 -> 0 | S81: =VLOOKUP('E4 TB Allocation Details'!$C92, 'E2 Allocators'!$B$15:$W$285, MATCH(S$12, 'E2 Allocators'!$B$15:$W$15, 0),FALSE)*$D81 -> 0 | T81: =VLOOKUP('E4 TB Allocation Details'!$C92, 'E2 Allocators'!$B$15:$W$285, MATCH(T$12, 'E2 Allocators'!$B$15:$W$15, 0),FALSE)*$D81 -> 0 | U81: =VLOOKUP('E4 TB Allocation Details'!$C92, 'E2 Allocators'!$B$15:$W$285, MATCH(U$12, 'E2 Allocators'!$B$15:$W$15, 0),FALSE)*$D81 -> 0 | V81: =VLOOKUP('E4 TB Allocation Details'!$C92, 'E2 Allocators'!$B$15:$W$285, MATCH(V$12, 'E2 Allocators'!$B$15:$W$15, 0),FALSE)*$D81 -> 0 | W81: =VLOOKUP('E4 TB Allocation Details'!$C92, 'E2 Allocators'!$B$15:$W$285, MATCH(W$12, 'E2 Allocators'!$B$15:$W$15, 0),FALSE)*$D81 -> 0 | X81: =VLOOKUP('E4 TB Allocation Details'!$C92, 'E2 Allocators'!$B$15:$W$285, MATCH(X$12, 'E2 Allocators'!$B$15:$W$15, 0),FALSE)*$D81 -> 0
B82: ='I3 TB Data'!B88 -> Export Revenue Credit - Generation Line Connection - Dedicated to Domestic | C82: ERC | D82: ='I3 TB Data'!G88 -> 0 | E82: =VLOOKUP('E4 TB Allocation Details'!$C93, 'E2 Allocators'!$B$15:$W$285, MATCH(E$12, 'E2 Allocators'!$B$15:$W$15, 0),FALSE)*$D82 -> 0 | F82: =VLOOKUP('E4 TB Allocation Details'!$C93, 'E2 Allocators'!$B$15:$W$285, MATCH(F$12, 'E2 Allocators'!$B$15:$W$15, 0),FALSE)*$D82 -> 0 | G82: =VLOOKUP('E4 TB Allocation Details'!$C93, 'E2 Allocators'!$B$15:$W$285, MATCH(G$12, 'E2 Allocators'!$B$15:$W$15, 0),FALSE)*$D82 -> 0 | H82: =VLOOKUP('E4 TB Allocation Details'!$C93, 'E2 Allocators'!$B$15:$W$285, MATCH(H$12, 'E2 Allocators'!$B$15:$W$15, 0),FALSE)*$D82 -> 0 | I82: =VLOOKUP('E4 TB Allocation Details'!$C93, 'E2 Allocators'!$B$15:$W$285, MATCH(I$12, 'E2 Allocators'!$B$15:$W$15, 0),FALSE)*$D82 -> 0 | J82: =VLOOKUP('E4 TB Allocation Details'!$C93, 'E2 Allocators'!$B$15:$W$285, MATCH(J$12, 'E2 Allocators'!$B$15:$W$15, 0),FALSE)*$D82 -> 0 | K82: =VLOOKUP('E4 TB Allocation Details'!$C93, 'E2 Allocators'!$B$15:$W$285, MATCH(K$12, 'E2 Allocators'!$B$15:$W$15, 0),FALSE)*$D82 -> 0 | L82: =VLOOKUP('E4 TB Allocation Details'!$C93, 'E2 Allocators'!$B$15:$W$285, MATCH(L$12, 'E2 Allocators'!$B$15:$W$15, 0),FALSE)*$D82 -> 0 | M82: =VLOOKUP('E4 TB Allocation Details'!$C93, 'E2 Allocators'!$B$15:$W$285, MATCH(M$12, 'E2 Allocators'!$B$15:$W$15, 0),FALSE)*$D82 -> 0 | N82: =VLOOKUP('E4 TB Allocation Details'!$C93, 'E2 Allocators'!$B$15:$W$285, MATCH(N$12, 'E2 Allocators'!$B$15:$W$15, 0),FALSE)*$D82 -> 0 | O82: =VLOOKUP('E4 TB Allocation Details'!$C93, 'E2 Allocators'!$B$15:$W$285, MATCH(O$12, 'E2 Allocators'!$B$15:$W$15, 0),FALSE)*$D82 -> 0 | P82: =VLOOKUP('E4 TB Allocation Details'!$C93, 'E2 Allocators'!$B$15:$W$285, MATCH(P$12, 'E2 Allocators'!$B$15:$W$15, 0),FALSE)*$D82 -> 0 | Q82: =VLOOKUP('E4 TB Allocation Details'!$C93, 'E2 Allocators'!$B$15:$W$285, MATCH(Q$12, 'E2 Allocators'!$B$15:$W$15, 0),FALSE)*$D82 -> 0 | R82: =VLOOKUP('E4 TB Allocation Details'!$C93, 'E2 Allocators'!$B$15:$W$285, MATCH(R$12, 'E2 Allocators'!$B$15:$W$15, 0),FALSE)*$D82 -> 0 | S82: =VLOOKUP('E4 TB Allocation Details'!$C93, 'E2 Allocators'!$B$15:$W$285, MATCH(S$12, 'E2 Allocators'!$B$15:$W$15, 0),FALSE)*$D82 -> 0 | T82: =VLOOKUP('E4 TB Allocation Details'!$C93, 'E2 Allocators'!$B$15:$W$285, MATCH(T$12, 'E2 Allocators'!$B$15:$W$15, 0),FALSE)*$D82 -> 0 | U82: =VLOOKUP('E4 TB Allocation Details'!$C93, 'E2 Allocators'!$B$15:$W$285, MATCH(U$12, 'E2 Allocators'!$B$15:$W$15, 0),FALSE)*$D82 -> 0 | V82: =VLOOKUP('E4 TB Allocation Details'!$C93, 'E2 Allocators'!$B$15:$W$285, MATCH(V$12, 'E2 Allocators'!$B$15:$W$15, 0),FALSE)*$D82 -> 0 | W82: =VLOOKUP('E4 TB Allocation Details'!$C93, 'E2 Allocators'!$B$15:$W$285, MATCH(W$12, 'E2 Allocators'!$B$15:$W$15, 0),FALSE)*$D82 -> 0 | X82: =VLOOKUP('E4 TB Allocation Details'!$C93, 'E2 Allocators'!$B$15:$W$285, MATCH(X$12, 'E2 Allocators'!$B$15:$W$15, 0),FALSE)*$D82 -> 0
B83: ='I3 TB Data'!B89 -> Export Revenue Credit - Generation Line Connection - Dedicated to Interconnect | C83: ERC | D83: ='I3 TB Data'!G89 -> 0 | E83: =VLOOKUP('E4 TB Allocation Details'!$C94, 'E2 Allocators'!$B$15:$W$285, MATCH(E$12, 'E2 Allocators'!$B$15:$W$15, 0),FALSE)*$D83 -> 0 | F83: =VLOOKUP('E4 TB Allocation Details'!$C94, 'E2 Allocators'!$B$15:$W$285, MATCH(F$12, 'E2 Allocators'!$B$15:$W$15, 0),FALSE)*$D83 -> 0 | G83: =VLOOKUP('E4 TB Allocation Details'!$C94, 'E2 Allocators'!$B$15:$W$285, MATCH(G$12, 'E2 Allocators'!$B$15:$W$15, 0),FALSE)*$D83 -> 0 | H83: =VLOOKUP('E4 TB Allocation Details'!$C94, 'E2 Allocators'!$B$15:$W$285, MATCH(H$12, 'E2 Allocators'!$B$15:$W$15, 0),FALSE)*$D83 -> 0 | I83: =VLOOKUP('E4 TB Allocation Details'!$C94, 'E2 Allocators'!$B$15:$W$285, MATCH(I$12, 'E2 Allocators'!$B$15:$W$15, 0),FALSE)*$D83 -> 0 | J83: =VLOOKUP('E4 TB Allocation Details'!$C94, 'E2 Allocators'!$B$15:$W$285, MATCH(J$12, 'E2 Allocators'!$B$15:$W$15, 0),FALSE)*$D83 -> 0 | K83: =VLOOKUP('E4 TB Allocation Details'!$C94, 'E2 Allocators'!$B$15:$W$285, MATCH(K$12, 'E2 Allocators'!$B$15:$W$15, 0),FALSE)*$D83 -> 0 | L83: =VLOOKUP('E4 TB Allocation Details'!$C94, 'E2 Allocators'!$B$15:$W$285, MATCH(L$12, 'E2 Allocators'!$B$15:$W$15, 0),FALSE)*$D83 -> 0 | M83: =VLOOKUP('E4 TB Allocation Details'!$C94, 'E2 Allocators'!$B$15:$W$285, MATCH(M$12, 'E2 Allocators'!$B$15:$W$15, 0),FALSE)*$D83 -> 0 | N83: =VLOOKUP('E4 TB Allocation Details'!$C94, 'E2 Allocators'!$B$15:$W$285, MATCH(N$12, 'E2 Allocators'!$B$15:$W$15, 0),FALSE)*$D83 -> 0 | O83: =VLOOKUP('E4 TB Allocation Details'!$C94, 'E2 Allocators'!$B$15:$W$285, MATCH(O$12, 'E2 Allocators'!$B$15:$W$15, 0),FALSE)*$D83 -> 0 | P83: =VLOOKUP('E4 TB Allocation Details'!$C94, 'E2 Allocators'!$B$15:$W$285, MATCH(P$12, 'E2 Allocators'!$B$15:$W$15, 0),FALSE)*$D83 -> 0 | Q83: =VLOOKUP('E4 TB Allocation Details'!$C94, 'E2 Allocators'!$B$15:$W$285, MATCH(Q$12, 'E2 Allocators'!$B$15:$W$15, 0),FALSE)*$D83 -> 0 | R83: =VLOOKUP('E4 TB Allocation Details'!$C94, 'E2 Allocators'!$B$15:$W$285, MATCH(R$12, 'E2 Allocators'!$B$15:$W$15, 0),FALSE)*$D83 -> 0 | S83: =VLOOKUP('E4 TB Allocation Details'!$C94, 'E2 Allocators'!$B$15:$W$285, MATCH(S$12, 'E2 Allocators'!$B$15:$W$15, 0),FALSE)*$D83 -> 0 | T83: =VLOOKUP('E4 TB Allocation Details'!$C94, 'E2 Allocators'!$B$15:$W$285, MATCH(T$12, 'E2 Allocators'!$B$15:$W$15, 0),FALSE)*$D83 -> 0 | U83: =VLOOKUP('E4 TB Allocation Details'!$C94, 'E2 Allocators'!$B$15:$W$285, MATCH(U$12, 'E2 Allocators'!$B$15:$W$15, 0),FALSE)*$D83 -> 0 | V83: =VLOOKUP('E4 TB Allocation Details'!$C94, 'E2 Allocators'!$B$15:$W$285, MATCH(V$12, 'E2 Allocators'!$B$15:$W$15, 0),FALSE)*$D83 -> 0 | W83: =VLOOKUP('E4 TB Allocation Details'!$C94, 'E2 Allocators'!$B$15:$W$285, MATCH(W$12, 'E2 Allocators'!$B$15:$W$15, 0),FALSE)*$D83 -> 0 | X83: =VLOOKUP('E4 TB Allocation Details'!$C94, 'E2 Allocators'!$B$15:$W$285, MATCH(X$12, 'E2 Allocators'!$B$15:$W$15, 0),FALSE)*$D83 -> 0
B84: ='I3 TB Data'!B90 -> Export Revenue Credit - Generation Line Connection - Shared | C84: ERC | D84: ='I3 TB Data'!G90 -> 0 | E84: =VLOOKUP('E4 TB Allocation Details'!$C95, 'E2 Allocators'!$B$15:$W$285, MATCH(E$12, 'E2 Allocators'!$B$15:$W$15, 0),FALSE)*$D84 -> 0 | F84: =VLOOKUP('E4 TB Allocation Details'!$C95, 'E2 Allocators'!$B$15:$W$285, MATCH(F$12, 'E2 Allocators'!$B$15:$W$15, 0),FALSE)*$D84 -> 0 | G84: =VLOOKUP('E4 TB Allocation Details'!$C95, 'E2 Allocators'!$B$15:$W$285, MATCH(G$12, 'E2 Allocators'!$B$15:$W$15, 0),FALSE)*$D84 -> 0 | H84: =VLOOKUP('E4 TB Allocation Details'!$C95, 'E2 Allocators'!$B$15:$W$285, MATCH(H$12, 'E2 Allocators'!$B$15:$W$15, 0),FALSE)*$D84 -> 0 | I84: =VLOOKUP('E4 TB Allocation Details'!$C95, 'E2 Allocators'!$B$15:$W$285, MATCH(I$12, 'E2 Allocators'!$B$15:$W$15, 0),FALSE)*$D84 -> 0 | J84: =VLOOKUP('E4 TB Allocation Details'!$C95, 'E2 Allocators'!$B$15:$W$285, MATCH(J$12, 'E2 Allocators'!$B$15:$W$15, 0),FALSE)*$D84 -> 0 | K84: =VLOOKUP('E4 TB Allocation Details'!$C95, 'E2 Allocators'!$B$15:$W$285, MATCH(K$12, 'E2 Allocators'!$B$15:$W$15, 0),FALSE)*$D84 -> 0 | L84: =VLOOKUP('E4 TB Allocation Details'!$C95, 'E2 Allocators'!$B$15:$W$285, MATCH(L$12, 'E2 Allocators'!$B$15:$W$15, 0),FALSE)*$D84 -> 0 | M84: =VLOOKUP('E4 TB Allocation Details'!$C95, 'E2 Allocators'!$B$15:$W$285, MATCH(M$12, 'E2 Allocators'!$B$15:$W$15, 0),FALSE)*$D84 -> 0 | N84: =VLOOKUP('E4 TB Allocation Details'!$C95, 'E2 Allocators'!$B$15:$W$285, MATCH(N$12, 'E2 Allocators'!$B$15:$W$15, 0),FALSE)*$D84 -> 0 | O84: =VLOOKUP('E4 TB Allocation Details'!$C95, 'E2 Allocators'!$B$15:$W$285, MATCH(O$12, 'E2 Allocators'!$B$15:$W$15, 0),FALSE)*$D84 -> 0 | P84: =VLOOKUP('E4 TB Allocation Details'!$C95, 'E2 Allocators'!$B$15:$W$285, MATCH(P$12, 'E2 Allocators'!$B$15:$W$15, 0),FALSE)*$D84 -> 0 | Q84: =VLOOKUP('E4 TB Allocation Details'!$C95, 'E2 Allocators'!$B$15:$W$285, MATCH(Q$12, 'E2 Allocators'!$B$15:$W$15, 0),FALSE)*$D84 -> 0 | R84: =VLOOKUP('E4 TB Allocation Details'!$C95, 'E2 Allocators'!$B$15:$W$285, MATCH(R$12, 'E2 Allocators'!$B$15:$W$15, 0),FALSE)*$D84 -> 0 | S84: =VLOOKUP('E4 TB Allocation Details'!$C95, 'E2 Allocators'!$B$15:$W$285, MATCH(S$12, 'E2 Allocators'!$B$15:$W$15, 0),FALSE)*$D84 -> 0 | T84: =VLOOKUP('E4 TB Allocation Details'!$C95, 'E2 Allocators'!$B$15:$W$285, MATCH(T$12, 'E2 Allocators'!$B$15:$W$15, 0),FALSE)*$D84 -> 0 | U84: =VLOOKUP('E4 TB Allocation Details'!$C95, 'E2 Allocators'!$B$15:$W$285, MATCH(U$12, 'E2 Allocators'!$B$15:$W$15, 0),FALSE)*$D84 -> 0 | V84: =VLOOKUP('E4 TB Allocation Details'!$C95, 'E2 Allocators'!$B$15:$W$285, MATCH(V$12, 'E2 Allocators'!$B$15:$W$15, 0),FALSE)*$D84 -> 0 | W84: =VLOOKUP('E4 TB Allocation Details'!$C95, 'E2 Allocators'!$B$15:$W$285, MATCH(W$12, 'E2 Allocators'!$B$15:$W$15, 0),FALSE)*$D84 -> 0 | X84: =VLOOKUP('E4 TB Allocation Details'!$C95, 'E2 Allocators'!$B$15:$W$285, MATCH(X$12, 'E2 Allocators'!$B$15:$W$15, 0),FALSE)*$D84 -> 0
B85: ='I3 TB Data'!B91 -> Export Revenue Credit - Generation Transformation Connection - Dedicated to Domestic | C85: ERC | D85: ='I3 TB Data'!G91 -> 0 | E85: =VLOOKUP('E4 TB Allocation Details'!$C96, 'E2 Allocators'!$B$15:$W$285, MATCH(E$12, 'E2 Allocators'!$B$15:$W$15, 0),FALSE)*$D85 -> 0 | F85: =VLOOKUP('E4 TB Allocation Details'!$C96, 'E2 Allocators'!$B$15:$W$285, MATCH(F$12, 'E2 Allocators'!$B$15:$W$15, 0),FALSE)*$D85 -> 0 | G85: =VLOOKUP('E4 TB Allocation Details'!$C96, 'E2 Allocators'!$B$15:$W$285, MATCH(G$12, 'E2 Allocators'!$B$15:$W$15, 0),FALSE)*$D85 -> 0 | H85: =VLOOKUP('E4 TB Allocation Details'!$C96, 'E2 Allocators'!$B$15:$W$285, MATCH(H$12, 'E2 Allocators'!$B$15:$W$15, 0),FALSE)*$D85 -> 0 | I85: =VLOOKUP('E4 TB Allocation Details'!$C96, 'E2 Allocators'!$B$15:$W$285, MATCH(I$12, 'E2 Allocators'!$B$15:$W$15, 0),FALSE)*$D85 -> 0 | J85: =VLOOKUP('E4 TB Allocation Details'!$C96, 'E2 Allocators'!$B$15:$W$285, MATCH(J$12, 'E2 Allocators'!$B$15:$W$15, 0),FALSE)*$D85 -> 0 | K85: =VLOOKUP('E4 TB Allocation Details'!$C96, 'E2 Allocators'!$B$15:$W$285, MATCH(K$12, 'E2 Allocators'!$B$15:$W$15, 0),FALSE)*$D85 -> 0 | L85: =VLOOKUP('E4 TB Allocation Details'!$C96, 'E2 Allocators'!$B$15:$W$285, MATCH(L$12, 'E2 Allocators'!$B$15:$W$15, 0),FALSE)*$D85 -> 0 | M85: =VLOOKUP('E4 TB Allocation Details'!$C96, 'E2 Allocators'!$B$15:$W$285, MATCH(M$12, 'E2 Allocators'!$B$15:$W$15, 0),FALSE)*$D85 -> 0 | N85: =VLOOKUP('E4 TB Allocation Details'!$C96, 'E2 Allocators'!$B$15:$W$285, MATCH(N$12, 'E2 Allocators'!$B$15:$W$15, 0),FALSE)*$D85 -> 0 | O85: =VLOOKUP('E4 TB Allocation Details'!$C96, 'E2 Allocators'!$B$15:$W$285, MATCH(O$12, 'E2 Allocators'!$B$15:$W$15, 0),FALSE)*$D85 -> 0 | P85: =VLOOKUP('E4 TB Allocation Details'!$C96, 'E2 Allocators'!$B$15:$W$285, MATCH(P$12, 'E2 Allocators'!$B$15:$W$15, 0),FALSE)*$D85 -> 0 | Q85: =VLOOKUP('E4 TB Allocation Details'!$C96, 'E2 Allocators'!$B$15:$W$285, MATCH(Q$12, 'E2 Allocators'!$B$15:$W$15, 0),FALSE)*$D85 -> 0 | R85: =VLOOKUP('E4 TB Allocation Details'!$C96, 'E2 Allocators'!$B$15:$W$285, MATCH(R$12, 'E2 Allocators'!$B$15:$W$15, 0),FALSE)*$D85 -> 0 | S85: =VLOOKUP('E4 TB Allocation Details'!$C96, 'E2 Allocators'!$B$15:$W$285, MATCH(S$12, 'E2 Allocators'!$B$15:$W$15, 0),FALSE)*$D85 -> 0 | T85: =VLOOKUP('E4 TB Allocation Details'!$C96, 'E2 Allocators'!$B$15:$W$285, MATCH(T$12, 'E2 Allocators'!$B$15:$W$15, 0),FALSE)*$D85 -> 0 | U85: =VLOOKUP('E4 TB Allocation Details'!$C96, 'E2 Allocators'!$B$15:$W$285, MATCH(U$12, 'E2 Allocators'!$B$15:$W$15, 0),FALSE)*$D85 -> 0 | V85: =VLOOKUP('E4 TB Allocation Details'!$C96, 'E2 Allocators'!$B$15:$W$285, MATCH(V$12, 'E2 Allocators'!$B$15:$W$15, 0),FALSE)*$D85 -> 0 | W85: =VLOOKUP('E4 TB Allocation Details'!$C96, 'E2 Allocators'!$B$15:$W$285, MATCH(W$12, 'E2 Allocators'!$B$15:$W$15, 0),FALSE)*$D85 -> 0 | X85: =VLOOKUP('E4 TB Allocation Details'!$C96, 'E2 Allocators'!$B$15:$W$285, MATCH(X$12, 'E2 Allocators'!$B$15:$W$15, 0),FALSE)*$D85 -> 0
